Workbook

Sheet Design Converter
A1: LM5177 DC/DC Controller Design Tool
A3: About | C3: xx | F3: = Input Box | J3: http://www.ti.com/product/lm5177 | N3: TERMS OF USE
A4: Version | B4: =Licenses!B5 -> 1.0.9
A5: Step 1: Operating Specifications
D6: Input Voltage - Min, VIN(min) | E6: 4 | F6: V
D7: Input Voltage - Nom, VIN(nom) | E7: 24 | F7: V
D8: Input Voltage - Max, VIN(max) | E8: 60 | F8: V
D9: Output Voltage, VOUT | E9: 10.24 | F9: V
D10: Full Load Output Current, IOUT(max) | E10: 6 | F10: A
D11: Switching Frequency | E11: 380 | F11: kHz
D12: Frequency Set Resistor, RT | E12: =IF('Standard Value Calculator'!O4/1000>288, "N/A",'Standard Value Calculator'!O4/1000) -> 78.7 | F12: kΩ
A14: Step 2: Filter Inductor
D15: Recommended Filter Inductance | E15: =Lopt_Limit*1000000 -> 1.886315789 | F15: µH
D16: Inductance, LF | E16: 1.5 | F16: µH
D17: Inductor DCR | E17: 3.8 | F17: mΩ
D18: Pk-to-Pk Ripple Current at VIN(min), DIL1 | E18: ='Variable Management'!B87 -> 4.332101373 | F18: Apk-pk
D19: Pk-to-Pk Ripple Current at VIN(nom), DIL2 | E19: ='Variable Management'!B88 -> 10.32972169 | F19: Apk-pk
D20: Pk-to-Pk Ripple Current at VIN(max), DIL3 | E20: ='Variable Management'!B89 -> 14.94654426 | F20: Apk-pk
D21: DIL as a % at VIN(min) | E21: ='Variable Management'!B99*100 -> 26.79359573 | F21: %
D22: DIL as a % at VIN(nom) | E22: ='Variable Management'!B100*100 -> 172.1620281 | F22: %
D23: DIL as a % at VIN(max) | E23: ='Variable Management'!B101*100 -> 249.109071 | F23: %
A25: Step 3: OCP, Sense Resistors, Slope Comp
D26: Peak Current Limit Margin | E26: 10 | F26: %
D27: Recommended Sense Resistance | E27: =Rs_ideal*1000 -> 1.911880975 | F27: mΩ
D28: Sense Resistance, RS | E28: 2 | F28: mΩ
D29: Peak Inductor Over Current Limit, ILPK,Limit | E29: ='Variable Management'!B159 -> 29.25 | F29: A
D30: Max Peak Inductor Current, ILPk,Max | E30: =Ipeak_inductor_max -> 18.33447174 | F30: A
D31: Power Loss in Rs at over current limit | E31: ='Variable Management'!B162 -> 0.292032 | F31: W
D32: =IF(Device<>"LM51772","Recommended SLOPE Resistor","Recommended SLOPE Factor") -> Recommended SLOPE Resistor | E32: =IF(Device<>"LM51772",'Variable Management'!B165/1000,'Variable Management'!B169) -> 37.4 | F32: =IF(Device<>"LM51772","kΩ","") -> kΩ
D33: SLOPE Resistor, RSLOPE | E33: ='Variable Management'!B165/1000 -> 37.4 | F33: kΩ
D34: VIN(min) | E34: ='Variable Management'!B151 -> 8.737994212 | F34: A
C35: IOUT(typ) at OCP Inception: | D35: VIN(nom) | E35: ='Variable Management'!B152 -> 19.83513916 | F35: A
D36: VIN(max) | E36: ='Variable Management'!B153 -> 17.52672787 | F36: A
A38: Step 4: Output Capacitor
D39: Output Voltage Ripple Spec | E39: 150 | F39: mVpk-pk
D40: Minimum Output Capacitance | E40: ='Variable Management'!B197 -> 64.98152059 | F40: µF
D41: Output Capacitance, COUT | E41: 130 | F41: µF
D42: Maximum Permitted ESR | E42: ='Variable Management'!B201 -> 12.50355373 | F42: mΩ
D43: Output Capacitor ESR | E43: 2 | F43: mΩ
D44: Resulting Output Voltage Ripple (max) | E44: =Vripple2*1000 -> 86.97867761 | F44: mVpk-pk
D45: Output Capacitor RMS Current (max) | E45: ='Variable Management'!B192 -> 7.493997598 | F45: A (rms)
A47: Step 5: Input Capacitor
D48: Input Voltage Ripple Spec | E48: 180 | F48: mVpk-pk
D49: Minimum Input Capacitance | E49: ='Variable Management'!B217 -> 21.92982456 | F49: µF
D50: Input Capacitance, CIN | E50: 100 | F50: µF
D51: Maximum Permitted ESR | E51: ='Variable Management'!B222 -> 10.43000649 | F51: mΩ
D52: Input Capacitor ESR | E52: 2 | F52: mΩ
D53: Resulting Input Voltage Ripple (max) | E53: =Vinripple2*1000 -> 66.42022847 | F53: mVpk-pk
D54: Input Capacitor RMS Current (max) | E54: ='Variable Management'!B210 -> 2.968648065 | F54: A (rms)
A56: Step 6: Soft-start, UVLO, CFG
D57: recommended Soft-Start Time, tSS for ISCP(MIN) | E57: =E41*0.000001*E9/(E26-E10)*1000 -> 0.3328 | F57: ms | M57: VIN(nom) | N57: =VIN_nom&"V" -> 24V
D58: Soft-Start Time, tSS | E58: 1.7 | F58: ms
D59: Soft-Start Capacitance, CSS | E59: =IF(Tss>1.28/1000,Css_u*1000000000,"N/A") -> 18 | F59: nF
D61: Configuration Setting | E61: =CFG -> 11
D62: Configuration Resistor on CFG: RCFG | E62: =INDEX('CFG Setting'!B4:B19,CFG,0) -> 13.3 | F62: kΩ
D63: Required Input Voltage UVLO On | E63: 5.8 | F63: V
D64: Input Voltage UVLO Off | E64: 5.425 | F64: V
D65: Upper UVLO Resistor, RUV1 | E65: =Ruvlo1 -> 75 | F65: kΩ
D66: Lower UVLO Resistor, RUV2 | E66: ='Variable Management'!E242 -> 20.5 | F66: kΩ
D67: Current Monitor/Limiter
D68: =CHOOSE(IMONLIM_select+1,"","Maximum Current to Monitor","Average Current Limit","Average Current Limit") ->  | E68: 3 | F68: A
D69: =CHOOSE(IMONLIM_select+1,"","Maximum Voltage at IMONOUT","", "") ->  | E69: =CHOOSE(IMONLIM_select+1,"","1.5","5", "0") ->  | F69: V
D70: Current Sense Shunt Resistance, RCS(out/in) | E70: =Rshunt -> 16.66666667 | F70: mΩ
D71: =CHOOSE(IMONLIM_select+1,"","IMONOUT Resistance, RIMON","SYNC pin during startup", "SYNC pin during startup") ->  | E71: =CHOOSE(IMONLIM_select+1,"",'Variable Management'!B274/1000,"High", "Low") ->  | F71: kΩ
D72: IMONOUT Filter , CIMON | E72: 3 | F72: nF
D73: IMONOUT Filter , RIMON | E73: 1 | F73: kΩ
A75: Step 7: Compensation Design
D76: Load Pole Frequency | E76: =Fp_dominant -> 717.3449959 | F76: Hz
D77: COUT ESR Zero Frequency | E77: =Fesr/1000 -> 612.1343965 | F77: kHz
D78: Boost RHP Zero Frequency @ VIN(MIN) | E78: =IF(E6<E9,Frhp_Vinmin/1000,"---") -> 26.51789331 | F78: kHz
D79: Boost RHP Zero Frequency @ VIN(NOM) | E79: =IF(E7<E9,Frhp/1000,"---") -> --- | F79: kHz
D80: Desired Crossover Frequency | E80: 1 | F80: =" kHz " -> kHz
D81: Error Amp Pole Frequency | E81: =Fp1_u -> 0.03386194116 | F81: Hz
D82: Upper Feedback Resistor, RFBT | E82: 71.5 | F82: kΩ
D83: Lower Feedback Resistor, RFBB | E83: =IF(Vout=Vref,"OPEN",Rfb2_u/1000) -> 7.68 | F83: =IF(Vout=Vref,"","kΩ") -> kΩ
A85: Compensation Components
B86: Calculated / | C86: Std Values | E86: =" Selected" -> Selected | G86: Actual P/Z Frequencies
A87: RC | B87: =Rcea1/1000 -> 0.278805876 | C87: ='Standard Value Calculator'!O27 -> 0.28 | E87: 0.24 | F87: kΩ | G87: =Fp1_u -> 0.03386194116 | H87: Hz (FPEA)
A88: CC1 | B88: =Cc1ea*1000000000 -> 530.516477 | C88: ='Standard Value Calculator'!O28 -> 560 | E88: 470 | F88: nF | G88: =Fz1_u/1000 -> 1.410948077 | H88: kHz (FZCOMP)
A89: CC2 | B89: =IF(Cc2ea*1000000000000<0, 0, Cc2ea*1000000000000) -> 57077.15539 | C89: ='Standard Value Calculator'!O29 -> 56000 | E89: 56000 | F89: pF | G89: =Fp2_u/1000 -> 11.84033253 | H89: kHz (FPCOMP)
A91: Efficiency / Power Loss Analyzer
A93: Step 8: Efficiency | M93: VIN(nom) | N93: =VIN_nom&"V" -> 24V
D94: Buck-Leg Power MOSFETs (Q1, Q2) | E94: BSC037N08NS5
E95: Hi-side | F95: Low-side
D96: On-State Resistance, RDS(on) | E96: 4.4 | F96: 4.4 | G96: mΩ
D97: Total Gate Charge, QG | E97: 46 | F97: 46 | G97: nC
D98: Gate-Drain Charge, QGD | E98: 10 | F98: 10 | G98: nC
D99: Gate-Source Charge, QGS | E99: 15 | F99: 15 | G99: nC
D100: Gate Resistance, RG | E100: 1.3 | F100: 1.3 | G100: Ω
D101: Transconductance, gFS | E101: 94 | F101: 94 | G101: S
D102: Gate-Source Threshold Voltage, VTH | E102: 3 | F102: 3 | G102: V
D103: Body Diode Forward Voltage, VBD | E103: 0.9 | F103: 0.9 | G103: V
D104: Body Diode Rev Recovery Charge, QRR | F104: 36 | G104: nC
D105: Thermal Resistance, θJA | E105: 65 | F105: 65 | G105: °C/W
D107: Boost-Leg Power MOSFETs (Q3, Q4) | E107: BSC037N08NS5
E108: Hi-side | F108: Low-side
D109: On-State Resistance, RDS(on) | E109: 4.4 | F109: 4.4 | G109: mΩ
D110: Total Gate Charge, QG | E110: 46 | F110: 46 | G110: nC
D111: Gate-Drain Charge, QGD | E111: 10 | F111: 10 | G111: nC
D112: Gate-Source Charge, QGS | E112: 15 | F112: 15 | G112: nC
D113: Gate Resistance, RG | E113: 1.3 | F113: 1.3 | G113: Ω
D114: Transconductance, gFS | E114: 94 | F114: 94 | G114: S
D115: Gate-Source Threshold Voltage, VTH | E115: 3 | F115: 3 | G115: V
D116: Body Diode Forward Voltage, VBD | E116: 0.9 | F116: 0.9 | G116: V
D117: Body Diode Rev Recovery Charge, QRR | E117: 72 | G117: nC
D118: Thermal Resistance, θJA | E118: 65 | F118: 65 | G118: °C/W
A120: External Schottky Diode (if applicable) | E120: Buck Leg | F120: Boost Leg
D121: Schottky Fwd Voltage, VFWDsch | E121: 0 | F121: 0 | G121: V
D122: Schottky Rev Recovery Charge, QRRsch | E122: 0 | F122: 0 | G122: nC

Sheet Licenses
A5: Version Number | B5: 1.0.9
A35: Version History
A36: Version | B36: Change List Description
A37: 1.0.0 | B37: Initial Release
A38: 1.0.1 | B38: updated calculation of High Frequency pole in compensation
A39: 1.0.2 | B39: fixed Rshunt issue blocking efficiency calculation
B40: fixed Rgate Boost side was fixed to 1Ohm, fixed A_CS value to 10, updated EA gm to 600 (from 500)
A41: 1.0.3 | B41: Fixed calculation of UVLO
A42: 1.0.4 | B42: Added support for IMONLIM, fixed error in Efficiency calculation graph of Vin
B43: Fixed minor error in RT
B44: updated Inductor limits
A45: 1.0.5 | B45: fixed calculation of R_CFG
A46: 1.0.6 | B46: working version
B47: fixed limit for L
B48: fixed display of gain and phase margin in bode plot
A49: 1.0.7 | B49: improved Rsense suggestion
B50: added range check for Slope compensation
A51: 1.0.8 | B51: aligned steps for Lf and Rs selection with datasheet and added more comments
B52: updated calculation of Iout at OCP inection point
A53: 1.0.9 | B53: added display of Peak inductor current
B54: Check peak current limit with considering given margin

Sheet BOM & Schematic (hidden)
B45: ** Tie MODE to VCC (or voltage > 2.4V) for No Hiccup **
A46: ="VIN = "&VIN_min&" V to "&VIN_max&" V, VOUT = "& Vout &" V, IOUT = " &Iout & " A, Fsw = " & Fsw/1000 &" kHz, Current Limit = "&ROUNDUP(Ilimit_DC,0)&" A" -> 
A47: High Efficiency Synchronous Buck-Boost Regulator BOM
A48: Count | B48: Ref Des | C48: Value | D48: Description | H48: Size | I48: Part Number | J48: MFR
A49: 2 | B49: CBOOT1, CBOOT2 | C49: 0.1 | D49: =C49 -> 0.1 | H49: 0603 | I49: Std | J49: Std
A50: 1 | B50: CC1 | C50: ='Design Converter'!E88 -> 470 | D50: 470 | H50: 0603 | I50: Std | J50: Std
A51: 1 | B51: CC2 | C51: ='Design Converter'!E89 -> 56000 | D51: 56000 | H51: 0603 | I51: Std | J51: Std
A52: 1 | B52: RSLOPE | C52: =Rslope/1000 -> 37.4 | H52: 0603 | I52: Std | J52: Std
A53: 1 | B53: CCS | C53: 100 | D53: =C53 -> 100 | H53: 0603 | I53: Std | J53: Std
A54: 1 | B54: CDITH | C54: =Cdither*1000000000 -> 0 | D54: =C54 -> 0 | H54: 0603 | I54: Std | J54: Std
A55: =ROUNDUP('Design Converter'!E50/10,0) -> 10 | B55: CIN | C55: 10 | D55: =C55 -> 10 | H55: 1210 | I55: Std | J55: Std
A56: =ROUNDUP('Design Converter'!E41/22,0) -> 6 | B56: COUT | C56: 22 | D56: =C56 -> 22 | H56: 1210 | I56: Std | J56: Std
A57: 1 | B57: CSS | C57: ='Design Converter'!E59 -> 18 | D57: =C57 -> 18 | H57: 0603 | I57: Std | J57: Std
A58: 1 | B58: CVCC | C58: 1 | D58: 1 | H58: 0603 | I58: Std | J58: Std
A59: 1 | B59: CVIN | C59: 0.1 | D59: 0.1 | H59: 0603 | I59: Std | J59: Std
A60: 3 | B60: DBOOT1, DBOOT2, DVIN | C60: See description | D60: Schottky Diode, 200mA | H60: - | I60: - | J60: Various
A61: 1 | B61: LF | C61: ='Design Converter'!E16 -> 1.5 | D61: ="Inductor, "&Lf*1000000&"µH, "&Rdcr*1000&"mΩ, >"&ROUNDUP(IL_peak_OCP*1.1,0)&"A" -> Inductor, 1.5µH, 3.8mΩ, >33A | H61: - | I61: - | J61: Various
A62: 2 | B62: Q1, Q2 | C62: See description | D62: ='Design Converter'!E96 -> 4.4 | H62: Std | I62: ='Design Converter'!E94 -> BSC037N08NS5 | J62: -
A63: 2 | B63: Q3, Q4 | C63: See description | D63: ='Design Converter'!E109 -> 4.4 | H63: Std | I63: ='Design Converter'!E107 -> BSC037N08NS5 | J63: -
A64: 1 | B64: RC1 | C64: ='Design Converter'!E87 -> 0.24 | D64: =C64 -> 0.24 | H64: 0603 | I64: Std | J64: Std
A65: 1 | B65: RS | C65: =Rs*1000 -> 2 | D65: 2 | H65: 2512 | I65: Std | J65: Std
A66: 1 | B66: RCS(out) | C66: ='Standard Value Calculator'!O21 -> 16.5 | D66: =C66 -> 16.5 | H66: 2512 | I66: Std | J66: Std
A67: 1 | B67: RT | C67: ='Design Converter'!E12 -> 78.7 | D67: 78.7 | H67: 0603 | I67: Std | J67: Std
A68: 1 | B68: RFB1 | C68: ='Design Converter'!E82 -> 71.5 | D68: 71.5 | H68: 0603 | I68: Std | J68: Std
A69: 1 | B69: RFB2 | C69: ='Design Converter'!E83 -> 7.68 | D69: 7.68 | H69: 0603 | I69: Std | J69: Std
A70: 1 | B70: RPGOOD | C70: 20 | D70: 20 | H70: 0603 | I70: Std | J70: Std
A71: 2 | B71: RCS, RCSG | C71: 100 | D71: 100 | H71: 0603 | I71: Std | J71: Std
A72: 1 | B72: RUV1 | C72: ='Design Converter'!E65 -> 75 | D72: 75 | H72: 0603 | I72: Std | J72: Std
A73: 1 | B73: RUV2 | C73: ='Design Converter'!E66 -> 20.5 | D73: 20.5 | H73: 0603 | I73: Std | J73: Std
A74: 1 | B74: RVIN | C74: 2.2 | D74: 2.2 | H74: 0603 | I74: Std | J74: Std
A75: 1 | B75: U1 | C75: LM5177 | D75: IC, LM5177, Buck-Boost PWM Controller | H75: TSSOP-38 | I75: LM5177HTSSOP | J75: TI
A78: NOTES:
A79: ** For information on TI NexFETTM MOSFETs, see ** | D79: http://www.ti.com/nexfet | E79: **
A80: ** Inductor saturation current should be higher than the peak inductor current at the OCP setpoint for all input voltages and operating temperatures **
A81: ** Effective input and output capacitances should be appropriately derated for applied voltage and temperature, particularly with ceramics **

Sheet EVMs (hidden)
A1: LM5175 Quickstart Design Tool
B6: LM5175EVM-HD PCB Layout | M6: LM5175EVM-HP PCB Layout | W6: LM5175EVM PCB Layout

Sheet Variable Management (hidden)
A1: EXCEL Variables Names/Calculations
B2: Input from user = | F2: to check
B3: Output =
B4: Constant
A5: Variable Name | B5: Value | C5: STD Units | E5: Notes | I5: Iteration
A6: Step 1: Operational Specs
A7: VIN_min | B7: ='Design Converter'!E6 -> 4 | C7: V | D7: Minimum input voltage | I7: 1
B8: ='Design Converter'!E7 -> 24 | C8: V | D8: Nominal input voltage | K8: Efficiency vs IOUT Plot | L8: 1
A9: VIN_max | B9: ='Design Converter'!E8 -> 60 | C9: V | D9: Maximum input voltage | K9: Efficiency vs VIN Plot | L9: 2
A10: VIN_edgebuckboost | B10: =B44 -> 8.338636023 | C10: V | K10: PLOT_TYPE | L10: 2 | M10: CFG | O10: ='CFG Setting'!G28 -> 11 | P10: 1 = Yes, 2 = No
K11: BODEPLOT_TYPE | L11: FALSE
A12: Vout | B12: ='Design Converter'!E9 -> 10.24 | C12: V | D12: Output Voltage | I12: 1
A13: Iout | B13: ='Design Converter'!E10 -> 6 | C13: A | D13: Maximum Output Current | I13: 1
A14: Rout | B14: =Vout/Iout -> 1.706666667 | C14: W | D14: Load resistance
A15: Pout | B15: =Vout*Iout -> 61.44 | C15: W | D15: Output power
A16: Efficiency | B16: 0.95 | D16: Edited by Vijay from 96% to 90% to match datasheet calculations.
A17: Pin | B17: =Pout/Efficiency -> 64.67368421 | C17: W | D17: Calculate input power assuming 90% efficiency
A18: Iin_Vinmin | B18: =Pin/VIN_min -> 16.16842105 | C18: A
A19: Iin_Vinnom | B19: =Pin/VIN_nom -> 2.694736842 | C19: A | D19: Input currents at min, nom, max Vin
A20: Iin_Vinmax | B20: =Pin/VIN_max -> 1.077894737 | C20: A
A22: Fsw | B22: ='Design Converter'!E11*1000 -> 380000 | C22: Hz | D22: Nominal Switching Frequency | I22: 1
A23: Ts | B23: =1/Fsw -> 2.631578947e-06 | C23: sec | D23: Period
A24: Vref | B24: 1 | C24: V | D24: Reference Voltage
A25: Vref_eff | B25: =Vref -> 1 | C25: V | D25: effective Vref with Tracking
A26: Rt | B26: =IF(Device<>"LM51772",(1/Fsw -0.00000002)*30300000000,(1/Fsw -0.000000018)*31500000000) -> 79130.84211 | C26: W | D26: Frequency Set Resistor | F26: edited based on LM5177 curve fit.
A27: Ifb | B27: 6e-08 | C27: A
A29: Device | B29: =CHOOSE(C29,L29,L30) -> LM5177 | C29: 1 | K29: Device | L29: LM5177
A30: Mode | B30: 1 | D30: 0: PSM 1: FPWM | L30: LM51772
A32: Toff_min_buck | B32: =MinToffBuck -> 3.112633575e-07 | C32: sec | D32: 200ns | E32: buck min timer
A33: Ton_min_boost | B33: =MinTonBoost -> 2.712633575e-07 | C33: sec | D33: 300ns | E33: boost min timer
A34: T_max_BB | B34: =TonBubo -> 2.142947169e-06 | C34: sec | E34: max timer before transition from BB
A36: D_min_boost | B36: =MinTonBoost*Fsw -> 0.1030800759
A37: D_max_exitBB_to_boost | B37: =TBubo*Fsw -> 0.1856800759 | C37: =MinTonBoost*Fsw -> 0.1030800759
A38: D_max_buck_BB | B38: 1 | C38: =MaxTonBuck*Fsw -> 0.8817199241
A40: D_min_boost_exitBB_to_buck | B40: =TBubo*Fsw -> 0.1856800759
A41: D_max_exitBB_to_buck | B41: =MaxTonBuck*Fsw -> 0.8817199241
A42: D_max_buck_enterBB | B42: =MaxTonBoost*Fsw -> 0.9174
A44: VIN_BB_to_boost | B44: =Vout*(1-B40) -> 8.338636023 | C44: V
A45: VIN_boost_to_BB | B45: =IF(B30=0,Vout,Vout*(1-B36)) -> 9.184460023 | C45: V
A46: VIN_buck_to_BB | B46: =IF(B30=0,Vout,Vout/B42) -> 11.16197951 | C46: V
A47: VIN_BB_to_buck | B47: =IF(B30=0,Vout,Vout/B41) -> 11.6136652 | C47: V
A51: Step 2: Filter Inductor
A52: Don1 | B52: =Vout/VIN_nom -> 0.4266666667 | C52: =(Vout-VIN_nom)/Vout -> -1.34375 | E52: Ideal Duty Cycle at VIN(nom) | I52: 1
A53: Doff1 | B53: =1-_Don1 -> 0.5733333333 | E53: Ideal 1- Duty Cycle at VIN(nom) | I53: 1
A55: Don_Vinmin | B55: =IF(VIN_min>Vout, Vout/VIN_min, (Vout-VIN_min)/Vout) -> 0.609375 | C55: =IF(VIN_min>Vout, "BUCK", "BOOST") -> BOOST
A56: Don_Vinnom | B56: =IF(VIN_nom>Vout, Vout/VIN_nom, (Vout-VIN_nom)/Vout) -> 0.4266666667 | C56: =IF(VIN_nom>Vout, "BUCK", "BOOST") -> BUCK
A57: Don_Vinmax | B57: =IF(VIN_max>Vout, Vout/VIN_max, (Vout-VIN_max)/Vout) -> 0.1706666667 | C57: =IF(VIN_max>Vout, "BUCK", "BOOST") -> BUCK
A58: Don_buckboost | B58: =B37 -> 0.1856800759 | C58: lower edge of BUCK-BOOST
A59: Rs_Init | B59: =Boost_CS_Threshold/(Iin_Vinmin*1.4) -> 0.002208891369 | C59: W
B60: BUCK | C60: BOOST
A61: Lf_Vinmin | B61: =(VIN_min-Vout)*Don_Vinmin/(Fsw*Iout*0.3) -> -5.559210526e-06 | C61: =VIN_min/(Iin_Vinmin*0.3*Fsw)*(1-VIN_min/Vout) -> 1.322428385e-06 | D61: H | E61: Calculated inductance for 30% ripple at VIN(min)
A62: Lf_Vinnom | B62: =(VIN_nom-Vout)*Don_Vinnom/(Fsw*Iout*0.4) -> 6.437426901e-06 | C62: =VIN_nom/(Iin_Vinnom*0.4*Fsw)*(1-VIN_nom/Vout) -> -7.873535156e-05 | D62: H | E62: Calculated inductance for 40% ripple at VIN(nom) | I62: 1
A63: Lf_Vinmax | B63: =(VIN_max-Vout)*Don_Vinmax/(Fsw*Iout*0.6) -> 6.207875244e-06 | C63: =VIN_max/(Iin_Vinmax*0.6*Fsw)*(1-VIN_max/Vout) -> -0.00118637085 | D63: H | E63: Calculated inductance for 60% ripple at VIN(max) | K63: Joerg's Calculation | R63: LM5177
K64: Labsmin | L64: =IF(Device<>"LM51772",Rs/8000,Rs*125/Fsw) -> 2.5e-07 | M64: H | N64: Labsmax | O64: =IF(Device<>"LM51772",Rs/100,Rs*5000/Fsw) -> 2e-05 | P64: H
A65: L_Vinmin | B65: =MAX(IF(VIN_min>Vout,B61,C61),O65) -> 1.322428385e-06 | C65: H | D65: =IF(VIN_min>Vout, "BUCK", "BOOST") -> BOOST | E65: Calculated inductance for 30% ripple at VIN(min) | K65: Lbuck | L65: =(VIN_max-Vout)*Vout/(0.4*Iout*Fsw*VIN_max) -> 9.311812865e-06 | M65: H | N65: Lmin | O65: =MAX(10*Vout*Rs/Fsw,Labsmin) -> 5.389473684e-07 | P65: H
A66: L_Vinnom | B66: =IF(VIN_nom>Vout, B62,C62) -> 6.437426901e-06 | C66: H | D66: =IF(VIN_nom>Vout, "BUCK", "BOOST") -> BUCK | E66: Calculated inductance for 40% ripple at VIN(nom) | K66: Lboost | L66: =(Vout-VIN_min)*VIN_min^2/(0.3*Iout*Fsw*Vout^2) -> 1.392029879e-06 | M66: H | N66: Lmax | O66: =MIN(Rs*35*Vout/(Fsw*1),Labsmax) -> 1.886315789e-06 | P66: H
A67: L_Vinmax | B67: =MIN(IF(VIN_max>Vout,B63,C63),O66) -> 1.886315789e-06 | C67: H | D67: =IF(VIN_max>Vout, "BUCK", "BOOST") -> BUCK | E67: Calculated inductance for 60% ripple at VIN(max)
K70: L_avg | L70: =(MAX(MIN(AVERAGE(L65:L66),O66),O65)) -> 1.886315789e-06
A71: Lopt | B71: =VIN_min^2*(Vout-VIN_min)/(0.2*Iout*Fsw*Vout^2) -> 2.088044819e-06 | C71: H | D71: calculated based on 20% ripple limit | K71: L_min | L71: =(MAX(MIN(MIN(L65:L66),O66),O65)) -> 1.392029879e-06
A72: Lmin | B72: =O65 -> 5.389473684e-07 | C72: H
A73: Lmax | B73: =O66 -> 1.886315789e-06 | C73: H | K73: L(peak limit, less than) | L73: =VIN_min*(Vout-VIN_min)/(0.15*Fsw*Vout)*Rs/0.05 -> 1.710526316e-06 | M73: H
A74: Lopt_Limit | B74: =MAX(MIN(B71,B73),B72) -> 1.886315789e-06 | C74: H
A75: Lf | B75: ='Design Converter'!E16/1000000 -> 1.5e-06 | C75: H | E75: Chosen inductance | I75: 2
A76: Rdcr | B76: ='Design Converter'!E17/1000 -> 0.0038 | C76: W | E76: Chosen inductor DCR | I76: 1
A78: Don2 | B78: =(Vout+Iout*(Rdcr+Rs))/(Vin+Iout*Rs) -> 0.4279027153 | I78: 2
A79: Doff2 | B79: =1-_Don2 -> 0.5720972847 | I79: 2
A81: Don_Vinmin_2 | B81: =IF(VIN_min>Vout, (Vout+Iout*(Rdcr+Rs))/(VIN_min+Iout*Rs), (Vout-VIN_min+Iin_Vinmin*(Rdcr))/(Vout-Iin_Vinmin*Rs)) -> 0.6173244456 | C81: =IF(VIN_min>Vout, "BUCK", "BOOST") -> BOOST | E81: Duty cycles adjusted for DCR and shunt voltage drops | I81: 2 | J81: Vijay's simplification | L81: =(1-VIN_min*90%/Vout) -> 0.6484375
A82: Don_Vinnom_2 | B82: =IF(VIN_nom>Vout, (Vout+Iout*(Rdcr+Rs))/(VIN_nom+Iout*Rs), (Vout-VIN_nom+Iin_Vinnom*(Rdcr))/(Vout-Iin_Vinnom*Rs)) -> 0.4279027153 | C82: =IF(VIN_nom>Vout, "BUCK", "BOOST") -> BUCK | E82: need to include RDS(on) later | R82: LM51772
A83: Don_Vinmax_2 | B83: =IF(VIN_max>Vout, (Vout+Iout*(Rdcr+Rs))/(VIN_max+Iout*Rs), (Vout-VIN_max+Iin_Vinmax*(Rdcr))/(Vout-Iin_Vinmax*Rs)) -> 0.1712124242 | C83: =IF(VIN_max>Vout, "BUCK", "BOOST") -> BUCK
A85: Vripple1 | B85: ='Design Converter'!E39/1000 -> 0.15 | C85: V | E85: Output voltage ripple spec(pk-pk) | I85: 1
A87: Iripple_Vinmin | B87: =IF(VIN_min>Vout, (VIN_min-Vout)*Don_Vinmin_2/(Fsw*Lf),VIN_min*Don_Vinmin_2/(Lf*Fsw)) -> 4.332101373 | C87: =(VIN_min-Vout)*Don_Vinmin_2/(Fsw*Lf) -> -6.758078141 | D87: A | E87: =IF(VIN_min>Vout, "BUCK", "BOOST") -> BOOST | H87: =VIN_min*Don_Vinmin_2/(Lopt*Fsw) -> 3.11207499
A88: Iripple_Vinnom | B88: =IF(VIN_nom>Vout, (VIN_nom-Vout)*Don_Vinnom_2/(Fsw*Lf),VIN_nom*Don_Vinnom_2/(Lf*Fsw)) -> 10.32972169 | C88: =(VIN_nom-Vout)*Don_Vinnom_2/(Fsw*Lf) -> 10.32972169 | D88: A | E88: =IF(VIN_nom>Vout, "BUCK", "BOOST") -> BUCK
A89: Iripple_Vinmax | B89: =IF(VIN_max>Vout, (VIN_max-Vout)*Don_Vinmax_2/(Fsw*Lf),VIN_max*Don_Vinmax_2/(Lf*Fsw)) -> 14.94654426 | C89: =(VIN_max-Vout)*Don_Vinmax_2/(Fsw*Lf) -> 14.94654426 | D89: A | E89: =IF(VIN_max>Vout, "BUCK", "BOOST") -> BUCK
A90: Iripple_edgebuckboost | B90: =VIN_edgebuckboost*Don_buckboost/(Lf*Fsw) -> 2.716348367 | D90: A | E90: BUCK-BOOST
A92: Ishunt_rms_Vinmin | B92: =IF(VIN_min>Vout, SQRT(1-Don_Vinmin_2)*SQRT(Iout^2+(Iripple_Vinmin^2)/12), SQRT(Don_Vinmin_2)*SQRT(Iin_Vinmin^2+(Iripple_Vinmin^2)/12)) -> 12.74147056 | C92: A | E92: =SQRT(1-Don_Vinmin_2)*SQRT(Iout^2+(Iripple_Vinmin^2)/12) -> 3.791410806 | F92: =SQRT(Don_Vinmin_2)*SQRT(Iout^2+(Iripple_Vinmin^2)/12) -> 4.815509246
A93: Ishunt_rms_Vinnom | B93: =IF(VIN_nom>Vout, SQRT(1-Don_Vinnom_2)*SQRT(Iout^2+(Iripple_Vinnom^2)/12), SQRT(Don_Vinnom_2)*SQRT(Iin_Vinnom^2+(Iripple_Vinnom^2)/12)) -> 5.067795456 | C93: A | E93: =SQRT(1-Don_Vinnom_2)*SQRT(Iout^2+(Iripple_Vinnom^2)/12) -> 5.067795456 | F93: =SQRT(Don_Vinnom_2)*SQRT(Iout^2+(Iripple_Vinnom^2)/12) -> 4.382850487
A94: Ishunt_rms_Vinmax | B94: =IF(VIN_max>Vout, SQRT(1-Don_Vinmax_2)*SQRT(Iout^2+(Iripple_Vinmax^2)/12), SQRT(Don_Vinmax_2)*SQRT(Iin_Vinmax^2+(Iripple_Vinmax^2)/12)) -> 6.727968378 | C94: A | E94: =SQRT(1-Don_Vinmax_2)*SQRT(Iout^2+(Iripple_Vinmax^2)/12) -> 6.727968378 | F94: =SQRT(Don_Vinmax_2)*SQRT(Iout^2+(Iripple_Vinmax^2)/12) -> 3.057947069
A95: Max shunt power loss at full load | B95: =MAX(B92,B94)^2*Rs -> 0.324690144 | C95: W | D95: =IF(B94>B92, "BUCK", "BOOST") -> BOOST
B96: =(Buck_CS_threshold_max/Rs)^2*Rs*Don_Vinmin -> 1.042716797 | C96: W
A97: Max inductor ripple current | B97: =MAX(B87:B89) -> 14.94654426 | C97: A
F98: Ripple I | G98: Iin
A99: % Ripple Current | B99: =IF(VIN_min>Vout, B87/Iout, B87/Iin_Vinmin) -> 0.2679359573 | C99: =IF(VIN_min>Vout, "BUCK", "BOOST") -> BOOST | F99: =B87 -> 4.332101373 | G99: =Iin_Vinmin -> 16.16842105
B100: =IF(VIN_nom>Vout, B88/Iout, B88/Iin_Vinnom) -> 1.721620281 | C100: =IF(VIN_nom>Vout, "BUCK", "BOOST") -> BUCK | F100: =B88 -> 10.32972169 | G100: =Iin_Vinnom -> 2.694736842
B101: =IF(VIN_max>Vout, B89/Iout, B89/Iin_Vinmax) -> 2.49109071 | C101: =IF(VIN_max>Vout, "BUCK", "BOOST") -> BUCK | F101: =B89 -> 14.94654426 | G101: =Iin_Vinmax -> 1.077894737
A103: Temp | B103: 100
A104: DCR at hot | B104: =Rdcr*(1+0.0039*(B103-25)) -> 0.0049115 | C104: W
A107: Step 3: Sense Resistors, Slope Comp, Current Limit
A109: Ilimit_Margin | B109: ='Design Converter'!E26 -> 10 | C109: % | E109: Chosen OCP level - based on output current
A111: Ipeak_inductor_Vinmin | B111: =IF(VIN_min>Vout, Iout/Efficiency+Iripple_Vinmin/2, Iin_Vinmin+Iripple_Vinmin/2) -> 18.33447174 | C111: A | D111: =IF(VIN_min>Vout, "BUCK", "BOOST") -> BOOST
A112: Ipeak_inductor_Vinnom | B112: =IF(VIN_nom>Vout, Iout/Efficiency+Iripple_Vinnom/2,Iin_Vinnom+Iripple_Vinnom/2) -> 11.48065032 | C112: A | D112: =IF(VIN_nom>Vout, "BUCK", "BOOST") -> BUCK
A113: Ipeak_inductor_Vinmax | B113: =IF(VIN_max>Vout, Iout/Efficiency+Iripple_Vinmax/2,Iin_Vinmin+Iripple_Vinmax/2) -> 13.7890616 | C113: A | D113: =IF(VIN_max>Vout, "BUCK", "BOOST") -> BUCK
A114: Ipeak_inductor_buckboost | B114: =Iout/Efficiency+Iripple_edgebuckboost/2 -> 7.673963657 | C114: A | D114: edge of buck-boost
A115: Ipeak_inductor_max | B115: =MAX(B111:B113) -> 18.33447174 | C115: A
A116: Ipeak_inductor_max_margin | B116: =Ipeak_inductor_max*(1+Ilimit_Margin/100) -> 20.16791891 | C116: A
A118: Buck CS threshold_min | B118: 0.0385 | C118: V
A119: Buck CS threshold | B119: 0.05 | C119: V | E119: Pos and neg. is identical - otherwise take lower value
A120: Buck CS threshold_max | B120: 0.0585 | C120: V | E120: Identical for Buck and Boost
A122: Boost CS Threshold_min | B122: 0.0385 | C122: V
A123: Boost CS Threshold | B123: 0.05 | C123: V | E123: Pos and neg. is identical - otherwise take lower value
A124: Boost CS Threshold_max | B124: 0.0585 | C124: V | E124: Identical for Buck and Boost
A126: Assume we'd like to achieve current limit particularly at VIN(min) and boost side of buck-boost region; accept inevitable variation over line thereafter
A127: Shunt required to get OCP at VIN(min) | B127: =IF(VIN_min>Vout,Buck_CS_threshold/Ipeak_inductor_Vinmin, Boost_CS_Threshold/Ipeak_inductor_Vinmin)/(1+Ilimit_Margin/100) -> 0.002479184898 | C127: W | D127: =IF(VIN_min>Vout, "BUCK", "BOOST") -> BOOST
A128: Shunt required to get OCP at VIN(nom) | B128: =IF(VIN_nom>Vout,Buck_CS_threshold/Ipeak_inductor_Vinnom, Boost_CS_Threshold/Ipeak_inductor_Vinnom)/(1+Ilimit_Margin/100) -> 0.003959230897 | C128: W | D128: =IF(VIN_nom>Vout, "BUCK", "BOOST") -> BUCK
A129: Shunt required to get OCP at VIN(max) | B129: =IF(VIN_max>Vout,Buck_CS_threshold/Ipeak_inductor_Vinmax, Boost_CS_Threshold/Ipeak_inductor_Vinmax)/(1+Ilimit_Margin/100) -> 0.003296420508 | C129: W | D129: =IF(VIN_max>Vout, "BUCK", "BOOST") -> BUCK
A130: Shunt required to get OCP at VIN(edge-bb) | B130: =IF(VIN_min<VIN_edgebuckboost,Buck_CS_threshold/Ipeak_inductor_buckboost, 10)/(1+Ilimit_Margin/100) -> 0.005923216148 | C130: W | D130: Edge of B-B
A133: Ipeak_peak_inductor | B133: =Don_Vinmin*VIN_min/(Lf*Fsw) -> 4.276315789 | C133: A
A134: IIN_avg_max | B134: =Vout*Iout/(Efficiency*VIN_min) -> 16.16842105
A145: Rs_ideal | B145: =Boost_CS_Threshold_min/((B134+0.5*B133)*(1+Ilimit_Margin/100)) -> 0.001911880975 | C145: W | E145: Ideal Rs for the required OCP -- based on 80mV or 160mV CL threshold
A146: Rs | B146: ='Design Converter'!E28/1000 -> 0.002 | C146: W | E146: Selected (starndard value) current limit sense resistor
A147: Rs_in_range | B147: =IF(AND(100<Rs/Lf,Rs/Lf<8000,Rs/Lf<(1*Fsw/(Vout*10))),1,0) -> 1
A148: BOOST current limit - peak | B148: =Boost_CS_Threshold_max/Rs -> 29.25 | C148: A | E148: Peak inductor current limit in BOOST
A149: BUCK current limit - peak | B149: =Buck_CS_threshold_max/Rs -> 29.25 | C149: A | E149: Peak inductor current limit in BUCK
A151: Iout_OCP_Vinmin | B151: =IF(VIN_min>Vout,Buck_CS_threshold/Rs-Iripple_Vinmin/2, (Boost_CS_Threshold/Rs-Iripple_Vinmin/2)*(1-Don_Vinmin_2)) -> 8.737994212 | C151: A | D151: =IF(VIN_min>Vout, "BUCK", "BOOST") -> BOOST | E151: Current limit setpoints (i.e. IOUT) after standard components are selected
A152: Iout_OCP_Vinnom | B152: =IF(VIN_nom>Vout,Buck_CS_threshold/Rs-Iripple_Vinnom/2, (Boost_CS_Threshold/Rs-Iripple_Vinnom/2)*(1-Don_Vinnom_2)) -> 19.83513916 | C152: A | D152: =IF(VIN_nom>Vout,"BUCK",IF(VIN_nom<VIN_edgebuckboost,"BOOST","BUCK-BOOST")) -> BUCK
A153: Iout_OCP_Vinmax | B153: =IF(VIN_max>Vout,Buck_CS_threshold/Rs-Iripple_Vinmax/2, (Boost_CS_Threshold/Rs-Iripple_Vinmax/2)*(1-Don_Vinmax_2)) -> 17.52672787 | C153: A | D153: =IF(VIN_max>Vout, "BUCK", "BOOST") -> BUCK
A154: Iout_edgebuckboost | B154: =(Buck_CS_threshold/Rs-Iripple_edgebuckboost/2)*(1-Don_buckboost) -> 19.25200981 | C154: A | D154: lower edge of buck-boost window | K154: RMS current in Rs | M154: Power diss in Rs
A156: ILpeak_OCP_Vinmin | B156: =IF(VIN_min>Vout, Buck_CS_threshold_max/Rs, Boost_CS_Threshold_max/Rs) -> 29.25 | C156: A | D156: =IF(VIN_min>Vout, "BUCK", "BOOST") -> BOOST | E156: Peak inductor currents in OCP | H156: =SQRT(Don_Vinmin_2)*SQRT(Iin_Vinmin^2+(Iripple_Vinmin^2)/12) -> 12.74147056 | K156: =IF(VIN_min>Vout, SQRT(1-Don_Vinmin_2)*SQRT(Iout_OCP_Vinmin^2+(Iripple_Vinmin^2)/12), SQRT(Don_Vinmin_2)*SQRT(Iin_Vinmin^2+(Iripple_Vinmin^2)/12)) -> 12.74147056 | L156: A | M156: =K156^2*Rs -> 0.324690144 | N156: W
A157: ILpeak_OCP_Vinnom | B157: =IF(VIN_nom>Vout, Buck_CS_threshold_max/Rs, IF(VIN_nom<VIN_edgebuckboost, Boost_CS_Threshold_max/Rs, Buck_CS_threshold_max/Rs)) -> 29.25 | C157: A | D157: =IF(VIN_nom>Vout,"BUCK",IF(VIN_nom<VIN_edgebuckboost,"BOOST","BUCK-BOOST")) -> BUCK | H157: =SQRT(1-Don_Vinnom_2)*SQRT(Iout_OCP_Vinnom^2+(Iripple_Vinnom^2)/12) -> 15.17131681 | K157: =IF(VIN_nom>Vout, SQRT(1-Don_Vinnom_2)*SQRT(Iout_OCP_Vinnom^2+(Iripple_Vinnom^2)/12), SQRT(Don_Vinnom_2)*SQRT(Iin_Vinnom^2+(Iripple_Vinnom^2)/12)) -> 15.17131681 | L157: A | M157: =K157^2*Rs -> 0.4603377077 | N157: W
A158: ILpeak_OCP_Vinmax | B158: =IF(VIN_max>Vout, Buck_CS_threshold_max/Rs, Boost_CS_Threshold_max/Rs) -> 29.25 | C158: A | D158: =IF(VIN_max>Vout, "BUCK", "BOOST") -> BUCK | H158: =SQRT(1-Don_Vinmax_2)*SQRT(Iout_OCP_Vinmax^2+(Iripple_Vinmax^2)/12) -> 16.43232495 | K158: =IF(VIN_max>Vout, SQRT(1-Don_Vinmax_2)*SQRT(Iout_OCP_Vinmax^2+(Iripple_Vinmax^2)/12), SQRT(Don_Vinmax_2)*SQRT(Iin_Vinmax^2+(Iripple_Vinmax^2)/12)) -> 16.43232495 | L158: A | M158: =K158^2*Rs -> 0.5400426068 | N158: W
A159: Worst case peak inductor current | B159: =MAX(B156:B158) -> 29.25 | C159: A | K159: Vijay verified that this calculation (Vinmax) are correct for OCP.
A161: IL_peak_OCP | B161: =MAX(B156:B158) -> 29.25 | C161: A | E161: Peak inductor current over the full input range
A162: Max shunt power loss at OC | B162: =(Boost_CS_Threshold_max/Rs)^2*Rs*(Vout/VIN_max) -> 0.292032 | C162: W
A164: Rslope_ideal | B164: =Lf/Rs*50*10^6 -> 37500 | C164: W | E164: using 50MV/As from Datasheet
A165: Rslope_recommended | B165: ='Standard Value Calculator'!O15 -> 37400 | C165: W | E165: Standard size based on Rsideal slope Resistor
A166: Rslope_selected | B166: ='Design Converter'!E33*1000 -> 37400 | C166: W | E166: Selected SLOPE Resistor
A168: Rslope calc LM51772 | B168: =Rs/Lf/Fsw*625 -> 2.192982456
A169: Rslope select LM51772 | B169: =INDEX(P174:P189,MATCH(B168,P174:P189,1)+1) -> 2.5
A170: Rslope setting for CFG1 in LM51772 | B170: =INDEX(O174:O189,MATCH(B168,P174:P189)+1)+1 -> 11
A171: Rslope_equ_772 | B171: =625*50000000/(Fsw*B169) -> 32894.73684 | C171: W
A172: Islope_fixed | B172: =Isc_const -> 0 | C172: A | K172: BUCK | L172: BOOST | O172: LM51772 Slope table
A173: Rslope | B173: =IF(Device="LM51772",B171,B166) -> 37400 | C173: W | K173: =B174*(1-Don_Vinmin_2)/Fsw -> 0.1260147477 | L173: =B174*Don_Vinmin_2/Fsw -> 0.2032844361 | M173: =IF(VIN_min>Vout, "BUCK", "BOOST") -> BOOST | O173: SEL_SLOPE | P173: Factor
A174: SLOPE comp dv/dt = I_slope_total/Cslope | B174: =(ABS((VIN_min-Vout))*gm_slopecomp/Cslope + Islope_fixed)/(Rslope) -> 125133.6898 | C174: V/s | E174: at VIN_min | K174: =B175*(1-Don_Vinnom_2)/Fsw -> 0.4154266801 | L174: =B175*Don_Vinnom_2/Fsw -> 0.310720238 | M174: =IF(VIN_nom>Vout, "BUCK", "BOOST") -> BUCK | O174: 0 | P174: =0.125 + 0.125 *O174 -> 0.125
A175: SLOPE comp dv/dt = I_slope_total/Cslope | B175: =(ABS((VIN_nom-Vout))*gm_slopecomp/Cslope + Islope_fixed)/(Rslope) -> 275935.8289 | C175: V/s | E175: at VIN_nom | K175: =B176*(1-Don_Vinmax_2)/Fsw -> 2.176354653 | L175: =B176*Don_Vinmax_2/Fsw -> 0.4495952484 | M175: =IF(VIN_max>Vout, "BUCK", "BOOST") -> BUCK | O175: 1 | P175: =0.125 + 0.125 *O175 -> 0.25
A176: SLOPE comp dv/dt = I_slope_total/Cslope | B176: =(ABS((VIN_max-Vout))*gm_slopecomp/Cslope + Islope_fixed)/(Rslope) -> 997860.9626 | C176: V/s | E176: at VIN_max | O176: 2 | P176: =0.125 + 0.125 *O176 -> 0.375
O177: 3 | P177: 0.5
A178: DV_SLOPEcomp at Vinmin | B178: =IF(D178="BUCK", K173,L173) -> 0.2032844361 | C178: V | D178: =IF(VIN_min>Vout, "BUCK", "BOOST") -> BOOST | E178: at VIN_min | O178: 4 | P178: 0.625
A179: DV_SLOPEcomp at Vinnom | B179: =IF(D179="BUCK", K174,L174) -> 0.4154266801 | C179: V | D179: =IF(VIN_nom>Vout,"BUCK",IF(VIN_nom<VIN_edgebuckboost,"BOOST","BUCK-BOOST")) -> BUCK | E179: at VIN_nom | O179: 5 | P179: 0.75
A180: DV_SLOPEcomp at Vinmax | B180: =IF(D180="BUCK", K175,L175) -> 2.176354653 | C180: V | D180: =IF(VIN_max>Vout, "BUCK", "BOOST") -> BUCK | E180: at VIN_max | O180: 6 | P180: 0.875
O181: 7 | P181: 1
O182: 8 | P182: =1 + 4 *P174 -> 1.5
O183: 9 | P183: =1 + 4 *P175 -> 2
O184: 10 | P184: 2.5
O185: 11 | P185: 3
O186: 12 | P186: 3.5
O187: 13 | P187: 4
A188: Step 4: Output Capacitor | O188: 14 | P188: 4.5
A189: Icoutrms_VINmin | B189: =IF(D189="BUCK", Iripple_Vinmin/SQRT(12), Iout*SQRT((Vout-VIN_min)/VIN_min)) -> 7.493997598 | C189: A | D189: =IF(VIN_min>Vout, "BUCK", "BOOST") -> BOOST | E189: Output Cap RMS current | O189: 15 | P189: 5
A190: Icoutrms_VINnom | B190: =IF(D190="BUCK", Iripple_Vinnom/SQRT(12), Iout*SQRT((Vout-VIN_nom)/VIN_nom)) -> 2.981933799 | C190: A | D190: =IF(VIN_nom>Vout,"BUCK",IF(VIN_nom<VIN_edgebuckboost,"BOOST","BUCK-BOOST")) -> BUCK
A191: Icoutrms_VINmax | B191: =IF(D191="BUCK", Iripple_Vinmax/SQRT(12), Iout*SQRT((Vout-VIN_max)/VIN_max)) -> 4.314695676 | C191: A | D191: =IF(VIN_max>Vout, "BUCK", "BOOST") -> BUCK
A192: Max Cout rms current | B192: =MAX(B189:B191) -> 7.493997598 | C192: A
A194: Output Ripple Spec (pk-pk) | B194: =Vripple1*1000 -> 150 | C194: mV | E194: Vout ripple spec at Vin(nom)
A196: Coutmin | B196: =IF(VIN_min>Vout, Iripple_Vinmin/(Fsw*8*Vripple1), Iout*Don_Vinmin_2/(Vripple1*Fsw)) -> 6.498152059e-05 | C196: F | E196: Minimum Output Capacitnace | H196: =Vripple2 -> 0.08697867761 | I196: 1 | K196: =Coutmin -> 6.498152059e-05
A197: Reported Coutmin | B197: =IF(Coutmin*1000000<H197, H197,Coutmin*1000000) -> 64.98152059 | C197: uF | E197: Limit Min. output Cap | H197: 0.1 | K197: =Coutmin*1000000 -> 64.98152059
A198: Cout | B198: ='Design Converter'!E41/1000000 -> 0.00013 | C198: F | E198: Chosen Output Capacitance | I198: 1
A199: Resrmax | B199: =IF(VIN_min>Vout, SQRT((Vripple1/Iripple_Vinmin)^2-(1/(Fsw*Cout*8))^2), (Vripple1-Iout*Don_Vinmin_2/(Fsw*Cout))/Iout) -> 0.01250355373 | C199: W | E199: Max ESR before ripple exceeds Vripple1 | I199: 1
A201: Reported Cout ESR max | B201: =IF(OR(CoutEsrMax>0.3, CoutEsrMax<0, (ISERROR(CoutEsrMax))), "N/A", CoutEsrMax*1000) -> 12.50355373 | C201: mΩ
A202: CoutEsr | B202: ='Design Converter'!E43/1000 -> 0.002 | C202: W | E202: Chosen ESR | I202: 1 | K202: =ISERROR(CoutEsrMax) -> FALSE | L202: =ISERROR(B201) -> FALSE
A203: Vripple | B203: =IF(VIN_min>Vout, Iripple_Vinmax*SQRT(CoutEsr^2+(1/(8*Fsw*Cout))^2), CoutEsr*Iout+Iout*Don_Vinmin_2/(Fsw*Cout)) -> 0.08697867761 | C203: Vp-p | L203: =OR(CoutEsrMax>0.3,CoutEsrMax<0) -> FALSE
K204: =OR(TRUE, FALSE, TRUE) -> TRUE
A205: Step 5: Input Capacitor
A207: Icinrms_VINmin | B207: =IF(D207="BUCK", Iout*SQRT(Don_Vinmin_2*(1-Don_Vinmax_2)), Iripple_Vinmin/SQRT(12)) -> 1.250569947 | C207: A | D207: =IF(VIN_min>Vout, "BUCK", "BOOST") -> BOOST | F207: =Iripple_Vinmin/SQRT(12) -> 1.250569947 | G207: =Iout*SQRT(Don_Vinmax_2*(1-Don_Vinmax_2)) -> 2.26016687 | H207: =Iout*0.25 -> 1.5
A208: Icinrms_VINnom | B208: =IF(D208="BUCK", Iout*SQRT(Don_Vinnom_2*(1-Don_Vinnom_2)), Iripple_Vinnom/SQRT(12)) -> 2.968648065 | C208: A | D208: =IF(VIN_nom>Vout,"BUCK",IF(VIN_nom<VIN_edgebuckboost,"BOOST","BUCK-BOOST")) -> BUCK
A209: Icinrms_VINmiax | B209: =IF(D209="BUCK", Iout*SQRT(Don_Vinmax_2*(1-Don_Vinmax_2)), Iripple_Vinmax/SQRT(12)) -> 2.26016687 | C209: A | D209: =IF(VIN_max>Vout, "BUCK", "BOOST") -> BUCK
A210: Max Cin rms current | B210: =MAX(B207:B209) -> 2.968648065 | C210: A | D210: …report this
A212: Vinripple1 | B212: ='Design Converter'!E48/1000 -> 0.18 | C212: Vp-p | D212: Input voltage ripple spec (pk-pk)
A214: Cinmin_Vinmax | B214: =IF(VIN_max>Vout, Iout*Don_Vinmax_2*(1-Don_Vinmax_2)/(Vinripple1*Fsw), Iripple_Vinmax/(Fsw*8*Vinripple1)) -> 1.244725702e-05 | C214: F | D214: Calculate cap at Vinmax and 50% duty cycle (Vin = 2*Vout) | K214: =Iripple_Vinnom/(Fsw*8*Vinripple1) -> 1.887741537e-05
A215: Cinmin_50%D | B215: =IF(VIN_max>Vout, Iout*0.5*(1-0.5)/(Vinripple1*Fsw), Iripple_Vinmax/(Fsw*8*Vinripple1)) -> 2.192982456e-05 | D215: Buck 50% typically worst case
A216: Cinmin | B216: =IF(VIN_max<2*Vout, B214,B215) -> 2.192982456e-05
A217: Reported Cinmin | B217: =IF(Cinmin*1000000<10, 10,Cinmin*1000000) -> 21.92982456 | C217: uF | D217: …report this
A218: Cin | B218: ='Design Converter'!E50/1000000 -> 0.0001 | C218: F | D218: Input capacitance
A219: CinEsrMax_Vinmax | B219: =IF(VIN_max>Vout, -(Iout*Don_Vinmax_2*(1-Don_Vinmax_2)/(Cin*Fsw)-Vinripple1)/(Iout+Iripple_Vinmax/2), SQRT((Vinripple1/Iripple_Vinmax)^2-(1/(Fsw*Cin*8))^2)) -> 0.011696857 | C219: W
A220: CinEsrMax_50%D | B220: =IF(VIN_max>Vout, -(Iout*0.5*(1-0.5)/(Cin*Fsw)-Vinripple1)/(Iout+Iripple_Vinmax/2), SQRT((Vinripple1/Iripple_Vinmax)^2-(1/(Fsw*Cin*8))^2)) -> 0.01043000649 | C220: W | D220: Calculate ESR at Vinmax and 50% duty cycle (Vin = 2*Vout)
A221: CinEsrMax | B221: =IF(VIN_max<2*Vout, B219,B220) -> 0.01043000649 | C221: W
A222: Reported Cin ESR max | B222: =IF(OR(CinEsrMax>0.3, CinEsrMax<0), "N/A",CinEsrMax*1000) -> 10.43000649 | C222: mΩ | D222: …report this
A223: RCinEsr | B223: ='Design Converter'!E52/1000 -> 0.002 | C223: W | D223: Input capacitance series resistance (ESR)
K224: =CinEsrMax -> 0.01043000649
A225: Vinripple2_Vinmax | B225: =IF(VIN_max>Vout, Iout*Don_Vinmax_2*(1-Don_Vinmax_2)/(Cin*Fsw)+(Iout +Iripple_Vinmax/2)*RCinEsr, Iripple_Vinmax*SQRT(RCinEsr^2+(1/(8*Fsw*Cin))^2)) -> 0.04935160689 | C225: Vp-p
A226: Vinripple2_50%D | B226: =IF(VIN_max>Vout, Iout*0.5*(1-0.5)/(Cin*Fsw)+(Iout +Iripple_Vinmax/2)*RCinEsr, Iripple_Vinmax*SQRT(RCinEsr^2+(1/(8*Fsw*Cin))^2)) -> 0.06642022847 | C226: Vp-p | D226: Calculate ripple at Vinmax and 50% duty cycle (Vin = 2*Vout)
A227: Vinripple2 | B227: =IF(VIN_max<2*Vout, B225,B226) -> 0.06642022847 | C227: Vp-p | D227: …report highest of these
B229: =Iout*Don_Vinmax_2*(1-Don_Vinmax_2)/(Cin*Fsw) -> 0.02240506263 | C229: Vp-p
A231: Step 6a: Soft Start
A232: Tss | B232: ='Design Converter'!E58/1000 -> 0.0017 | C232: s | D232: Soft-start time
A233: Iss | B233: 1e-05 | C233: A | D233: Load cap current during soft start
A234: Css | B234: =Iss*Tss/Vref -> 1.7e-08 | C234: F
A235: Css_u | B235: ='Standard Value Calculator'!B4 -> 1.8e-08 | C235: F
A237: Step 6b: Other Components - UVLO, Dither, MODE
A239: VINUVLO_ON | B239: ='Design Converter'!E63 -> 5.8 | C239: V
A240: VINUVLO_OFF | B240: ='Design Converter'!E64 -> 5.425 | C240: V
A241: RUV1 | B241: =(VINuvlo_on-VINuvlo_off)/Iuvlo1 -> 75 | C241: kΩ | E241: ='Standard Value Calculator'!O16 -> 75 | F241: kΩ | G241: =IF(Ruvlo1<0,"N/A",E241) -> 75 | H241: =IF(Ruvlo1<0,"N/A",E241&"kΩ") -> 75kΩ
A242: RUV2 | B242: =Ruvlo1/(('Design Converter'!E63-Vuvlo_hys)/Vuvlo_off-1) -> 20.40929204 | C242: kΩ | E242: ='Standard Value Calculator'!O17 -> 20.5 | F242: kΩ | G242: =IF(G241="N/A","N/A",E242) -> 20.5 | H242: =IF(H241="N/A","N/A",E242&"kΩ") -> 20.5kΩ
A244: VINUVLO_ON_ACTUAL | B244: =(E241+E242)/E242*Vuvlo_on+Iuvlo1*E241 -> 6.337926829
A245: VINUVLO_OFF_ACTUAL | B245: =(E241+E242)/E242*Vuvlo_off -> 5.73
A247: Rising UVLO/EN Threshold | B247: 1.28 | C247: V
A248: Falling UVLO/EN Threshold | B248: 1.23 | C248: V
A249: Voltage Hysteresis | B249: =B247-B248 -> 0.05 | C249: V
A250: Rising UVLO/EN Current | B250: 0.005 | C250: mA
A251: Falling UVLO/EN Current | C251: mA
A252: UVLO/EN Current Hysteresis | C252: mA
A254: RPG | B254: 20 | C254: kΩ
A255: RSB | C255: W
... 241 more rows

Sheet DeviceParameter (hidden)
A1: EXCEL Device Parameter
B2: Input from user = | F2: to check
B3: Output =
B4: Constant
A5: Variable Name | B5: Selected Value | C5: STD Units | D5: Device
D6: LM5177 | E6: LM51771 | F6: LM51772
A7: MaxVin | B7: =IF(Device=DeviceParameter!$D$6,DeviceParameter!D7,IF(Device=DeviceParameter!$E$6,DeviceParameter!E7,IF(Device=DeviceParameter!$F$6,DeviceParameter!F7,""))) -> 60 | C7: V | D7: 60 | F7: 50
A8: MinVin | B8: =IF(Device=DeviceParameter!$D$6,DeviceParameter!D8,IF(Device=DeviceParameter!$E$6,DeviceParameter!E8,IF(Device=DeviceParameter!$F$6,DeviceParameter!F8,""))) -> 2.8 | C8: V | D8: 2.8 | F8: 3.3
A9: MaxfSW | B9: =IF(Device=DeviceParameter!$D$6,DeviceParameter!D9,IF(Device=DeviceParameter!$E$6,DeviceParameter!E9,IF(Device=DeviceParameter!$F$6,DeviceParameter!F9,""))) -> 600 | C9: kHz | D9: 600 | F9: 2200
A11: g_m | B11: =IF(Device=DeviceParameter!$D$6,DeviceParameter!D11,IF(Device=DeviceParameter!$E$6,DeviceParameter!E11,IF(Device=DeviceParameter!$F$6,DeviceParameter!F11,""))) -> 0.001 | C11: S | D11: 0.001 | F11: 0.001
A12: gm_IL | B12: =IF(Device=DeviceParameter!$D$6,DeviceParameter!D12,IF(Device=DeviceParameter!$E$6,DeviceParameter!E12,IF(Device=DeviceParameter!$F$6,DeviceParameter!F12,""))) -> 0.0002 | C12: S | D12: 0.0002 | F12: 0.0005
A13: gm_CDC | B13: 0.0005 | C13: S | F13: 0.0005 | J13: CDC Transconductance

Sheet Timings (hidden)
A1: DeadTime | B1: 2e-08 | D1: fsw | E1: =Fsw -> 380000
A2: GdrvDelay | B2: 2e-08 | D2: Tsw | E2: =1/E1 -> 2.631578947e-06
A3: IL | B3: 1
A4: IlPos | B4: =IF(B3>0,1,0) -> 1
A5: IlNeg | B5: =IF(B3<0,1,0) -> 0
A6: IlDir | B6: =B4-B5 -> 1
A8: Ifsw_2M | B8: 1e-06
A9: Iconst | B9: 1e-06
A10: T12_min | B10: 7.5e-08
A11: T23_min | B11: 7.5e-08
A12: I_T12_max | B12: =0.75/T12_min*Ifsw_2M/2000000*0.2 -> 1e-06
A13: I_T23_max | B13: =0.75/T23_min*Ifsw_2M/2000000*0.2 -> 1e-06
A14: Kgain_12 | B14: =1+4*0.25 -> 2
A15: Kratio_23 | B15: =1-2*0.041666 -> 0.916668
A17: I_T12(FSW) | B17: =MIN(Ifsw_2M/2000000*Fsw*Kgain_12,I_T12_max) -> 3.8e-07
A18: I_T23(FSW) | B18: =MIN(Ifsw_2M/2000000*Fsw*Kratio_23+Iconst*(1-Kratio_23),I_T23_max) -> 2.5749892e-07 | E18: D
A20: T1_to_T2(Fsw) | B20: =0.000000075/I_T12_FSW*0.000001 -> 1.973684211e-07 | E20: =T1_to_T2_Fsw*Fsw -> 0.075
A21: T2_to_T3(Fsw) | B21: =0.000000075/I_T23_FSW*0.000001 -> 2.912633575e-07 | E21: =T2_to_T3_Fsw*Fsw -> 0.1106800759
A22: T3_to_T4(Fsw) | B22: =T2_to_T3_Fsw -> 2.912633575e-07 | E22: =T3_to_T4_Fsw*Fsw -> 0.1106800759
A23: T1_to_T3(Fsw) | B23: =T1_to_T2_Fsw+T2_to_T3_Fsw -> 4.886317786e-07 | E23: =B23*Fsw -> 0.1856800759
A25: MinT1FallCtrl(Fsw) | B25: =0.2*T1_to_T2_Fsw -> 3.947368421e-08
A26: MinT1RiseCtrl(Fsw) | B26: =0.2*T1_to_T2_Fsw -> 3.947368421e-08 | G26: Vin
A28: MinTonBuck(Fsw) | B28: =T3_to_T4_Fsw-IlDir*DeadTime -> 2.712633575e-07 | E28: =MinTonBuck*Fsw -> 0.1030800759 | G28: =Vout/E28 -> 99.34024509
A29: MinToffBuck(Fsw) | B29: =T2_to_T3_Fsw+IlDir*DeadTime -> 3.112633575e-07 | E29: =(E2-MinToffBuck)*Fsw -> 0.8817199241 | G29: =Vout/E29 -> 11.6136652
A30: MaxTonBuck(Fsw) | B30: =1/Fsw-MinToffBuck -> 2.32031559e-06 | E30: =MaxTonBuck*Fsw -> 0.8817199241 | G30: =Vout/E30 -> 11.6136652
A32: MinTonBoost(Fsw) | B32: =T2_to_T3_Fsw-IlDir*DeadTime -> 2.712633575e-07 | E32: =MinTonBoost*Fsw -> 0.1030800759 | G32: =Vout*(1-E32) -> 9.184460023
A33: MinToffBoost(Fsw) | B33: =T1_to_T2_Fsw+IlDir*DeadTime -> 2.173684211e-07 | E33: =(E2-MinToffBoost)*Fsw -> 0.9174 | G33: =Vout*(1-E33) -> 0.845824
A34: MaxTonBoost(Fsw) | B34: =1/Fsw-MinToffBoost -> 2.414210526e-06 | E34: =MaxTonBoost*Fsw -> 0.9174 | G34: =Vout*(1-E34) -> 0.845824
A35: MaxToffBoost(Fsw) | B35: =1/Fsw-MaxTonBoost -> 2.173684211e-07 | E35: =MaxToffBoost*Fsw -> 0.0826
A36: MinTlRise(Fsw) | B36: =MAX(MAX(MinT1RiseCtrl,IlNeg*GdrvDelay)-IlDir*DeadTime,0) -> 1.947368421e-08 | E36: =MinTlRise*Fsw -> 0.0074
A37: MinTlFall(Fsw) | B37: =MAX(MinT1FallCtrl,IlPos*GdrvDelay) -> 3.947368421e-08 | E37: =MinTlFall*Fsw -> 0.015
A39: TBubo(Fsw) | B39: =T1_to_T2_Fsw+T2_to_T3_Fsw -> 4.886317786e-07 | E39: =TBubo*Fsw -> 0.1856800759 | G39: =Vout*(1-E39) -> 8.338636023
A40: TonBubo(Fsw) | B40: =1/Fsw-TBubo+0*DeadTime -> 2.142947169e-06 | E40: =TonBubo*Fsw -> 0.8143199241 | G40: =Vout*(1-E40) -> 1.901363977
A41: MaxTlRise(Fsw) | B41: =MAX(TBubo-MinTlFall-IlDir*DeadTime,0) -> 4.291580944e-07 | E41: =MaxTlRise*Fsw -> 0.1630800759
B43: =DeadTime+GdrvDelay -> 4e-08 | E43: =B43*Fsw -> 0.0152

Sheet CFG Setting (hidden)
A1: LM5177
A2: CFG
A3: Setting | B3: R_CFG [ | C3: DRSS | D3: HICCUP | E3: USLEEP | F3: IMON_LIMIT | G3: =C3 -> DRSS | H3: =D3 -> HICCUP | I3: =E3 -> USLEEP | J3: =F3 -> IMON_LIMIT
A4: 1 | B4: 0 | C4: 0 | D4: 0 | E4: 0 | F4: 0 | G4: =IF(C4=1,"Enable","Disable") -> Disable | H4: =IF(D4=1,"Enable","Disable") -> Disable | I4: =IF(E4=1,"Enable","Disable") -> Disable | J4: =IF(F4=1,"Enable","Disable") -> Disable | L4: =CONCATENATE(G$3,": ",C4) -> DRSS: 0 | M4: =CONCATENATE(H$3,": ",D4) -> HICCUP: 0 | N4: =CONCATENATE(I$3,": ",E4) -> USLEEP: 0 | O4: =CONCATENATE(J$3,": ",F4) -> IMON_LIMIT: 0 | P4: =CONCATENATE(K$3,": ",G4) -> : Disable | R4: =CONCATENATE(L4," / ",M4," / ",N4," / ",O4) -> DRSS: 0 / HICCUP: 0 / USLEEP: 0 / IMON_LIMIT: 0
A5: 2 | B5: 0.511 | C5: 1 | D5: 0 | E5: 0 | F5: 0 | G5: =IF(C5=1,"Enable","Disable") -> Enable | H5: Disable | I5: Disable | J5: Disable | L5: =CONCATENATE(G$3,": ",C5) -> DRSS: 1 | M5: HICCUP: 0 | N5: USLEEP: 0 | O5: IMON_LIMIT: 0 | P5: : Enable | R5: =CONCATENATE(L5," / ",M5," / ",N5," / ",O5) -> DRSS: 1 / HICCUP: 0 / USLEEP: 0 / IMON_LIMIT: 0
A6: 3 | B6: 1.3 | C6: 0 | D6: 1 | E6: 0 | F6: 0 | G6: Disable | H6: Enable | I6: Disable | J6: Disable | L6: DRSS: 0 | M6: HICCUP: 1 | N6: USLEEP: 0 | O6: IMON_LIMIT: 0 | P6: : Disable | R6: DRSS: 0 / HICCUP: 1 / USLEEP: 0 / IMON_LIMIT: 0
A7: 4 | B7: 1.9 | C7: 1 | D7: 1 | E7: 0 | F7: 0 | G7: Enable | H7: Enable | I7: Disable | J7: Disable | L7: DRSS: 1 | M7: HICCUP: 1 | N7: USLEEP: 0 | O7: IMON_LIMIT: 0 | P7: : Enable | R7: DRSS: 1 / HICCUP: 1 / USLEEP: 0 / IMON_LIMIT: 0
A8: 5 | B8: 2.7 | C8: 0 | D8: 0 | E8: 0 | F8: 1 | G8: Disable | H8: Disable | I8: Disable | J8: Enable | L8: DRSS: 0 | M8: HICCUP: 0 | N8: USLEEP: 0 | O8: IMON_LIMIT: 1 | P8: : Disable | R8: DRSS: 0 / HICCUP: 0 / USLEEP: 0 / IMON_LIMIT: 1
A9: 6 | B9: 3.8 | C9: 1 | D9: 0 | E9: 0 | F9: 1 | G9: Enable | H9: Disable | I9: Disable | J9: Enable | L9: DRSS: 1 | M9: HICCUP: 0 | N9: USLEEP: 0 | O9: IMON_LIMIT: 1 | P9: : Enable | R9: DRSS: 1 / HICCUP: 0 / USLEEP: 0 / IMON_LIMIT: 1
A10: 7 | B10: 5.1 | C10: 0 | D10: 1 | E10: 0 | F10: 1 | G10: Disable | H10: Enable | I10: Disable | J10: Enable | L10: DRSS: 0 | M10: HICCUP: 1 | N10: USLEEP: 0 | O10: IMON_LIMIT: 1 | P10: : Disable | R10: DRSS: 0 / HICCUP: 1 / USLEEP: 0 / IMON_LIMIT: 1
A11: 8 | B11: 6.5 | C11: 1 | D11: 1 | E11: 0 | F11: 1 | G11: Enable | H11: Enable | I11: Disable | J11: Enable | L11: DRSS: 1 | M11: HICCUP: 1 | N11: USLEEP: 0 | O11: IMON_LIMIT: 1 | P11: : Enable | R11: DRSS: 1 / HICCUP: 1 / USLEEP: 0 / IMON_LIMIT: 1
A12: 9 | B12: 8.3 | C12: 0 | D12: 0 | E12: 1 | F12: 0 | G12: Disable | H12: Disable | I12: Enable | J12: Disable | L12: DRSS: 0 | M12: HICCUP: 0 | N12: USLEEP: 1 | O12: IMON_LIMIT: 0 | P12: : Disable | R12: DRSS: 0 / HICCUP: 0 / USLEEP: 1 / IMON_LIMIT: 0
A13: 10 | B13: 10.5 | C13: 1 | D13: 0 | E13: 1 | F13: 0 | G13: Enable | H13: Disable | I13: Enable | J13: Disable | L13: DRSS: 1 | M13: HICCUP: 0 | N13: USLEEP: 1 | O13: IMON_LIMIT: 0 | P13: : Enable | R13: DRSS: 1 / HICCUP: 0 / USLEEP: 1 / IMON_LIMIT: 0
A14: 11 | B14: 13.3 | C14: 0 | D14: 1 | E14: 1 | F14: 0 | G14: Disable | H14: Enable | I14: Enable | J14: Disable | L14: DRSS: 0 | M14: HICCUP: 1 | N14: USLEEP: 1 | O14: IMON_LIMIT: 0 | P14: : Disable | R14: DRSS: 0 / HICCUP: 1 / USLEEP: 1 / IMON_LIMIT: 0
A15: 12 | B15: 16.2 | C15: 1 | D15: 1 | E15: 1 | F15: 0 | G15: Enable | H15: Enable | I15: Enable | J15: Disable | L15: DRSS: 1 | M15: HICCUP: 1 | N15: USLEEP: 1 | O15: IMON_LIMIT: 0 | P15: : Enable | R15: DRSS: 1 / HICCUP: 1 / USLEEP: 1 / IMON_LIMIT: 0
A16: 13 | B16: 20.5 | C16: 0 | D16: 0 | E16: 1 | F16: 1 | G16: Disable | H16: Disable | I16: Enable | J16: Enable | L16: DRSS: 0 | M16: HICCUP: 0 | N16: USLEEP: 1 | O16: IMON_LIMIT: 1 | P16: : Disable | R16: DRSS: 0 / HICCUP: 0 / USLEEP: 1 / IMON_LIMIT: 1
A17: 14 | B17: 24.9 | C17: 1 | D17: 0 | E17: 1 | F17: 1 | G17: Enable | H17: Disable | I17: Enable | J17: Enable | L17: DRSS: 1 | M17: HICCUP: 0 | N17: USLEEP: 1 | O17: IMON_LIMIT: 1 | P17: : Enable | R17: DRSS: 1 / HICCUP: 0 / USLEEP: 1 / IMON_LIMIT: 1
A18: 15 | B18: 30.1 | C18: 0 | D18: 1 | E18: 1 | F18: 1 | G18: Disable | H18: Enable | I18: Enable | J18: Enable | L18: DRSS: 0 | M18: HICCUP: 1 | N18: USLEEP: 1 | O18: IMON_LIMIT: 1 | P18: : Disable | R18: DRSS: 0 / HICCUP: 1 / USLEEP: 1 / IMON_LIMIT: 1
A19: 16 | B19: 36.5 | C19: 1 | D19: 1 | E19: 1 | F19: 1 | G19: Enable | H19: Enable | I19: Enable | J19: Enable | L19: DRSS: 1 | M19: HICCUP: 1 | N19: USLEEP: 1 | O19: IMON_LIMIT: 1 | P19: : Enable | R19: DRSS: 1 / HICCUP: 1 / USLEEP: 1 / IMON_LIMIT: 1
C21: 0 | D21: 1 | E21: 3 | F21: 2
C22: DRSS: off | D22: HICCUP: off | E22: uSleep: off | F22: IMON_LIMIT: off
C23: DRSS: on | D23: HICCUP: on | E23: uSleep: on | F23: IMON: on
F24: ILIMIT: positive
F25: ILIMIT: negative
B27: CFG Setting | C27: 1 | D27: 2 | E27: 2 | F27: 1 | G27: Calc Setting | H27: =CONCATENATE("R_",A2) -> R_CFG | J27: This cell give 1 for disable and 2 for enable
C28: =(C27-1)*2^C21 -> 0 | D28: =(D27-1)*2^D21 -> 2 | E28: =(E27-1)*2^E21 -> 8 | F28: =(IF(F27>2,1,0)*2^F21) -> 0 | G28: =SUM(C28:F28)+1 -> 11 | H28: =INDEX(B4:B19,G28) -> 13.3
A30: LM51772
A31: CFG1
A32: Setting | B32: R_CFG2 [ | C32: Slope Comp. | D32: I2C
A33: 1 | B33: 0 | C33: n/a | D33: ADDR LSB: 0 | L33: =CONCATENATE($C$32,": ",C33) -> Slope Comp.: n/a | M33: =CONCATENATE(D$32," ",D33) -> I2C ADDR LSB: 0 | R33: =CONCATENATE(L33," / ",M33) -> Slope Comp.: n/a / I2C ADDR LSB: 0
A34: 2 | B34: 0.511 | C34: 0.25 | D34: Disabled | L34: =CONCATENATE($C$32,": ",C34) -> Slope Comp.: 0.25 | M34: =CONCATENATE(D$32," ",D34) -> I2C Disabled | R34: =CONCATENATE(L34," / ",M34," / ",N34," / ",O34) -> Slope Comp.: 0.25 / I2C Disabled / /
A35: 3 | B35: 1.3 | C35: 0.375 | D35: Disabled | L35: Slope Comp.: 0.375 | M35: I2C Disabled | R35: Slope Comp.: 0.375 / I2C Disabled / /
A36: 4 | B36: 1.9 | C36: 0.5 | D36: Disabled | L36: Slope Comp.: 0.5 | M36: I2C Disabled | R36: Slope Comp.: 0.5 / I2C Disabled / /
A37: 5 | B37: 2.7 | C37: 0.625 | D37: Disabled | L37: Slope Comp.: 0.625 | M37: I2C Disabled | R37: Slope Comp.: 0.625 / I2C Disabled / /
A38: 6 | B38: 3.8 | C38: 0.75 | D38: Disabled | L38: Slope Comp.: 0.75 | M38: I2C Disabled | R38: Slope Comp.: 0.75 / I2C Disabled / /
A39: 7 | B39: 5.1 | C39: 0.875 | D39: Disabled | L39: Slope Comp.: 0.875 | M39: I2C Disabled | R39: Slope Comp.: 0.875 / I2C Disabled / /
A40: 8 | B40: 6.5 | C40: 1 | D40: Disabled | L40: Slope Comp.: 1 | M40: I2C Disabled | R40: Slope Comp.: 1 / I2C Disabled / /
A41: 9 | B41: 8.3 | C41: 1.5 | D41: Disabled | L41: Slope Comp.: 1.5 | M41: I2C Disabled | R41: Slope Comp.: 1.5 / I2C Disabled / /
A42: 10 | B42: 10.5 | C42: 2 | D42: Disabled | L42: Slope Comp.: 2 | M42: I2C Disabled | R42: Slope Comp.: 2 / I2C Disabled / /
A43: 11 | B43: 13.3 | C43: 2.5 | D43: Disabled | L43: Slope Comp.: 2.5 | M43: I2C Disabled | R43: Slope Comp.: 2.5 / I2C Disabled / /
A44: 12 | B44: 16.2 | C44: 3 | D44: Disabled | L44: Slope Comp.: 3 | M44: I2C Disabled | R44: Slope Comp.: 3 / I2C Disabled / /
A45: 13 | B45: 20.5 | C45: 3.5 | D45: Disabled | L45: Slope Comp.: 3.5 | M45: I2C Disabled | R45: Slope Comp.: 3.5 / I2C Disabled / /
A46: 14 | B46: 24.9 | C46: 4 | D46: Disabled | L46: Slope Comp.: 4 | M46: I2C Disabled | R46: Slope Comp.: 4 / I2C Disabled / /
A47: 15 | B47: 30.1 | C47: 4.5 | D47: Disabled | L47: Slope Comp.: 4.5 | M47: I2C Disabled | R47: Slope Comp.: 4.5 / I2C Disabled / /
A48: 16 | B48: 36.5 | C48: n/a | D48: ADDR LSB: 1 | L48: Slope Comp.: n/a | M48: I2C ADDR LSB: 1 | R48: Slope Comp.: n/a / I2C ADDR LSB: 1 / /
C51: =CONCATENATE(C32,": off") -> Slope Comp.: off | D51: =CONCATENATE(D32,": 0") -> I2C: 0
C52: =CONCATENATE(C32,": on") -> Slope Comp.: on | D52: =CONCATENATE(D32,": 1") -> I2C: 1
B56: CFG Setting | C56: 7 | D56: =IF(OR(C56=1,B56=16),1,2) -> 2 | E56: 1 | F56: 1 | G56: Calc Setting | H56: =CONCATENATE("R_",A31) -> R_CFG1 | J56: This cell give 1 for disable and 2 for enable
C57: =C56 -> 7 | D57: =(D56-1)*2^D50 -> 1 | E57: =(E56-1)*2^E50 -> 0 | F57: =(IF(F56>1,1,0)*2^F50) -> 0 | G57: =C57 -> 7 | H57: =INDEX(B33:B48,G57) -> 5.1
A60: CFG2
A61: Setting | B61: R_CFG2 [ | C61: EN_SYNC_OUT | D61: SYNC_IN_FALLING | E61: VDET_EN | F61: PCM_HYST_30 | G61: =C61 -> EN_SYNC_OUT | H61: =D61 -> SYNC_IN_FALLING | I61: =E61 -> VDET_EN | J61: =F61 -> PCM_HYST_30
A62: 1 | B62: 0 | C62: 0 | D62: 0 | E62: 0 | F62: 0 | G62: =IF(C62=1,"Enable","Disable") -> Disable | H62: =IF(D62=1,"Enable","Disable") -> Disable | I62: =IF(E62=1,"Enable","Disable") -> Disable | J62: =IF(F62=1,"Enable","Disable") -> Disable | L62: =CONCATENATE($C$61,": ",C62) -> EN_SYNC_OUT: 0 | M62: =CONCATENATE(D$61,": ",D62) -> SYNC_IN_FALLING: 0 | N62: =CONCATENATE(E$61,": ",E62) -> VDET_EN: 0 | O62: =CONCATENATE(F$61,": ",F62) -> PCM_HYST_30: 0 | P62: =CONCATENATE(K$3,": ",G62) -> : Disable | R62: =CONCATENATE(L62," / ",M62," / ",N62," / ",O62) -> EN_SYNC_OUT: 0 / SYNC_IN_FALLING: 0 / VDET_EN: 0 / PCM_HYST_30: 0
A63: 2 | B63: 0.511 | C63: 1 | D63: 0 | E63: 0 | F63: 0 | G63: Enable | H63: Disable | I63: Disable | J63: Disable | L63: =CONCATENATE($C$61,": ",C63) -> EN_SYNC_OUT: 1 | M63: =CONCATENATE(D$61,": ",D63) -> SYNC_IN_FALLING: 0 | N63: =CONCATENATE(E$61,": ",E63) -> VDET_EN: 0 | O63: =CONCATENATE(F$61,": ",F63) -> PCM_HYST_30: 0 | P63: : Enable | R63: =CONCATENATE(L63," / ",M63," / ",N63," / ",O63) -> EN_SYNC_OUT: 1 / SYNC_IN_FALLING: 0 / VDET_EN: 0 / PCM_HYST_30: 0
A64: 3 | B64: 1.3 | C64: 0 | D64: 1 | E64: 0 | F64: 0 | G64: Disable | H64: Enable | I64: Disable | J64: Disable | L64: EN_SYNC_OUT: 0 | M64: SYNC_IN_FALLING: 1 | N64: VDET_EN: 0 | O64: PCM_HYST_30: 0 | P64: : Disable | R64: EN_SYNC_OUT: 0 / SYNC_IN_FALLING: 1 / VDET_EN: 0 / PCM_HYST_30: 0
A65: 4 | B65: 1.9 | C65: 1 | D65: 1 | E65: 0 | F65: 0 | G65: Enable | H65: Enable | I65: Disable | J65: Disable | L65: EN_SYNC_OUT: 1 | M65: SYNC_IN_FALLING: 1 | N65: VDET_EN: 0 | O65: PCM_HYST_30: 0 | P65: : Enable | R65: EN_SYNC_OUT: 1 / SYNC_IN_FALLING: 1 / VDET_EN: 0 / PCM_HYST_30: 0
A66: 5 | B66: 2.7 | C66: 0 | D66: 0 | E66: 1 | F66: 0 | G66: Disable | H66: Disable | I66: Enable | J66: Disable | L66: EN_SYNC_OUT: 0 | M66: SYNC_IN_FALLING: 0 | N66: VDET_EN: 1 | O66: PCM_HYST_30: 0 | P66: : Disable | R66: EN_SYNC_OUT: 0 / SYNC_IN_FALLING: 0 / VDET_EN: 1 / PCM_HYST_30: 0
A67: 6 | B67: 3.8 | C67: 1 | D67: 1 | E67: 1 | F67: 0 | G67: Enable | H67: Enable | I67: Enable | J67: Disable | L67: EN_SYNC_OUT: 1 | M67: SYNC_IN_FALLING: 1 | N67: VDET_EN: 1 | O67: PCM_HYST_30: 0 | P67: : Enable | R67: EN_SYNC_OUT: 1 / SYNC_IN_FALLING: 1 / VDET_EN: 1 / PCM_HYST_30: 0
A68: 7 | B68: 5.1 | C68: 0 | D68: 1 | E68: 1 | F68: 0 | G68: Disable | H68: Enable | I68: Enable | J68: Disable | L68: EN_SYNC_OUT: 0 | M68: SYNC_IN_FALLING: 1 | N68: VDET_EN: 1 | O68: PCM_HYST_30: 0 | P68: : Disable | R68: EN_SYNC_OUT: 0 / SYNC_IN_FALLING: 1 / VDET_EN: 1 / PCM_HYST_30: 0
A69: 8 | B69: 6.5 | C69: 1 | D69: 1 | E69: 1 | F69: 0 | G69: Enable | H69: Enable | I69: Enable | J69: Disable | L69: EN_SYNC_OUT: 1 | M69: SYNC_IN_FALLING: 1 | N69: VDET_EN: 1 | O69: PCM_HYST_30: 0 | P69: : Enable | R69: EN_SYNC_OUT: 1 / SYNC_IN_FALLING: 1 / VDET_EN: 1 / PCM_HYST_30: 0
A70: 9 | B70: 8.3 | C70: 0 | D70: 0 | E70: 0 | F70: 1 | G70: Disable | H70: Disable | I70: Disable | J70: Enable | L70: EN_SYNC_OUT: 0 | M70: SYNC_IN_FALLING: 0 | N70: VDET_EN: 0 | O70: PCM_HYST_30: 1 | P70: : Disable | R70: EN_SYNC_OUT: 0 / SYNC_IN_FALLING: 0 / VDET_EN: 0 / PCM_HYST_30: 1
A71: 10 | B71: 10.5 | C71: 1 | D71: 0 | E71: 0 | F71: 1 | G71: Enable | H71: Disable | I71: Disable | J71: Enable | L71: EN_SYNC_OUT: 1 | M71: SYNC_IN_FALLING: 0 | N71: VDET_EN: 0 | O71: PCM_HYST_30: 1 | P71: : Enable | R71: EN_SYNC_OUT: 1 / SYNC_IN_FALLING: 0 / VDET_EN: 0 / PCM_HYST_30: 1
A72: 11 | B72: 13.3 | C72: 0 | D72: 1 | E72: 0 | F72: 1 | G72: Disable | H72: Enable | I72: Disable | J72: Enable | L72: EN_SYNC_OUT: 0 | M72: SYNC_IN_FALLING: 1 | N72: VDET_EN: 0 | O72: PCM_HYST_30: 1 | P72: : Disable | R72: EN_SYNC_OUT: 0 / SYNC_IN_FALLING: 1 / VDET_EN: 0 / PCM_HYST_30: 1
A73: 12 | B73: 16.2 | C73: 1 | D73: 1 | E73: 0 | F73: 1 | G73: Enable | H73: Enable | I73: Disable | J73: Enable | L73: EN_SYNC_OUT: 1 | M73: SYNC_IN_FALLING: 1 | N73: VDET_EN: 0 | O73: PCM_HYST_30: 1 | P73: : Enable | R73: EN_SYNC_OUT: 1 / SYNC_IN_FALLING: 1 / VDET_EN: 0 / PCM_HYST_30: 1
A74: 13 | B74: 20.5 | C74: 0 | D74: 0 | E74: 1 | F74: 1 | G74: Disable | H74: Disable | I74: Enable | J74: Enable | L74: EN_SYNC_OUT: 0 | M74: SYNC_IN_FALLING: 0 | N74: VDET_EN: 1 | O74: PCM_HYST_30: 1 | P74: : Disable | R74: EN_SYNC_OUT: 0 / SYNC_IN_FALLING: 0 / VDET_EN: 1 / PCM_HYST_30: 1
A75: 14 | B75: 24.9 | C75: 1 | D75: 0 | E75: 1 | F75: 1 | G75: Enable | H75: Disable | I75: Enable | J75: Enable | L75: EN_SYNC_OUT: 1 | M75: SYNC_IN_FALLING: 0 | N75: VDET_EN: 1 | O75: PCM_HYST_30: 1 | P75: : Enable | R75: EN_SYNC_OUT: 1 / SYNC_IN_FALLING: 0 / VDET_EN: 1 / PCM_HYST_30: 1
A76: 15 | B76: 30.1 | C76: 0 | D76: 1 | E76: 1 | F76: 1 | G76: Disable | H76: Enable | I76: Enable | J76: Enable | L76: EN_SYNC_OUT: 0 | M76: SYNC_IN_FALLING: 1 | N76: VDET_EN: 1 | O76: PCM_HYST_30: 1 | P76: : Disable | R76: EN_SYNC_OUT: 0 / SYNC_IN_FALLING: 1 / VDET_EN: 1 / PCM_HYST_30: 1
A77: 16 | B77: 36.5 | C77: 1 | D77: 1 | E77: 1 | F77: 1 | G77: Enable | H77: Enable | I77: Enable | J77: Enable | L77: EN_SYNC_OUT: 1 | M77: SYNC_IN_FALLING: 1 | N77: VDET_EN: 1 | O77: PCM_HYST_30: 1 | P77: : Enable | R77: EN_SYNC_OUT: 1 / SYNC_IN_FALLING: 1 / VDET_EN: 1 / PCM_HYST_30: 1
C79: 0 | D79: 1 | E79: 2 | F79: 3
C80: =CONCATENATE(C61,": off") -> EN_SYNC_OUT: off | D80: =CONCATENATE(D61,": off") -> SYNC_IN_FALLING: off | E80: =CONCATENATE(E61,": off") -> VDET_EN: off | F80: =CONCATENATE(F61,": off") -> PCM_HYST_30: off
C81: =CONCATENATE(C61,": on") -> EN_SYNC_OUT: on | D81: =CONCATENATE(D61,": on") -> SYNC_IN_FALLING: on | E81: =CONCATENATE(E61,": on") -> VDET_EN: on | F81: =CONCATENATE(F61,": on") -> PCM_HYST_30: on
B85: CFG Setting | C85: 1 | D85: 2 | E85: 1 | F85: 2 | G85: Calc Setting | H85: =CONCATENATE("R_",A60) -> R_CFG2 | J85: This cell give 1 for disable and 2 for enable
C86: =(C85-1)*2^C79 -> 0 | D86: =(D85-1)*2^D79 -> 2 | E86: =(E85-1)*2^E79 -> 0 | F86: =(F85-1)*2^F79 -> 8 | G86: =SUM(C86:F86)+1 -> 11 | H86: =INDEX(B62:B77,G86) -> 13.3
A90: CFG3
A91: Setting | B91: R_CFG3 [ | C91: EN_VCC1 | D91: INC_INDUCT_De-Rate | E91: USLEEP | F91: SCALE_DT | G91: =C91 -> EN_VCC1 | H91: =D91 -> INC_INDUCT_De-Rate | I91: =E91 -> USLEEP | J91: =F91 -> SCALE_DT
A92: 1 | B92: 0 | C92: 0 | D92: 0 | E92: 0 | F92: 0 | G92: =IF(C92=1,"Enable","Disable") -> Disable | H92: =IF(D92=1,"Enable","Disable") -> Disable | I92: =IF(E92=1,"Enable","Disable") -> Disable | J92: =IF(F92=1,"Enable","Disable") -> Disable | L92: =CONCATENATE($C$91,": ",C92) -> EN_VCC1: 0 | M92: =CONCATENATE(D$91,": ",D92) -> INC_INDUCT_De-Rate: 0 | N92: =CONCATENATE(E$91,": ",E92) -> USLEEP: 0 | O92: =CONCATENATE(F$91,": ",F92) -> SCALE_DT: 0 | P92: =CONCATENATE(K$3,": ",G92) -> : Disable | R92: =CONCATENATE(L92," / ",M92," / ",N92," / ",O92) -> EN_VCC1: 0 / INC_INDUCT_De-Rate: 0 / USLEEP: 0 / SCALE_DT: 0
A93: 2 | B93: 0.511 | C93: 1 | D93: 0 | E93: 0 | F93: 0 | G93: Enable | H93: Disable | I93: Disable | J93: Disable | L93: =CONCATENATE($C$91,": ",C93) -> EN_VCC1: 1 | M93: =CONCATENATE(D$91,": ",D93) -> INC_INDUCT_De-Rate: 0 | N93: =CONCATENATE(E$91,": ",E93) -> USLEEP: 0 | O93: =CONCATENATE(F$91,": ",F93) -> SCALE_DT: 0 | P93: : Enable | R93: =CONCATENATE(L93," / ",M93," / ",N93," / ",O93) -> EN_VCC1: 1 / INC_INDUCT_De-Rate: 0 / USLEEP: 0 / SCALE_DT: 0
A94: 3 | B94: 1.3 | C94: 0 | D94: 1 | E94: 0 | F94: 0 | G94: Disable | H94: Enable | I94: Disable | J94: Disable | L94: EN_VCC1: 0 | M94: INC_INDUCT_De-Rate: 1 | N94: USLEEP: 0 | O94: SCALE_DT: 0 | P94: : Disable | R94: EN_VCC1: 0 / INC_INDUCT_De-Rate: 1 / USLEEP: 0 / SCALE_DT: 0
A95: 4 | B95: 1.9 | C95: 1 | D95: 1 | E95: 0 | F95: 0 | G95: Enable | H95: Enable | I95: Disable | J95: Disable | L95: EN_VCC1: 1 | M95: INC_INDUCT_De-Rate: 1 | N95: USLEEP: 0 | O95: SCALE_DT: 0 | P95: : Enable | R95: EN_VCC1: 1 / INC_INDUCT_De-Rate: 1 / USLEEP: 0 / SCALE_DT: 0
A96: 5 | B96: 2.7 | C96: 0 | D96: 0 | E96: 1 | F96: 0 | G96: Disable | H96: Disable | I96: Enable | J96: Disable | L96: EN_VCC1: 0 | M96: INC_INDUCT_De-Rate: 0 | N96: USLEEP: 1 | O96: SCALE_DT: 0 | P96: : Disable | R96: EN_VCC1: 0 / INC_INDUCT_De-Rate: 0 / USLEEP: 1 / SCALE_DT: 0
A97: 6 | B97: 3.8 | C97: 1 | D97: 0 | E97: 1 | F97: 0 | G97: Enable | H97: Disable | I97: Enable | J97: Disable | L97: EN_VCC1: 1 | M97: INC_INDUCT_De-Rate: 0 | N97: USLEEP: 1 | O97: SCALE_DT: 0 | P97: : Enable | R97: EN_VCC1: 1 / INC_INDUCT_De-Rate: 0 / USLEEP: 1 / SCALE_DT: 0
A98: 7 | B98: 5.1 | C98: 0 | D98: 1 | E98: 1 | F98: 0 | G98: Disable | H98: Enable | I98: Enable | J98: Disable | L98: EN_VCC1: 0 | M98: INC_INDUCT_De-Rate: 1 | N98: USLEEP: 1 | O98: SCALE_DT: 0 | P98: : Disable | R98: EN_VCC1: 0 / INC_INDUCT_De-Rate: 1 / USLEEP: 1 / SCALE_DT: 0
A99: 8 | B99: 6.5 | C99: 1 | D99: 1 | E99: 1 | F99: 0 | G99: Enable | H99: Enable | I99: Enable | J99: Disable | L99: EN_VCC1: 1 | M99: INC_INDUCT_De-Rate: 1 | N99: USLEEP: 1 | O99: SCALE_DT: 0 | P99: : Enable | R99: EN_VCC1: 1 / INC_INDUCT_De-Rate: 1 / USLEEP: 1 / SCALE_DT: 0
A100: 9 | B100: 8.3 | C100: 0 | D100: 0 | E100: 0 | F100: 1 | G100: Disable | H100: Disable | I100: Disable | J100: Enable | L100: EN_VCC1: 0 | M100: INC_INDUCT_De-Rate: 0 | N100: USLEEP: 0 | O100: SCALE_DT: 1 | P100: : Disable | R100: EN_VCC1: 0 / INC_INDUCT_De-Rate: 0 / USLEEP: 0 / SCALE_DT: 1
A101: 10 | B101: 10.5 | C101: 1 | D101: 0 | E101: 0 | F101: 1 | G101: Enable | H101: Disable | I101: Disable | J101: Enable | L101: EN_VCC1: 1 | M101: INC_INDUCT_De-Rate: 0 | N101: USLEEP: 0 | O101: SCALE_DT: 1 | P101: : Enable | R101: EN_VCC1: 1 / INC_INDUCT_De-Rate: 0 / USLEEP: 0 / SCALE_DT: 1
A102: 11 | B102: 13.3 | C102: 0 | D102: 1 | E102: 0 | F102: 1 | G102: Disable | H102: Enable | I102: Disable | J102: Enable | L102: EN_VCC1: 0 | M102: INC_INDUCT_De-Rate: 1 | N102: USLEEP: 0 | O102: SCALE_DT: 1 | P102: : Disable | R102: EN_VCC1: 0 / INC_INDUCT_De-Rate: 1 / USLEEP: 0 / SCALE_DT: 1
A103: 12 | B103: 16.2 | C103: 1 | D103: 1 | E103: 0 | F103: 1 | G103: Enable | H103: Enable | I103: Disable | J103: Enable | L103: EN_VCC1: 1 | M103: INC_INDUCT_De-Rate: 1 | N103: USLEEP: 0 | O103: SCALE_DT: 1 | P103: : Enable | R103: EN_VCC1: 1 / INC_INDUCT_De-Rate: 1 / USLEEP: 0 / SCALE_DT: 1
A104: 13 | B104: 20.5 | C104: 0 | D104: 0 | E104: 1 | F104: 1 | G104: Disable | H104: Disable | I104: Enable | J104: Enable | L104: EN_VCC1: 0 | M104: INC_INDUCT_De-Rate: 0 | N104: USLEEP: 1 | O104: SCALE_DT: 1 | P104: : Disable | R104: EN_VCC1: 0 / INC_INDUCT_De-Rate: 0 / USLEEP: 1 / SCALE_DT: 1
A105: 14 | B105: 24.9 | C105: 1 | D105: 0 | E105: 1 | F105: 1 | G105: Enable | H105: Disable | I105: Enable | J105: Enable | L105: EN_VCC1: 1 | M105: INC_INDUCT_De-Rate: 0 | N105: USLEEP: 1 | O105: SCALE_DT: 1 | P105: : Enable | R105: EN_VCC1: 1 / INC_INDUCT_De-Rate: 0 / USLEEP: 1 / SCALE_DT: 1
A106: 15 | B106: 30.1 | C106: 0 | D106: 1 | E106: 1 | F106: 1 | G106: Disable | H106: Enable | I106: Enable | J106: Enable | L106: EN_VCC1: 0 | M106: INC_INDUCT_De-Rate: 1 | N106: USLEEP: 1 | O106: SCALE_DT: 1 | P106: : Disable | R106: EN_VCC1: 0 / INC_INDUCT_De-Rate: 1 / USLEEP: 1 / SCALE_DT: 1
A107: 16 | B107: 36.5 | C107: 1 | D107: 1 | E107: 1 | F107: 1 | G107: Enable | H107: Enable | I107: Enable | J107: Enable | L107: EN_VCC1: 1 | M107: INC_INDUCT_De-Rate: 1 | N107: USLEEP: 1 | O107: SCALE_DT: 1 | P107: : Enable | R107: EN_VCC1: 1 / INC_INDUCT_De-Rate: 1 / USLEEP: 1 / SCALE_DT: 1
C109: 0 | D109: 1 | E109: 2 | F109: 3
C110: =CONCATENATE(C91,": off") -> EN_VCC1: off | D110: =CONCATENATE(D91,": off") -> INC_INDUCT_De-Rate: off | E110: =CONCATENATE(E91,": off") -> USLEEP: off | F110: =CONCATENATE(F91,": off") -> SCALE_DT: off
C111: =CONCATENATE(C91,": on") -> EN_VCC1: on | D111: =CONCATENATE(D91,": on") -> INC_INDUCT_De-Rate: on | E111: =CONCATENATE(E91,": on") -> USLEEP: on | F111: =CONCATENATE(F91,": on") -> SCALE_DT: on
B115: CFG Setting | C115: 1 | D115: 2 | E115: 2 | F115: 2 | G115: Calc Setting | H115: =CONCATENATE("R_",A90) -> R_CFG3 | J115: This cell give 1 for disable and 2 for enable
C116: =(C115-1)*2^C109 -> 0 | D116: =(D115-1)*2^D109 -> 2 | E116: =(E115-1)*2^E109 -> 4 | F116: =(F115-1)*2^F109 -> 8 | G116: =SUM(C116:F116)+1 -> 15 | H116: =INDEX(B92:B107,G116) -> 30.1
A120: CFG4
A121: Setting | B121: R_CFG4 [ | C121: DRSS | D121: SCP – Hiccup Mode | E121: Negative Current Limit | F121: Current Limit | G121: Current Limit | H121: =D121 -> SCP – Hiccup Mode | I121: =E121 -> Negative Current Limit | J121: =F121 -> Current Limit
A122: 1 | B122: 0 | C122: 0 | D122: 0 | E122: 0 | F122: 0 | G122: =IF(C122=1,"Enable","Disable") -> Disable | H122: =IF(D122=1,"Enable","Disable") -> Disable | I122: =IF(E122=1,"Enable","Disable") -> Disable | J122: =IF(F122=1,"Enable","Disable") -> Disable | L122: =CONCATENATE($C$121,": ",C122) -> DRSS: 0 | M122: =CONCATENATE(D$121,": ",D122) -> SCP – Hiccup Mode: 0 | N122: =CONCATENATE(E$121,": ",E122) -> Negative Current Limit: 0 | O122: =CONCATENATE(F$121,": ",F122) -> Current Limit: 0 | P122: =CONCATENATE(K$3,": ",G122) -> : Disable | R122: =CONCATENATE(L122," / ",M122," / ",N122," / ",O122) -> DRSS: 0 / SCP – Hiccup Mode: 0 / Negative Current Limit: 0 / Current Limit: 0
A123: 2 | B123: 0.511 | C123: 1 | D123: 0 | E123: 0 | F123: 0 | G123: Enable | H123: Disable | I123: Disable | J123: Disable | L123: =CONCATENATE($C$121,": ",C123) -> DRSS: 1 | M123: =CONCATENATE(D$121,": ",D123) -> SCP – Hiccup Mode: 0 | N123: =CONCATENATE(E$121,": ",E123) -> Negative Current Limit: 0 | O123: =CONCATENATE(F$121,": ",F123) -> Current Limit: 0 | P123: : Enable | R123: =CONCATENATE(L123," / ",M123," / ",N123," / ",O123) -> DRSS: 1 / SCP – Hiccup Mode: 0 / Negative Current Limit: 0 / Current Limit: 0
A124: 3 | B124: 1.3 | C124: 0 | D124: 1 | E124: 0 | F124: 0 | G124: Disable | H124: Enable | I124: Disable | J124: Disable | L124: DRSS: 0 | M124: SCP – Hiccup Mode: 1 | N124: Negative Current Limit: 0 | O124: Current Limit: 0 | P124: : Disable | R124: DRSS: 0 / SCP – Hiccup Mode: 1 / Negative Current Limit: 0 / Current Limit: 0
A125: 4 | B125: 1.9 | C125: 1 | D125: 1 | E125: 0 | F125: 0 | G125: Enable | H125: Enable | I125: Disable | J125: Disable | L125: DRSS: 1 | M125: SCP – Hiccup Mode: 1 | N125: Negative Current Limit: 0 | O125: Current Limit: 0 | P125: : Enable | R125: DRSS: 1 / SCP – Hiccup Mode: 1 / Negative Current Limit: 0 / Current Limit: 0
A126: 5 | B126: 2.7 | C126: 0 | D126: 0 | E126: 1 | F126: 0 | G126: Disable | H126: Disable | I126: Enable | J126: Disable | L126: DRSS: 0 | M126: SCP – Hiccup Mode: 0 | N126: Negative Current Limit: 1 | O126: Current Limit: 0 | P126: : Disable | R126: DRSS: 0 / SCP – Hiccup Mode: 0 / Negative Current Limit: 1 / Current Limit: 0
A127: 6 | B127: 3.8 | C127: 1 | D127: 0 | E127: 1 | F127: 0 | G127: Enable | H127: Disable | I127: Enable | J127: Disable | L127: DRSS: 1 | M127: SCP – Hiccup Mode: 0 | N127: Negative Current Limit: 1 | O127: Current Limit: 0 | P127: : Enable | R127: DRSS: 1 / SCP – Hiccup Mode: 0 / Negative Current Limit: 1 / Current Limit: 0
A128: 7 | B128: 5.1 | C128: 0 | D128: 1 | E128: 1 | F128: 0 | G128: Disable | H128: Enable | I128: Enable | J128: Disable | L128: DRSS: 0 | M128: SCP – Hiccup Mode: 1 | N128: Negative Current Limit: 1 | O128: Current Limit: 0 | P128: : Disable | R128: DRSS: 0 / SCP – Hiccup Mode: 1 / Negative Current Limit: 1 / Current Limit: 0
A129: 8 | B129: 6.5 | C129: 1 | D129: 1 | E129: 1 | F129: 0 | G129: Enable | H129: Enable | I129: Enable | J129: Disable | L129: DRSS: 1 | M129: SCP – Hiccup Mode: 1 | N129: Negative Current Limit: 1 | O129: Current Limit: 0 | P129: : Enable | R129: DRSS: 1 / SCP – Hiccup Mode: 1 / Negative Current Limit: 1 / Current Limit: 0
A130: 9 | B130: 8.3 | C130: 0 | D130: 0 | E130: 0 | F130: 1 | G130: Disable | H130: Disable | I130: Disable | J130: Enable | L130: DRSS: 0 | M130: SCP – Hiccup Mode: 0 | N130: Negative Current Limit: 0 | O130: Current Limit: 1 | P130: : Disable | R130: DRSS: 0 / SCP – Hiccup Mode: 0 / Negative Current Limit: 0 / Current Limit: 1
A131: 10 | B131: 10.5 | C131: 1 | D131: 0 | E131: 0 | F131: 1 | G131: Enable | H131: Disable | I131: Disable | J131: Enable | L131: DRSS: 1 | M131: SCP – Hiccup Mode: 0 | N131: Negative Current Limit: 0 | O131: Current Limit: 1 | P131: : Enable | R131: DRSS: 1 / SCP – Hiccup Mode: 0 / Negative Current Limit: 0 / Current Limit: 1
A132: 11 | B132: 13.3 | C132: 0 | D132: 1 | E132: 0 | F132: 1 | G132: Disable | H132: Enable | I132: Disable | J132: Enable | L132: DRSS: 0 | M132: SCP – Hiccup Mode: 1 | N132: Negative Current Limit: 0 | O132: Current Limit: 1 | P132: : Disable | R132: DRSS: 0 / SCP – Hiccup Mode: 1 / Negative Current Limit: 0 / Current Limit: 1
A133: 12 | B133: 16.2 | C133: 1 | D133: 1 | E133: 0 | F133: 1 | G133: Enable | H133: Enable | I133: Disable | J133: Enable | L133: DRSS: 1 | M133: SCP – Hiccup Mode: 1 | N133: Negative Current Limit: 0 | O133: Current Limit: 1 | P133: : Enable | R133: DRSS: 1 / SCP – Hiccup Mode: 1 / Negative Current Limit: 0 / Current Limit: 1
A134: 13 | B134: 20.5 | C134: 0 | D134: 0 | E134: 1 | F134: 1 | G134: Disable | H134: Disable | I134: Enable | J134: Enable | L134: DRSS: 0 | M134: SCP – Hiccup Mode: 0 | N134: Negative Current Limit: 1 | O134: Current Limit: 1 | P134: : Disable | R134: DRSS: 0 / SCP – Hiccup Mode: 0 / Negative Current Limit: 1 / Current Limit: 1
A135: 14 | B135: 24.9 | C135: 1 | D135: 0 | E135: 1 | F135: 1 | G135: Enable | H135: Disable | I135: Enable | J135: Enable | L135: DRSS: 1 | M135: SCP – Hiccup Mode: 0 | N135: Negative Current Limit: 1 | O135: Current Limit: 1 | P135: : Enable | R135: DRSS: 1 / SCP – Hiccup Mode: 0 / Negative Current Limit: 1 / Current Limit: 1
A136: 15 | B136: 30.1 | C136: 0 | D136: 1 | E136: 1 | F136: 1 | G136: Disable | H136: Enable | I136: Enable | J136: Enable | L136: DRSS: 0 | M136: SCP – Hiccup Mode: 1 | N136: Negative Current Limit: 1 | O136: Current Limit: 1 | P136: : Disable | R136: DRSS: 0 / SCP – Hiccup Mode: 1 / Negative Current Limit: 1 / Current Limit: 1
A137: 16 | B137: 36.5 | C137: 1 | D137: 1 | E137: 1 | F137: 1 | G137: Enable | H137: Enable | I137: Enable | J137: Enable | L137: DRSS: 1 | M137: SCP – Hiccup Mode: 1 | N137: Negative Current Limit: 1 | O137: Current Limit: 1 | P137: : Enable | R137: DRSS: 1 / SCP – Hiccup Mode: 1 / Negative Current Limit: 1 / Current Limit: 1
C139: 0 | D139: 1 | E139: 2 | F139: 3
C140: =CONCATENATE(C121,": off") -> DRSS: off | D140: =CONCATENATE(D121,": off") -> SCP – Hiccup Mode: off | E140: =CONCATENATE(E121,": off") -> Negative Current Limit: off | F140: IMON_LIMIT: off
C141: =CONCATENATE(C121,": on") -> DRSS: on | D141: =CONCATENATE(D121,": on") -> SCP – Hiccup Mode: on | E141: =CONCATENATE(E121,": on") -> Negative Current Limit: on | F141: IMON: on
F142: ILIMIT: on
B145: CFG Setting | C145: 1 | D145: 1 | E145: 1 | F145: 2 | G145: Calc Setting | H145: =CONCATENATE("R_",A120) -> R_CFG4 | J145: This cell give 1 for disable and 2 for enable
C146: =(C145-1)*2^C139 -> 0 | D146: =(D145-1)*2^D139 -> 0 | E146: =(E145-1)*2^E139 -> 0 | F146: =(IF(F145>2,1,0)*2^F139) -> 0 | G146: =SUM(C146:F146)+1 -> 1 | H146: =INDEX(B122:B137,G146) -> 0 | J146: =CHOOSE(F145,1,2,IF(E145=1,3,4)) -> 2 | K146: Decoded IMON/Limiter
A151: CDC Gain
A152: 0.25
A153: 0.5
A154: 1
A155: 2

Sheet Stability Calculations (hidden)
B2: Divider Network & EA Poles/Zeros | E2: Modulator | J2: Power Stage Poles/Zeros | M2: Complex Pole Pair | P2: Total System
B3: Afb1 | C3: =Afb -> 0.09765625 | D3: V/V | E3: Acs | F3: =Acs -> 50 | G3: A/V | H3: gm | I3: =gm -> 0.0006 | J3: z_ESR | K3: =Fesr -> 612134.3965 | L3: Hz | M3: p3 | N3: =Fsw/2 -> 190000 | O3: Hz | P3: Adc | Q3: =Am*Afb*AEA -> 14821.55551 | R3: V/V | S3: =20*LOG(Adc) -> 83.4178757 | T3: dB
B4: EA zero, z1 | C4: =Fz1_u -> 1410.948077 | D4: Hz | E4: Am | F4: =Am -> 25.29545474 | G4: V/V | J4: p_dom | K4: =Fp_dominant -> 717.3449959 | L4: Hz | M4: pterm1 | N4: =Q*PS_Pole2 -> 76294.76359 | P4: Crossover | Q4: =AM8/1000 -> 0.43652 | R4: kHz | U4: IL zero, z1 | V4: =1/(2*Pi*RcIL*Cc1IL) -> 53051.6477
B5: EA pole, p1 | C5: =Fp1_u -> 0.03386194116 | D5: Hz | E5: Q | F5: =Q -> 0.4015513873 | J5: z_RHP | K5: =IF(VIN_nom>Vout, 10000000,Frhp) -> 10000000 | L5: Hz | M5: pterm2 | N5: =PS_Pole2^2+0.01 -> 3.61e+10 | P5: Phase Margin | Q5: =AM9 -> 75.59512781 | R5: ° | U5: IL pole, p1 | V5: =1/(2*Pi*(RoEA_IL+RcIL)*Cc1IL) -> 5.304634306
B6: Aea | C6: =AEA -> 6000 | D6: V/V | E6: mc | F6: =mc -> 3.021014372 | P6: radconv | Q6: =180/Pi -> 57.29577951 | U6: AIL | V6: =gm_IL*RoEA_IL -> 2000 | AL6: XOVER SEARCH
B7: EA pole, p2 | C7: =Fp2_u -> 11840.33253 | D7: Hz | E7: k | F7: =k -> 1.292700253 | U7: IL pole, p2 | V7: =1/(2*Pi*RcIL*(Cc2IL+Cbw_IL)) -> 9937560.466 | AL7: System | AN7: Error Amp | AP7: IL Error Amp
AL8: xover | AM8: =SUM(AL12:AL613) -> 436.52 | AN8: xover | AO8: =SUM(AN12:AN613) -> 190.55 | AP8: xover | AQ8: =SUM(AP12:AP613) -> 10777.5 | AR8: 0
AL9: phase margin | AM9: =SUM(AM13:AM613) -> 75.59512781 | AN9: phase margin | AO9: =SUM(AO13:AO613) -> -83.22049706 | AP9: phase margin | AQ9: =SUM(AQ13:AQ613) -> 0.0389771988
B10: Freq (Hz) | C10: Power Stage | I10: Error Amplifier | O10: ILimit Amplifier | U10: Sampling Double Pole | W10: System Response | AB10: ERROR AMP Response | AE10: ILimit AMP Response | AG10: EA*5 | AI10: PLANT Response
C11: p_dom | E11: z_ESR | G11: z_RHP | I11: p1 | K11: z1 | M11: p2 | O11: p1 | Q11: z1 | S11: p2 | U11: p3
C12: Gain(V/V) | D12: Phase(rad) | E12: Gain(V/V) | F12: Phase(rad) | G12: Gain(V/V) | H12: Phase(rad) | I12: Gain(V/V) | J12: Phase(rad) | K12: Gain(V/V) | L12: Phase(rad) | M12: Gain(V/V) | N12: Phase(rad) | O12: Gain(V/V) | P12: Phase(rad) | Q12: Gain(V/V) | R12: Phase(rad) | S12: Gain(V/V) | T12: Phase(rad) | U12: Gain(V/V) | V12: Phase(rad) | W12: Loop Gain (dB) | X12: :Loop Phase Margin (°) | Y12: Phase (°) | AB12: Gain(dB) | AC12: Phase(Deg) | AE12: ILimit Gain(dB) | AF12: ILimit Phase(Deg) | AG12: Gain(dB) | AI12: Gain(dB) | AJ12: Phase(Deg)
B13: 1 | C13: =SQRT(1+(B13/PS_Pole1)^2) -> 1.000000972 | D13: =ATAN(B13/PS_Pole1) -> 0.001394028477 | E13: =SQRT(1+(B13/PS_Zero1)^2) -> 1 | F13: =ATAN(B13/PS_Zero1) -> 1.63362818e-06 | G13: =IF(VIN_nom>Vout, 1, SQRT(1+(B13/PS_RHPZ)^2)) -> 1 | H13: =IF(VIN_nom>Vout, 0, -ATAN(B13/PS_RHPZ)) -> 0 | I13: =SQRT(1+(B13/EA_Pole1)^2) -> 29.54860581 | J13: =ATAN(B13/EA_Pole1) -> 1.536947319 | K13: =SQRT(1+(B13/EA_Zero1)^2) -> 1.000000251 | L13: =ATAN(B13/EA_Zero1) -> 0.000708743184 | M13: =SQRT(1+(B13/EA_Pole2)^2) -> 1.000000004 | N13: =ATAN(B13/EA_Pole2) -> 8.445708725e-05 | O13: =SQRT(1+(B13/$V$5)^2) -> 1.01761372 | P13: =ATAN(B13/$V$5) -> 0.1863277268 | Q13: =SQRT(1+(B13/$V$4)^2) -> 1 | R13: =ATAN(B13/$V$4) -> 1.884955592e-05 | S13: =SQRT(1+(B13/$V$7)^2) -> 1 | T13: =ATAN(B13/$V$7) -> 1.006283185e-07 | U13: =SQRT((1-(B13^2/pterm2))^2+(B13/pterm1)^2) -> 1 | V13: =IF((ATAN((B13/pterm1)/(1-B13^2/pterm2))>0),ATAN((B13/pterm1)/(1-B13^2/pterm2)),PI()+ATAN((B13/pterm1)/(1-B13^2/pterm2))) -> 1.310705942e-05 | W13: =20*LOG10(((E13*K13*G13)/(C13*I13*U13*M13))*Adc) -> 54.00712952 | X13: =IF(((F13+L13+H13)-(D13+J13+V13+N13))*radconv<-180,((F13+L13+H13)-(D13+J13+V13+N13))*radconv+180,((F13+L13+H13)-(D13+J13+V13+N13))*radconv) -> -88.10535509 | Y13: =IF(X13>0,X13-180,X13+180) -> 91.89464491 | AB13: =20*LOG10((K13/(I13*M13))*AEA) -> 46.15228727 | AC13: =(L13-(J13+N13))*radconv -> -88.02482576 | AE13: =20*LOG10((Q13/(O13*S13))*AIL) -> 65.86894084 | AF13: =(R13-(P13+T13))*radconv -> -10.67471812 | AI13: =20*LOG10((E13*G13/(C13*U13))*Acs*Am) -> 62.04024147 | AJ13: =(F13+H13-(D13+V13))*radconv -> -0.08052932745 | AL13: =SUM((W14<0)*(W13>0))*B13 -> 0 | AM13: =IF(AL13>0,Y11,0) -> 0 | AN13: =SUM((AB14<0)*(AB13>0))*B13 -> 0 | AO13: =IF(AN13>0,AC13,0) -> 0 | AP13: =SUM((AE14<0)*(AE13>0))*B13 -> 0 | AQ13: =IF(AP13>0,AE13,0) -> 0
B14: 1.0965 | C14: 1.000001168 | D14: 0.001528552025 | E14: 1 | F14: 1.791273299e-06 | G14: 1 | H14: 0 | I14: 32.39692402 | J14: 1.539924295 | K14: 1.000000302 | L14: 0.0007771368749 | M14: 1.000000004 | N14: 9.260719613e-05 | O14: 1.021140241 | P14: 0.2038352901 | Q14: 1 | R14: 2.066853807e-05 | S14: 1 | T14: 1.103389513e-07 | U14: 1 | V14: 1.437189066e-05 | W14: 53.20779259 | X14: =IF(((F14+L14+H14)-(D14+J14+V14+N14))*radconv<-180,((F14+L14+H14)-(D14+J14+V14+N14))*radconv+180,((F14+L14+H14)-(D14+J14+V14+N14))*radconv) -> -88.28024261 | Y14: =IF(X14>0,X14-180,X14+180) -> 91.71975739 | AB14: 45.35295205 | AC14: -88.19194222 | AE14: 65.8388921 | AF14: -11.67772394 | AI14: 62.04023976 | AJ14: -0.08830039607 | AL14: 0 | AM14: 0 | AN14: 0 | AO14: =IF(AN14>0,AC14,0) -> 0 | AP14: =SUM((AE15<0)*(AE14>0))*B14 -> 0 | AQ14: =IF(AP14>0,AE14,0) -> 0
B15: 1.2023 | C15: 1.000001405 | D15: 0.001676039954 | E15: 1 | F15: 1.964111161e-06 | G15: 1 | H15: 0 | I15: 35.52001785 | J15: 1.542639467 | K15: 1.000000363 | L15: 0.0008521218665 | M15: 1.000000005 | N15: 0.0001015427559 | O15: 1.025363652 | P15: 0.222885211 | Q15: 1 | R15: 2.266282108e-05 | S15: 1 | T15: 1.209854274e-07 | U15: 1 | V15: 1.575861754e-05 | W15: 52.4084031 | X15: =IF(((F15+L15+H15)-(D15+J15+V15+N15))*radconv<-180,((F15+L15+H15)-(D15+J15+V15+N15))*radconv+360,((F15+L15+H15)-(D15+J15+V15+N15))*radconv) -> -88.44054616 | Y15: 91.55945384 | AB15: 44.55356461 | AC15: -88.34372578 | AE15: 65.80304155 | AF15: -12.76909036 | AI15: 62.04023771 | AJ15: -0.09682038268 | AL15: 0 | AM15: 0 | AN15: 0 | AO15: 0 | AP15: 0 | AQ15: 0
B16: 1.3183 | C16: 1.000001689 | D16: 0.001837746863 | E16: 1 | F16: 2.15361203e-06 | G16: 1 | H16: 0 | I16: 38.94445425 | J16: 1.545115907 | K16: 1.000000436 | L16: 0.000934336024 | M16: 1.000000006 | N16: 0.0001113397779 | O16: 1.030418103 | P16: 0.2435838673 | Q16: 1 | R16: 2.484936957e-05 | S16: 1 | T16: 1.326583123e-07 | U16: 1 | V16: 1.727903643e-05 | W16: 51.60895232 | X16: -88.5876279 | Y16: 91.4123721 | AB16: 43.7541163 | AC16: -88.48146613 | AE16: 65.76033031 | AF16: -13.95491139 | AI16: 62.04023524 | AJ16: -0.106161762 | AL16: 0 | AM16: 0 | AN16: 0 | AO16: 0 | AP16: 0 | AQ16: 0
B17: 1.4454 | C17: 1.00000203 | D17: 0.002014927339 | E17: 1 | F17: 2.361246171e-06 | G17: 1 | H17: 0 | I17: 42.6968019 | J17: 1.547373227 | K17: 1.000000525 | L17: 0.001024417211 | M17: 1.000000007 | N17: 0.0001220742736 | O17: 1.036457745 | P17: 0.2660206953 | Q17: 1 | R17: 2.724514812e-05 | S17: 1 | T17: 1.454481716e-07 | U17: 1 | V17: 1.894494369e-05 | W17: 50.80995563 | X17: -88.72265181 | Y17: 91.27734819 | AB17: 42.95512257 | AC17: -88.6062548 | AE17: 65.7095679 | AF17: -15.24031041 | AI17: 62.04023228 | AJ17: -0.1163970084 | AL17: 0 | AM17: 0 | AN17: 0 | AO17: 0 | AP17: 0 | AQ17: 0
B18: 1.5849 | C18: 1.000002441 | D18: 0.00220939357 | E18: 1 | F18: 2.589137302e-06 | G18: 1 | H18: 0 | I18: 46.81544059 | J18: 1.549434228 | K18: 1.000000631 | L18: 0.001123286788 | M18: 1.000000009 | N18: 0.0001338560371 | O18: 1.043679735 | P18: 0.2903339273 | Q18: 1 | R18: 2.987466117e-05 | S18: 1 | T18: 1.59485822e-07 | U18: 1 | V18: 2.077337848e-05 | W18: 50.0100776 | X18: -88.84698251 | Y18: 91.15301749 | AB18: 42.15524811 | AC18: -88.7193517 | AE18: 65.6492549 | AF18: -16.63320613 | AI18: 62.04022871 | AJ18: -0.1276308071 | AL18: 0 | AM18: 0 | AN18: 0 | AO18: 0 | AP18: 0 | AQ18: 0
B19: 1.7378 | C19: 1.000002934 | D19: 0.002422539518 | E19: 1 | F19: 2.838919051e-06 | G19: 1 | H19: 0 | I19: 51.3298948 | J19: 1.55131327 | K19: 1.000000758 | L19: 0.001231653489 | M19: 1.000000011 | N19: 0.0001467695255 | O19: 1.052293677 | P19: 0.3165820166 | Q19: 1.000000001 | R19: 3.275675827e-05 | S19: 1 | T19: 1.748718919e-07 | U19: 1 | V19: 2.277744786e-05 | W19: 49.21044922 | X19: -88.96148747 | Y19: 91.03851253 | AB19: 41.35562402 | AC19: -88.82154379 | AE19: 65.5778607 | AF19: -18.13694662 | AI19: 62.04022442 | AJ19: -0.1399436836 | AL19: 0 | AM19: 0 | AN19: 0 | AO19: 0 | AP19: 0 | AQ19: 0
B20: 1.9055 | C20: 1.000003528 | D20: 0.002656316736 | E20: 1 | F20: 3.112878497e-06 | G20: 1 | H20: 0 | I20: 56.28150026 | J20: 1.553027564 | K20: 1.000000912 | L20: 0.001350509542 | M20: 1.000000013 | N20: 0.0001609329787 | O20: 1.062560514 | P20: 0.3448597672 | Q20: 1.000000001 | R20: 3.591782879e-05 | S20: 1 | T20: 1.91747261e-07 | U20: 1 | V20: 2.497550173e-05 | W20: 48.41053955 | X20: -89.06721555 | Y20: 90.93278445 | AB20: 40.5557195 | AC20: -88.91376717 | AE20: 65.49352646 | AF20: -19.75696223 | AI20: 62.04021926 | AJ20: -0.1534483741 | AL20: 0 | AM20: 0 | AN20: 0 | AO20: 0 | AP20: 0 | AQ20: 0
B21: 2.0893 | C21: 1.000004241 | D21: 0.002912537348 | E21: 1 | F21: 3.413139356e-06 | G21: 1 | H21: 0 | I21: 61.7086415 | J21: 1.554590432 | K21: 1.000001096 | L21: 0.0014807763 | M21: 1.000000016 | N21: 0.000176456191 | O21: 1.074768898 | P21: 0.3752048235 | Q21: 1.000000001 | R21: 3.938237717e-05 | S21: 1 | T21: 2.102427459e-07 | U21: 1 | V21: 2.738457925e-05 | W21: 47.61092853 | X21: -89.16498813 | Y21: 90.83501187 | AB21: 39.75611468 | AC21: -88.99673857 | AE21: 65.39429812 | AF21: -21.49540844 | AI21: 62.04021307 | AJ21: -0.1682495601 | AL21: 0 | AM21: 0 | AN21: 0 | AO21: 0 | AP21: 0 | AQ21: 0
B22: 2.2909 | C22: 1.000005099 | D22: 0.00319357105 | E22: 1 | F22: 3.742478797e-06 | G22: 1 | H22: 0 | I22: 67.66151512 | J22: 1.556016338 | K22: 1.000001318 | L22: 0.001623658605 | M22: 1.000000019 | N22: 0.0001934827392 | O22: 1.089270249 | P22: 0.407673206 | Q22: 1.000000001 | R22: 4.318244763e-05 | S22: 1 | T22: 2.305294149e-07 | U22: 1 | V22: 3.002696242e-05 | W22: 46.81100832 | X22: -89.25571013 | Y22: 90.74428987 | AB22: 38.95620192 | AC22: -89.071226 | AE22: 65.27788708 | AF22: -23.35549316 | AI22: 62.04020561 | AJ22: -0.1844841327 | AL22: 0 | AM22: 0 | AN22: 0 | AO22: 0 | AP22: 0 | AQ22: 0
B23: 2.5119 | C23: 1.000006131 | D23: 0.003501648088 | E23: 1 | F23: 4.103510625e-06 | G23: 1 | H23: 0 | I23: 74.1873662 | J23: 1.557316535 | K23: 1.000001585 | L23: 0.001780290421 | M23: 1.000000023 | N23: 0.0002121477548 | O23: 1.106449293 | P23: 0.4422477289 | Q23: 1.000000001 | R23: 4.734819948e-05 | S23: 1 | T23: 2.527682733e-07 | U23: 1 | V23: 3.292362256e-05 | W23: 46.01123695 | X23: -89.34009777 | Y23: 90.65990223 | AB23: 38.15643952 | AC23: -89.13781684 | AE23: 65.14196961 | AF23: -25.33623 | AI23: 62.04019665 | AJ23: -0.2022809276 | AL23: 0 | AM23: 0 | AN23: 0 | AO23: 0 | AP23: 0 | AQ23: 0
B24: 2.7542 | C24: 1.000007371 | D24: 0.003839416853 | E24: 1 | F24: 4.499338733e-06 | G24: 1 | H24: 0 | I24: 81.34229929 | J24: 1.55850229 | K24: 1.000001905 | L24: 0.001952018325 | M24: 1.000000027 | N24: 0.0002326117061 | O24: 1.126754308 | P24: 0.4788943918 | Q24: 1.000000001 | R24: 5.191544687e-05 | S24: 1 | T24: 2.771505149e-07 | U24: 1 | V24: 3.609946305e-05 | W24: 45.2114991 | X24: -89.41888179 | Y24: 90.58111821 | AB24: 37.35671243 | AC24: -89.19708886 | AE24: 64.98401538 | AF24: -27.43566883 | AI24: 62.04018589 | AJ24: -0.2217929352 | AL24: 0 | AM24: 0 | AN24: 0 | AO24: 0 | AP24: 0 | AQ24: 0
B25: 3.02 | C25: 1.000008862 | D25: 0.004209943856 | E25: 1 | F25: 4.933557103e-06 | G25: 1 | H25: 0 | I25: 89.19127876 | J25: 1.559584233 | K25: 1.000002291 | L25: 0.002140401505 | M25: 1.000000033 | N25: 0.0002550603986 | O25: 1.15070321 | P25: 0.5175502341 | Q25: 1.000000002 | R25: 5.692565882e-05 | S25: 1 | T25: 3.03897522e-07 | U25: 1.000000001 | V25: 3.958331944e-05 | W25: 44.41137052 | X25: -89.49276958 | Y25: 90.50723042 | AB25: 36.55659681 | AC25: -89.24957228 | AE25: 64.80133343 | AF25: -29.65019991 | AI25: 62.04017293 | AJ25: -0.2431973001 | AL25: 0 | AM25: 0 | AN25: 0 | AO25: 0 | AP25: 0 | AQ25: 0
B26: 3.3113 | C26: 1.000010654 | D26: 0.004616016701 | E26: 1 | F26: 5.409432992e-06 | G26: 1 | H26: 0 | I26: 97.7933639 | J26: 1.560570506 | K26: 1.000002754 | L26: 0.002346857389 | M26: 1.000000039 | N26: 0.0002796627464 | O26: 1.178838538 | P26: 0.5580438052 | Q26: 1.000000002 | R26: 6.241653444e-05 | S26: 1 | T26: 3.332105512e-07 | U26: 1.000000001 | V26: 4.340140585e-05 | W26: 43.61161903 | X26: -89.56231714 | Y26: 90.43768286 | AB26: 35.75686088 | AC26: -89.29566209 | AE26: 64.59151343 | AF26: -31.96999771 | AI26: 62.04015737 | AJ26: -0.2666550548 | AL26: 0 | AM26: 0 | AN26: 0 | AO26: 0 | AP26: 0 | AQ26: 0
B27: 3.6308 | C27: 1.000012809 | D27: 0.005061398652 | E27: 1 | F27: 5.931377195e-06 | G27: 1 | H27: 0 | I27: 107.2282857 | J27: 1.561470294 | K27: 1.000003311 | L27: 0.002573299503 | M27: 1.000000047 | N27: 0.0003066467835 | O27: 1.211809767 | P27: 0.6002188348 | Q27: 1.000000002 | R27: 6.843896753e-05 | S27: 1 | T27: 3.653612989e-07 | U27: 1.000000001 | V27: 4.758911133e-05 | W27: 42.81160553 | X27: -89.62817165 | Y27: 90.37182835 | AB27: 34.9568661 | AC27: -89.33578805 | AE27: 64.35191096 | AF27: -34.38610569 | AI27: 62.04013865 | AJ27: -0.2923835936 | AL27: 0 | AM27: 0 | AN27: 0 | AO27: 0 | AP27: 0 | AQ27: 0
B28: 3.9811 | C28: 1.0000154 | D28: 0.005549713389 | E28: 1 | F28: 6.503637147e-06 | G28: 1 | H28: 0 | I28: 117.5728228 | J28: 1.562290857 | K28: 1.000003981 | L28: 0.002821570474 | M28: 1.000000057 | N28: 0.0003362320982 | O28: 1.25029689 | P28: 0.6438176498 | Q28: 1.000000003 | R28: 7.504196694e-05 | S28: 1 | T28: 4.006113989e-07 | U28: 1.000000001 | V28: 5.218051424e-05 | W28: 42.01163711 | X28: -89.69086534 | Y28: 90.30913466 | AB28: 34.15692019 | AC28: -89.3702731 | AE28: 64.08033692 | AF28: -36.88375747 | AI28: 62.04011614 | AJ28: -0.320592247 | AL28: 0 | AM28: 0 | AN28: 0 | AO28: 0 | AP28: 0 | AQ28: 0
B29: 4.3652 | C29: 1.000018515 | D29: 0.00608514194 | E29: 1 | F29: 7.131113731e-06 | G29: 1 | H29: 0 | I29: 128.9155667 | J29: 1.563039234 | K29: 1.000004786 | L29: 0.003093796394 | M29: 1.000000068 | N29: 0.0003686720614 | O29: 1.295055793 | P29: 0.6885510675 | Q29: 1.000000003 | R29: 8.228208132e-05 | S29: 1 | T29: 4.392627361e-07 | U29: 1.000000001 | V29: 5.721493576e-05 | W29: 41.21164861 | X29: -89.75093573 | Y29: 90.24906427 | AB29: 33.35695874 | AC29: -89.39941319 | AE29: 63.77483036 | AF29: -39.4463809 | AI29: 62.04008908 | AJ29: -0.3515225425 | AL29: 0 | AM29: 0 | AN29: 0 | AO29: 0 | AP29: 0 | AQ29: 0
B30: 4.7863 | C30: 1.000022259 | D30: 0.006672143811 | E30: 1 | F30: 7.819034557e-06 | G30: 1 | H30: 0 | I30: 141.3510158 | J30: 1.563721681 | K30: 1.000005754 | L30: 0.003392245058 | M30: 1.000000082 | N30: 0.0004042369357 | O30: 1.346893075 | P30: 0.7340769343 | Q30: 1.000000004 | R30: 9.021962926e-05 | S30: 1 | T30: 4.81637321e-07 | U30: 1.000000001 | V30: 6.273431847e-05 | W30: 40.41175294 | X30: -89.80888451 | Y30: 90.19111549 | AB30: 32.5570956 | AC30: -89.42345241 | AE30: 63.43393755 | AF30: -42.05436856 | AI30: 62.04005656 | AJ30: -0.3854320947 | AL30: 0 | AM30: 0 | AN30: 0 | AO30: 0 | AP30: 0 | AQ30: 0
B31: 5.2481 | C31: 1.000026762 | D31: 0.007315875067 | E31: 1 | F31: 8.573444051e-06 | G31: 1 | H31: 0 | I31: 154.9884342 | J31: 1.564344188 | K31: 1.000006918 | L31: 0.003719538573 | M31: 1.000000098 | N31: 0.0004432392116 | O31: 1.406697736 | P31: 0.7800409011 | Q31: 1.000000005 | R31: 9.892435411e-05 | S31: 1 | T31: 5.281074785e-07 | U31: 1.000000002 | V31: 6.87871585e-05 | W31: 39.61171665 | X31: -89.86522029 | Y31: 90.13477971 | AB31: 31.75709842 | AC31: -89.44260153 | AE31: 63.05658419 | AF31: -44.68741379 | AI31: 62.04001745 | AJ31: -0.4226187565 | AL31: 0 | AM31: 0 | AN31: 0 | AO31: 0 | AP31: 0 | AQ31: 0
B32: 5.7544 | C32: 1.000032174 | D32: 0.008021630606 | E32: 1 | F32: 9.400549998e-06 | G32: 1 | H32: 0 | I32: 169.9400398 | J32: 1.564911864 | K32: 1.000008317 | L32: 0.004078369849 | M32: 1.000000118 | N32: 0.0004859998258 | O32: 1.475385887 | P32: 0.82604529 | Q32: 1.000000006 | R32: 0.0001084678842 | S32: 1 | T32: 5.790555962e-07 | U32: 1.000000002 | V32: 7.542326266e-05 | W32: 38.81175312 | X32: -89.9204059 | Y32: 90.0795941 | AB32: 30.9571819 | AC32: -89.4570175 | AE32: 62.64248747 | AF32: -47.32272723 | AI32: 62.03997044 | AJ32: -0.4633884013 | AL32: 0 | AM32: 0 | AN32: 0 | AO32: 0 | AP32: 0 | AQ32: 0
B33: 6.3096 | C33: 1.000038682 | D33: 0.008795540958 | E33: 1 | F33: 1.030754036e-05 | G33: 1 | H33: 0 | I33: 186.3357695 | J33: 1.565429645 | K33: 1.000009999 | L33: 0.004471856934 | M33: 1.000000142 | N33: 0.0005328903885 | O33: 1.553960271 | P33: 0.8717119692 | Q33: 1.000000007 | R33: 0.0001189331575 | S33: 1 | T33: 6.349244386e-07 | U33: 1.000000002 | V33: 8.270030203e-05 | W33: 38.01170069 | X33: -89.97492079 | Y33: 90.02507921 | AB33: 30.157186 | AC33: -89.46682562 | AE33: 62.19180175 | AF33: -49.93863879 | AI33: 62.03991391 | AJ33: -0.5080951751 | AL33: 0 | AM33: 0 | AN33: 0 | AO33: 0 | AP33: 0 | AQ33: 0
B34: 6.9183 | C34: 1.000046505 | D34: 0.009644014463 | E34: 1 | F34: 1.130192984e-05 | G34: 1 | H34: 0 | I34: 204.3114668 | J34: 1.565901819 | K34: 1.000012021 | L34: 0.004903259496 | M34: 1.000000171 | N34: 0.0005842994016 | O34: 1.643452355 | P34: 0.9166585914 | Q34: 1.000000009 | R34: 0.000130406882 | S34: 1 | T34: 6.961768961e-07 | U34: 1.000000003 | V34: 9.067856907e-05 | W34: 37.21171984 | X34: -90.02921647 | Y34: 89.97078353 | AB34: 29.3572731 | AC34: -89.4721072 | AE34: 61.70545763 | AF34: -52.51323666 | AI34: 62.03984595 | AJ34: -0.5571092727 | AL34: 0 | AM34: 0 | AN34: 0 | AO34: 0 | AP34: 0 | AQ34: 0
B35: 7.5858 | C35: 1.000055912 | D35: 0.01057443391 | E35: 1 | F35: 1.239237665e-05 | G35: 1 | H35: 0 | I35: 224.0236477 | J35: 1.566332498 | K35: 1.000014453 | L35: 0.005376333144 | M35: 1.000000205 | N35: 0.0006406744863 | O35: 1.744990901 | P35: 0.9605505529 | Q35: 1.00000001 | R35: 0.0001429889603 | S35: 1 | T35: 7.633462987e-07 | U35: 1.000000003 | V35: 9.942753119e-05 | W35: 36.4116365 | X35: -90.08376535 | Y35: 89.91623465 | AB35: 28.55727147 | AC35: -89.47290817 | AE35: 61.18473667 | AF35: -55.02734376 | AI35: 62.03976425 | AJ35: -0.6108571811 | AL35: 0 | AM35: 0 | AN35: 0 | AO35: 0 | AP35: 0 | AQ35: 0
B36: 8.3176 | C36: 1.00006722 | D36: 0.01159445919 | E36: 1 | F36: 1.358786575e-05 | G36: 1 | H36: 0 | I36: 245.6347345 | J36: 1.56672523 | K36: 1.000017376 | L36: 0.005894975008 | M36: 1.000000247 | N36: 0.000702480155 | O36: 1.859727032 | P36: 1.003073708 | Q36: 1.000000012 | R36: 0.000156783065 | S36: 1 | T36: 8.369861022e-07 | U36: 1.000000004 | V36: 0.0001090192772 | W36: 35.61164502 | X36: -90.13901669 | Y36: 89.86098331 | AB36: 27.7573782 | AC36: -89.4692353 | AE36: 60.63161595 | AF36: -57.46295493 | AI36: 62.03966603 | AJ36: -0.6697813945 | AL36: 0 | AM36: 0 | AN36: 0 | AO36: 0 | AP36: 0 | AQ36: 0
B37: 9.1201 | C37: 1.000080816 | D37: 0.01271300241 | E37: 1 | F37: 1.489885236e-05 | G37: 1 | H37: 0 | I37: 269.3337284 | J37: 1.567083452 | K37: 1.00002089 | L37: 0.006463719776 | M37: 1.000000297 | N37: 0.0007702569309 | O37: 1.988941986 | P37: 1.043984644 | Q37: 1.000000015 | R37: 0.0001719098333 | S37: 1 | T37: 9.177403278e-07 | U37: 1.000000005 | V37: 0.0001195376923 | W37: 34.81153774 | X37: -90.19545332 | Y37: 89.80454668 | AB37: 26.95738902 | AC37: -89.46105658 | AE37: 60.04815773 | AF37: -59.80611688 | AI37: 62.03954794 | AJ37: -0.7343967471 | AL37: 0 | AM37: 0 | AN37: 0 | AO37: 0 | AP37: 0 | AQ37: 0
B38: 10 | C38: 1.000097161 | D38: 0.01393939089 | E38: 1 | F38: 1.63362818e-05 | G38: 1 | H38: 0 | I38: 295.31849 | J38: 1.567410146 | K38: 1.000025116 | L38: 0.007087314359 | M38: 1.000000357 | N38: 0.0008445706737 | O38: 2.133956005 | P38: 1.083076016 | Q38: 1.000000018 | R38: 0.000188495557 | S38: 1 | T38: 1.006283185e-06 | U38: 1.000000006 | V38: 0.0001310705938 | W38: 34.01143403 | X38: -90.2535453 | Y38: 89.7464547 | AB38: 26.15742728 | AC38: -89.44830324 | AE38: 59.43689084 | AF38: -62.04494226 | AI38: 62.03940597 | AJ38: -0.805242059 | AL38: 0 | AM38: 0 | AN38: 0 | AO38: 0 | AP38: 0 | AQ38: 0
B39: 10.965 | C39: 1.000116817 | D39: 0.01528434184 | E39: 1 | F39: 1.791273299e-05 | G39: 1 | H39: 0 | I39: 323.8164119 | J39: 1.567708152 | K39: 1.000030197 | L39: 0.007771213871 | M39: 1.000000429 | N39: 0.0009260716992 | O39: 2.29624456 | P39: 1.120209703 | Q39: 1.000000021 | R39: 0.0002066853777 | S39: 1 | T39: 1.103389513e-06 | U39: 1.000000007 | V39: 0.000143718906 | W39: 33.21114247 | X39: -90.31379932 | Y39: 89.68620068 | AB39: 25.35730644 | AC39: -89.43086288 | AE39: 58.80023729 | AF39: -64.17150918 | AI39: 62.03923525 | AJ39: -0.8829364431 | AL39: 0 | AM39: 0 | AN39: 0 | AO39: 0 | AP39: 0 | AQ39: 0
B40: 12.023 | C40: 1.000140446 | D40: 0.0167588461 | E40: 1 | F40: 1.96411116e-05 | G40: 1 | H40: 0 | I40: 355.0607931 | J40: 1.567979904 | K40: 1.000036305 | L40: 0.008521014491 | M40: 1.000000516 | N40: 0.001015427213 | O40: 2.477309398 | P40: 1.155278499 | Q40: 1.000000026 | R40: 0.000226628207 | S40: 1 | T40: 1.209854274e-06 | U40: 1.000000008 | V40: 0.0001575861748 | W40: 32.41091229 | X40: -90.37670721 | Y40: 89.62329279 | AB40: 24.55728149 | AC40: -89.40859238 | AE40: 58.14099513 | AF40: -66.17966661 | AI40: 62.03903003 | AJ40: -0.9681148212 | AL40: 0 | AM40: 0 | AN40: 0 | AO40: 0 | AP40: 0 | AQ40: 0
B41: 13.183 | C41: 1.000168852 | D41: 0.01837542085 | E41: 1 | F41: 2.153612029e-05 | G41: 1 | H41: 0 | I41: 389.3174176 | J41: 1.568227726 | K41: 1.000043648 | L41: 0.009343091086 | M41: 1.00000062 | N41: 0.001113397324 | O41: 2.67883309 | P41: 1.188236074 | Q41: 1.000000031 | R41: 0.0002484936906 | S41: 1 | T41: 1.326583123e-06 | U41: 1.00000001 | V41: 0.0001727903635 | W41: 31.61070616 | X41: -90.44280358 | Y41: 89.55719642 | AB41: 23.75732206 | AC41: -89.38130329 | AE41: 57.46168708 | AF41: -68.06675049 | AI41: 62.03878332 | AJ41: -1.061500291 | AL41: 0 | AM41: 0 | AN41: 0 | AO41: 0 | AP41: 0 | AQ41: 0
B42: 14.454 | C42: 1.000202977 | D42: 0.02014657449 | E42: 1 | F42: 2.361246171e-05 | G42: 1 | H42: 0 | I42: 426.8520696 | J42: 1.568453593 | K42: 1.00005247 | L42: 0.01024381737 | M42: 1.000000745 | N42: 0.001220742136 | O42: 2.902493004 | P42: 1.219056741 | Q42: 1.000000037 | R42: 0.0002724514745 | S42: 1 | T42: 1.454481716e-06 | U42: 1.000000012 | V42: 0.0001894494357 | W42: 30.81101418 | X42: -90.51260254 | Y42: 89.48739746 | AB42: 22.95792645 | AC42: -89.34878709 | AE42: 56.7651766 | AF42: -69.83127924 | AI42: 62.03848695 | AJ42: -1.163815449 | AL42: 0 | AM42: 0 | AN42: 0 | AO42: 0 | AP42: 0 | AQ42: 0
B43: 15.849 | C43: 1.000244042 | D43: 0.02209037769 | E43: 1 | F43: 2.589137302e-05 | G43: 1 | H43: 0 | I43: 468.0486596 | J43: 1.568659795 | K43: 1.000063087 | L43: 0.01123240019 | M43: 1.000000896 | N43: 0.00133855958 | O43: 3.150672767 | P43: 1.247817752 | Q43: 1.000000045 | R43: 0.0002987466029 | S43: 1 | T43: 1.59485822e-06 | U43: 1.000000015 | V43: 0.0002077337832 | W43: 30.01047616 | X43: -90.58681466 | Y43: 89.41318534 | AB43: 22.15774506 | AC43: -89.31071044 | AE43: 56.05253432 | AF43: -71.47766525 | AI43: 62.03813032 | AJ43: -1.276104212 | AL43: 0 | AM43: 0 | AN43: 0 | AO43: 0 | AP43: 0 | AQ43: 0
B44: 17.378 | C44: 1.000293393 | D44: 0.02422070516 | E44: 1 | F44: 2.83891905e-05 | G44: 1 | H44: 0 | I44: 513.2025039 | J44: 1.568847777 | K44: 1.000075846 | L44: 0.01231591838 | M44: 1.000001077 | N44: 0.001467694212 | O44: 3.425229664 | P44: 1.274530015 | Q44: 1.000000054 | R44: 0.0003275675711 | S44: 1 | T44: 1.748718919e-06 | U44: 1.000000018 | V44: 0.0002277744766 | W44: 29.21020162 | X44: -90.66596698 | Y44: 89.33403302 | AB44: 21.35789908 | AC44: -89.26679886 | AE44: 55.32680645 | AF44: -73.0065227 | AI44: 62.03770175 | AJ44: -1.399168118 | AL44: 0 | AM44: 0 | AN44: 0 | AO44: 0 | AP44: 0 | AQ44: 0
B45: 19.055 | C45: 1.00035274 | D45: 0.02655698477 | E45: 1 | F45: 3.112878496e-05 | G45: 1 | H45: 0 | I45: 562.727045 | J45: 1.569019265 | K45: 1.00009119 | L45: 0.01350428267 | M45: 1.000001295 | N45: 0.001609328412 | O45: 3.728737665 | P45: 1.299285444 | Q45: 1.000000065 | R45: 0.0003591782726 | S45: 1 | T45: 1.91747261e-06 | U45: 1.000000021 | V45: 0.0002497550146 | W45: 28.40963721 | X45: -90.75078071 | Y45: 89.24921929 | AB45: 20.55785003 | AC45: -89.2166512 | AE45: 54.58936388 | AF45: -74.42310278 | AI45: 62.03718641 | AJ45: -1.534129504 | AL45: 0 | AM45: =IF(AL45>0,Y43,0) -> 0 | AN45: 0 | AO45: 0 | AP45: 0 | AQ45: 0
B46: 20.893 | C46: 1.000424056 | D46: 0.0291172244 | E46: 1.000000001 | F46: 3.413139355e-05 | G46: 1 | H46: 0 | I46: 617.0061941 | J46: 1.569175597 | K46: 1.000109629 | L46: 0.01480669166 | M46: 1.000001557 | N46: 0.001764560097 | O46: 4.063596735 | P46: 1.322154881 | Q46: 1.000000078 | R46: 0.0003938237515 | S46: 1 | T46: 2.102427459e-06 | U46: 1.000000025 | V46: 0.000273845789 | W46: 27.60934113 | X46: -90.84190861 | Y46: 89.15809139 | AB46: 19.75817318 | AC46: -89.15987992 | AE46: 53.84238853 | AF46: -75.73145058 | AI46: 62.03656717 | AJ46: -1.682028692 | AL46: 0 | AM46: 0 | AN46: 0 | AO46: 0 | AP46: 0 | AQ46: 0
B47: 22.909 | C47: 1.000509818 | D47: 0.03192496863 | E47: 1.000000001 | F47: 3.742478796e-05 | G47: 1 | H47: 0 | I47: 676.541989 | J47: 1.569318221 | K47: 1.000131805 | L47: 0.01623517374 | M47: 1.000001872 | N47: 0.001934825002 | O47: 4.432941179 | P47: 1.34325402 | Q47: 1.000000093 | R47: 0.0004318244498 | S47: 1 | T47: 2.305294149e-06 | U47: 1.000000031 | V47: 0.0003002696196 | W47: 26.80868173 | X47: -90.94018703 | Y47: 89.05981297 | AB47: 18.9582584 | AC47: -89.09596117 | AE47: 53.08676135 | AF47: -76.93817653 | AI47: 62.03582255 | AJ47: -1.844225863 | AL47: 0 | AM47: 0 | AN47: 0 | AO47: 0 | AP47: 0 | AQ47: 0
B48: 25.119 | C48: 1.000612894 | D48: 0.03500232248 | E48: 1.000000001 | F48: 4.103510623e-05 | G48: 1 | H48: 0 | I48: 741.8069361 | J48: 1.569448267 | K48: 1.000158459 | L48: 0.01780104253 | M48: 1.00000225 | N48: 0.002121474397 | O48: 4.839731801 | P48: 1.362674093 | Q48: 1.000000112 | R48: 0.0004734819598 | S48: 1 | T48: 2.527682733e-06 | U48: 1.000000037 | V48: 0.0003292362195 | W48: 26.0080924 | X48: -91.04638683 | Y48: 88.95361317 | AB48: 18.15856392 | AC48: -89.02438877 | AE48: 52.32417498 | AF48: -78.0484907 | AI48: 62.0349277 | AJ48: -2.021998059 | AL48: 0 | AM48: 0 | AN48: 0 | AO48: 0 | AP48: 0 | AQ48: 0
B49: 27.542 | C49: 1.000736792 | D49: 0.03837550781 | E49: 1.000000001 | F49: 4.49933873e-05 | G49: 1 | H49: 0 | I49: 813.3621367 | J49: 1.569566862 | K49: 1.000190501 | L49: 0.01951772929 | M49: 1.000002705 | N49: 0.002326112907 | O49: 5.287487776 | P49: 1.380524592 | Q49: 1.000000135 | R49: 0.0005191544225 | S49: 1 | T49: 2.771505149e-06 | U49: 1.000000044 | V49: 0.0003609946225 | W49: 25.20742997 | X49: -91.16140996 | Y49: 88.83859004 | AB49: 17.35897699 | AC49: -88.94454978 | AE49: 51.55561356 | AF49: -79.06864607 | AI49: 62.0338522 | AJ49: -2.216860171 | AL49: 0 | AM49: 0 | AN49: 0 | AO49: 0 | AP49: 0 | AQ49: 0
B50: 30.2 | C50: 1.0008858 | D50: 0.04207484143 | E50: 1.000000001 | F50: 4.933557099e-05 | G50: 1 | H50: 0 | I50: 891.8572872 | J50: 1.569675071 | K50: 1.00022904 | L50: 0.02140078 | M50: 1.000003253 | N50: 0.00255059851 | O50: 5.780293053 | P50: 1.396919906 | Q50: 1.000000162 | R50: 0.0005692565273 | S50: 1 | T50: 3.03897522e-06 | U50: 1.000000053 | V50: 0.0003958331839 | W50: 24.40623833 | X50: -91.28628462 | Y50: 88.71371538 | AB50: 16.55907864 | AC50: -88.85572093 | AE50: 50.78160418 | AF50: -80.00517308 | AI50: 62.03255891 | AJ50: -2.430563689 | AL50: 0 | AM50: 0 | AN50: 0 | AO50: 0 | AP50: 0 | AQ50: 0
B51: 33.113 | C51: 1.001064829 | D51: 0.04612775059 | E51: 1.000000001 | F51: 5.409432987e-05 | G51: 1 | H51: 0 | I51: 977.8830208 | J51: 1.569773709 | K51: 1.00027535 | L51: 0.02346430975 | M51: 1.000003911 | N51: 0.002796620246 | O51: 6.321869174 | P51: 1.411948074 | Q51: 1.000000195 | R51: 0.0006241652642 | S51: 1 | T51: 3.332105511e-06 | U51: 1.000000064 | V51: 0.0004340140446 | W51: 23.60525035 | X51: -91.42193018 | Y51: 88.57806982 | AB51: 15.75964426 | AC51: -88.75723696 | AE51: 50.00369152 | AF51: -80.8630944 | AI51: 62.0310053 | AJ51: -2.664693223 | AL51: 0 | AM51: 0 | AN51: 0 | AO51: 0 | AP51: 0 | AQ51: 0
B52: 36.308 | C52: 1.00128009 | D52: 0.05057126338 | E52: 1.000000002 | F52: 5.931377189e-05 | G52: 1 | H52: 0 | I52: 1072.236692 | J52: 1.569863697 | K52: 1.00033104 | L52: 0.02572737403 | M52: 1.000004702 | N52: 0.00306645832 | O52: 6.917245924 | P52: 1.425721768 | Q52: 1.000000234 | R52: 0.0006843895695 | S52: 1 | T52: 3.653612989e-06 | U52: 1.000000077 | V52: 0.0004758910949 | W52: 22.8037842 | X52: -91.56957748 | Y52: 88.43042252 | AB52: 14.96004578 | AC52: -88.6481894 | AE52: 49.22193763 | AF52: -81.64883674 | AI52: 62.02913764 | AJ52: -2.921388079 | AL52: 0 | AM52: 0 | AN52: 0 | AO52: 0 | AP52: 0 | AQ52: 0
B53: 39.811 | C53: 1.001538814 | D53: 0.05544083116 | E53: 1.000000002 | F53: 6.503637138e-05 | G53: 1 | H53: 0 | I53: 1175.686125 | J53: 1.56994576 | K53: 1.000397986 | L53: 0.02820829538 | M53: 1.000005653 | N53: 0.003362308438 | O53: 7.571276734 | P53: 1.438331151 | Q53: 1.000000282 | R53: 0.0007504195299 | S53: 1 | T53: 4.006113989e-06 | U53: 1.000000092 | V53: 0.0005218051182 | W53: 22.00209844 | X53: -91.73039246 | Y53: 88.26960754 | AB53: 14.16060422 | AC53: -88.5276959 | AE53: 48.43721996 | AF53: -82.36753817 | AI53: 62.02689343 | AJ53: -3.20269656 | AL53: 0 | AM53: 0 | AN53: 0 | AO53: 0 | AP53: 0 | AQ53: 0
B54: 43.652 | C54: 1.001849782 | D54: 0.06077722535 | E54: 1.000000003 | F54: 7.131113719e-05 | G54: 1 | H54: 0 | I54: 1289.11727 | J54: 1.570020602 | K54: 1.000478467 | L54: 0.03092819738 | M54: 1.000006796 | N54: 0.003686704078 | O54: 8.289568791 | P54: 1.449868272 | Q54: 1.000000339 | R54: 0.0008228206294 | S54: 1 | T54: 4.39262736e-06 | U54: 1.000000111 | V54: 0.0005721493256 | W54: 21.20006996 | X54: -91.90570607 | Y54: 88.09429393 | AB54: 13.36127237 | AC54: -88.39473166 | AE54: 47.64996406 | AF54: -83.02444036 | AI54: 62.0241968 | AJ54: -3.510974418 | AL54: 0 | AM54: 0 | AN54: 0 | AO54: 0 | AP54: 0 | AQ54: 0
B55: 47.863 | C55: 1.002223469 | D55: 0.06662367839 | E55: 1.000000003 | F55: 7.819034541e-05 | G55: 1 | H55: 0 | I55: 1413.475139 | J55: 1.570088851 | K55: 1.000575205 | L55: 0.03390957763 | M55: 1.00000817 | N55: 0.004042347558 | O55: 9.078110787 | P55: 1.460417251 | Q55: 1.000000407 | R55: 0.0009021960503 | S55: 1 | T55: 4.81637321e-06 | U55: 1.000000133 | V55: 0.0006273431426 | W55: 20.39774348 | X55: -92.09691809 | Y55: 87.90308191 | AB55: 12.56218529 | AC55: -88.24819837 | AE55: 46.86069388 | AF55: -83.62432873 | AI55: 62.02095741 | AJ55: -3.848719725 | AL55: 0 | AM55: 0 | AN55: 0 | AO55: 0 | AP55: 0 | AQ55: 0
B56: 52.481 | C56: 1.002672625 | D56: 0.07302994634 | E56: 1.000000004 | F56: 8.57344403e-05 | G56: 1 | H56: 0 | I56: 1549.852404 | J56: 1.570151104 | K56: 1.000691516 | L56: 0.03717841802 | M56: 1.000009823 | N56: 0.00443236338 | O56: 9.943834876 | P56: 1.47006122 | Q56: 1.000000489 | R56: 0.0009892432216 | S56: 1 | T56: 5.281074785e-06 | U56: 1.00000016 | V56: 0.0006878715295 | W56: 19.59480338 | X56: -92.30562835 | Y56: 87.69437165 | AB56: 11.76313721 | AC56: -88.08682073 | AE56: 46.06952608 | AF56: -84.17192667 | AI56: 62.01706539 | AJ56: -4.218807617 | AL56: 0 | AM56: 0 | AN56: 0 | AO56: 0 | AP56: 0 | AQ56: 0
B57: 57.544 | C57: 1.003212306 | D57: 0.08004662211 | E57: 1.000000004 | F57: 9.400549971e-05 | G57: 1 | H57: 0 | I57: 1699.37127 | J57: 1.570207874 | K57: 1.000831319 | L57: 0.04076133479 | M57: 1.00001181 | N57: 0.004859960377 | O57: 10.89386762 | P57: 1.478872157 | Q57: 1.000000588 | R57: 0.001084678421 | S57: 1 | T57: 5.790555961e-06 | U57: 1.000000193 | V57: 0.0007542325535 | W57: 18.79136677 | X57: -92.53344873 | Y57: 87.46655127 | AB57: 10.96437474 | AC57: -87.9092869 | AE57: 45.27696316 | AF57: -84.67131734 | AI57: 62.01239125 | AJ57: -4.624161835 | AL57: 0 | AM57: 0 | AN57: 0 | AO57: 0 | AP57: 0 | AQ57: 0
B58: 63.096 | C58: 1.003860824 | D58: 0.08773189517 | E58: 1.000000005 | F58: 0.0001030754033 | G58: 1 | H58: 0 | I58: 1863.33113 | J58: 1.570259654 | K58: 1.000999389 | L58: 0.04468909388 | M58: 1.000014199 | N58: 0.005328853949 | O58: 11.93646733 | P58: 1.486921136 | Q58: 1.000000707 | R58: 0.00118933102 | S58: 1 | T58: 6.349244386e-06 | U58: 1.000000232 | V58: 0.0008270029239 | W58: 17.98715574 | X58: -92.78222057 | Y58: 87.21777943 | AB58: 10.16577714 | AC58: -87.71407526 | AE58: 44.48308978 | AF58: -85.12652572 | AI58: 62.00677783 | AJ58: -5.068145313 | AL58: 0 | AM58: 0 | AN58: 0 | AO58: 0 | AP58: 0 | AQ58: 0
B59: 69.183 | C59: 1.004639875 | D59: 0.09614577752 | E59: 1.000000006 | F59: 0.0001130192979 | G59: 1 | H59: 0 | I59: 2043.090441 | J59: 1.570306872 | K59: 1.001201395 | L59: 0.0489937489 | M59: 1.00001707 | N59: 0.005842928188 | O59: 13.08027386 | P59: 1.494270659 | Q59: 1.00000085 | R59: 0.001304068088 | S59: 1 | T59: 6.961768961e-06 | U59: 1.000000279 | V59: 0.0009067855637 | W59: 17.18219392 | X59: -93.05382313 | Y59: 86.94617687 | AB59: 9.367553828 | AC59: -87.49959641 | AE59: 43.68827056 | AF59: -85.54108347 | AI59: 62.00003931 | AJ59: -5.554226727 | AL59: 0 | AM59: 0 | AN59: 0 | AO59: 0 | AP59: 0 | AQ59: 0
B60: 75.858 | C60: 1.005575805 | D60: 0.1053567209 | E60: 1.000000008 | F60: 0.0001239237658 | G60: 1 | H60: 0 | I60: 2240.214381 | J60: 1.570349941 | K60: 1.001444233 | L60: 0.05371213672 | M60: 1.000020523 | N60: 0.006406658084 | O60: 14.33524762 | P60: 1.500981501 | Q60: 1.000001022 | R60: 0.001429888639 | S60: 1 | T60: 7.633462987e-06 | U60: 1.000000335 | V60: 0.0009942751445 | W60: 16.37614207 | X60: -93.35038261 | Y60: 86.64961739 | AB60: 8.56959053 | AC60: -87.2640197 | AE60: 42.89250481 | AF60: -85.91841592 | AI60: 61.99195076 | AJ60: -6.08636291 | AL60: 0 | AM60: 0 | AN60: 0 | AO60: 0 | AP60: 0 | AQ60: 0
B61: 83.176 | C61: 1.006699733 | D61: 0.1154343162 | E61: 1.000000009 | F61: 0.0001358786567 | G61: 1 | H61: 0 | I61: 2456.327193 | J61: 1.570389215 | K61: 1.00173607 | L61: 0.05888228771 | M61: 1.000024674 | N61: 0.007024687156 | O61: 15.71173011 | P61: 1.507106563 | Q61: 1.000001229 | R61: 0.001567829379 | S61: 1 | T61: 8.369861022e-06 | U61: 1.000000403 | V61: 0.001090192551 | W61: 15.56900081 | X61: -93.67402985 | Y61: 86.32597015 | AB61: 7.772152611 | AC61: -87.00545256 | AE61: 42.09613038 | AF61: -86.26149487 | AI61: 61.98224742 | AJ61: -6.668577287 | AL61: 0 | AM61: 0 | AN61: 0 | AO61: 0 | AP61: 0 | AQ61: 0
B62: 91.201 | C62: 1.008049495 | D62: 0.1264584368 | E62: 1.000000011 | F62: 0.0001489885225 | G62: 1 | H62: 0 | I62: 2693.318905 | J62: 1.570425038 | K62: 1.002086864 | L62: 0.06454830182 | M62: 1.000029664 | N62: 0.007702418508 | O62: 17.22176015 | P62: 1.512697573 | Q62: 1.000001478 | R62: 0.001719096656 | S62: 1 | T62: 9.177403278e-06 | U62: 1.000000484 | V62: 0.001195376632 | W62: 14.7603286 | X62: -94.02718584 | Y62: 85.97281416 | AB62: 6.975119147 | AC62: -86.7216975 | AE62: 41.29906202 | AF62: -86.57321547 | AI62: 61.97060867 | AJ62: -7.305488333 | AL62: 0 | AM62: 0 | AN62: 0 | AO62: 0 | AP62: 0 | AQ62: 0
B63: 100 | C63: 1.009669837 | D63: 0.138510309 | E63: 1.000000013 | F63: 0.0001633628165 | G63: 1 | H63: 0 | I63: 2953.168138 | J63: 1.570457707 | K63: 1.002508439 | L63: 0.07075601536 | M63: 1.000035664 | N63: 0.008445507943 | O63: 18.87794542 | P63: 1.517799656 | Q63: 1.000001777 | R63: 0.00188495336 | S63: 1 | T63: 1.006283185e-05 | U63: 1.000000582 | V63: 0.001310705555 | W63: 13.94997061 | X63: -94.41226346 | Y63: 85.58773654 | AB63: 6.178712499 | AC63: -86.41046944 | AE63: 40.50152082 | AF63: -86.85609111 | AI63: 61.95665733 | AJ63: -8.001794022 | AL63: 0 | AM63: 0 | AN63: 0 | AO63: 0 | AP63: 0 | AQ63: 0
B64: 109.65 | C64: 1.011614921 | D64: 0.1516812616 | E64: 1.000000016 | F64: 0.000179127328 | G64: 1 | H64: 0 | I64: 3238.148832 | J64: 1.570487508 | K64: 1.003015164 | L64: 0.07755781906 | M64: 1.00004288 | N64: 0.009260454917 | O64: 20.69477972 | P64: 1.522456138 | Q64: 1.000002136 | R64: 0.002066850864 | S64: 1 | T64: 1.103389513e-05 | U64: 1.0000007 | V64: 0.001437188555 | W64: 13.13740665 | X64: -94.83193301 | Y64: 85.16806699 | AB64: 5.38286643 | AC64: -86.06915529 | AE64: 39.7034023 | AF64: -87.11252154 | AI64: 61.93993944 | AJ64: -8.762777722 | AL64: 0 | AM64: 0 | AN64: 0 | AO64: 0 | AP64: 0 | AQ64: 0
B65: 120.23 | C65: 1.013948298 | D65: 0.1660606868 | E65: 1.000000019 | F65: 0.0001964111135 | G65: 1 | H65: 0 | I65: 3550.59399 | J65: 1.570514684 | K65: 1.003623993 | L65: 0.08500685583 | M65: 1.000051553 | N65: 0.01015392665 | O65: 22.687137 | P65: 1.526704201 | Q65: 1.000002568 | R65: 0.002266278229 | S65: 1 | T65: 1.209854274e-05 | U65: 1.000000841 | V65: 0.001575861081 | W65: 12.322505 | X65: -95.28871927 | Y65: 84.71128073 | AB65: 4.587977669 | AC65: -85.69510612 | AE65: 38.90502835 | AF65: -87.34455231 | AI65: 61.91992655 | AJ65: -9.593613156 | AL65: 0 | AM65: 0 | AN65: 0 | AO65: 0 | AP65: 0 | AQ65: 0
B66: 131.83 | C66: 1.016746385 | D66: 0.1817469421 | E66: 1.000000023 | F66: 0.0002153611996 | G66: 1 | H66: 0 | I66: 3893.161462 | J66: 1.570539466 | K66: 1.004355437 | L66: 0.09316315791 | M66: 1.000061981 | N66: 0.0111335178 | O66: 24.87196559 | P66: 1.530579577 | Q66: 1.000003087 | R66: 0.002484931842 | S66: 1 | T66: 1.326583123e-05 | U66: 1.000001011 | V66: 0.001727902756 | W66: 11.50477642 | X66: -95.78532576 | Y66: 84.21467424 | AB66: 3.794187049 | AC66: -85.28533079 | AE66: 38.10642456 | AF66: -87.55413394 | AI66: 61.89598859 | AJ66: -10.49999497 | AL66: 0 | AM66: 0 | AN66: 0 | AO66: 0 | AP66: 0 | AQ66: 0
B67: 144.54 | C67: 1.020097756 | D67: 0.1988307301 | E67: 1.000000028 | F67: 0.0002361246127 | G67: 1 | H67: 0 | I67: 4268.509099 | J67: 1.570562053 | K67: 1.005233462 | L67: 0.1020856446 | M67: 1.000074508 | N67: 0.01220682109 | O67: 27.26621653 | P67: 1.534112678 | Q67: 1.000003711 | R67: 0.002724508072 | S67: 1 | T67: 1.454481716e-05 | U67: 1.000001216 | V67: 0.001894493199 | W67: 10.6841969 | X67: -96.32407903 | Y67: 83.67592097 | AB67: 3.002192373 | AC67: -84.83689984 | AE67: 37.30813457 | AF67: -87.74291228 | AI67: 61.86740375 | AJ67: -11.48717919 | AL67: 0 | AM67: 0 | AN67: 0 | AO67: 0 | AP67: 0 | AQ67: 0
B68: 158.49 | C68: 1.024116379 | D68: 0.2174464619 | E68: 1.000000034 | F68: 0.0002589137244 | G68: 1 | H68: 0 | I68: 4680.47602 | J68: 1.570582673 | K68: 1.006289095 | L68: 0.1118598258 | M68: 1.000089583 | N68: 0.01338480442 | O68: 29.89437888 | P68: 1.53733898 | Q68: 1.000004462 | R68: 0.00298745723 | S68: 1 | T68: 1.59485822e-05 | U68: 1.000001462 | V68: 0.002077336305 | W68: 9.858753809 | X68: -96.90850792 | Y68: 83.09149208 | AB68: 2.210901768 | AC68: -84.34555544 | AE68: 36.50884798 | AF68: -87.91278035 | AI68: 61.83325126 | AJ68: -12.56295248 | AL68: 0 | AM68: 0 | AN68: 0 | AO68: 0 | AP68: 0 | AQ68: 0
B69: 173.78 | C69: 1.028925268 | D69: 0.2376755306 | E69: 1.00000004 | F69: 0.0002838918975 | G69: 1 | H69: 0 | I69: 5132.015393 | J69: 1.570601472 | K69: 1.00755631 | L69: 0.1225482241 | M69: 1.000107701 | N69: 0.01467589893 | O69: 32.7752929 | P69: 1.540280803 | Q69: 1.000005365 | R69: 0.003275664112 | S69: 1 | T69: 1.748718919e-05 | U69: 1.000001758 | V69: 0.002277742753 | W69: 9.028876245 | X69: -97.54025069 | Y69: 82.45974931 | AB69: 1.421717122 | AC69: -83.80820666 | AE69: 35.70971488 | AF69: -88.06490951 | AI69: 61.79255834 | AJ69: -13.73204403 | AL69: 0 | AM69: 0 | AN69: 0 | AO69: 0 | AP69: 0 | AQ69: 0
B70: 190.55 | C70: 1.034678944 | D70: 0.2596364468 | E70: 1.000000048 | F70: 0.0003112878396 | G70: 1 | H70: 0 | I70: 5627.261653 | J70: 1.57061862 | K70: 1.009078184 | L70: 0.1342388504 | M70: 1.000129489 | N70: 0.01609190887 | O70: 35.93533717 | P70: 1.542964972 | Q70: 1.00000645 | R70: 0.003591767435 | S70: 1 | T70: 1.917472609e-05 | U70: 1.000002113 | V70: 0.002497547492 | W70: 8.193175045 | X70: -98.22183312 | Y70: 81.77816688 | AB70: 0.6344545147 | AC70: -83.22049706 | AE70: 34.91022146 | AF70: -88.20068636 | AI70: 61.74411975 | AJ70: -15.00133606 | AL70: 0 | AM70: 0 | AN70: 190.55 | AO70: -83.22049706 | AP70: 0 | AQ70: 0
B71: 208.93 | C71: 1.041551351 | D71: 0.2834142682 | E71: 1.000000058 | F71: 0.0003413139224 | G71: 1 | H71: 0 | I71: 6170.053918 | J71: 1.570634254 | K71: 1.010904059 | L71: 0.1470094569 | M71: 1.000155672 | N71: 0.0176437882 | O71: 39.39900814 | P71: 1.545412251 | Q71: 1.000007755 | R71: 0.003938217359 | S71: 1 | T71: 2.102427459e-05 | U71: 1.00000254 | V71: 0.002738454391 | W71: 7.351307982 | X71: -98.95439451 | Y71: 81.04560549 | AB71: -0.1499074125 | AC71: -82.57860706 | AE71: 34.11096149 | AF71: -88.32116097 | AI71: 61.68661461 | AJ71: -16.37578745 | AL71: 0 | AM71: 0 | AN71: 0 | AO71: 0 | AP71: 0 | AQ71: 0
B72: 229.09 | C72: 1.04975695 | D72: 0.3091206434 | E72: 1.00000007 | F72: 0.0003742478623 | G72: 1 | H72: 0 | I72: 6765.412573 | J72: 1.570648516 | K72: 1.013095612 | L72: 0.1609613523 | M72: 1.00018716 | N72: 0.01934586033 | O72: 43.19834197 | P72: 1.547645222 | Q72: 1.000009324 | R72: 0.004318217925 | S72: 1 | T72: 2.305294149e-05 | U72: 1.000003054 | V72: 0.003002691584 | W72: 6.501572065 | X72: -99.73946803 | Y72: 80.26053197 | AB72: -0.9314775326 | AC72: -81.87756107 | AE72: 33.31133933 | AF72: -88.42744459 | AI72: 61.61844882 | AJ72: -17.86190696 | AL72: 0 | AM72: 0 | AN72: 0 | AO72: 0 | AP72: 0 | AQ72: 0
B73: 251.19 | C73: 1.059535934 | D73: 0.3368229097 | E73: 1.000000084 | F73: 0.0004103510395 | G73: 1 | H73: 0 | I73: 7418.062688 | J73: 1.570661521 | K73: 1.015723588 | L73: 0.1761833636 | M73: 1.000225008 | N73: 0.02121159397 | O73: 47.36349217 | P73: 1.54968145 | Q73: 1.000011209 | R73: 0.00473478457 | S73: 1 | T73: 2.527682733e-05 | U73: 1.000003672 | V73: 0.003292356115 | W73: 5.64327733 | X73: -100.5767057 | Y73: 79.42329427 | AB73: -1.709228389 | AC73: -81.11304783 | AE73: 32.51182295 | AF73: -88.52037175 | AI73: 61.53790494 | AJ73: -19.4636579 | AL73: 0 | AM73: 0 | AN73: 0 | AO73: 0 | AP73: 0 | AQ73: 0
B74: 275.42 | C74: 1.0711735 | D74: 0.3665884632 | E74: 1.000000101 | F74: 0.0004499338429 | G74: 1 | H74: 0 | I74: 8133.615281 | J74: 1.57067338 | K74: 1.018873816 | L74: 0.1927779479 | M74: 1.000270504 | N74: 0.02325697699 | O74: 51.93026765 | P74: 1.551538544 | Q74: 1.000013476 | R74: 0.005191498052 | S74: 1 | T74: 2.771505148e-05 | U74: 1.000004415 | V74: 0.00360993821 | W74: 4.775028077 | X74: -101.4651462 | Y74: 78.53485382 | AB74: -2.48258875 | AC74: -80.28011951 | AE74: 31.71230574 | AF74: -88.60074735 | AI74: 61.44301605 | AJ74: -21.18502667 | AL74: 0 | AM74: 0 | AN74: 0 | AO74: 0 | AP74: 0 | AQ74: 0
B75: 302 | C75: 1.08500616 | D75: 0.3984750826 | E75: 1.000000122 | F75: 0.0004933556703 | G75: 1 | H75: 0 | I75: 8918.567322 | J75: 1.570684201 | K75: 1.022650148 | L75: 0.2108588511 | M75: 1.000325226 | N75: 0.02550051151 | O75: 56.94013328 | P75: 1.553233119 | Q75: 1.000016203 | R75: 0.0056925044 | S75: 1 | T75: 3.038975219e-05 | U75: 1.000005308 | V75: 0.003958321272 | W75: 3.895001972 | X75: -102.4027935 | Y75: 77.5972065 | AB75: -3.251159596 | AC75: -79.37332512 | AE75: 30.91237105 | AF75: -88.66928703 | AI75: 61.33156079 | AJ75: -23.02946838 | AL75: 0 | AM75: 0 | AN75: 0 | AO75: 0 | AP75: 0 | AQ75: 0
B76: 331.13 | C76: 1.101398715 | D76: 0.4324625855 | E76: 1.000000146 | F76: 0.0005409432464 | G76: 1 | H76: 0 | I76: 9778.825146 | J76: 1.570694065 | K76: 1.027169703 | L76: 0.2305145337 | M76: 1.00039098 | N76: 0.02795898786 | O76: 62.43078556 | P76: 1.554777903 | Q76: 1.000019479 | R76: 0.0062415724 | S76: 1.000000001 | T76: 3.33210551e-05 | U76: 1.000006381 | V76: 0.004340126517 | W76: 3.002645301 | X76: -103.3845211 | Y76: 76.61547895 | AB76: -4.013259928 | AC76: -78.38856294 | AE76: 30.11279311 | AF76: -88.72650534 | AI76: 61.20130445 | AJ76: -24.99595811 | AL76: 0 | AM76: 0 | AN76: 0 | AO76: 0 | AP76: 0 | AQ76: 0
B77: 363.08 | C77: =SQRT(1+(B77/PS_Pole1)^2) -> 1.120795226 | D77: =ATAN(B77/PS_Pole1) -> 0.4685508689 | E77: =SQRT(1+(B77/PS_Zero1)^2) -> 1.000000176 | F77: =ATAN(B77/PS_Zero1) -> 0.00059313765 | G77: =IF(VIN_nom>Vout, 1, SQRT(1+(B77/PS_RHPZ)^2)) -> 1 | H77: =IF(VIN_nom>Vout, 0, -ATAN(B77/PS_RHPZ)) -> 0 | I77: =SQRT(1+(B77/EA_Pole1)^2) -> 10722.36231 | J77: =ATAN(B77/EA_Pole1) -> 1.570703064 | K77: =SQRT(1+(B77/EA_Zero1)^2) -> 1.032578808 | L77: =ATAN(B77/EA_Zero1) -> 0.251865986 | M77: =SQRT(1+(B77/EA_Pole2)^2) -> 1.000470051 | N77: =ATAN(B77/EA_Pole2) -> 0.03065507317 | O77: =SQRT(1+(B77/$V$5)^2) -> 68.4531162 | P77: =ATAN(B77/$V$5) -> 1.556187268 | Q77: =SQRT(1+(B77/$V$4)^2) -> 1.000023419 | R77: =ATAN(B77/$V$4) -> 0.006843789913 | S77: =SQRT(1+(B77/$V$7)^2) -> 1.000000001 | T77: =ATAN(B77/$V$7) -> 3.653612988e-05 | U77: =SQRT((1-(B77^2/pterm2))^2+(B77/pterm1)^2) -> 1.000007672 | V77: =IF((ATAN((B77/pterm1)/(1-B77^2/pterm2))>0),ATAN((B77/pterm1)/(1-B77^2/pterm2)),PI()+ATAN((B77/pterm1)/(1-B77^2/pterm2))) -> 0.004758892588 | W77: =20*LOG10(((E77*K77*G77)/(C77*I77*U77*M77))*Adc) -> 2.095857889 | X77: -104.4048722 | Y77: 75.59512781 | AB77: =20*LOG10((K77/(I77*M77))*AEA) -> -4.768402244 | AC77: =(L77-(J77+N77))*radconv -> -77.32020474 | AE77: =20*LOG10((Q77/(O77*S77))*AIL) -> 29.31293885 | AF77: =(R77-(P77+T77))*radconv -> -88.7729357 | AI77: =20*LOG10((E77*G77/(C77*U77))*Acs*Am) -> 61.04965935 | AJ77: =(F77+H77-(D77+V77))*radconv -> -27.08466745 | AL77: =SUM((W78<0)*(W77>0))*B77 -> 0 | AM77: =IF(AL77>0,Y75,0) -> 0 | AN77: =SUM((AB78<0)*(AB77>0))*B77 -> 0 | AO77: 0 | AP77: 0 | AQ77: 0
B78: 398.11 | C78: 1.143678063 | D78: 0.50665632 | E78: 1.000000211 | F78: 0.000650363623 | G78: 1 | H78: 0 | I78: 11756.85704 | J78: 1.57071127 | K78: 1.039044283 | L78: 0.2750085038 | M78: 1.0005651 | N78: 0.0336105491 | O78: 75.05613325 | P78: 1.557472571 | Q78: 1.000028156 | R78: 0.007504055851 | S78: 1.000000001 | T78: 4.006113987e-05 | U78: 1.000009224 | V78: 0.005218026977 | W78: 1.173670982 | X78: -105.4550192 | Y78: =IF(X78>0,X78-180,X78+180) -> 74.54498075 | AB78: -5.515025613 | AC78: -76.16404262 | AE78: 28.51312073 | AF78: -88.80894963 | AI78: 60.87409581 | AJ78: -29.29097663 | AL78: 0 | AM78: 0 | AN78: 0 | AO78: =IF(AN78>0,AC78,0) -> 0 | AP78: =SUM((AE79<0)*(AE78>0))*B78 -> 0 | AQ78: =IF(AP78>0,AE78,0) -> 0
B79: 436.52 | C79: 1.170597568 | D79: 0.5466619096 | E79: 1.000000254 | F79: 0.0007131112522 | G79: 1 | H79: 0 | I79: 12891.16886 | J79: 1.570718754 | K79: 1.046764717 | L79: 0.3000405008 | M79: 1.000679365 | N79: 0.03685051823 | O79: 82.29638554 | P79: 1.558644826 | Q79: 1.000033851 | R79: 0.008228022466 | S79: 1.000000001 | T79: 4.392627358e-05 | U79: 1.000011089 | V79: 0.005721461347 | W79: 0.2348659217 | X79: =IF(((F79+L79+H79)-(D79+J79+V79+N79))*radconv<-180,((F79+L79+H79)-(D79+J79+V79+N79))*radconv+360,((F79+L79+H79)-(D79+J79+V79+N79))*radconv) -> -106.5242578 | Y79: 73.47574222 | AB79: -6.251738309 | AC79: -74.91588021 | AE79: 27.7132787 | AF79: -88.83485611 | AI79: 60.67200345 | AJ79: -31.60837757 | AL79: 436.52 | AM79: 75.59512781 | AN79: 0 | AO79: 0 | AP79: 0 | AQ79: 0
B80: 478.63 | C80: 1.202159824 | D80: 0.5883885457 | E80: 1.000000306 | F80: 0.0007819032964 | G80: 1 | H80: 0 | I80: 14134.74788 | J80: 1.570725579 | K80: 1.055970714 | L80: 0.327044373 | M80: 1.000816704 | N80: 0.04040169888 | O80: 90.23419278 | P80: 1.559713826 | Q80: 1.000040697 | R80: 0.009021718179 | S80: 1.000000001 | T80: 4.816373206e-05 | U80: 1.000013332 | V80: 0.006273389363 | W80: -0.7212964095 | X80: -107.5993504 | Y80: 72.40064964 | AB80: -6.976789757 | AC80: -73.572531 | AE80: 26.91353064 | AF80: -88.85087271 | AI80: 60.44089257 | AJ80: -34.02681936 | AL80: 0 | AM80: 0 | AN80: 0 | AO80: 0 | AP80: 0 | AQ80: 0
B81: 524.81 | C81: 1.239047771 | D81: 0.6316210995 | E81: 1.000000368 | F81: 0.000857344195 | G81: 1 | H81: 0 | I81: 15498.52085 | J81: 1.570731805 | K81: 1.066935306 | L81: 0.3560989155 | M81: 1.000981823 | N81: 0.04429493182 | O81: 98.9393006 | P81: 1.560688948 | Q81: 1.000048929 | R81: 0.00989211277 | S81: 1.000000001 | T81: 5.28107478e-05 | U81: 1.000016029 | V81: 0.006878659845 | W81: -1.695588471 | X81: -108.6654701 | Y81: 71.33452993 | AB81: -7.688542117 | AC81: -72.13125085 | AE81: 26.11364816 | AF81: -88.85713935 | AI81: 60.17835287 | AJ81: -36.53421923 | AL81: 0 | AM81: 0 | AN81: 0 | AO81: 0 | AP81: 0 | AQ81: 0
B82: 575.44 | C82: 1.28198798 | D82: 0.6760689598 | E82: 1.000000442 | F82: 0.0009400547229 | G82: 1 | H82: 0 | I82: 16993.70979 | J82: 1.570737481 | K82: 1.079968912 | L82: 0.387246027 | M82: 1.001180283 | N82: 0.04856177682 | O82: 108.4833405 | P82: 1.561578191 | Q82: 1.000058825 | R82: 0.0108463631 | S82: 1.000000002 | T82: 5.790555955e-05 | U82: 1.000019271 | V82: 0.007542252439 | W82: -2.687751534 | X82: -109.7056264 | Y82: 70.29437359 | AB82: -8.384759619 | AC82: -70.59145029 | AE82: 25.31384983 | AF82: -88.85370664 | AI82: 59.8824073 | AJ82: -39.11417612 | AL82: 0 | AM82: 0 | AN82: 0 | AO82: 0 | AP82: 0 | AQ82: 0
B83: 630.96 | C83: 1.33178651 | D83: 0.7214162851 | E83: 1.000000531 | F83: 0.001030753671 | G83: 1 | H83: 0 | I83: 18633.30864 | J83: 1.570742659 | K83: 1.095434941 | L83: 0.4205135674 | M83: 1.001418855 | N83: 0.05323868764 | O83: 118.9492549 | P83: 1.562389281 | Q83: 1.000070723 | R83: 0.01189275508 | S83: 1.000000002 | T83: 6.349244377e-05 | U83: 1.000023168 | V83: 0.008269932879 | W83: -3.697396196 | X83: -110.7025074 | Y83: 69.29749262 | AB83: -9.063358034 | AC83: -68.95362456 | AE83: 24.51397965 | AF83: -88.84054496 | AI83: 59.55136106 | AJ83: -41.74888282 | AL83: 0 | AM83: 0 | AN83: 0 | AO83: 0 | AP83: 0 | AQ83: 0
B84: 691.83 | C84: 1.389290402 | D84: 0.7672938057 | E84: 1.000000639 | F84: 0.001130192502 | G84: 1 | H84: 0 | I84: 20430.90198 | J84: 1.570747381 | K84: 1.113742964 | L84: 0.4558816286 | M84: 1.001705575 | N84: 0.05836358827 | O84: 130.4237571 | P84: 1.563128937 | Q84: 1.000085026 | R84: 0.01303994912 | S84: 1.000000002 | T84: 6.96176895e-05 | U84: 1.000027854 | V84: 0.009067728611 | W84: -4.72307455 | X84: -111.6385737 | Y84: 68.36142633 | AB84: -9.721828143 | AC84: -67.22108964 | AE84: 23.71420425 | AF84: -88.81754567 | AI84: 59.18415281 | AJ84: -44.41748403 | AL84: 0 | AM84: 0 | AN84: 0 | AO84: 0 | AP84: 0 | AQ84: 0
B85: 758.58 | C85: 1.455427734 | D85: 0.813329312 | E85: 1.000000768 | F85: 0.00123923703 | G85: 1 | H85: 0 | I85: 22402.1416 | J85: 1.570751688 | K85: 1.135365646 | L85: 0.4933031019 | M85: 1.002050218 | N85: 0.06398001472 | O85: 143.0067566 | P85: 1.563803593 | Q85: 1.000102224 | R85: 0.01429792174 | S85: 1.000000003 | T85: 7.633462972e-05 | U85: 1.000033488 | V85: 0.009942583991 | W85: -5.76308694 | X85: -112.4980434 | Y85: 67.50195657 | AB85: -10.3578405 | AC85: -65.39904145 | AE85: 22.91435661 | AF85: -88.78450896 | AI85: 58.78015278 | AJ85: -47.09900198 | AL85: 0 | AM85: 0 | AN85: 0 | AO85: 0 | AP85: 0 | AQ85: 0
B86: 831.76 | C86: 1.5311549 | D86: 0.8591230778 | E86: 1.000000923 | F86: 0.001358785739 | G86: 1 | H86: 0 | I86: 24563.26992 | J86: 1.570755616 | K86: 1.16082529 | L86: 0.5326663495 | M86: 1.002464356 | N86: 0.07013281502 | O86: 156.8019334 | P86: 1.564418811 | Q86: 1.000122897 | R86: 0.0156770222 | S86: 1.000000004 | T86: 8.369861003e-05 | U86: 1.000040261 | V86: 0.01090170478 | W86: -6.814613732 | X86: -113.2673434 | Y86: 66.73265656 | AB86: -10.96874017 | AC86: -63.49644801 | AE86: 22.11463902 | AF86: -88.74116364 | AI86: 58.33952566 | AJ86: -49.77089543 | AL86: 0 | AM86: 0 | AN86: 0 | AO86: 0 | AP86: 0 | AQ86: 0
B87: 912.01 | C87: 1.617522321 | D87: 0.9043081884 | E87: 1.00000111 | F87: 0.001489884134 | G87: 1 | H87: 0 | I87: 26933.18721 | J87: 1.570759198 | K87: 1.190717586 | L87: 0.573826885 | M87: 1.002962093 | N87: 0.07687391816 | O87: 171.9299341 | P87: 1.564979971 | Q87: 1.000147754 | R87: 0.01718929031 | S87: 1.000000004 | T87: 9.177403253e-05 | U87: 1.000048405 | V87: 0.01195347533 | W87: -7.874810761 | X87: -113.9371272 | Y87: 66.06287276 | AB87: -11.55224501 | AC87: -61.52456505 | AE87: 21.31485322 | AF87: -88.68713185 | AI87: 57.86283347 | AJ87: -52.41256219 | AL87: 0 | AM87: 0 | AN87: 0 | AO87: 0 | AP87: 0 | AQ87: 0
B88: 1000 | C88: 1.71561007 | D88: 0.94852403 | E88: 1.000001334 | F88: 0.001633626727 | G88: 1 | H88: 0 | I88: 29531.6797 | J88: 1.570762465 | K88: 1.225690446 | L88: 0.6165698815 | M88: 1.003560162 | N88: 0.08425713174 | O88: 188.5170611 | P88: 1.565491742 | Q88: 1.000177637 | R88: 0.01884732395 | S88: 1.000000005 | T88: 0.0001006283182 | U88: 1.000058195 | V88: 0.01310667195 | W88: -8.940005147 | X88: -114.5025667 | Y88: 65.49743334 | AB88: -12.10599023 | AC88: -59.49878591 | AE88: 20.51512946 | AF88: -88.62196315 | AI88: 57.3513843 | AJ88: -55.00378075 | AL88: 0 | AM88: 0 | AN88: 0 | AO88: 0 | AP88: 0 | AQ88: 0
B89: 1096.5 | C89: 1.826602018 | D89: 0.9914648363 | E89: 1.000001604 | F89: 0.001791271383 | G89: 1 | H89: 0 | I89: 32381.48679 | J89: 1.570765445 | K89: 1.266468304 | L89: 0.6606438106 | M89: 1.004278892 | N89: 0.09234381437 | O89: 206.7084681 | P89: 1.565958577 | Q89: 1.000213571 | R89: 0.0206655957 | S89: 1.000000006 | T89: 0.0001103389508 | U89: 1.000069969 | V89: 0.01437137984 | W89: -10.00673265 | X89: -114.9645771 | Y89: 65.0354229 | AB89: -12.62811089 | AC89: -57.43703932 | AE89: 19.71528935 | AF89: -88.54508788 | AI89: 56.80677746 | AJ89: -57.52753778 | AL89: 0 | AM89: 0 | AN89: 0 | AO89: 0 | AP89: 0 | AQ89: 0
B90: 1202.3 | C90: 1.951695465 | D90: 1.03284818 | E90: 1.000001929 | F90: 0.001964108635 | G90: 1 | H90: 0 | I90: 35505.9385 | J90: 1.570768162 | K90: 1.313815827 | L90: 0.7057247475 | M90: 1.005142244 | N90: 0.1011958994 | O90: 226.6530797 | P90: 1.566384283 | Q90: 1.000256769 | R90: 0.02265894238 | S90: 1.000000007 | T90: 0.0001209854268 | U90: 1.000084122 | V90: 0.01575794415 | W90: -11.07095992 | X90: -115.3296049 | Y90: 64.67039514 | AB90: -13.11685566 | AC90: -55.36143472 | AE90: 18.91559734 | AF90: -88.45587872 | AI90: 56.23129496 | AJ90: -59.96817014 | AL90: 0 | AM90: =IF(AL90>0,Y90,0) -> 0 | AN90: 0 | AO90: 0 | AP90: 0 | AQ90: 0
B91: 1318.3 | C91: 2.092204851 | D91: 1.072460223 | E91: 1.000002319 | F91: 0.0021536087 | G91: 1 | H91: 0 | I91: 38931.61334 | J91: 1.570770641 | K91: 1.368570171 | L91: 0.7514648194 | M91: 1.006179182 | N91: 0.1108830942 | O91: 248.520557 | P91: 1.566772504 | Q91: 1.000308698 | R91: 0.02484425671 | S91: 1.000000009 | T91: 0.0001326583115 | U91: 1.000101137 | V91: 0.01727814874 | W91: -12.12927985 | X91: -115.6099158 | Y91: 64.39008422 | AB91: -13.57118817 | AC91: -53.29589901 | AE91: 18.11603437 | AF91: -88.35358164 | AI91: 55.62730754 | AJ91: -62.31401677 | AL91: 0 | AM91: 0 | AN91: 0 | AO91: 0 | AP91: 0 | AQ91: 0
B92: 1445.4 | C92: 2.249431744 | D92: 1.110116996 | E92: 1.000002788 | F92: 0.002361241783 | G92: 1 | H92: 0 | I92: 42685.08983 | J92: 1.570772899 | K92: 1.431583514 | L92: 0.7974591068 | M92: 1.00742351 | N92: 0.1214732502 | O92: 272.4805614 | P92: 1.567126332 | Q92: 1.00037108 | R92: 0.02723840979 | S92: 1.000000011 | T92: 0.0001454481706 | U92: 1.000121578 | V92: 0.01894377371 | W92: -13.17804429 | X92: -115.8226488 | Y92: 64.17735117 | AB92: -13.99040685 | AC92: -51.26752112 | AE92: 17.31711188 | AF92: -88.23741243 | AI92: 54.99776178 | AJ92: -64.55512771 | AL92: 0 | AM92: 0 | AN92: 0 | AO92: 0 | AP92: 0 | AQ92: 0
B93: 1584.9 | C93: 2.425167176 | D93: 1.14577226 | E93: 1.000003352 | F93: 0.002589131517 | G93: 1 | H93: 0 | I93: 46804.75915 | J93: 1.570774961 | K93: 1.503919635 | L93: 0.843397375 | M93: 1.008918946 | N93: 0.1330650714 | O93: 298.7781599 | P93: 1.567449356 | Q93: 1.000446148 | R93: 0.02986577827 | S93: 1.000000013 | T93: 0.0001594858207 | U93: 1.000146176 | V93: 0.02077183605 | W93: -14.21663165 | X93: -115.9894398 | Y93: 64.0105602 | AB93: -14.37540824 | AC93: -49.29973281 | AE93: 16.51749717 | AF93: -88.1061875 | AI93: 54.34417581 | AJ93: -66.68970699 | AL93: 0 | AM93: 0 | AN93: 0 | AO93: 0 | AP93: 0 | AQ93: 0
B94: 1737.8 | C94: 2.620824427 | D94: 1.179313664 | E94: 1.00000403 | F94: 0.002838911424 | G94: 1 | H94: 0 | I94: 51320.15297 | J94: 1.570776841 | K94: 1.586496722 | L94: 0.8888314897 | M94: 1.01071326 | N94: 0.145729073 | O94: 327.6018658 | P94: 1.567743836 | Q94: 1.000536359 | R94: 0.03274504976 | S94: 1.000000015 | T94: 0.0001748718902 | U94: 1.000175739 | V94: 0.02277541464 | W94: -15.2419087 | X94: -116.1342245 | Y94: 63.86577552 | AB94: -14.72650952 | AC94: -47.42225133 | AE94: 15.71832995 | AF94: -87.95897145 | AI94: 53.67000004 | AJ94: -68.71197314 | AL94: 0 | AM94: 0 | AN94: 0 | AO94: 0 | AP94: 0 | AQ94: 0
B95: 1905.5 | C95: 2.83831848 | D95: 1.210746057 | E95: 1.000004845 | F95: 0.003112868442 | G95: 1 | H95: 0 | I95: 56272.61565 | J95: 1.570778556 | K95: 1.680439895 | L95: 0.9334283041 | M95: 1.012866933 | N95: 0.1595648216 | O95: 359.2155978 | P95: 1.56801248 | Q95: 1.000644837 | R95: 0.035902395 | S95: 1.000000018 | T95: 0.0001917472586 | U95: 1.000211291 | V95: 0.02497282135 | W95: -16.25367001 | X95: -116.2829925 | Y95: 63.71700747 | AB95: -15.04550523 | AC95: -45.65987035 | AE95: 14.91909521 | AF95: -87.79442791 | AI95: 52.97723444 | AJ95: -70.62312218 | AL95: 0 | AM95: 0 | AN95: 0 | AO95: 0 | AP95: 0 | AQ95: 0
B96: 2089.3 | C96: 3.079435302 | D96: 1.240064942 | E96: 1.000005825 | F96: 0.003413126102 | G96: 1 | H96: 0 | I96: 61700.53838 | J96: 1.570780119 | K96: 1.786813268 | L96: 0.9768261981 | M96: 1.015449057 | N96: 0.1746582383 | O96: 393.8644237 | P96: 1.568257379 | Q96: 1.000775185 | R96: 0.0393620358 | S96: 1.000000022 | T96: 0.0002102427428 | U96: 1.000254014 | V96: 0.02738104619 | W96: -17.25105996 | X96: -116.461981 | Y96: 63.53801901 | AB96: -15.3343335 | AC96: -44.03823283 | AE96: 14.1203952 | AF96: -87.61129652 | AI96: 52.26867277 | AJ96: -72.42374816 | AL96: 0 | AM96: 0 | AN96: 0 | AO96: 0 | AP96: 0 | AQ96: 0
B97: 2290.9 | C97: 3.346485529 | D97: 1.267339409 | E97: 1.000007003 | F97: 0.003742461325 | G97: 1 | H97: 0 | I97: 67654.125 | J97: 1.570781546 | K97: 1.906901125 | L97: 1.018773064 | M97: 1.018545812 | N97: 0.1911211837 | O97: 431.8688168 | P97: 1.568480807 | Q97: 1.000931928 | R97: 0.04315563654 | S97: 1.000000027 | T97: 0.0002305294108 | U97: 1.000305393 | V97: 0.03002230505 | W97: -18.23542819 | X97: -116.6971169 | Y97: 63.3028831 | AB97: -15.59590847 | AC97: -42.57819345 | AE97: 13.3216536 | AF97: -87.407903 | AI97: 51.5458795 | AJ97: -74.11892345 | AL97: 0 | AM97: 0 | AN97: 0 | AO97: 0 | AP97: 0 | AQ97: 0
B98: 2511.9 | C98: 3.641653411 | D98: 1.292622077 | E98: 1.000008419 | F98: 0.004103487593 | G98: 1 | H98: 0 | I98: 74180.62621 | J98: 1.570782846 | K98: 2.041920831 | L98: 1.059010599 | M98: 1.022255678 | N98: 0.2090483455 | O98: 473.5303993 | P98: 1.568684528 | Q98: 1.001120298 | R98: 0.04731286448 | S98: 1.000000032 | T98: 0.0002527682679 | U98: 1.000367148 | V98: 0.03291748351 | W98: -19.20743434 | X98: -117.0126876 | Y98: 62.98731238 | AB98: -15.83319753 | AC98: -41.29997775 | AE98: 12.52336768 | AF98: -87.18265797 | AI98: 50.81116242 | AJ98: -75.71270987 | AL98: 0 | AM98: 0 | AN98: 0 | AO98: 0 | AP98: 0 | AQ98: 0
B99: 2754.2 | C99: 3.967526514 | D99: 1.316002182 | E99: 1.000010122 | F99: 0.004499308372 | G99: 1 | H99: 0 | I99: 81336.1522 | J99: 1.570784032 | K99: 2.193259041 | L99: 1.097365427 | M99: 1.02669772 | N99: 0.2285474608 | O99: 519.2073476 | P99: 1.568870313 | Q99: 1.0013467 | R99: 0.05186888113 | S99: 1.000000038 | T99: 0.0002771505078 | U99: 1.000441382 | V99: 0.03609137127 | W99: -20.16899194 | X99: -117.4311557 | Y99: 62.56884433 | AB99: -16.04970084 | AC99: -40.21969294 | AE99: 11.7254724 | AF99: -86.9336591 | AI99: 50.06610812 | AJ99: -77.21146273 | AL99: 0 | AM99: 0 | AN99: 0 | AO99: 0 | AP99: 0 | AQ99: 0
B100: 3020 | C100: 4.327104886 | D100: 1.33758675 | E100: 1.00001217 | F100: 0.004933517076 | G100: 1 | H100: 0 | I100: 89185.67266 | J100: 1.570785114 | K100: 2.362484412 | L100: 1.133730192 | M100: 1.032015412 | N100: 0.2497356964 | O100: 569.3143927 | P100: 1.569039827 | Q100: 1.001618955 | R100: 0.05686428838 | S100: 1.000000046 | T100: 0.0003038975126 | U100: 1.000530668 | V100: 0.03957265261 | W100: -21.12282161 | X100: -117.9729556 | Y100: 62.02704436 | AB100: -16.24922146 | AC100: -39.35020385 | AE100: 10.92760694 | AF100: -86.6586883 | AI100: 49.31179907 | AJ100: -78.6227518 | AL100: 0 | AM100: 0 | AN100: 0 | AO100: 0 | AP100: 0 | AQ100: 0
B101: 3311.3 | C101: 4.723125328 | D101: 1.357457493 | E101: 1.000014631 | F101: 0.005409380229 | G101: 1 | H101: 0 | I101: 97788.25095 | J101: 1.570786101 | K101: 2.551031131 | L101: 1.167993534 | M101: 1.038369518 | N101: 0.2726959473 | O101: 624.2285628 | P101: 1.569194349 | Q101: 1.001946018 | R101: 0.06233566886 | S101: 1.000000056 | T101: 0.0003332105388 | U101: 1.000637952 | V101: 0.04338734672 | W101: -22.07058304 | X101: -118.6552034 | Y101: 61.34479664 | AB101: -16.435432 | AC101: -38.70264095 | AE101: 10.13061317 | AF101: -86.35573424 | AI101: 48.55024818 | AJ101: -79.95256241 | AL101: 0 | AM101: 0 | AN101: 0 | AO101: 0 | AP101: 0 | AQ101: 0
B102: 3630.8 | C102: 5.159282299 | D102: 1.375736315 | E102: 1.00001759 | F102: 0.005931307639 | G102: 1 | H102: 0 | I102: 107223.6226 | J102: 1.570787 | K102: 2.760778797 | L102: 1.200151407 | M102: 1.045959969 | N102: 0.2975435594 | O102: 684.4588459 | P102: 1.569335318 | Q102: 1.00233921 | R102: 0.06833241335 | S102: 1.000000067 | T102: 0.0003653612827 | U102: 1.000766962 | V102: 0.04757057996 | W102: -23.01589511 | X102: -119.4934846 | Y102: 60.50651543 | AB102: -16.61245356 | AC102: -38.28384541 | AE102: 9.333946915 | AF102: -86.02206514 | AI102: 47.78195767 | AJ102: -81.20963916 | AL102: 0 | AM102: 0 | AN102: 0 | AO102: 0 | AP102: 0 | AQ102: 0
B103: 3981.1 | C103: 5.639144537 | D103: 1.392521648 | E103: 1.000021148 | F103: 0.006503545454 | G103: 1 | H103: 0 | I103: 117568.57 | J103: 1.570787821 | K103: 2.993543418 | L103: 1.230196758 | M103: 1.055012811 | N103: 0.3243571814 | O103: 750.495379 | P103: 1.569463873 | Q103: 1.002811696 | R103: 0.07490157991 | S103: 1.00000008 | T103: 0.0004006113775 | U103: 1.00092204 | V103: 0.05215608921 | W103: -23.96147833 | X103: -120.5000394 | Y103: 59.49996061 | AB103: -16.78424315 | AC103: -38.09872802 | AE103: 8.538026574 | AF103: -85.65506496 | AI103: 47.00816403 | AJ103: -82.40131137 | AL103: 0 | AM103: 0 | AN103: 0 | AO103: 0 | AP103: 0 | AQ103: 0
B104: 4365.2 | C104: 6.166836024 | D104: 1.407919415 | E104: 1.000025426 | F104: 0.007130992855 | G104: 1 | H104: 0 | I104: 128911.6882 | J104: 1.57078857 | K104: 3.25140542 | L104: 1.258169383 | M104: 1.065795056 | N104: 0.3532113947 | O104: 822.9037048 | P104: 1.569581117 | Q104: 1.00337946 | R104: 0.08209713962 | S104: 1.000000096 | T104: 0.0004392627078 | U104: 1.001108461 | V104: 0.05718274372 | W104: -24.91067154 | X104: -121.6848767 | Y104: 58.31512334 | AB104: -16.95487243 | AC104: -38.14928218 | AE104: 7.742922853 | AF104: -85.25172192 | AI104: 46.2296001 | AJ104: -83.53559448 | AL104: 0 | AM104: 0 | AN104: 0 | AO104: 0 | AP104: 0 | AQ104: 0
B105: 4786.3 | C105: 6.746763986 | D105: 1.422028982 | E105: 1.000030568 | F105: 0.007818875218 | G105: 1 | H105: 0 | I105: 141347.4785 | J105: 1.570789252 | K105: 3.536582363 | L105: 1.284127195 | M105: 1.078613702 | N105: 0.384153582 | O105: 902.2870688 | P105: 1.569688032 | Q105: 1.004061543 | R105: 0.08997603472 | S105: 1.000000116 | T105: 0.0004816372837 | U105: 1.001332522 | V105: 0.06269189289 | W105: -25.86674002 | X105: -123.0551563 | Y105: 56.94484373 | AB105: -17.12837943 | AC105: -38.43490495 | AE105: 6.948910903 | AF105: -84.80884811 | AI105: 45.44703862 | AJ105: -84.62025131 | AL105: 0 | AM105: 0 | AN105: 0 | AO105: 0 | AP105: 0 | AQ105: 0
B106: 5248.1 | C106: 7.384032624 | D106: 1.434951549 | E106: 1.000036751 | F106: 0.008573233999 | G106: 1 | H106: 0 | I106: 154985.2082 | J106: 1.570789875 | K106: 3.851635341 | L106: 1.308157305 | M106: 1.093828608 | N106: 0.4172174723 | O106: 989.3429741 | P106: 1.569785555 | Q106: 1.004881101 | R106: 0.09860354385 | S106: 1.000000139 | T106: 0.0005281074294 | U106: 1.001601893 | V106: 0.06873124656 | W106: -26.83346728 | X106: -124.6160059 | Y106: 55.38399407 | AB106: -17.30886231 | AC106: -38.95253812 | AE106: 6.155954796 | AF106: -84.32277845 | AI106: 44.66079425 | AJ106: -85.66346781 | AL106: 0 | AM106: 0 | AN106: 0 | AO106: 0 | AP106: 0 | AQ106: 0
B107: 5370.3 | C107: 7.552848857 | D107: 1.438006044 | E107: 1.000038483 | F107: 0.008772848346 | G107: 1 | H107: 0 | I107: 158593.9794 | J107: 1.570790021 | K107: 3.935338054 | L107: 1.31387124 | M107: 1.098051265 | N107: 0.425810392 | O107: 1012.379423 | P107: 1.569808555 | Q107: 1.005110472 | R107: 0.1008841182 | S107: 1.000000146 | T107: 0.0005404042064 | U107: 1.001677312 | V107: 0.07032893691 | W107: -27.07710803 | X107: -125.0360815 | Y107: 54.96391849 | AB107: -17.35552035 | AC107: -39.11750018 | AE107: 5.958008413 | AF107: -84.19413352 | AI107: 44.46381154 | AJ107: -85.91858133 | AL107: 0 | AM107: 0 | AN107: 0 | AO107: 0 | AP107: 0 | AQ107: 0
B108: 5432.85 | C108: 7.639286468 | D108: 1.439517293 | E108: 1.000039384 | F108: 0.008875023833 | G108: 1 | H108: 0 | I108: 160441.186 | J108: 1.570790094 | K108: 3.978230743 | L108: 1.316702924 | M108: 1.100243887 | N108: 0.4301831276 | O108: 1024.170994 | P108: 1.569819927 | Q108: 1.005229901 | R108: 0.1020510603 | S108: 1.000000149 | T108: 0.0005466985059 | U108: 1.001716586 | V108: 0.07114666852 | W108: -27.20003261 | X108: -125.2519679 | Y108: 54.74803211 | AB108: -17.37927217 | AC108: -39.20580007 | AE108: 5.858457151 | AF108: -84.12828489 | AI108: 44.36463878 | AJ108: -86.04616782 | AL108: 0 | AM108: 0 | AN108: 0 | AO108: 0 | AP108: 0 | AQ108: 0
B109: 5495.4 | C109: 7.725741136 | D109: 1.440994721 | E109: 1.000040296 | F109: 0.008977199134 | G109: 1 | H109: 0 | I109: 162288.3926 | J109: 1.570790165 | K109: 4.021154651 | L109: 1.319474177 | M109: 1.102457464 | N109: 0.4345383866 | O109: 1035.962565 | P109: 1.569831041 | Q109: 1.005350699 | R109: 0.1032177237 | S109: 1.000000153 | T109: 0.0005529928053 | U109: 1.001756313 | V109: 0.07196435102 | W109: -27.3217896 | X109: -125.4683748 | Y109: 54.5316252 | AB109: -17.40294549 | AC109: -39.29656102 | AE109: 5.760069029 | AF109: -84.0624374 | AI109: 44.2665551 | AJ109: -86.17181378 | AL109: 0 | AM109: 0 | AN109: 0 | AO109: 0 | AP109: 0 | AQ109: 0
B110: 5559.4 | C110: 7.814217012 | D110: 1.442472558 | E110: 1.00004124 | F110: 0.009081742813 | G110: 1 | H110: 0 | I110: 164178.4201 | J110: 1.570790236 | K110: 4.065104878 | L110: 1.322249075 | M110: 1.104743911 | N110: 0.4389764555 | O110: 1048.027481 | P110: 1.569842153 | Q110: 1.005475713 | R110: 0.1044111402 | S110: 1.000000156 | T110: 0.0005594330157 | U110: 1.001797431 | V110: 0.07280093718 | W110: -27.44519241 | X110: -125.6902883 | Y110: 54.30971169 | AB110: -17.42709367 | AC110: -39.39185778 | AE110: 5.660576835 | AF110: -83.99506536 | AI110: 44.16730047 | AJ110: -86.29843053 | AL110: 0 | AM110: 0 | AN110: 0 | AO110: 0 | AP110: 0 | AQ110: 0
B111: 5623.4 | C111: 7.902709572 | D111: 1.443917301 | E111: 1.000042195 | F111: 0.009186286294 | G111: 1 | H111: 0 | I111: 166068.4476 | J111: 1.570790305 | K111: 4.109085737 | L111: 1.324964592 | M111: 1.107052027 | N111: 0.4433961051 | O111: 1060.092398 | P111: 1.569853013 | Q111: 1.005602159 | R111: 0.1056042582 | S111: 1.00000016 | T111: 0.000565873226 | U111: 1.001839024 | V111: 0.07363747075 | W111: -27.56743622 | X111: -125.9126495 | Y111: 54.0873505 | AB111: -17.45117408 | AC111: -39.48950136 | AE111: 5.56224806 | AF111: -83.92769593 | AI111: 44.06913708 | AJ111: -86.42314814 | AL111: 0 | AM111: 0 | AN111: 0 | AO111: 0 | AP111: 0 | AQ111: 0
B112: 5688.9 | C112: 7.993292874 | D112: 1.445362779 | E112: 1.000043184 | F112: 0.009293279805 | G112: 1 | H112: 0 | I112: 168002.7726 | J112: 1.570790375 | K112: 4.154128099 | L112: 1.327684196 | M112: 1.109436536 | N112: 0.4479002087 | O112: 1072.440086 | P112: 1.569863874 | Q112: 1.00573305 | R112: 0.1068250276 | S112: 1.000000164 | T112: 0.0005724643788 | U112: 1.001882084 | V112: 0.07449355549 | W112: -27.69137651 | X112: -126.1406373 | Y112: 53.85936266 | AB112: -17.47575556 | AC112: -39.59174961 | AE112: 5.462792149 | AF112: -83.85875094 | AI112: 43.96977827 | AJ112: -86.54888772 | AL112: 0 | AM112: 0 | AN112: 0 | AO112: 0 | AP112: 0 | AQ112: 0
B113: 5754.4 | C113: 8.083892503 | D113: 1.44677586 | E113: 1.000044184 | F113: 0.009400273103 | G113: 1 | H113: 0 | I113: 169937.0976 | J113: 1.570790442 | K113: 4.199200527 | L113: 1.330345437 | M113: 1.111843455 | N113: 0.452384902 | O113: 1084.787775 | P113: 1.569874487 | Q113: 1.005865439 | R113: 0.1080454774 | S113: 1.000000168 | T113: 0.0005790555314 | U113: 1.00192564 | V113: 0.07534958388 | W113: -27.81416546 | X113: -126.3689975 | Y113: 53.63100255 | AB113: -17.50027951 | AC113: -39.69622959 | AE113: 5.364500542 | AF113: -83.78981008 | AI113: 43.87151327 | AJ113: -86.67276786 | AL113: 0 | AM113: 0 | AN113: 0 | AO113: 0 | AP113: 0 | AQ113: 0
B114: 5821.4 | C114: 8.176583259 | D114: 1.4481889 | E114: 1.000045219 | F114: 0.009509716406 | G114: 1 | H114: 0 | I114: 171915.7201 | J114: 1.57079051 | K114: 4.245335256 | L114: 1.33300914 | M114: 1.114328529 | N114: 0.4569521598 | O114: 1097.418235 | P114: 1.569885097 | Q114: 1.00600241 | R114: 0.1092935422 | S114: 1.000000172 | T114: 0.0005857976265 | U114: 1.001970708 | V114: 0.07622515701 | W114: -27.93860628 | X114: -126.6029243 | Y114: 53.39707574 | AB114: -17.52531195 | AC114: -39.80529917 | AE114: 5.265135404 | AF114: -83.71929542 | AI114: 43.77210489 | AJ114: -86.7976251 | AL114: 0 | AM114: 0 | AN114: 0 | AO114: 0 | AP114: 0 | AQ114: 0
B115: 5888.4 | C115: 8.269289974 | D115: 1.44957026 | E115: 1.000046266 | F115: 0.009619159482 | G115: 1 | H115: 0 | I115: 173894.3427 | J115: 1.570790576 | K115: 4.291499459 | L115: 1.335615552 | M115: 1.116836743 | N115: 0.4614989975 | O115: 1110.048695 | P115: 1.569895465 | Q115: 1.006140948 | R115: 0.1105412652 | S115: 1.000000176 | T115: 0.0005925397215 | U115: 1.002016297 | V115: 0.07710066982 | W115: -28.06190427 | X115: -126.8371449 | Y115: 53.16285514 | AB115: -17.55029669 | AC115: -39.91648112 | AE115: 5.166934261 | AF115: -83.64878651 | AI115: 43.67379164 | AJ115: -86.92066374 | AL115: 0 | AM115: 0 | AN115: 0 | AO115: 0 | AP115: 0 | AQ115: 0
B116: 5957 | C116: 8.364226564 | D116: 1.450952878 | E116: 1.00004735 | F116: 0.009731215885 | G116: 1 | H116: 0 | I116: 175920.2159 | J116: 1.570790642 | K116: 4.338795647 | L116: 1.338226723 | M116: 1.11942867 | N116: 0.4661332069 | O116: 1122.980778 | P116: 1.569905839 | Q116: 1.006284416 | R116: 0.1118184266 | S116: 1.00000018 | T116: 0.0005994428217 | U116: 1.002063512 | V116: 0.07799702719 | W116: -28.18699336 | X116: -127.0772155 | Y116: 52.92278449 | AB116: -17.57583458 | AC116: -40.03239647 | AE116: 5.067566842 | AF116: -83.57660046 | AI116: 43.57424044 | AJ116: -87.04481905 | AL116: 0 | AM116: 0 | AN116: 0 | AO116: 0 | AP116: 0 | AQ116: 0
B117: 6025.6 | C117: 8.459178784 | D117: 1.452304459 | E117: 1.000048447 | F117: 0.009843272043 | G117: 1 | H117: 0 | I117: 177946.0891 | J117: 1.570790707 | K117: 4.386120779 | L117: 1.340781564 | M117: 1.122044526 | N117: 0.4707459072 | O117: 1135.912862 | P117: 1.569915977 | Q117: 1.006429526 | R117: 0.1130952218 | S117: 1.000000184 | T117: 0.0006063459218 | U117: 1.002111273 | V117: 0.07889331987 | W117: -28.31094559 | X117: -127.3174993 | Y117: 52.68250074 | AB117: -17.60133404 | AC117: -40.15030687 | AE117: 4.969365361 | AF117: -83.50442187 | AI117: 43.47578767 | AJ117: -87.16719239 | AL117: 0 | AM117: 0 | AN117: 0 | AO117: 0 | AP117: 0 | AQ117: 0
B118: 6095.8 | C118: 8.556361271 | D118: 1.453656506 | E118: 1.000049582 | F118: 0.009957941501 | G118: 1 | H118: 0 | I118: 180019.213 | J118: 1.570790772 | K118: 4.434578703 | L118: 1.343339523 | M118: 1.124745992 | N118: 0.4754438775 | O118: 1149.146568 | P118: 1.569926116 | Q118: 1.006579717 | R118: 0.1144014132 | S118: 1.000000188 | T118: 0.0006134100272 | U118: 1.002160713 | V118: 0.07981044962 | W118: -28.4366423 | X118: -127.5635608 | Y118: 52.43643924 | AB118: -17.62739392 | AC118: -40.27292418 | AE118: 4.870053294 | AF118: -83.43056824 | AI118: 43.37615083 | AJ118: -87.29063658 | AL118: 0 | AM118: 0 | AN118: 0 | AO118: 0 | AP118: 0 | AQ118: 0
B119: 6166 | C119: 8.653559049 | D119: 1.454978183 | E119: 1.000050731 | F119: 0.0100726107 | G119: 1 | H119: 0 | I119: 182092.337 | J119: 1.570790835 | K119: 4.483065016 | L119: 1.345842167 | M119: 1.127472163 | N119: 0.4801192316 | O119: 1162.380275 | P119: 1.569936023 | Q119: 1.006731626 | R119: 0.1157072126 | S119: 1.000000192 | T119: 0.0006204741324 | U119: 1.002210723 | V119: 0.08072751008 | W119: -28.56120901 | X119: -127.8097516 | Y119: 52.19024837 | AB119: -17.6534242 | AC119: -40.39741491 | AE119: 4.771907853 | AF119: -83.35672383 | AI119: 43.27761441 | AJ119: -87.41233672 | AL119: 0 | AM119: 0 | AN119: 0 | AO119: 0 | AP119: 0 | AQ119: 0
B120: 6237.8 | C120: 8.752987446 | D120: 1.456299617 | E120: 1.000051919 | F120: 0.01018989316 | G120: 1 | H120: 0 | I120: 184212.7116 | J120: 1.570790898 | K120: 4.532684847 | L120: 1.34834645 | M120: 1.130285839 | N120: 0.4848777096 | O120: 1175.915604 | P120: 1.569945926 | Q120: 1.006888772 | R120: 0.1170423639 | S120: 1.000000197 | T120: 0.0006276992429 | U120: 1.002262463 | V120: 0.08166539971 | W120: -28.68747592 | X120: -128.0616411 | Y120: 51.93835895 | AB120: -17.68002214 | AC120: -40.52657442 | AE120: 4.672705097 | AF120: -83.28120664 | AI120: 43.17794545 | AJ120: -87.53506663 | AL120: 0 | AM120: 0 | AN120: 0 | AO120: 0 | AP120: 0 | AQ120: 0
B121: 6309.6 | C121: 8.852430784 | D121: 1.457591365 | E121: 1.000053121 | F121: 0.01030717534 | G121: 1 | H121: 0 | I121: 186333.0862 | J121: 1.57079096 | K121: 4.582332489 | L121: 1.350796482 | M121: 1.13312498 | N121: 0.4896124489 | O121: 1189.450934 | P121: 1.569955603 | Q121: 1.007047713 | R121: 0.1183770961 | S121: 1.000000202 | T121: 0.0006349243533 | U121: 1.0023148 | V121: 0.08260321519 | W121: -28.81262042 | X121: -128.3135735 | Y121: 51.68642653 | AB121: -17.70659885 | AC121: -40.65748206 | AE121: 4.574668479 | AF121: -83.20570054 | AI121: 43.07937765 | AJ121: -87.65609141 | AL121: 0 | AM121: 0 | AN121: 0 | AO121: 0 | AP121: 0 | AQ121: 0
B122: 6383.05 | C122: 8.954174321 | D122: 1.458883107 | E122: 1.000054365 | F122: 0.01042715244 | G122: 1 | H122: 0 | I122: 188502.188 | J122: 1.570791022 | K122: 4.633148903 | L122: 1.35324847 | M122: 1.136055517 | N122: 0.4944313966 | O122: 1203.297312 | P122: 1.569965277 | Q122: 1.007212162 | R122: 0.1197420628 | S122: 1.000000206 | T122: 0.0006423155003 | U122: 1.002368957 | V122: 0.08356250455 | W122: -28.93950903 | X122: -128.5712942 | Y122: 51.42870578 | AB122: -17.73376885 | AC122: -40.79310239 | AE122: 4.475558409 | AF122: -83.12847149 | AI122: 42.97965904 | AJ122: -87.77819182 | AL122: 0 | AM122: 0 | AN122: 0 | AO122: 0 | AP122: 0 | AQ122: 0
B123: 6456.5 | C123: 9.055932463 | D123: 1.460145821 | E123: 1.000055624 | F123: 0.01054712923 | G123: 1 | H123: 0 | I123: 190671.2899 | J123: 1.570791082 | K123: 4.683992568 | L123: 1.35564724 | M123: 1.1390123 | N123: 0.499225436 | O123: 1217.143691 | P123: 1.569974731 | Q123: 1.007378487 | R123: 0.1211065813 | S123: 1.000000211 | T123: 0.0006497066472 | U123: 1.002423739 | V123: 0.08452171455 | W123: -29.06528196 | X123: -128.8289692 | Y123: 51.17103082 | AB123: -17.76092542 | AC123: -40.93034464 | AE123: 4.377614472 | AF123: -83.0512555 | AI123: 42.88104268 | AJ123: -87.89862455 | AL123: 0 | AM123: 0 | AN123: 0 | AO123: 0 | AP123: 0 | AQ123: 0
B124: 6531.7 | C124: 9.16012969 | D124: 1.461409553 | E124: 1.000056927 | F124: 0.01066996425 | G124: 1 | H124: 0 | I124: 192892.0722 | J124: 1.570791143 | K124: 4.736074937 | L124: 1.35804979 | M124: 1.142066509 | N124: 0.5041078641 | O124: 1231.31997 | P124: 1.56998419 | Q124: 1.007550717 | R124: 0.1225031411 | S124: 1.000000216 | T124: 0.0006572738935 | U124: 1.002480473 | V124: 0.08550369527 | W124: -29.19292493 | X124: -129.0926911 | Y124: 50.90730887 | AB124: -17.78871918 | AC124: -41.07243464 | AE124: 4.278517903 | AF124: -82.97221406 | AI124: 42.78119347 | AJ124: -88.0202565 | AL124: 0 | AM124: 0 | AN124: 0 | AO124: 0 | AP124: 0 | AQ124: 0
B125: 6606.9 | C125: 9.264341218 | D125: 1.462644857 | E125: 1.000058245 | F125: 0.01079279894 | G125: 1 | H125: 0 | I125: 195112.8545 | J125: 1.570791202 | K125: 4.788184048 | L125: 1.360400061 | M125: 1.145147797 | N125: 0.5089641328 | O125: 1245.496249 | P125: 1.569993434 | Q125: 1.007724911 | R125: 0.1238992207 | S125: 1.000000221 | T125: 0.0006648411397 | U125: 1.002537861 | V125: 0.08648559089 | W125: -29.31945669 | X125: -129.3562759 | Y125: 50.6437241 | AB125: -17.81650678 | AC125: -41.21602115 | AE125: 4.180589409 | AF125: -82.89318779 | AI125: 42.6824493 | AJ125: -88.14025475 | AL125: 0 | AM125: 0 | AN125: 0 | AO125: 0 | AP125: 0 | AQ125: 0
B126: 6683.85 | C126: 9.370992185 | D126: 1.463880464 | E126: 1.00005961 | F126: 0.01091849181 | G126: 1 | H126: 0 | I126: 197385.3173 | J126: 1.570791261 | K126: 4.841532589 | L126: 1.36275264 | M126: 1.148328595 | N126: 0.5139063152 | O126: 1260.002428 | P126: 1.570002677 | Q126: 1.007905192 | R126: 0.1253272865 | S126: 1.000000226 | T126: 0.0006725844854 | U126: 1.002597262 | V126: 0.08749024739 | W126: -29.44781163 | X126: -129.6258086 | Y126: 50.3741914 | AB126: -17.84493827 | AC126: -41.36439785 | AE126: 4.081563959 | AF126: -82.81233892 | AI126: 42.58252586 | AJ126: -88.26141075 | AL126: 0 | AM126: 0 | AN126: 0 | AO126: 0 | AP126: 0 | AQ126: 0
B127: 6760.8 | C127: 9.477657138 | D127: 1.465088262 | E127: 1.00006099 | F127: 0.01104418434 | G127: 1 | H127: 0 | I127: 199657.78 | J127: 1.570791318 | K127: 4.894907341 | L127: 1.365053926 | M127: 1.151537285 | N127: 0.5188210749 | O127: 1274.508607 | P127: 1.570011711 | Q127: 1.008087528 | R127: 0.1267548386 | S127: 1.000000231 | T127: 0.000680327831 | U127: 1.002657349 | V127: 0.08849481275 | W127: -29.5750606 | X127: -129.8951103 | Y127: 50.1048897 | AB127: -17.87337033 | AC127: -41.51414216 | AE127: 3.983707281 | AF127: -82.73150743 | AI127: 42.48370895 | AJ127: -88.38096814 | AL127: 0 | AM127: 0 | AN127: 0 | AO127: 0 | AP127: 0 | AQ127: 0
B128: 6839.55 | C128: 9.586831169 | D128: 1.466296483 | E128: 1.000062419 | F128: 0.01117281669 | G128: 1 | H128: 0 | I128: 201983.3998 | J128: 1.570791376 | K128: 4.94955688 | L128: 1.367357643 | M128: 1.154849669 | N128: 0.5238223992 | O128: 1289.354112 | P128: 1.570020745 | Q128: 1.008276255 | R128: 0.1282152461 | S128: 1.000000237 | T128: 0.0006882523073 | U128: 1.00271955 | V128: 0.08952278128 | W128: -29.70416964 | X128: -130.1704293 | Y128: 49.82957072 | AB128: -17.90247125 | AC128: -41.66870698 | AE128: 3.884744452 | AF128: -82.64880389 | AI128: 42.38370083 | AJ128: -88.5017223 | AL128: 0 | AM128: 0 | AN128: 0 | AO128: 0 | AP128: 0 | AQ128: 0
B129: 6918.3 | C129: 9.69601888 | D129: 1.467477495 | E129: 1.000063865 | F129: 0.01130144866 | G129: 1 | H129: 0 | I129: 204309.0196 | J129: 1.570791432 | K129: 5.004232112 | L129: 1.369611032 | M129: 1.158190774 | N129: 0.528794992 | O129: 1304.199618 | P129: 1.570029573 | Q129: 1.008467131 | R129: 0.1296751039 | S129: 1.000000242 | T129: 0.0006961767836 | U129: 1.002782468 | V129: 0.09055065218 | W129: -29.8321772 | X129: -130.445421 | Y129: 49.55457902 | AB129: -17.9315789 | AC129: -41.82450912 | AE129: 3.786951397 | AF129: -82.56612007 | AI129: 42.28480092 | AJ129: -88.62091186 | AL129: 0 | AM129: 0 | AN129: 0 | AO129: 0 | AP129: 0 | AQ129: 0
B130: 6998.9 | C130: 9.807785325 | D130: 1.468659019 | E130: 1.000065361 | F130: 0.01143310208 | G130: 1 | H130: 0 | I130: 206689.273 | J130: 1.570791489 | K130: 5.060217516 | L130: 1.371866921 | M130: 1.16163985 | N130: 0.5338546527 | O130: 1319.393875 | P130: 1.570038403 | Q130: 1.008664717 | R130: 0.1311686814 | S130: 1.000000248 | T130: 0.0007042874221 | U130: 1.002847607 | V130: 0.09160256764 | W130: -29.96207956 | X130: -130.726492 | Y130: 49.27350803 | AB130: -17.96138008 | AC130: -41.98515663 | AE130: 3.688045078 | AF130: -82.48151501 | AI130: 42.18469974 | AJ130: -88.74133535 | AL130: 0 | AM130: 0 | AN130: 0 | AO130: 0 | AP130: 0 | AQ130: 0
B131: 7079.5 | C131: 9.919565153 | D131: 1.469813916 | E131: 1.000066876 | F131: 0.0115647551 | G131: 1 | H131: 0 | I131: 209069.5263 | J131: 1.570791544 | K131: 5.116228108 | L131: 1.374073428 | M131: 1.165118489 | N131: 0.5388842287 | O131: 1334.588132 | P131: 1.570047032 | Q131: 1.008864551 | R131: 0.1326616705 | S131: 1.000000254 | T131: 0.0007123980605 | U131: 1.002913497 | V131: 0.0926543785 | W131: -30.09088425 | X131: -131.007137 | Y131: 48.992863 | AB131: -17.99119359 | AC131: -42.14690973 | AE131: 3.590309791 | AF131: -82.39693215 | AI131: 42.08570856 | AJ131: -88.86022727 | AL131: 0 | AM131: 0 | AN131: 0 | AO131: 0 | AP131: 0 | AQ131: 0
B132: 7161.95 | C132: 10.03392403 | D132: 1.470968696 | E132: 1.000068442 | F132: 0.01169942952 | G132: 1 | H132: 0 | I132: 211504.4133 | J132: 1.570791599 | K132: 5.173549511 | L132: 1.376281135 | M132: 1.168707283 | N132: 0.5439981355 | O132: 1350.13114 | P132: 1.570055658 | Q132: 1.009071299 | R132: 0.1341883126 | S132: 1.00000026 | T132: 0.0007206948611 | U132: 1.002981677 | V132: 0.09373022195 | W132: -30.22153749 | X132: -131.2937422 | Y132: 48.70625784 | AB132: -18.02170649 | AC132: -42.31342586 | AE132: 3.491515645 | AF132: -82.3104316 | AI132: 41.98556822 | AJ132: -88.9803163 | AL132: 0 | AM132: 0 | AN132: 0 | AO132: 0 | AP132: 0 | AQ132: 0
B133: 7244.4 | C133: 10.14829598 | D133: 1.472097449 | E133: 1.000070027 | F133: 0.01183410352 | G133: 1 | H133: 0 | I133: 213939.3003 | J133: 1.570791653 | K133: 5.230895578 | L133: 1.378440447 | M133: 1.172326455 | N133: 0.5490805995 | O133: 1365.674149 | P133: 1.570064088 | Q133: 1.009280397 | R133: 0.1357143256 | S133: 1.000000266 | T133: 0.0007289916616 | U133: 1.003050642 | V133: 0.09480595345 | W133: -30.35109751 | X133: -131.5798209 | Y133: 48.42017908 | AB133: -18.05223671 | AC133: -42.48091324 | AE133: 3.393892592 | AF133: -82.22395585 | AI133: 41.88653842 | AJ133: -89.09890768 | AL133: 0 | AM133: 0 | AN133: 0 | AO133: 0 | AP133: 0 | AQ133: 0
B134: 7328.75 | C134: 10.26531663 | D134: 1.473226183 | E134: 1.000071667 | F134: 0.01197188053 | G134: 1 | H134: 0 | I134: 216430.2975 | J134: 1.570791706 | K134: 5.289587829 | L134: 1.380601057 | M134: 1.176060169 | N134: 0.5542476775 | O134: 1381.575335 | P134: 1.570072515 | Q134: 1.009496744 | R134: 0.1372748467 | S134: 1.000000272 | T134: 0.0007374796557 | U134: 1.00312201 | V134: 0.09590635723 | W134: -30.48253933 | X134: -131.871908 | Y134: 48.12809196 | AB134: -18.0834903 | AC134: -42.65317421 | AE134: 3.29520458 | AF134: -82.13551378 | AI134: 41.7863502 | AJ134: -89.21873383 | AL134: 0 | AM134: 0 | AN134: 0 | AO134: 0 | AP134: 0 | AQ134: 0
B135: 7413.1 | C135: 10.38235006 | D135: 1.474329472 | E135: 1.000073326 | F135: 0.01210965709 | G135: 1 | H135: 0 | I135: 218921.2947 | J135: 1.570791759 | K135: 5.34830423 | L135: 1.382714237 | M135: 1.179825084 | N135: 0.5593819147 | O135: 1397.476521 | P135: 1.570080751 | Q135: 1.00971555 | R135: 0.1388346952 | S135: 1.000000278 | T135: 0.0007459676497 | U135: 1.0031942 | V135: 0.09700664116 | W135: -30.61289163 | X135: -132.1633663 | Y135: 47.83663372 | AB135: -18.11476559 | AC135: -42.82627107 | AE135: 3.197687981 | AF135: -82.04709925 | AI135: 41.68727318 | AJ135: -89.33709521 | AL135: 0 | AM135: 0 | AN135: 0 | AO135: 0 | AP135: 0 | AQ135: 0
B136: 7499.45 | C136: 10.50217124 | D136: 1.475433447 | E136: 1.000075045 | F136: 0.01225069996 | G136: 1 | H136: 0 | I136: 221471.3552 | J136: 1.570791812 | K136: 5.408437036 | L136: 1.384829984 | M136: 1.183711275 | N136: 0.5646039163 | O136: 1413.754737 | P136: 1.57008899 | Q136: 1.009942086 | R136: 0.1404308247 | S136: 1.000000285 | T136: 0.0007546569001 | U136: 1.003268953 | V136: 0.09813288809 | W136: -30.74523326 | X136: -132.4610458 | Y136: 47.53895424 | AB136: -18.14680638 | AC136: -43.00424936 | AE136: 3.099045391 | AF136: -81.9566177 | AI136: 41.58697235 | AJ136: -89.4567964 | AL136: 0 | AM136: 0 | AN136: 0 | AO136: 0 | AP136: 0 | AQ136: 0
B137: 7585.8 | C137: 10.62200493 | D137: 1.476512515 | E137: 1.000076783 | F137: 0.01239174234 | G137: 1 | H137: 0 | I137: 224021.4158 | J137: 1.570791863 | K137: 5.468593519 | L137: 1.386899192 | M137: 1.187629534 | N137: 0.5697916016 | O137: 1430.032952 | P137: 1.570097042 | Q137: 1.010171195 | R137: 0.1420262343 | S137: 1.000000291 | T137: 0.0007633461504 | U137: 1.003344568 | V137: 0.09925900656 | W137: -30.87648711 | X137: -132.757991 | Y137: 47.24200899 | AB137: -18.17887266 | AC137: -43.18292787 | AE137: 3.001576094 | AF137: -81.86616665 | AI137: 41.48778476 | AJ137: -89.57506314 | AL137: 0 | AM137: 0 | AN137: 0 | AO137: 0 | AP137: 0 | AQ137: 0
B138: 7674.15 | C138: 10.74462667 | D138: 1.477591663 | E138: 1.000078581 | F138: 0.01253605096 | G138: 1 | H138: 0 | I138: 226630.5397 | J138: 1.570791914 | K138: 5.530167021 | L138: 1.388969724 | M138: 1.191671405 | N138: 0.5750639871 | O138: 1446.688196 | P138: 1.570105093 | Q138: 1.01040827 | R138: 0.1436578429 | S138: 1.000000298 | T138: 0.0007722366571 | U138: 1.003422825 | V138: 0.1004110732 | W138: -31.00968196 | X138: -133.0610175 | Y138: 46.93898248 | AB138: -18.21170906 | AC138: -43.36638351 | AE138: 2.903036411 | AF138: -81.77365302 | AI138: 41.38742632 | AJ138: -89.69463401 | AL138: 0 | AM138: 0 | AN138: 0 | AO138: 0 | AP138: 0 | AQ138: 0
B139: 7762.5 | C139: 10.86726063 | D139: 1.478646455 | E139: 1.000080401 | F139: 0.01268035907 | G139: 1 | H139: 0 | I139: 229239.6636 | J139: 1.570791965 | K139: 5.591763709 | L139: 1.390994649 | M139: 1.195746178 | N139: 0.5803005837 | O139: 1463.34344 | P139: 1.57011296 | Q139: 1.010648034 | R139: 0.1452886818 | S139: 1.000000305 | T139: 0.0007811271637 | U139: 1.003501983 | V139: 0.1015630024 | W139: -31.14179139 | X139: -133.3632033 | Y139: 46.63679671 | AB139: -18.24457405 | AC139: -43.55040167 | AE139: 2.805670672 | AF139: -81.68117299 | AI139: 41.28818187 | AJ139: -89.81280162 | AL139: 0 | AM139: 0 | AN139: 0 | AO139: 0 | AP139: 0 | AQ139: 0
B140: 7852.9 | C140: 10.99275233 | D140: 1.479701362 | E140: 1.000082285 | F140: 0.01282801504 | G140: 1 | H140: 0 | I140: 231909.3274 | J140: 1.570792015 | K140: 5.654812845 | L140: 1.393020888 | M140: 1.199949205 | N140: 0.5856217241 | O140: 1480.385138 | P140: 1.570120827 | Q140: 1.010896142 | R140: 0.1469565559 | S140: 1.000000312 | T140: 0.0007902239581 | U140: 1.003583911 | V140: 0.102741516 | W140: -31.27586915 | X140: -133.6714956 | Y140: 46.32850441 | AB140: -18.27823185 | AC140: -43.73918849 | AE140: 2.707233649 | AF140: -81.58658278 | AI140: 41.18776192 | AJ140: -89.93230709 | AL140: 0 | AM140: 0 | AN140: 0 | AO140: 0 | AP140: 0 | AQ140: 0
B141: 7943.3 | C141: =SQRT(1+(B141/PS_Pole1)^2) -> 11.11825598 | D141: =ATAN(B141/PS_Pole1) -> 1.480732454 | E141: =SQRT(1+(B141/PS_Zero1)^2) -> 1.00008419 | F141: =ATAN(B141/PS_Zero1) -> 0.01297567044 | G141: =IF(VIN_nom>Vout, 1, SQRT(1+(B141/PS_RHPZ)^2)) -> 1 | H141: =IF(VIN_nom>Vout, 0, -ATAN(B141/PS_RHPZ)) -> 0 | I141: =SQRT(1+(B141/EA_Pole1)^2) -> 234578.9913 | J141: =ATAN(B141/EA_Pole1) -> 1.570792064 | K141: =SQRT(1+(B141/EA_Zero1)^2) -> 5.717884685 | L141: =ATAN(B141/EA_Zero1) -> 1.395002433 | M141: =SQRT(1+(B141/EA_Pole2)^2) -> 1.20418597 | N141: =ATAN(B141/EA_Pole2) -> 0.5909055698 | O141: =SQRT(1+(B141/$V$5)^2) -> 1497.426837 | P141: =ATAN(B141/$V$5) -> 1.570128514 | Q141: =SQRT(1+(B141/$V$4)^2) -> 1.01114706 | R141: =ATAN(B141/$V$4) -> 0.148623607 | S141: =SQRT(1+(B141/$V$7)^2) -> 1.000000319 | T141: =ATAN(B141/$V$7) -> 0.0007993207524 | U141: =SQRT((1-(B141^2/pterm2))^2+(B141/pterm1)^2) -> 1.003666783 | V141: =IF((ATAN((B141/pterm1)/(1-B141^2/pterm2))>0),ATAN((B141/pterm1)/(1-B141^2/pterm2)),PI()+ATAN((B141/pterm1)/(1-B141^2/pterm2))) -> 0.1039198824 | W141: =20*LOG10(((E141*K141*G141)/(C141*I141*U141*M141))*Adc) -> -31.40886316 | X141: -133.9788389 | Y141: 46.02116115 | AB141: =20*LOG10((K141/(I141*M141))*AEA) -> -18.31192069 | AC141: =(L141-(J141+N141))*radconv -> -43.92839917 | AE141: =20*LOG10((Q141/(O141*S141))*AIL) -> 2.609971362 | AF141: =(R141-(P141+T141))*radconv -> -81.49202946 | AI141: =20*LOG10((E141*G141/(C141*U141))*Acs*Am) -> 41.08845675 | AJ141: =(F141+H141-(D141+V141))*radconv -> -90.05043969 | AL141: =SUM((W142<0)*(W141>0))*B141 -> 0 | AM141: 0 | AN141: =SUM((AB142<0)*(AB141>0))*B141 -> 0 | AO141: 0 | AP141: 0 | AQ141: 0
B142: 8035.8 | C142: 11.24668705 | D142: 1.481763676 | E142: 1.000086162 | F142: 0.01312675531 | G142: 1 | H142: 0 | I142: 237310.6716 | J142: 1.570792113 | K142: 5.782444416 | L142: 1.396985257 | M142: 1.208555708 | N142: 0.5962736585 | O142: 1514.864416 | P142: 1.570136202 | Q142: 1.011406715 | R142: 0.1503285227 | S142: 1.000000327 | T142: 0.0008086288658 | U142: 1.003752556 | V142: 0.1051254681 | W142: -31.54385095 | X142: -134.2923062 | Y142: =IF(X142>0,X142-180,X142+180) -> 45.70769378 | AB142: -18.3464245 | AC142: -44.12236337 | AE142: 2.511638443 | AF142: -81.39531875 | AI142: 40.98797278 | AJ142: -90.16994285 | AL142: 0 | AM142: 0 | AN142: 0 | AO142: =IF(AN142>0,AC142,0) -> 0 | AP142: =SUM((AE143<0)*(AE142>0))*B142 -> 0 | AQ142: =IF(AP142>0,AE142,0) -> 0
B143: 8128.3 | C143: 11.37512981 | D143: 1.482771612 | E143: 1.000088157 | F143: 0.01327783958 | G143: 1 | H143: 0 | I143: 240042.352 | J143: 1.570792161 | K143: 5.84702638 | L143: 1.398924287 | M143: 1.212960021 | N143: 0.6016029162 | O143: 1532.301995 | P143: 1.570143714 | Q143: 1.011669308 | R143: 0.1520325582 | S143: 1.000000335 | T143: 0.0008179369791 | U143: 1.003839316 | V143: 0.1063308963 | W143: -31.677756 | X143: =IF(((F143+L143+H143)-(D143+J143+V143+N143))*radconv<-180,((F143+L143+H143)-(D143+J143+V143+N143))*radconv+360,((F143+L143+H143)-(D143+J143+V143+N143))*radconv) -> -134.6047146 | Y143: 45.39528537 | AB143: -18.38096113 | AC143: -44.31661188 | AE143: 2.414481159 | AF143: -81.29864844 | AI143: 40.88860435 | AJ143: -90.28810275 | AL143: 0 | AM143: 0 | AN143: 0 | AO143: 0 | AP143: 0 | AQ143: 0
B144: 8222.95 | C144: 11.50656969 | D144: 1.483779681 | E144: 1.000090222 | F144: 0.01343243491 | G144: 1 | H144: 0 | I144: 242837.5255 | J144: 1.570792209 | K144: 5.913131691 | L144: 1.400864535 | M144: 1.217502103 | N144: 0.6070159736 | O144: 1550.14488 | P144: 1.570151226 | Q144: 1.011941044 | R144: 0.1537752805 | S144: 1.000000342 | T144: 0.000827461443 | U144: 1.003929114 | V144: 0.1075641774 | W144: -31.81367845 | X144: -134.923257 | Y144: 45.07674304 | AB144: -18.41633434 | AC144: -44.51559194 | AE144: 2.316255356 | AF144: -81.19977392 | AI144: 40.78805511 | AJ144: -90.40766501 | AL144: 0 | AM144: 0 | AN144: 0 | AO144: 0 | AP144: 0 | AQ144: 0
B145: 8270.275 | C145: 11.57229394 | D145: 1.484275128 | E145: 1.000091263 | F145: 0.01350973234 | G145: 1 | H145: 0 | I145: 244235.1122 | J145: 1.570792232 | K145: 5.946192555 | L145: 1.401818479 | M145: 1.219786446 | N145: 0.6097073456 | O145: 1559.066323 | P145: 1.570154917 | Q145: 1.012078064 | R145: 0.1546462894 | S145: 1.000000346 | T145: 0.0008322236749 | U145: 1.003974401 | V145: 0.1081807548 | W145: -31.88123224 | X145: -135.0820911 | Y145: 44.91790894 | AB145: -18.43403368 | AC145: -44.61514055 | AE145: 2.267585334 | AF145: -81.15035315 | AI145: 40.73820066 | AJ145: -90.4669505 | AL145: 0 | AM145: 0 | AN145: 0 | AO145: 0 | AP145: 0 | AQ145: 0
B146: 8317.6 | C146: 11.638021 | D146: 1.484764979 | E146: 1.000092311 | F146: 0.0135870296 | G146: 1 | H146: 0 | I146: 245632.699 | J146: 1.570792256 | K146: 5.97925877 | L146: 1.402761874 | M146: 1.222079593 | N146: 0.6123886366 | O146: 1567.987765 | P146: 1.570158567 | Q146: 1.012215851 | R146: 0.1555170617 | S146: 1.00000035 | T146: 0.0008369859068 | U146: 1.004019946 | V146: 0.1087972898 | W146: -31.94851854 | X146: -135.240629 | Y146: 44.75937104 | AB146: -18.45174145 | AC146: -44.71471602 | AE146: 2.219206161 | AF146: -81.10094352 | AI146: 40.68862213 | AJ146: -90.52591294 | AL146: 0 | AM146: 0 | AN146: 0 | AO146: 0 | AP146: 0 | AQ146: 0
B147: 8366.05 | C147: 11.70531337 | D147: 1.485260776 | E147: 1.000093389 | F147: 0.01366616419 | G147: 1 | H147: 0 | I147: 247063.5088 | J147: 1.570792279 | K147: 6.01311648 | L147: 1.403716945 | M147: 1.224436318 | N147: 0.6151232424 | O147: 1577.121287 | P147: 1.57016226 | Q147: 1.012357709 | R147: 0.1564082877 | S147: 1.000000354 | T147: 0.0008418613454 | U147: 1.004066841 | V147: 0.1094284366 | W147: -32.01713039 | X147: -135.4026252 | Y147: 44.59737485 | AB147: -18.46987882 | AC147: -44.81667718 | AE147: 2.169974855 | AF147: -81.05037099 | AI147: 40.63814765 | AJ147: -90.58594797 | AL147: 0 | AM147: 0 | AN147: 0 | AO147: 0 | AP147: 0 | AQ147: 0
B148: 8414.5 | C148: 11.77260858 | D148: 1.485750904 | E148: 1.000094474 | F148: 0.01374529861 | G148: 1 | H148: 0 | I148: 248494.3187 | J148: 1.570792303 | K148: 6.046979613 | L148: 1.40466132 | M148: 1.226802165 | N148: 0.6178473213 | O148: 1586.254808 | P148: 1.570165911 | Q148: 1.012500371 | R148: 0.1572992632 | S148: 1.000000358 | T148: 0.0008467367839 | U148: 1.004114007 | V148: 0.1100595385 | W148: -32.08546822 | X148: -135.5643037 | Y148: 44.43569632 | AB148: -18.48802486 | AC148: -44.91864801 | AE148: 2.121041593 | AF148: -80.99981038 | AI148: 40.58795586 | AJ148: -90.64565567 | AL148: 0 | AM148: 0 | AN148: 0 | AO148: 0 | AP148: 0 | AQ148: 0
B149: 8462.95 | C149: 11.83990659 | D149: 1.486235461 | E149: 1.000095565 | F149: 0.01382443285 | G149: 1 | H149: 0 | I149: 249925.1286 | J149: 1.570792326 | K149: 6.080848079 | L149: 1.405595177 | M149: 1.22917708 | N149: 0.6205608938 | O149: 1595.388329 | P149: 1.57016952 | Q149: 1.012643836 | R149: 0.158189987 | S149: 1.000000363 | T149: 0.0008516122224 | U149: 1.004161444 | V149: 0.1106905952 | W149: -32.15353512 | X149: -135.7256611 | Y149: 44.27433889 | AB149: -18.50617948 | AC149: -45.02061955 | AE149: 2.072403023 | AF149: -80.94926179 | AI149: 40.53804358 | AJ149: -90.70504156 | AL149: 0 | AM149: 0 | AN149: 0 | AO149: 0 | AP149: 0 | AQ149: 0
B150: 8511.4 | C150: 11.90720735 | D150: 1.48671454 | E150: 1.000096662 | F150: 0.01390356693 | G150: 1 | H150: 0 | I150: 251355.9385 | J150: 1.570792348 | K150: 6.11472179 | L150: 1.406518688 | M150: 1.231561011 | N150: 0.6232639808 | O150: 1604.52185 | P150: 1.570173088 | Q150: 1.012788105 | R150: 0.1590804578 | S150: 1.000000367 | T150: 0.0008564876609 | U150: 1.004209151 | V150: 0.1113216064 | W150: -32.22133415 | X150: -135.8866941 | Y150: 44.11330592 | AB150: -18.52434259 | AC150: -45.12258306 | AE150: 2.024055853 | AF150: -80.89872535 | AI150: 40.48840765 | AJ150: -90.76411102 | AL150: 0 | AM150: 0 | AN150: 0 | AO150: 0 | AP150: 0 | AQ150: 0
B151: 8560.95 | C151: 11.97603888 | D151: 1.487198927 | E151: 1.000097791 | F151: 0.01398449746 | G151: 1 | H151: 0 | I151: 252819.2332 | J151: 1.570792371 | K151: 6.149369897 | L151: 1.407452642 | M151: 1.234008338 | N151: 0.6260176152 | O151: 1613.862738 | P151: 1.570176695 | Q151: 1.012936479 | R151: 0.1599908825 | S151: 1.000000371 | T151: 0.0008614737904 | U151: 1.004258221 | V151: 0.1119668967 | W151: -32.29039853 | X151: -136.0510442 | Y151: 43.94895582 | AB151: -18.54292672 | AC151: -45.2268444 | AE151: 1.974909041 | AF151: -80.84705422 | AI151: 40.43792741 | AJ151: -90.82419978 | AL151: 0 | AM151: 0 | AN151: 0 | AO151: 0 | AP151: 0 | AQ151: 0
B152: 8610.5 | C152: 12.0448732 | D152: 1.487677778 | E152: 1.000098926 | F152: 0.01406542782 | G152: 1 | H152: 0 | I152: 254282.5279 | J152: 1.570792394 | K152: 6.184023308 | L152: 1.408376129 | M152: 1.236464985 | N152: 0.6287603283 | O152: 1623.203625 | P152: 1.570180261 | Q152: 1.013085693 | R152: 0.1609010397 | S152: 1.000000375 | T152: 0.0008664599199 | U152: 1.004307574 | V152: 0.1126121388 | W152: -32.35918898 | X152: -136.2150483 | Y152: 43.78495174 | AB152: -18.56151949 | AC152: -45.33107967 | AE152: 1.92606022 | AF152: -80.79539604 | AI152: 40.38772973 | AJ152: -90.88396859 | AL152: 0 | AM152: 0 | AN152: 0 | AO152: 0 | AP152: 0 | AQ152: 0
B153: 8660.05 | C153: 12.11371024 | D153: 1.488151187 | E153: 1.000100068 | F153: 0.01414635799 | G153: 1 | H153: 0 | I153: 255745.8227 | J153: 1.570792417 | K153: 6.218681934 | L153: 1.409289323 | M153: 1.238930895 | N153: 0.631492144 | O153: 1632.544512 | P153: 1.570183786 | Q153: 1.013235746 | R153: 0.1618109282 | S153: 1.00000038 | T153: 0.0008714460493 | U153: 1.00435721 | V153: 0.1132573326 | W153: -32.42770857 | X153: -136.3787031 | Y153: 43.62129689 | AB153: -18.58012074 | AC153: -45.43528028 | AE153: 1.877506044 | AF153: -80.74375091 | AI153: 40.33781139 | AJ153: -90.94342283 | AL153: 0 | AM153: 0 | AN153: 0 | AO153: 0 | AP153: 0 | AQ153: 0
B154: 8709.6 | C154: 12.18254997 | D154: 1.488619245 | E154: 1.000101216 | F154: 0.01422728798 | G154: 1 | H154: 0 | I154: 257209.1174 | J154: 1.570792439 | K154: 6.253345688 | L154: 1.410192394 | M154: 1.241406015 | N154: 0.6342130865 | O154: 1641.885399 | P154: 1.570187271 | Q154: 1.013386637 | R154: 0.1627205465 | S154: 1.000000384 | T154: 0.0008764321787 | U154: 1.004407129 | V154: 0.1139024777 | W154: -32.4959603 | X154: -136.5420057 | Y154: 43.45799432 | AB154: -18.59873034 | AC154: -45.53943792 | AE154: 1.829243224 | AF154: -80.69211898 | AI154: 40.28816926 | AJ154: -91.00256776 | AL154: 0 | AM154: =IF(AL154>0,Y154,0) -> 0 | AN154: 0 | AO154: 0 | AP154: 0 | AQ154: 0
B155: 8760.325 | C155: 12.25302486 | D155: 1.489092955 | E155: 1.000102399 | F155: 0.01431013689 | G155: 1 | H155: 0 | I155: 258707.1119 | J155: 1.570792461 | K155: 6.288836662 | L155: 1.411106567 | M155: 1.243949311 | N155: 0.6369873148 | O155: 1651.447791 | P155: 1.570190797 | Q155: 1.013541975 | R155: 0.1636514535 | S155: 1.000000389 | T155: 0.0008815365462 | U155: 1.004458525 | V155: 0.1145628707 | W155: -32.56555612 | X155: -136.7088127 | Y155: 43.29118729 | AB155: -18.61778972 | AC155: -45.64601253 | AE155: 1.780134355 | AF155: -80.63927645 | AI155: 40.23763282 | AJ155: -91.06280018 | AL155: 0 | AM155: 0 | AN155: 0 | AO155: 0 | AP155: 0 | AQ155: 0
B156: 8811.05 | C156: 12.32350246 | D156: 1.489561247 | E156: 1.000103588 | F156: 0.01439298562 | G156: 1 | H156: 0 | I156: 260205.1063 | J156: 1.570792484 | K156: 6.324332833 | L156: 1.412010479 | M156: 1.246502141 | N156: 0.639750201 | O156: 1661.010182 | P156: 1.570194283 | Q156: 1.01369819 | R156: 0.1645820745 | S156: 1.000000393 | T156: 0.0008866409137 | U156: 1.004510217 | V156: 0.1152232122 | W156: -32.63487741 | X156: -136.8752444 | Y156: 43.12475559 | AB156: -18.63685751 | AC156: -45.75252519 | AE156: 1.731324027 | AF156: -80.58644799 | AI156: 40.18737933 | AJ156: -91.12271922 | AL156: 0 | AM156: 0 | AN156: 0 | AO156: 0 | AP156: 0 | AQ156: 0
B157: 8861.775 | C157: 12.39398274 | D157: 1.490024213 | E157: 1.000104784 | F157: 0.01447583414 | G157: 1 | H157: 0 | I157: 261703.1008 | J157: 1.570792506 | K157: 6.359834114 | L157: 1.4129043 | M157: 1.249064447 | N157: 0.6425017726 | O157: 1670.572574 | P157: 1.57019773 | Q157: 1.013855284 | R157: 0.1655124079 | S157: 1.000000398 | T157: 0.0008917452811 | U157: 1.004562205 | V157: 0.1158835019 | W157: -32.70392719 | X157: -137.0412979 | Y157: 42.95870213 | AB157: -18.65593354 | AC157: -45.85896772 | AE157: 1.682808891 | AF157: -80.53363372 | AI157: 40.13740557 | AJ157: -91.18233015 | AL157: 0 | AM157: 0 | AN157: 0 | AO157: 0 | AP157: 0 | AQ157: 0
B158: 8912.5 | C158: 12.46446564 | D158: 1.490481943 | E158: 1.000105987 | F158: 0.01455868247 | G158: 1 | H158: 0 | I158: 263201.0952 | J158: 1.570792527 | K158: 6.395340419 | L158: 1.413788197 | M158: 1.251636172 | N158: 0.6452420577 | O158: 1680.134966 | P158: 1.570201136 | Q158: 1.014013254 | R158: 0.1664424522 | S158: 1.000000402 | T158: 0.0008968496484 | U158: 1.00461449 | V158: 0.1165437394 | W158: -32.77270844 | X158: -137.2069703 | Y158: 42.79302971 | AB158: -18.67501762 | AC158: -45.96533218 | AE158: 1.634585654 | AF158: -80.48083376 | AI158: 40.08770839 | AJ158: -91.24163812 | AL158: 0 | AM158: 0 | AN158: 0 | AO158: 0 | AP158: 0 | AQ158: 0
B159: 8964.4 | C159: 12.53658389 | D159: 1.490944949 | E159: 1.000107225 | F159: 0.0146434497 | G159: 1 | H159: 0 | I159: 264733.7894 | J159: 1.570792549 | K159: 6.43167431 | L159: 1.414682467 | M159: 1.254277156 | N159: 0.6480341669 | O159: 1689.918862 | P159: 1.570204582 | Q159: 1.014175792 | R159: 0.1673937394 | S159: 1.000000407 | T159: 0.000902072254 | U159: 1.004668293 | V159: 0.1172192165 | W159: -32.84280805 | X159: -137.3760832 | Y159: 42.62391681 | AB159: -18.69455188 | AC159: -46.07407161 | AE159: 1.58554411 | AF159: -80.42682569 | AI159: 40.03714305 | AJ159: -91.30201158 | AL159: 0 | AM159: 0 | AN159: 0 | AO159: 0 | AP159: 0 | AQ159: 0
B160: 9016.3 | C160: 12.6087048 | D160: 1.491402658 | E160: 1.00010847 | F160: 0.01472821672 | G160: 1 | H160: 0 | I160: 266266.4836 | J160: 1.570792571 | K160: 6.468013287 | L160: 1.415566689 | M160: 1.256927876 | N160: 0.6508145213 | O160: 1699.702758 | P160: 1.570207989 | Q160: 1.014339247 | R160: 0.1683447209 | S160: 1.000000412 | T160: 0.0009072948594 | U160: 1.004722406 | V160: 0.1178946384 | W160: -32.91263263 | X160: -137.5447916 | Y160: 42.45520836 | AB160: -18.71409415 | AC160: -46.18271322 | AE160: 1.536801346 | AF160: -80.37283286 | AI160: 39.98686073 | AJ160: -91.36207841 | AL160: 0 | AM160: 0 | AN160: 0 | AO160: 0 | AP160: 0 | AQ160: 0
B161: 9068.2 | C161: 12.68082832 | D161: 1.491855161 | E161: 1.000109722 | F161: 0.01481298352 | G161: 1 | H161: 0 | I161: 267799.1777 | J161: 1.570792593 | K161: 6.504357265 | L161: 1.416441031 | M161: 1.259588273 | N161: 0.6535831521 | O161: 1709.486654 | P161: 1.570211356 | Q161: 1.014503619 | R161: 0.1692953952 | S161: 1.000000416 | T161: 0.0009125174648 | U161: 1.004776829 | V161: 0.1185700048 | W161: -32.9821852 | X161: -137.713093 | Y161: 42.28690699 | AB161: -18.73364419 | AC161: -46.29124924 | AE161: 1.488354014 | AF161: -80.3188554 | AI161: 39.93685821 | AJ161: -91.42184377 | AL161: 0 | AM161: 0 | AN161: 0 | AO161: 0 | AP161: 0 | AQ161: 0
B162: 9120.1 | C162: 12.7529544 | D162: 1.492302545 | E162: 1.000110982 | F162: 0.01489775012 | G162: 1 | H162: 0 | I162: 269331.8719 | J162: 1.570792614 | K162: 6.540706159 | L162: 1.417305655 | M162: 1.262258284 | N162: 0.6563400912 | O162: 1719.27055 | P162: 1.570214685 | Q162: 1.014668907 | R162: 0.1702457605 | S162: 1.000000421 | T162: 0.0009177400702 | U162: 1.004831562 | V162: 0.1192453155 | W162: -33.05146868 | X162: -137.8809848 | Y162: 42.11901519 | AB162: -18.75320179 | AC162: -46.39967212 | AE162: 1.440198821 | AF162: -80.26489344 | AI162: 39.88713234 | AJ162: -91.48131269 | AL162: 0 | AM162: 0 | AN162: 0 | AO162: 0 | AP162: 0 | AQ162: 0
B163: 9173.2 | C163: 12.82675076 | D163: 1.492755066 | E163: 1.000112278 | F163: 0.01498447641 | G163: 1 | H163: 0 | I163: 270900.0041 | J163: 1.570792635 | K163: 6.577900495 | L163: 1.41818038 | M163: 1.264999916 | N163: 0.6591487078 | O163: 1729.280664 | P163: 1.570218052 | Q163: 1.014838966 | R163: 0.1712177783 | S163: 1.000000426 | T163: 0.0009230834294 | U163: 1.004887881 | V163: 0.1199361822 | W163: -33.12207859 | X163: -138.0523321 | Y163: 41.94766788 | AB163: -18.77321916 | AC163: -46.51047717 | AE163: 1.391229186 | AF163: -80.20969998 | AI163: 39.8365398 | AJ163: -91.54185495 | AL163: 0 | AM163: 0 | AN163: 0 | AO163: 0 | AP163: 0 | AQ163: 0
B164: 9226.3 | C164: 12.90054971 | D164: 1.49320241 | E164: 1.000113581 | F164: 0.01507120248 | G164: 1 | H164: 0 | I164: 272468.1363 | J164: 1.570792657 | K164: 6.615099806 | L164: 1.419045268 | M164: 1.267751483 | N164: 0.6619451546 | O164: 1739.290777 | P164: 1.57022138 | Q164: 1.015009983 | R164: 0.1721894695 | S164: 1.000000431 | T164: 0.0009284267885 | U164: 1.004944525 | V164: 0.1206269898 | W164: -33.19241285 | X164: -138.2232458 | Y164: 41.77675425 | AB164: -18.79324394 | AC164: -46.62114856 | AE164: 1.34255856 | AF164: -80.15452302 | AI164: 39.78623031 | AJ164: -91.60209719 | AL164: 0 | AM164: 0 | AN164: 0 | AO164: 0 | AP164: 0 | AQ164: 0
B165: 9279.4 | C165: 12.97435121 | D165: 1.493644665 | E165: 1.000114892 | F165: 0.01515792832 | G165: 1 | H165: 0 | I165: 274036.2685 | J165: 1.570792678 | K165: 6.652304011 | L165: 1.419900482 | M165: 1.270512922 | N165: 0.6647294671 | O165: 1749.300891 | P165: 1.57022467 | Q165: 1.015181958 | R165: 0.1731608324 | S165: 1.000000436 | T165: 0.0009337701476 | U165: 1.005001493 | V165: 0.121317738 | W165: -33.26247442 | X165: -138.3937234 | Y165: 41.6062766 | AB165: -18.81327586 | AC165: -46.73167893 | AE165: 1.294183593 | AF165: -80.09936268 | AI165: 39.73620066 | AJ165: -91.66204446 | AL165: 0 | AM165: 0 | AN165: 0 | AO165: 0 | AP165: 0 | AQ165: 0
B166: 9332.5 | C166: 13.04815522 | D166: 1.494081917 | E166: 1.000116211 | F166: 0.01524465393 | G166: 1 | H166: 0 | I166: 275604.4007 | J166: 1.570792698 | K166: 6.689513027 | L166: 1.420746184 | M166: 1.273284167 | N166: 0.6675016811 | O166: 1759.311004 | P166: 1.570227922 | Q166: 1.01535489 | R166: 0.1741318653 | S166: 1.000000441 | T166: 0.0009391135066 | U166: 1.005058786 | V166: 0.1220084265 | W166: -33.3322662 | X166: -138.5637629 | Y166: 41.43623715 | AB166: -18.83331465 | AC166: -46.84206118 | AE166: 1.246100996 | AF166: -80.04421911 | AI166: 39.68644767 | AJ166: -91.72170168 | AL166: 0 | AM166: 0 | AN166: 0 | AO166: 0 | AP166: 0 | AQ166: 0
B167: 9386.85 | C167: 13.12369916 | D167: 1.494524369 | E167: 1.000117568 | F167: 0.01533342087 | G167: 1 | H167: 0 | I167: 277209.4475 | J167: 1.570792719 | K167: 6.727602861 | L167: 1.421602105 | M167: 1.276130738 | N167: 0.6703266633 | O167: 1769.556761 | P167: 1.570231213 | Q167: 1.015532885 | R167: 0.1751254134 | S167: 1.000000446 | T167: 0.0009445826509 | U167: 1.005117764 | V167: 0.122715312 | W167: -33.40342448 | X167: -138.7373492 | Y167: 41.26265084 | AB167: -18.85383199 | AC167: -46.95488127 | AE167: 1.197185907 | AF167: -79.98779492 | AI167: 39.63580674 | AJ167: -91.78246789 | AL167: 0 | AM167: 0 | AN167: 0 | AO167: 0 | AP167: 0 | AQ167: 0
B168: 9441.2 | C168: 13.19924565 | D168: 1.494961756 | E168: 1.000118934 | F168: 0.01542218756 | G168: 1 | H168: 0 | I168: 278814.4943 | J168: 1.57079274 | K168: 6.765697568 | L168: 1.422448388 | M168: 1.278987447 | N168: 0.6731390483 | O168: 1779.802517 | P168: 1.570234467 | Q168: 1.015711881 | R168: 0.1761186123 | S168: 1.000000451 | T168: 0.0009500517951 | U168: 1.005177081 | V168: 0.1234221342 | W168: -33.47430607 | X168: -138.9104721 | Y168: 41.08952789 | AB168: -18.87435596 | AC168: -47.0675318 | AE168: 1.148570313 | AF168: -79.93138857 | AI168: 39.58544911 | AJ168: -91.8429403 | AL168: 0 | AM168: 0 | AN168: 0 | AO168: 0 | AP168: 0 | AQ168: 0
B169: 9495.55 | C169: 13.27479463 | D169: 1.495394165 | E169: 1.000120307 | F169: 0.01551095402 | G169: 1 | H169: 0 | I169: 280419.5411 | J169: 1.570792761 | K169: 6.803797066 | L169: 1.423285193 | M169: 1.281854228 | N169: 0.6759388759 | O169: 1790.048274 | P169: 1.570237683 | Q169: 1.015891879 | R169: 0.1771114602 | S169: 1.000000457 | T169: 0.0009555209392 | U169: 1.005236738 | V169: 0.1241288928 | W169: -33.54491391 | X169: -139.0831297 | Y169: 40.9168703 | AB169: -18.89488625 | AC169: -47.18000585 | AE169: 1.100250862 | AF169: -79.87500019 | AI169: 39.53537155 | AJ169: -91.90312385 | AL169: 0 | AM169: 0 | AN169: 0 | AO169: 0 | AP169: 0 | AQ169: 0
B170: 9549.9 | C170: 13.35034607 | D170: 1.49582168 | E170: 1.000121688 | F170: 0.01559972023 | G170: 1 | H170: 0 | I170: 282024.5878 | J170: 1.570792781 | K170: 6.841901276 | L170: 1.424112679 | M170: 1.284731012 | N170: 0.6787261865 | O170: 1800.29403 | P170: 1.570240862 | Q170: 1.016072879 | R170: 0.1781039553 | S170: 1.000000462 | T170: 0.0009609900833 | U170: 1.005296734 | V170: 0.1248355874 | W170: -33.61525086 | X170: -139.25532 | Y170: 40.74467995 | AB170: -18.91542255 | AC170: -47.29229672 | AE170: 1.05222426 | AF170: -79.81862993 | AI170: 39.4855709 | AJ170: -91.96302333 | AL170: 0 | AM170: 0 | AN170: 0 | AO170: 0 | AP170: 0 | AQ170: 0
B171: 9605.525 | C171: 13.42767237 | D171: 1.496254242 | E171: 1.00012311 | F171: 0.01569056855 | G171: 1 | H171: 0 | I171: 283667.2875 | J171: 1.570792802 | K171: 6.880904171 | L171: 1.424950086 | M171: 1.287685572 | N171: 0.6815659663 | O171: 1810.780142 | P171: 1.570244079 | Q171: 1.01625916 | R171: 0.1791193664 | S171: 1.000000467 | T171: 0.0009665875283 | U171: 1.00535849 | V171: 0.1255587938 | W171: -33.68696029 | X171: -139.4310642 | Y171: 40.56893583 | AB171: -18.93644651 | AC171: -47.40702539 | AE171: 1.003370853 | AF171: -79.76095617 | AI171: 39.43488544 | AJ171: -92.02403878 | AL171: 0 | AM171: 0 | AN171: 0 | AO171: 0 | AP171: 0 | AQ171: 0
B172: 9661.15 | C172: 13.50500116 | D172: 1.496681851 | E172: 1.000124539 | F172: 0.01578141662 | G172: 1 | H172: 0 | I172: 285309.9872 | J172: 1.570792822 | K172: 6.919911837 | L172: 1.425778053 | M172: 1.290650468 | N172: 0.6843927217 | O172: 1821.266255 | P172: 1.570247258 | Q172: 1.016446489 | R172: 0.1801344042 | S172: 1.000000473 | T172: 0.0009721849733 | U172: 1.005420602 | V172: 0.1262819325 | W172: -33.75839187 | X172: -139.6063152 | Y172: 40.39368476 | AB172: -18.95747611 | AC172: -47.5215487 | AE172: 0.954817391 | AF172: -79.70330168 | AI172: 39.38448347 | AJ172: -92.08476654 | AL172: 0 | AM172: 0 | AN172: 0 | AO172: 0 | AP172: 0 | AQ172: 0
B173: 9716.775 | C173: 13.58233238 | D173: 1.497104591 | E173: 1.000125978 | F173: 0.01587226443 | G173: 1 | H173: 0 | I173: 286952.6869 | J173: 1.570792842 | K173: 6.958924194 | L173: 1.426596737 | M173: 1.293625629 | N173: 0.6872064972 | O173: 1831.752367 | P173: 1.570250401 | Q173: 1.016634865 | R173: 0.181149067 | S173: 1.000000478 | T173: 0.0009777824182 | U173: 1.005483069 | V173: 0.127005003 | W173: -33.82954849 | X173: -139.7810716 | Y173: 40.21892841 | AB173: -18.97851102 | AC173: -47.63586016 | AE173: 0.9065605184 | AF173: -79.64566659 | AI173: 39.33436175 | AJ173: -92.14521143 | AL173: 0 | AM173: 0 | AN173: 0 | AO173: 0 | AP173: 0 | AQ173: 0
B174: 9772.4 | C174: 13.65966601 | D174: 1.497522544 | E174: 1.000127424 | F174: 0.01596311197 | G174: 1 | H174: 0 | I174: 288595.3866 | J174: 1.570792862 | K174: 6.997941163 | L174: 1.427406293 | M174: 1.296610986 | N174: 0.6900073377 | O174: 1842.23848 | P174: 1.570253509 | Q174: 1.016824286 | R174: 0.1821633527 | S174: 1.000000484 | T174: 0.000983379863 | U174: 1.005545891 | V174: 0.1277280051 | W174: -33.900433 | X174: -139.9553317 | Y174: 40.04466831 | AB174: -18.99955089 | AC174: -47.74995353 | AE174: 0.8585969384 | AF174: -79.58805105 | AI174: 39.2845171 | AJ174: -92.20537816 | AL174: 0 | AM174: 0 | AN174: 0 | AO174: 0 | AP174: 0 | AQ174: 0
B175: 9829.3 | C175: 13.73877466 | D175: 1.497945209 | E175: 1.000128912 | F175: 0.0160560416 | G175: 1 | H175: 0 | I175: 290275.7391 | J175: 1.570792882 | K175: 7.037857145 | L175: 1.428225117 | M175: 1.299675246 | N175: 0.6928590415 | O175: 1852.964948 | P175: 1.570256651 | Q175: 1.017019132 | R175: 0.1832004952 | S175: 1.000000489 | T175: 0.0009891056088 | U175: 1.005610522 | V175: 0.128467508 | W175: -33.97266364 | X175: -140.1330711 | Y175: 39.86692889 | AB175: -19.02107779 | AC175: -47.86643011 | AE175: 0.8098340435 | AF175: -79.52913526 | AI175: 39.23381337 | AJ175: -92.266641 | AL175: 0 | AM175: 0 | AN175: 0 | AO175: 0 | AP175: 0 | AQ175: 0
B176: 9886.2 | C176: 13.81788575 | D176: 1.498363034 | E176: 1.000130409 | F176: 0.01614897094 | G176: 1 | H176: 0 | I176: 291956.0917 | J176: 1.570792902 | K176: 7.077777793 | L176: 1.429034704 | M176: 1.302750026 | N176: 0.695697307 | O176: 1863.691416 | P176: 1.570259757 | Q176: 1.017215071 | R176: 0.1842372392 | S176: 1.000000495 | T176: 0.0009948313545 | U176: 1.005675524 | V176: 0.1292069385 | W176: -34.04461538 | X176: -140.3102883 | Y176: 39.68971168 | AB176: -19.04260915 | AC176: -47.98266592 | AE176: 0.7613712393 | AF176: -79.47024023 | AI176: 39.18339299 | AJ176: -92.3276224 | AL176: 0 | AM176: 0 | AN176: 0 | AO176: 0 | AP176: 0 | AQ176: 0
B177: 9943.1 | C177: 13.89699922 | D177: 1.498776102 | E177: 1.000131914 | F177: 0.0162419 | G177: 1 | H177: 0 | I177: 293636.4443 | J177: 1.570792921 | K177: 7.117703027 | L177: 1.42983521 | M177: 1.305835251 | N177: 0.6985221835 | O177: 1874.417885 | P177: 1.570262828 | Q177: 1.017412103 | R177: 0.1852735829 | S177: 1.000000501 | T177: 0.0010005571 | U177: 1.005740899 | V177: 0.1299462961 | W177: -34.11629109 | X177: -140.486982 | Y177: 39.51301798 | AB177: -19.06414461 | AC177: -48.09865494 | AE177: 0.7132051741 | AF177: -79.4113661 | AI177: 39.13325274 | AJ177: -92.38832708 | AL177: 0 | AM177: 0 | AN177: 0 | AO177: 0 | AP177: 0 | AQ177: 0
B178: 10000 | C178: 13.97611503 | D178: 1.499184493 | E178: 1.000133428 | F178: 0.01633482879 | G178: 1 | H178: 0 | I178: 295316.7969 | J178: 1.570792941 | K178: 7.157632772 | L178: 1.430626785 | M178: 1.308930847 | N178: 0.7013337208 | O178: 1885.144353 | P178: 1.570265863 | Q178: 1.017610228 | R178: 0.1863095241 | S178: 1.000000506 | T178: 0.001006282846 | U178: 1.005806645 | V178: 0.1306855805 | W178: -34.18769356 | X178: -140.663151 | Y178: 39.33684899 | AB178: -19.08568377 | AC178: -48.21439137 | AE178: 0.6653325536 | AF178: -79.35251303 | AI178: 39.08338943 | AJ178: -92.44875964 | AL178: 0 | AM178: 0 | AN178: 0 | AO178: 0 | AP178: 0 | AQ178: 0
B179: 10058.25 | C179: 14.05711032 | D179: 1.499597812 | E179: 1.000134987 | F179: 0.01642996209 | G179: 1 | H179: 0 | I179: 297037.0172 | J179: 1.57079296 | K179: 7.198514478 | L179: 1.431428044 | M179: 1.312110555 | N179: 0.7041981988 | O179: 1896.125316 | P179: 1.570268935 | Q179: 1.017814184 | R179: 0.1873696249 | S179: 1.000000512 | T179: 0.001012144439 | U179: 1.005874337 | V179: 0.1314423286 | W179: -34.26050996 | X179: -140.8429551 | Y179: 39.15704493 | AB179: -19.10773743 | AC179: -48.33260626 | AE179: 0.6166247048 | AF179: -79.29228559 | AI179: 39.03262669 | AJ179: -92.51034881 | AL179: 0 | AM179: 0 | AN179: 0 | AO179: 0 | AP179: 0 | AQ179: 0
B180: 10116.5 | C180: 14.13810798 | D180: 1.500006396 | E180: 1.000136555 | F180: 0.0165250951 | G180: 1 | H180: 0 | I180: 298757.2376 | J180: 1.57079298 | K180: 7.239400752 | L180: 1.432220252 | M180: 1.315300978 | N180: 0.7070488038 | O180: 1907.106279 | P180: 1.570271972 | Q180: 1.018019283 | R180: 0.1884292998 | S180: 1.000000518 | T180: 0.001018006033 | U180: 1.005942418 | V180: 0.1321989991 | W180: -34.33304579 | X180: -141.022207 | Y180: 38.97779298 | AB180: -19.12979418 | AC180: -48.45054481 | AE180: 0.568217581 | AF180: -79.23208053 | AI180: 38.98214761 | AJ180: -92.57166221 | AL180: 0 | AM180: 0 | AN180: 0 | AO180: 0 | AP180: 0 | AQ180: 0
B181: 10174.75 | C181: 14.21910797 | D181: 1.500410324 | E181: 1.000138132 | F181: 0.01662022781 | G181: 1 | H181: 0 | I181: 300477.4579 | J181: 1.570792999 | K181: 7.280291519 | L181: 1.433003562 | M181: 1.318502036 | N181: 0.7098855904 | O181: 1918.087241 | P181: 1.570274974 | Q181: 1.018225525 | R181: 0.1894885465 | S181: 1.000000524 | T181: 0.001023867626 | U181: 1.006010888 | V181: 0.1329555916 | W181: -34.40530388 | X181: -141.2009059 | Y181: 38.79909409 | AB181: -19.15185362 | AC181: -48.56820146 | AE181: 0.5201078254 | AF181: -79.171898 | AI181: 38.93194896 | AJ181: -92.63270445 | AL181: 0 | AM181: 0 | AN181: 0 | AO181: 0 | AP181: 0 | AQ181: 0
B182: 10233 | C182: 14.30011026 | D182: 1.500809676 | E182: 1.000139718 | F182: 0.01671536022 | G182: 1 | H182: 0 | I182: 302197.6782 | J182: 1.570793018 | K182: 7.321186703 | L182: 1.433778121 | M182: 1.321713654 | N182: 0.7127086135 | O182: 1929.068204 | P182: 1.570277942 | Q182: 1.018432909 | R182: 0.1905473631 | S182: 1.00000053 | T182: 0.00102972922 | U182: 1.006079748 | V182: 0.1337121055 | W182: -34.47728703 | X182: -141.3790509 | Y182: 38.62094911 | AB182: -19.17391535 | AC182: -48.68557088 | AE182: 0.4722921383 | AF182: -79.11173816 | AI182: 38.88202753 | AJ182: -92.69348001 | AL182: 0 | AM182: 0 | AN182: 0 | AO182: 0 | AP182: 0 | AQ182: 0
B183: 10292.5 | C183: 14.38285313 | D183: 1.501212954 | E183: 1.000141347 | F183: 0.01681253378 | G183: 1 | H183: 0 | I183: 303954.8132 | J183: 1.570793037 | K183: 7.36296395 | L183: 1.434560418 | M183: 1.325005012 | N183: 0.7155780641 | O183: 1940.28481 | P183: 1.570280939 | Q183: 1.018645921 | R183: 0.1916284547 | S183: 1.000000536 | T183: 0.001035716598 | U183: 1.006150488 | V183: 0.1344847721 | W183: -34.55053386 | X183: -141.5604461 | Y183: 38.43955391 | AB183: -19.19645243 | AC183: -48.80515705 | AE183: 0.4237505931 | AF183: -79.05031093 | AI183: 38.83131779 | AJ183: -92.75528904 | AL183: 0 | AM183: 0 | AN183: 0 | AO183: 0 | AP183: 0 | AQ183: 0
B184: 10352 | C184: 14.4655983 | D184: 1.501611618 | E184: 1.000142986 | F184: 0.01690970702 | G184: 1 | H184: 0 | I184: 305711.9481 | J184: 1.570793056 | K184: 7.404745652 | L184: 1.435333888 | M184: 1.328307226 | N184: 0.7184332711 | O184: 1951.501416 | P184: 1.570283901 | Q184: 1.018860124 | R184: 0.192709093 | S184: 1.000000543 | T184: 0.001041703977 | U184: 1.006221634 | V184: 0.1352573559 | W184: -34.62349951 | X184: -141.7412619 | Y184: 38.25873809 | AB184: -19.21899104 | AC184: -48.92443291 | AE184: 0.3755090906 | AF184: -78.98890769 | AI184: 38.78089075 | AJ184: -92.816829 | AL184: 0 | AM184: 0 | AN184: 0 | AO184: 0 | AP184: 0 | AQ184: 0
B185: 10411.5 | C185: 14.54834575 | D185: 1.502005748 | E185: 1.000144634 | F185: 0.01700687995 | G185: 1 | H185: 0 | I185: 307469.0831 | J185: 1.570793074 | K185: 7.446531734 | L185: 1.436098677 | M185: 1.331620215 | N185: 0.721274294 | O185: 1962.718022 | P185: 1.570286829 | Q185: 1.019075516 | R185: 0.1937892758 | S185: 1.000000549 | T185: 0.001047691355 | U185: 1.006293187 | V185: 0.1360298564 | W185: -34.69618678 | X185: -141.9214978 | Y185: 38.07850221 | AB185: -19.24153074 | AC185: -49.04339341 | AE185: 0.3275642909 | AF185: -78.92752862 | AI185: 38.73074318 | AJ185: -92.87810438 | AL185: 0 | AM185: 0 | AN185: 0 | AO185: 0 | AP185: 0 | AQ185: 0
B186: 10471 | C186: 14.63109543 | D186: 1.502395419 | E186: 1.000146292 | F186: 0.01710405255 | G186: 1 | H186: 0 | I186: 309226.218 | J186: 1.570793093 | K186: 7.488322123 | L186: 1.436854931 | M186: 1.334943898 | N186: 0.7241011928 | O186: 1973.934628 | P186: 1.570289724 | Q186: 1.019292096 | R186: 0.1948690008 | S186: 1.000000555 | T186: 0.001053678733 | U186: 1.006365145 | V186: 0.1368022732 | W186: -34.76859842 | X186: -142.1011532 | Y186: 37.89884676 | AB186: -19.2640711 | AC186: -49.1620337 | AE186: 0.2799129108 | AF186: -78.86617386 | AI186: 38.6808719 | AJ186: -92.93911954 | AL186: 0 | AM186: 0 | AN186: 0 | AO186: 0 | AP186: 0 | AQ186: 0
B187: 10532 | C187: 14.71593352 | D187: 1.502790365 | E187: 1.000148001 | F187: 0.01720367455 | G187: 1 | H187: 0 | I187: 311027.6505 | J187: 1.570793112 | K187: 7.531170447 | L187: 1.437621536 | M187: 1.33836239 | N187: 0.7269847581 | O187: 1985.434005 | P187: 1.570292659 | Q187: 1.01951537 | R187: 0.1959754681 | S187: 1.000000562 | T187: 0.001059817054 | U187: 1.006439339 | V187: 0.1375940753 | W187: -34.84255223 | X187: -142.2847349 | Y187: 37.71526511 | AB187: -19.28717993 | AC187: -49.28332764 | AE187: 0.2313614656 | AF187: -78.80329777 | AI187: 38.63002692 | AJ187: -93.00140725 | AL187: 0 | AM187: 0 | AN187: 0 | AO187: 0 | AP187: 0 | AQ187: 0
B188: 10593 | C188: 14.80077388 | D188: 1.503180782 | E188: 1.000149721 | F188: 0.01730329621 | G188: 1 | H188: 0 | I188: 312829.0829 | J188: 1.57079313 | K188: 7.574023148 | L188: 1.438379467 | M188: 1.341791955 | N188: 0.7298536067 | O188: 1996.933382 | P188: 1.570295559 | Q188: 1.019739891 | R188: 0.1970814496 | S188: 1.000000568 | T188: 0.001065955374 | U188: 1.00651396 | V188: 0.1383857885 | W188: -34.91622201 | X188: -142.4677058 | Y188: 37.53229418 | AB188: -19.31028853 | AC188: -49.40427537 | AE188: 0.18311161 | AF188: -78.74044758 | AI188: 38.57946574 | AJ188: -93.06343046 | AL188: 0 | AM188: 0 | AN188: 0 | AO188: 0 | AP188: 0 | AQ188: 0
B189: 10654 | C189: 14.88561647 | D189: 1.50356675 | E189: 1.00015145 | F189: 0.01740291752 | G189: 1 | H189: 0 | I189: 314630.5154 | J189: 1.570793148 | K189: 7.61688015 | L189: 1.43912887 | M189: 1.345232506 | N189: 0.732707804 | O189: 2008.43276 | P189: 1.570298426 | Q189: 1.019965659 | R189: 0.1981869429 | S189: 1.000000575 | T189: 0.001072093695 | U189: 1.006589007 | V189: 0.1391774121 | W189: -34.98961054 | X189: -142.6500658 | Y189: 37.34993416 | AB189: -19.33339644 | AC189: -49.52487228 | AE189: 0.135159984 | AF189: -78.67762346 | AI189: 38.52918512 | AJ189: -93.12519357 | AL189: 0 | AM189: 0 | AN189: 0 | AO189: 0 | AP189: 0 | AQ189: 0
B190: 10715 | C190: 14.97046125 | D190: 1.503948342 | E190: 1.000153189 | F190: 0.01750253849 | G190: 1 | H190: 0 | I190: 316431.9478 | J190: 1.570793167 | K190: 7.659741382 | L190: 1.439869886 | M190: 1.34868396 | N190: 0.7355474158 | O190: 2019.932138 | P190: 1.570301261 | Q190: 1.020192673 | R190: 0.1992919454 | S190: 1.000000581 | T190: 0.001078232015 | U190: 1.006664481 | V190: 0.1399689458 | W190: -35.06272057 | X190: -142.8318149 | Y190: 37.16818513 | AB190: -19.3565032 | AC190: -49.64511399 | AE190: 0.08750328466 | AF190: -78.61482558 | AI190: 38.47918185 | AJ190: -93.18670088 | AL190: 0 | AM190: 0 | AN190: 0 | AO190: 0 | AP190: 0 | AQ190: 0
B191: 10777.5 | C191: 15.05739462 | D191: 1.504334858 | E191: 1.000154981 | F191: 0.0176046088 | G191: 1 | H191: 0 | I191: 318277.6778 | J191: 1.570793185 | K191: 7.703660892 | L191: 1.440620571 | M191: 1.352231507 | N191: 0.7384417953 | O191: 2031.714287 | P191: 1.570304132 | Q191: 1.02042656 | R191: 0.2004236089 | S191: 1.000000588 | T191: 0.001084521278 | U191: 1.006742253 | V191: 0.1407798496 | W191: -35.13734232 | X191: -143.0173994 | Y191: 36.98260055 | AB191: -19.38017648 | AC191: -49.76793969 | AE191: 0.0389771988 | AF191: -78.55051088 | AI191: 38.42823338 | AJ191: -93.24945976 | AL191: 0 | AM191: 0 | AN191: 0 | AO191: 0 | AP191: 10777.5 | AQ191: 0.0389771988
B192: 10840 | C192: 15.1443302 | D192: 1.504716936 | E192: 1.000156784 | F192: 0.01770667873 | G192: 1 | H192: 0 | I192: 320123.4078 | J192: 1.570793203 | K192: 7.747584694 | L192: 1.441362744 | M192: 1.355790323 | N192: 0.741321004 | O192: 2043.496436 | P192: 1.570306969 | Q192: 1.020661754 | R192: 0.2015547522 | S192: 1.000000595 | T192: 0.00109081054 | U192: 1.006820473 | V192: 0.141590658 | W192: -35.21167735 | X192: -143.2023428 | Y192: 36.79765725 | AB192: -19.40384757 | AC192: -49.89038381 | AE192: -0.009246118475 | AF192: -78.48622409 | AI192: 38.37756944 | AJ192: -93.31195894 | AL192: 0 | AM192: 0 | AN192: 0 | AO192: 0 | AP192: 0 | AQ192: 0
B193: 10902.5 | C193: 15.23126798 | D193: 1.505094652 | E193: 1.000158597 | F193: 0.0178087483 | G193: 1 | H193: 0 | I193: 321969.1378 | J193: 1.570793221 | K193: 7.791512715 | L193: 1.44209655 | M193: 1.359360319 | N193: 0.7441851133 | O193: 2055.278585 | P193: 1.570309775 | Q193: 1.020898253 | R193: 0.2026853729 | S193: 1.000000602 | T193: 0.001097099803 | U193: 1.00689914 | V193: 0.1424013703 | W193: -35.28572843 | X193: -143.386645 | Y193: 36.613355 | AB193: -19.42751598 | AC193: -50.01244226 | AE193: -0.05717004108 | AF193: -78.42196537 | AI193: 38.32718677 | AJ193: -93.37420273 | AL193: 0 | AM193: 0 | AN193: 0 | AO193: 0 | AP193: 0 | AQ193: 0
B194: 10965 | C194: 15.3182079 | D194: 1.505468081 | E194: 1.00016042 | F194: 0.0179108175 | G194: 1 | H194: 0 | I194: 323814.8678 | J194: 1.570793239 | K194: 7.835444885 | L194: 1.442822127 | M194: 1.362941408 | N194: 0.7470341952 | O194: 2067.060734 | P194: 1.570312548 | Q194: 1.021136057 | R194: 0.2038154684 | S194: 1.000000609 | T194: 0.001103389065 | U194: 1.006978255 | V194: 0.1432119861 | W194: -35.35949829 | X194: -143.5703065 | Y194: 36.4296935 | AB194: -19.45118122 | AC194: -50.13411114 | AE194: -0.1047978854 | AF194: -78.35773492 | AI194: 38.27708215 | AJ194: -93.43619536 | AL194: 0 | AM194: 0 | AN194: 0 | AO194: 0 | AP194: 0 | AQ194: 0
B195: 11028.75 | C195: 15.40688879 | D195: 1.505844637 | E195: 1.000162291 | F195: 0.0180149277 | G195: 1 | H195: 0 | I195: 325697.5124 | J195: 1.570793256 | K195: 7.8802599 | L195: 1.443553881 | M195: 1.366605456 | N195: 0.7499248522 | O195: 2079.078526 | P195: 1.570315344 | Q195: 1.021379959 | R195: 0.2049676223 | S195: 1.000000616 | T195: 0.001109804112 | U195: 1.007059413 | V195: 0.1440387142 | W195: -35.43445661 | X195: -143.7569816 | Y195: 36.24301843 | AB195: -19.475316 | AC195: -50.2578082 | AE195: -0.1530766474 | AF195: -78.29224914 | AI195: 38.22625861 | AJ195: -93.49917337 | AL195: 0 | AM195: 0 | AN195: 0 | AO195: 0 | AP195: 0 | AQ195: 0
B196: 11092.5 | C196: 15.49557185 | D196: 1.506216882 | E196: 1.000164172 | F196: 0.0181190375 | G196: 1 | H196: 0 | I196: 327580.1569 | J196: 1.570793274 | K196: 7.925079087 | L196: 1.444277358 | M196: 1.370280862 | N196: 0.7528000262 | O196: 2091.096318 | P196: 1.570318109 | Q196: 1.021625217 | R196: 0.2061192244 | S196: 1.000000623 | T196: 0.00111621916 | U196: 1.007141037 | V196: 0.1448653409 | W196: -35.50912792 | X196: -143.942991 | Y196: 36.05700902 | AB196: -19.49944647 | AC196: -50.38109234 | AE196: -0.2010541621 | AF196: -78.22679313 | AI196: 38.17571777 | AJ196: -93.56189864 | AL196: 0 | AM196: 0 | AN196: 0 | AO196: 0 | AP196: 0 | AQ196: 0
B197: 11156.25 | C197: 15.58425703 | D197: 1.506584891 | E197: 1.000166065 | F197: 0.01822314691 | G197: 1 | H197: 0 | I197: 329462.8015 | J197: 1.570793292 | K197: 7.969902376 | L197: 1.444992698 | M197: 1.373967534 | N197: 0.7556597944 | O197: 2103.114111 | P197: 1.570320841 | Q197: 1.021871829 | R197: 0.2072702723 | S197: 1.00000063 | T197: 0.001122634207 | U197: 1.007223126 | V197: 0.1456918654 | W197: -35.58351495 | X197: -144.1283354 | Y197: 35.87166465 | AB197: -19.52357212 | AC197: -50.50396002 | AE197: -0.2487337721 | AF197: -78.16136708 | AI197: 38.12545639 | AJ197: -93.62437533 | AL197: 0 | AM197: 0 | AN197: 0 | AO197: 0 | AP197: 0 | AQ197: 0
B198: 11220 | C198: 15.67294429 | D198: 1.506948735 | E198: 1.000167968 | F198: 0.01832725593 | G198: 1 | H198: 0 | I198: 331345.4461 | J198: 1.570793309 | K198: 8.014729697 | L198: 1.445700037 | M198: 1.377665384 | N198: 0.7585042336 | O198: 2115.131903 | P198: 1.570323543 | Q198: 1.022119794 | R198: 0.2084207632 | S198: 1.000000637 | T198: 0.001129049254 | U198: 1.00730568 | V198: 0.1465182872 | W198: -35.65762038 | X198: -144.3130154 | Y198: 35.6869846 | AB198: -19.54769244 | AC198: -50.62640785 | AE198: -0.2961187634 | AF198: -78.09597115 | AI198: 38.07547128 | AJ198: -93.68660755 | AL198: 0 | AM198: 0 | AN198: 0 | AO198: 0 | AP198: 0 | AQ198: 0
B199: 11285.5 | C199: 15.76406824 | D199: 1.507318303 | E199: 1.000169934 | F199: 0.01843422243 | G199: 1 | H199: 0 | I199: 333279.7711 | J199: 1.570793326 | K199: 8.060791702 | L199: 1.446418598 | M199: 1.381476289 | N199: 0.7614108708 | O199: 2127.479595 | P199: 1.570326287 | Q199: 1.022375975 | R199: 0.2096022533 | S199: 1.000000645 | T199: 0.001135640401 | U199: 1.007390985 | V199: 0.1473672877 | W199: -35.73346954 | X199: -144.502074 | Y199: 35.49792597 | AB199: -19.57246881 | AC199: -50.75177638 | AE199: -0.3445010529 | AF199: -78.02881162 | AI199: 38.02439849 | AJ199: -93.75029765 | AL199: 0 | AM199: 0 | AN199: 0 | AO199: 0 | AP199: 0 | AQ199: 0
B200: 11351 | C200: 15.85519432 | D200: 1.507683623 | E200: 1.000171912 | F200: 0.01854118851 | G200: 1 | H200: 0 | I200: 335214.0961 | J200: 1.570793344 | K200: 8.106857821 | L200: 1.447128993 | M200: 1.385298802 | N200: 0.7643014915 | O200: 2139.827288 | P200: 1.570328999 | Q200: 1.022633581 | R200: 0.2107831498 | S200: 1.000000652 | T200: 0.001142231547 | U200: 1.00747678 | V200: 0.1482161786 | W200: -35.80902701 | X200: -144.6904332 | Y200: 35.30956681 | AB200: -19.59723849 | AC200: -50.87669509 | AE200: -0.3925791807 | AF200: -77.96168428 | AI200: 37.9736107 | AJ200: -93.8137381 | AL200: 0 | AM200: 0 | AN200: 0 | AO200: 0 | AP200: 0 | AQ200: 0
B201: 11416.5 | C201: 15.9463225 | D201: 1.508044768 | E201: 1.000173902 | F201: 0.01864815416 | G201: 1 | H201: 0 | I201: 337148.4211 | J201: 1.570793361 | K201: 8.152927985 | L201: 1.44783136 | M201: 1.389132826 | N201: 0.7671761798 | O201: 2152.17498 | P201: 1.570331681 | Q201: 1.022892614 | R201: 0.2119634498 | S201: 1.00000066 | T201: 0.001148822693 | U201: 1.007563067 | V201: 0.1490649594 | W201: -35.88429555 | X201: -144.878094 | Y201: 35.12190605 | AB201: -19.62200095 | AC201: -51.00116091 | AE201: -0.4403565317 | AF201: -77.89458934 | AI201: 37.92310462 | AJ201: -93.87693304 | AL201: 0 | AM201: 0 | AN201: 0 | AO201: 0 | AP201: 0 | AQ201: 0
... 435 more rows

Sheet Schematic Management (hidden)
A2: =IF(Device="LM5177",CHOOSE(With_RCS, "SCH_NO_RCS", "SCH_RCS_MON","SCH_RCS_LIM","SCH_RCS_LIM_NEG"),CHOOSE(With_RCS, "SCH772_NO_RCS", "SCH772_RCS_MON","SCH772_RCS_LIM","SCH772_RCS_LIM_NEG")) -> SCH_NO_RCS

Sheet Efficiency Plot Management (hidden)
A2: =IF(PLOT_TYPE=1, "EFF_IOUT", "EFF_VIN") -> EFF_VIN
A9: =IF(BODEPLOT_TYPE=FALSE, "BodePlot", "BodePlot_ILim") -> BodePlot

Sheet Efficiency vs VIN Calculations (hidden)
A1: BUCK-BOOST CONTROLLER POWER TOOL
H2: =BH9 -> 0.8358061712 | I2: Low VIN
H3: =BH109 -> 0.8537302276 | I3: Nom VIN
H4: =BH209 -> 0.7945447889 | I4: High VIN
A6: Enter the values of your design and MOSFET datasheet specifications below. Note that thermal resistance (θJA) will change when components are placed on the PCB | BY6: 80 | BZ6: 100 | CA6: 120 | CB6: 140 | CC6: 160 | CD6: 180 | CE6: 20 | CF6: 30 | CG6: 40 | CH6: 50
G7: Operating Point Condtions | U7: Filter Inductor | Y7: Cout | AB7: Cin | AE7: High-side BUCK "Control" MOSFET Losses | AJ7: Low-side BUCK "Sync" MOSFET Losses | AN7: Low-side BOOST "Control" MOSFET Losses | AS7: High-side BOOST "Sync" MOSFET Losses | AW7: Pass FET | AX7: External Diode | AY7: Diode/FET | AZ7: Sense Rs | BA7: Output Rs | BB7: Controller IC Losses | BF7: RESULTS | BL7: Consolidated Buck/Boost Efficiency & Losses
A8: Input Parameters | G8: Step | H8: Vin | I8: Mode | J8: Mode Digit | K8: Iout | L8: Iin | M8: Avg IL | N8: Duty Cycle BUCK Leg | O8: Duty Cycle BOOST Leg | P8: BOE/BUD BUBO ratio | Q8: T BOE | R8: T BOD/BUE | S8: T BUD | T8: Ripple Current pk-pk | U8: Irms Lf | V8: DCR Loss | W8: Core Loss | X8: Total Inductor Loss | Y8: Irms Cout | Z8: Cout ESR Loss | AA8: Total Cout Loss | AB8: Irms Cin | AC8: Cin ESR Loss | AD8: Total Cin Loss | AE8: Irms1 | AF8: RDS(on) Loss | AG8: Transition Loss | AH8: Dead Time Loss | AI8: Total Control MOSFET Loss | AJ8: Irms2 | AK8: RDS(on) Loss3 | AL8: Deadtime Loss | AM8: Total Sync MOSFET Loss | AN8: Irms4 | AO8: RDS(on) Loss5 | AP8: Transition Loss6 | AQ8: Dead Time Loss 7 | AR8: Total Control MOSFET Loss8 | AS8: Irms9 | AT8: RDS(on) Loss10 | AU8: Deadtime Loss11 | AV8: Total Sync MOSFET Loss12 | AW8: Q1/Q3 RDS(on) Loss @ D = 100% | AX8: Deadtime Loss13 | AY8: Reverse Recovery Loss | AZ8: Isense Shunt Loss | BA8: Iout Shunt Loss | BB8: IQ Loss | BC8: Switching Current Loss | BD8: Switching Current Diss | BE8: Total IC Loss | BF8: Total Loss | BG8: Pout | BH8: EFF, h | BI8: Control FET Temp Rise | BJ8: Sync FET Temp Rise | BK8: Column1 | BL8: h | BM8: Inductor Cu & Core Loss | BN8: Total MOSFET Loss | BO8: Total Sync MOSFET Loss15 | BP8: Shunt Loss | BW8: Qg | BY8: θJA=80 | BZ8: θJA=100 | CA8: θJA=120 | CB8: θJA=140 | CC8: θJA=160 | CD8: θJA=180 | CE8: θJA=20 | CF8: θJA=30 | CG8: θJA=40 | CH8: θJA=50
A9: Design | B9: Input Value | C9: Units | D9: Description | G9: 0 | H9: =VIN_min+(VIN_max-VIN_min)*(Table1[[#This Row],[Step]]/200) -> 4 | I9: =IF(Table1[[#This Row],[Vin]]>VIN_BB_to_buck, "BUCK", IF(Table1[[#This Row],[Vin]]<=VIN_boost_to_BB,"BOOST","BUCK-BST")) -> BOOST | J9: =IF(Table1[[#This Row],[Mode]]="BOOST",2, IF(Table1[[#This Row],[Mode]]="BUCK", 1,3)) -> 2 | K9: =Iout -> 6 | L9: =Vout*Table1[[#This Row],[Iout]]/(Table1[[#This Row],[Vin]]*Efficiency) -> 16.16842105 | M9: =Iout/(1-Table1[[#This Row],[Duty Cycle BOOST Leg]]) -> 15.9699264 | N9: =CHOOSE(Table1[[#This Row],[Mode Digit]],(Vout+(Rdson2+Rs+Rdcr)*Table1[[#This Row],[Iout]])/(Table1[[#This Row],[Vin]]+(Rs+Rdson2-Rdson1)*Table1[[#This Row],[Iout]]),1,IF(Table1[[#This Row],[Vin]]<Vout,D_max_buck_BB,Vout/Table1[[#This Row],[Vin]]*(1-D_min_boost_exitBB_to_buck))) -> 1 | O9: =CHOOSE(Table1[[#This Row],[Mode Digit]],0,(Vout+(Rdson3+Rdcr)*Table1[[#This Row],[Iin]]-Table1[[#This Row],[Vin]])/(Vout+(Rdson3-Rdson4-Rs)*Table1[[#This Row],[Iin]]),IF(Table1[[#This Row],[Vin]]>Vout, (Vout-Table1[[#This Row],[Vin]]*D_max_exitBB_to_buck)/Vout, (Vout-Table1[[#This Row],[Vin]]*D_max_buck_BB)/Vout)) -> 0.6242938226 | P9: =CHOOSE(Table1[[#This Row],[Mode Digit]],0,0,1-((Table1[[#This Row],[Vin]]-Vout)+((VIN_BB_to_buck-VIN_BB_to_boost)/2))/((VIN_BB_to_buck-VIN_BB_to_boost))) -> 0 | Q9: =CHOOSE(Table1[[#This Row],[Mode Digit]],0,Table1[[#This Row],[Duty Cycle BOOST Leg]]/Fsw,(1/Fsw-Table1[[#This Row],[T BOD/BUE]])*Table1[[#This Row],[BOE/BUD BUBO ratio]]) -> 1.642878481e-06 | R9: =CHOOSE(Table1[[#This Row],[Mode Digit]],Table1[[#This Row],[Duty Cycle BUCK Leg]]/Fsw,(1-Table1[[#This Row],[Duty Cycle BOOST Leg]])/Fsw,TonBubo) -> 9.887004668e-07 | S9: =CHOOSE(Table1[[#This Row],[Mode Digit]],(1-Table1[[#This Row],[Duty Cycle BUCK Leg]])/Fsw,0,(1/Fsw-Table1[[#This Row],[T BOD/BUE]]-Table1[[#This Row],[T BOE]])) -> 0 | T9: =MAX(0, CHOOSE(Table1[[#This Row],[Mode Digit]], (Table1[[#This Row],[Vin]]-(Rdson1+Rdcr)*Table1[[#This Row],[Iout]]-Vout)*Table1[[#This Row],[Duty Cycle BUCK Leg]]/(Fsw*Lf), (Table1[[#This Row],[Vin]]-(Rdson4+Rdcr+Rs)*Table1[[#This Row],[Iin]])*Table1[[#This Row],[Duty Cycle BOOST Leg]]/(Fsw*Lf), IF(Table1[[#This Row],[Vin]]<Vout, (Table1[[#This Row],[Vin]]-(Rdson1+Rdson3+Rdcr+Rs)*Table1[[#This Row],[Iin]])*Table1[[#This Row],[T BOE]]/(Lf),(Vout-(Rdson2+Rdson4+Rdcr+Rs)*Table1[[#This Row],[Iout]])*Table1[[#This Row],[T BUD]]/(Lf)))) -> 4.200382575 | U9: =CHOOSE(Table1[[#This Row],[Mode Digit]], SQRT(Table1[[#This Row],[Iout]]^2+(Table1[[#This Row],[Ripple Current pk-pk]]^2)/12), SQRT(Table1[[#This Row],[Iin]]^2+(Table1[[#This Row],[Ripple Current pk-pk]]^2)/12), SQRT(Table1[[#This Row],[Avg IL]]^2+(Table1[[#This Row],[Ripple Current pk-pk]]^2)/12)) -> 16.21382457 | V9: =(Table1[[#This Row],[Irms Lf]]^2*Rdcr*(1+Ltc*Ta-Ltc*25))/(1-Table1[[#This Row],[Irms Lf]]^2*Rdcr*Ltc*ThetaCa) -> 1.085745391 | W9: =ABS(7.759*10^-3*Fsw^0.9458*(0.00787*Table1[[#This Row],[Ripple Current pk-pk]])^2.304) -> 0.5695716533 | X9: =Table1[[#This Row],[DCR Loss]]+Table1[[#This Row],[Core Loss]] -> 1.655317044 | Y9: =IF(Table1[[#This Row],[Vin]]>Vout, Table1[[#This Row],[Ripple Current pk-pk]]/SQRT(12), SQRT(Table1[[#This Row],[Duty Cycle BOOST Leg]]/(1-Table1[[#This Row],[Duty Cycle BOOST Leg]]))*SQRT(Table1[[#This Row],[Iout]]^2+(Table1[[#This Row],[Ripple Current pk-pk]]^2)/12)) -> 7.890667612 | Z9: =RCoutEsr*Table1[[#This Row],[Irms Cout]]^2 -> 0.1245252707 | AA9: =Table1[[#This Row],[Cout ESR Loss]] -> 0.1245252707 | AB9: =IF(Table1[[#This Row],[Vin]]>Vout, SQRT(Table1[[#This Row],[Duty Cycle BUCK Leg]]*(1-Table1[[#This Row],[Duty Cycle BUCK Leg]]))*SQRT(Table1[[#This Row],[Iout]]^2+(Table1[[#This Row],[Ripple Current pk-pk]]^2)/12), Table1[[#This Row],[Ripple Current pk-pk]]/SQRT(12)) -> 1.212546005 | AC9: =RCinEsr*Table1[[#This Row],[Irms Cin]]^2 -> 0.002940535629 | AD9: =Table1[[#This Row],[Cin ESR Loss]] -> 0.002940535629 | AE9: =Table1[[#This Row],[Irms Lf]] -> 16.21382457 | AF9: =Rdson1*Table1[[#This Row],[Irms1]]^2 -> 1.156707671 | AG9: =CHOOSE(Table1[[#This Row],[Mode Digit]], (Table1[[#This Row],[Vin]]*Table1[[#This Row],[Iout]]/2)*(Fsw)*(Tr_buck+Tf_buck), 0, (Table1[[#This Row],[Vin]]*Table1[[#This Row],[Avg IL]]/2)*(Fsw/1)*(Tr_buck+Tf_buck)) -> 0 | AH9: =IF(Table1[[#This Row],[Vin]]>Vout, IF(Table1[[#This Row],[Iout]]>Table1[[#This Row],[Ripple Current pk-pk]]/2,0,ABS(Table1[[#This Row],[Iout]]-Table1[[#This Row],[Ripple Current pk-pk]]/2)*Vsd_Q1*Deadtime*Fsw),0) -> 0 | AI9: =(Table1[[#This Row],[Dead Time Loss ]]+Table1[[#This Row],[Transition Loss]]+Table1[[#This Row],[RDS(on) Loss]]*(1+RdsonTopTc*Ta-RdsonTopTc*25))/(1-Table1[[#This Row],[RDS(on) Loss]]*RdsonTopTc*ThetaJA_Q1) -> 1.654197694 | AJ9: =Table1[[#This Row],[Irms Lf]] -> 16.21382457 | AK9: =Rdson2*Table1[[#This Row],[Irms2]]^2 -> 1.156707671 | AL9: =CHOOSE(Table1[[#This Row],[Mode Digit]], IF(Table1[[#This Row],[Iout]]<Table1[[#This Row],[Ripple Current pk-pk]]/2,Deadtime*Fsw*IF(VfdSky_Q2>0,0,Vsd_Q2)*(Table1[[#This Row],[Iout]]+Table1[[#This Row],[Ripple Current pk-pk]]/2),2*Deadtime*Fsw*IF(VfdSky_Q2>0,0,Vsd_Q2)*Table1[[#This Row],[Iout]]),0, IF(Table1[[#This Row],[Iout]]<Table1[[#This Row],[Ripple Current pk-pk]]/2,Deadtime*Fsw*IF(VfdSky_Q2>0,0,Vsd_Q2)*(Table1[[#This Row],[Iout]]+Table1[[#This Row],[Ripple Current pk-pk]]/2),2*Deadtime*Fsw*IF(VfdSky_Q2>0,0,Vsd_Q2)*Table1[[#This Row],[Iout]])) -> 0 | AM9: =(Table1[[#This Row],[Deadtime Loss]]+Table1[[#This Row],[RDS(on) Loss3]]*(1+RdsonBotTc*Ta-RdsonBotTc*25))/(1-Table1[[#This Row],[RDS(on) Loss3]]*RdsonBotTc*ThetaJA_Q2) -> 1.654197694 | AN9: =Table1[[#This Row],[Irms Lf]] -> 16.21382457 | AO9: =Rdson4*Table1[[#This Row],[Irms4]]^2 -> 1.156707671 | AP9: =CHOOSE(Table1[[#This Row],[Mode Digit]], 0, (Vout*Table1[[#This Row],[Iin]]/2)*(Fsw)*(Tr_boost+Tf_boost), (Vout*Iout/2)*(Fsw/1)*(Tr_boost+Tf_boost)) -> 0.762787917 | AQ9: =IF(Table1[[#This Row],[Vin]]>Vout, 0, IF(Table1[[#This Row],[Iin]]>Table1[[#This Row],[Ripple Current pk-pk]]/2,0,ABS(Table1[[#This Row],[Iin]]-Table1[[#This Row],[Ripple Current pk-pk]]/2)*Vsd_Q4*Deadtime*Fsw)) -> 0 | AR9: =(Table1[[#This Row],[Dead Time Loss 7]]+Table1[[#This Row],[Transition Loss6]]+Table1[[#This Row],[RDS(on) Loss5]]*(1+RdsonTopTc*Ta-RdsonTopTc*25))/(1-Table1[[#This Row],[RDS(on) Loss5]]*RdsonTopTc*ThetaJA_Q4) -> 2.745054134 | AS9: =Table1[[#This Row],[Irms Lf]] -> 16.21382457 | AT9: =Rdson3*Table1[[#This Row],[Irms9]]^2 -> 1.156707671 | AU9: =CHOOSE(Table1[[#This Row],[Mode Digit]], 0, IF(Table1[[#This Row],[Iin]]<Table1[[#This Row],[Ripple Current pk-pk]]/2,Deadtime*Fsw*IF(VfdSky_Q3>0,0,Vsd_Q3)*(Table1[[#This Row],[Iin]]+Table1[[#This Row],[Ripple Current pk-pk]]/2), 2*Deadtime*Fsw*IF(VfdSky_Q3>0,0,Vsd_Q3)*Table1[[#This Row],[Iin]]), IF(Table1[[#This Row],[Iin]]<Table1[[#This Row],[Ripple Current pk-pk]]/2,Deadtime*Fsw*IF(VfdSky_Q3>0,0,Vsd_Q3)*(Table1[[#This Row],[Iin]]+Table1[[#This Row],[Ripple Current pk-pk]]/2), 2*Deadtime*Fsw*IF(VfdSky_Q3>0,0,Vsd_Q3)*Table1[[#This Row],[Iin]])) -> 0.55296 | AV9: =(Table1[[#This Row],[Deadtime Loss11]]+Table1[[#This Row],[RDS(on) Loss10]]*(1+RdsonBotTc*Ta-RdsonBotTc*25))/(1-Table1[[#This Row],[RDS(on) Loss10]]*RdsonBotTc*ThetaJA_Q3) -> 2.444981034 | AW9: =CHOOSE(Table1[[#This Row],[Mode Digit]], Rdson3*Table1[[#This Row],[Irms Lf]]^2, Rdson1*Table1[[#This Row],[Irms Lf]]^2, 0) -> 1.156707671 | AX9: =CHOOSE(Table1[[#This Row],[Mode Digit]], 2*Deadtime*Fsw*IF(VfdSky_Q2>0,VfdSky_Q2,0)*Table1[[#This Row],[Iout]], 2*Deadtime*Fsw*IF(VfdSky_Q3>0,VfdSky_Q3,0)*Table1[[#This Row],[Iin]], 2*Deadtime*Fsw*IF(VfdSky_Q2>0,VfdSky_Q2,0)*Table1[[#This Row],[Iout]]+2*Deadtime*Fsw*IF(VfdSky_Q3>0,VfdSky_Q3,0)*Table1[[#This Row],[Iin]]) -> 0 | AY9: =CHOOSE(Table1[[#This Row],[Mode Digit]], IF(QrrSky_Q2>0,QrrSky_Q2,Qrr_Q2)*Fsw*(Table1[[#This Row],[Vin]]-Table1[[#This Row],[Iout]]*Rdson1), IF(QrrSky_Q3>0,QrrSky_Q3,Qrr_Q3)*Fsw*Vout, IF(QrrSky_Q2>0,QrrSky_Q2,Qrr_Q2)*Fsw*(Table1[[#This Row],[Vin]]-Table1[[#This Row],[Iout]]*Rdson1)+IF(QrrSky_Q3>0,QrrSky_Q3,Qrr_Q3)*Fsw*Vout) -> 0.2801664 | AZ9: =CHOOSE(Table1[[#This Row],[Mode Digit]], Rs*Table1[[#This Row],[Irms2]]^2, Rs*Table1[[#This Row],[Irms4]]^2, Rs*(Table1[[#This Row],[Irms2]]^2+Table1[[#This Row],[Irms4]]^2)) -> 0.5257762143 | BA9: =Rshunt_std/1000*Iout^2 -> 0.594 | BB9: =IF(Vout>8, Iq*Vout, Iq*Table1[[#This Row],[Vin]]) -> 0.03072 | BC9: =CHOOSE(Table1[[#This Row],[Mode Digit]], (Qg_Q1+Qg_Q2)*Fsw, (Qg_Q3+Qg_Q4)*Fsw, (Qg_Q1+Qg_Q2+Qg_Q3+Qg_Q4)*Fsw)*IF(Vout>8, Vout, Table1[[#This Row],[Vin]]) -> 0.3579904 | BD9: =(Vin-Vdd)*Fsw*(Qg_Q1+Qg_Q2)+(RdsonDRT+RdsonDRT2)*Fsw*Qg_Q1*Vdd/(RdsonDRT+2*Rgate1+RdsonDRT2)+(RdsonDRB+RdsonDRB2)*Fsw*Qg_Q2*Vdd/(RdsonDRB+2*Rgate2+RdsonDRB2) -> 0.7053694118 | BE9: =Table1[[#This Row],[IQ Loss]]+Table1[[#This Row],[Switching Current Loss]] -> 0.3887104 | BF9: =SUM(Table1[[#This Row],[Total Inductor Loss]],Table1[[#This Row],[Total Cout Loss]],Table1[[#This Row],[Total Cin Loss]],Table1[[#This Row],[Total Control MOSFET Loss]],Table1[[#This Row],[Total Sync MOSFET Loss]],Table1[[#This Row],[Total Control MOSFET Loss8]],Table1[[#This Row],[Total Sync MOSFET Loss12]], Table1[[#This Row],[Deadtime Loss13]],Table1[[#This Row],[Reverse Recovery Loss]],Table1[[#This Row],[Total IC Loss]],Table1[[#This Row],[Isense Shunt Loss]],Table1[[#This Row],[Iout Shunt Loss]]) -> 12.06986642 | BG9: =Vout*Table1[[#This Row],[Iout]] -> 61.44 | BH9: =Table1[[#This Row],[Pout]]/(Table1[[#This Row],[Pout]]+Table1[[#This Row],[Total Loss]]) -> 0.8358061712 | BI9: =IF(Table1[[#This Row],[Vin]]>Vout,ThetaJA_Q1*(Table1[[#This Row],[Total Control MOSFET Loss]]+Table1[[#This Row],[Reverse Recovery Loss]]),ThetaJA_Q4*(Table1[[#This Row],[Total Control MOSFET Loss8]]+Table1[[#This Row],[Reverse Recovery Loss]])) -> 196.6393347 | BJ9: =IF(Table1[[#This Row],[Vin]]>Vout, Table1[[#This Row],[Total Sync MOSFET Loss]]*ThetaJA_Q2, ThetaJA_Q3*Table1[[#This Row],[Total Sync MOSFET Loss12]]) -> 158.9237672 | BL9: =Table1[[#This Row],[EFF, h]]*100 -> 83.58061712 | BM9: =Table1[[#This Row],[Total Inductor Loss]] -> 1.655317044 | BN9: =Table1[[#This Row],[Total Control MOSFET Loss]]+Table1[[#This Row],[Total Sync MOSFET Loss]]+Table1[[#This Row],[Total Control MOSFET Loss8]]+Table1[[#This Row],[Total Sync MOSFET Loss12]]+Table1[[#This Row],[Reverse Recovery Loss]] -> 8.778596956 | BO9: =Table1[[#This Row],[Total Sync MOSFET Loss]]+Table1[[#This Row],[Reverse Recovery Loss]]*0.33 -> 1.746652606 | BP9: =Table1[[#This Row],[Isense Shunt Loss]] -> 0.5257762143 | BT9: 250kHz / 5-1.2V /25A | BU9: 70 | BV9: 70 | BW9: 70 | BX9: =250000*(5-Vdd)*BW9/1000000000+((250000*BW9/1000000000*Vdd)*2.5/(2*4)) -> -0.002734375 | BY9: =BY$6*$BX9 -> -0.21875 | BZ9: -0.2734375 | CA9: -0.328125 | CB9: -0.3828125 | CC9: -0.4375 | CD9: -0.4921875 | CE9: -0.0546875 | CF9: -0.08203125 | CG9: -0.109375 | CH9: -0.13671875
G10: 1 | H10: =VIN_min+(VIN_max-VIN_min)*(Table1[[#This Row],[Step]]/200) -> 4.28 | I10: =IF(Table1[[#This Row],[Vin]]>VIN_BB_to_buck, "BUCK", IF(Table1[[#This Row],[Vin]]<=VIN_boost_to_BB,"BOOST","BUCK-BST")) -> BOOST | J10: =IF(Table1[[#This Row],[Mode]]="BOOST",2, IF(Table1[[#This Row],[Mode]]="BUCK", 1,3)) -> 2 | K10: 6 | L10: =Vout*Table1[[#This Row],[Iout]]/(Table1[[#This Row],[Vin]]*Efficiency) -> 15.11067388 | M10: =Iout/(1-Table1[[#This Row],[Duty Cycle BOOST Leg]]) -> 14.84745161 | N10: =CHOOSE(Table1[[#This Row],[Mode Digit]],(Vout+(Rdson2+Rs+Rdcr)*Table1[[#This Row],[Iout]])/(Table1[[#This Row],[Vin]]+(Rs+Rdson2-Rdson1)*Table1[[#This Row],[Iout]]),1,IF(Table1[[#This Row],[Vin]]<Vout,D_max_buck_BB,Vout/Table1[[#This Row],[Vin]]*(1-D_min_boost_exitBB_to_buck))) -> 1 | O10: =CHOOSE(Table1[[#This Row],[Mode Digit]],0,(Vout+(Rdson3+Rdcr)*Table1[[#This Row],[Iin]]-Table1[[#This Row],[Vin]])/(Vout+(Rdson3-Rdson4-Rs)*Table1[[#This Row],[Iin]]),IF(Table1[[#This Row],[Vin]]>Vout, (Vout-Table1[[#This Row],[Vin]]*D_max_exitBB_to_buck)/Vout, (Vout-Table1[[#This Row],[Vin]]*D_max_buck_BB)/Vout)) -> 0.5958902473 | P10: =CHOOSE(Table1[[#This Row],[Mode Digit]],0,0,1-((Table1[[#This Row],[Vin]]-Vout)+((VIN_BB_to_buck-VIN_BB_to_boost)/2))/((VIN_BB_to_buck-VIN_BB_to_boost))) -> 0 | Q10: =CHOOSE(Table1[[#This Row],[Mode Digit]],0,Table1[[#This Row],[Duty Cycle BOOST Leg]]/Fsw,(1/Fsw-Table1[[#This Row],[T BOD/BUE]])*Table1[[#This Row],[BOE/BUD BUBO ratio]]) -> 1.56813223e-06 | R10: =CHOOSE(Table1[[#This Row],[Mode Digit]],Table1[[#This Row],[Duty Cycle BUCK Leg]]/Fsw,(1-Table1[[#This Row],[Duty Cycle BOOST Leg]])/Fsw,TonBubo) -> 1.063446718e-06 | S10: =CHOOSE(Table1[[#This Row],[Mode Digit]],(1-Table1[[#This Row],[Duty Cycle BUCK Leg]])/Fsw,0,(1/Fsw-Table1[[#This Row],[T BOD/BUE]]-Table1[[#This Row],[T BOE]])) -> 0 | T10: =MAX(0, CHOOSE(Table1[[#This Row],[Mode Digit]], (Table1[[#This Row],[Vin]]-(Rdson1+Rdcr)*Table1[[#This Row],[Iout]]-Vout)*Table1[[#This Row],[Duty Cycle BUCK Leg]]/(Fsw*Lf), (Table1[[#This Row],[Vin]]-(Rdson4+Rdcr+Rs)*Table1[[#This Row],[Iin]])*Table1[[#This Row],[Duty Cycle BOOST Leg]]/(Fsw*Lf), IF(Table1[[#This Row],[Vin]]<Vout, (Table1[[#This Row],[Vin]]-(Rdson1+Rdson3+Rdcr+Rs)*Table1[[#This Row],[Iin]])*Table1[[#This Row],[T BOE]]/(Lf),(Vout-(Rdson2+Rdson4+Rdcr+Rs)*Table1[[#This Row],[Iout]])*Table1[[#This Row],[T BUD]]/(Lf)))) -> 4.313274326 | U10: =CHOOSE(Table1[[#This Row],[Mode Digit]], SQRT(Table1[[#This Row],[Iout]]^2+(Table1[[#This Row],[Ripple Current pk-pk]]^2)/12), SQRT(Table1[[#This Row],[Iin]]^2+(Table1[[#This Row],[Ripple Current pk-pk]]^2)/12), SQRT(Table1[[#This Row],[Avg IL]]^2+(Table1[[#This Row],[Ripple Current pk-pk]]^2)/12)) -> 15.1618873 | V10: =(Table1[[#This Row],[Irms Lf]]^2*Rdcr*(1+Ltc*Ta-Ltc*25))/(1-Table1[[#This Row],[Irms Lf]]^2*Rdcr*Ltc*ThetaCa) -> 0.9391894092 | W10: =ABS(7.759*10^-3*Fsw^0.9458*(0.00787*Table1[[#This Row],[Ripple Current pk-pk]])^2.304) -> 0.605461279 | X10: =Table1[[#This Row],[DCR Loss]]+Table1[[#This Row],[Core Loss]] -> 1.544650688 | Y10: =IF(Table1[[#This Row],[Vin]]>Vout, Table1[[#This Row],[Ripple Current pk-pk]]/SQRT(12), SQRT(Table1[[#This Row],[Duty Cycle BOOST Leg]]/(1-Table1[[#This Row],[Duty Cycle BOOST Leg]]))*SQRT(Table1[[#This Row],[Iout]]^2+(Table1[[#This Row],[Ripple Current pk-pk]]^2)/12)) -> 7.441158115 | Z10: =RCoutEsr*Table1[[#This Row],[Irms Cout]]^2 -> 0.1107416682 | AA10: =Table1[[#This Row],[Cout ESR Loss]] -> 0.1107416682 | AB10: =IF(Table1[[#This Row],[Vin]]>Vout, SQRT(Table1[[#This Row],[Duty Cycle BUCK Leg]]*(1-Table1[[#This Row],[Duty Cycle BUCK Leg]]))*SQRT(Table1[[#This Row],[Iout]]^2+(Table1[[#This Row],[Ripple Current pk-pk]]^2)/12), Table1[[#This Row],[Ripple Current pk-pk]]/SQRT(12)) -> 1.245135047 | AC10: =RCinEsr*Table1[[#This Row],[Irms Cin]]^2 -> 0.003100722568 | AD10: =Table1[[#This Row],[Cin ESR Loss]] -> 0.003100722568 | AE10: =Table1[[#This Row],[Irms Lf]] -> 15.1618873 | AF10: =Rdson1*Table1[[#This Row],[Irms1]]^2 -> 1.011484436 | AG10: =CHOOSE(Table1[[#This Row],[Mode Digit]], (Table1[[#This Row],[Vin]]*Table1[[#This Row],[Iout]]/2)*(Fsw)*(Tr_buck+Tf_buck), 0, (Table1[[#This Row],[Vin]]*Table1[[#This Row],[Avg IL]]/2)*(Fsw/1)*(Tr_buck+Tf_buck)) -> 0 | AH10: =IF(Table1[[#This Row],[Vin]]>Vout, IF(Table1[[#This Row],[Iout]]>Table1[[#This Row],[Ripple Current pk-pk]]/2,0,ABS(Table1[[#This Row],[Iout]]-Table1[[#This Row],[Ripple Current pk-pk]]/2)*Vsd_Q1*Deadtime*Fsw),0) -> 0 | AI10: =(Table1[[#This Row],[Dead Time Loss ]]+Table1[[#This Row],[Transition Loss]]+Table1[[#This Row],[RDS(on) Loss]]*(1+RdsonTopTc*Ta-RdsonTopTc*25))/(1-Table1[[#This Row],[RDS(on) Loss]]*RdsonTopTc*ThetaJA_Q1) -> 1.372408628 | AJ10: =Table1[[#This Row],[Irms Lf]] -> 15.1618873 | AK10: =Rdson2*Table1[[#This Row],[Irms2]]^2 -> 1.011484436 | AL10: =CHOOSE(Table1[[#This Row],[Mode Digit]], IF(Table1[[#This Row],[Iout]]<Table1[[#This Row],[Ripple Current pk-pk]]/2,Deadtime*Fsw*IF(VfdSky_Q2>0,0,Vsd_Q2)*(Table1[[#This Row],[Iout]]+Table1[[#This Row],[Ripple Current pk-pk]]/2),2*Deadtime*Fsw*IF(VfdSky_Q2>0,0,Vsd_Q2)*Table1[[#This Row],[Iout]]),0, IF(Table1[[#This Row],[Iout]]<Table1[[#This Row],[Ripple Current pk-pk]]/2,Deadtime*Fsw*IF(VfdSky_Q2>0,0,Vsd_Q2)*(Table1[[#This Row],[Iout]]+Table1[[#This Row],[Ripple Current pk-pk]]/2),2*Deadtime*Fsw*IF(VfdSky_Q2>0,0,Vsd_Q2)*Table1[[#This Row],[Iout]])) -> 0 | AM10: =(Table1[[#This Row],[Deadtime Loss]]+Table1[[#This Row],[RDS(on) Loss3]]*(1+RdsonBotTc*Ta-RdsonBotTc*25))/(1-Table1[[#This Row],[RDS(on) Loss3]]*RdsonBotTc*ThetaJA_Q2) -> 1.372408628 | AN10: =Table1[[#This Row],[Irms Lf]] -> 15.1618873 | AO10: =Rdson4*Table1[[#This Row],[Irms4]]^2 -> 1.011484436 | AP10: =CHOOSE(Table1[[#This Row],[Mode Digit]], 0, (Vout*Table1[[#This Row],[Iin]]/2)*(Fsw)*(Tr_boost+Tf_boost), (Vout*Iout/2)*(Fsw/1)*(Tr_boost+Tf_boost)) -> 0.7128859038 | AQ10: =IF(Table1[[#This Row],[Vin]]>Vout, 0, IF(Table1[[#This Row],[Iin]]>Table1[[#This Row],[Ripple Current pk-pk]]/2,0,ABS(Table1[[#This Row],[Iin]]-Table1[[#This Row],[Ripple Current pk-pk]]/2)*Vsd_Q4*Deadtime*Fsw)) -> 0 | AR10: =(Table1[[#This Row],[Dead Time Loss 7]]+Table1[[#This Row],[Transition Loss6]]+Table1[[#This Row],[RDS(on) Loss5]]*(1+RdsonTopTc*Ta-RdsonTopTc*25))/(1-Table1[[#This Row],[RDS(on) Loss5]]*RdsonTopTc*ThetaJA_Q4) -> 2.33967093 | AS10: =Table1[[#This Row],[Irms Lf]] -> 15.1618873 | AT10: =Rdson3*Table1[[#This Row],[Irms9]]^2 -> 1.011484436 | AU10: =CHOOSE(Table1[[#This Row],[Mode Digit]], 0, IF(Table1[[#This Row],[Iin]]<Table1[[#This Row],[Ripple Current pk-pk]]/2,Deadtime*Fsw*IF(VfdSky_Q3>0,0,Vsd_Q3)*(Table1[[#This Row],[Iin]]+Table1[[#This Row],[Ripple Current pk-pk]]/2), 2*Deadtime*Fsw*IF(VfdSky_Q3>0,0,Vsd_Q3)*Table1[[#This Row],[Iin]]), IF(Table1[[#This Row],[Iin]]<Table1[[#This Row],[Ripple Current pk-pk]]/2,Deadtime*Fsw*IF(VfdSky_Q3>0,0,Vsd_Q3)*(Table1[[#This Row],[Iin]]+Table1[[#This Row],[Ripple Current pk-pk]]/2), 2*Deadtime*Fsw*IF(VfdSky_Q3>0,0,Vsd_Q3)*Table1[[#This Row],[Iin]])) -> 0.5167850467 | AV10: =(Table1[[#This Row],[Deadtime Loss11]]+Table1[[#This Row],[RDS(on) Loss10]]*(1+RdsonBotTc*Ta-RdsonBotTc*25))/(1-Table1[[#This Row],[RDS(on) Loss10]]*RdsonBotTc*ThetaJA_Q3) -> 2.073596141 | AW10: =CHOOSE(Table1[[#This Row],[Mode Digit]], Rdson3*Table1[[#This Row],[Irms Lf]]^2, Rdson1*Table1[[#This Row],[Irms Lf]]^2, 0) -> 1.011484436 | AX10: =CHOOSE(Table1[[#This Row],[Mode Digit]], 2*Deadtime*Fsw*IF(VfdSky_Q2>0,VfdSky_Q2,0)*Table1[[#This Row],[Iout]], 2*Deadtime*Fsw*IF(VfdSky_Q3>0,VfdSky_Q3,0)*Table1[[#This Row],[Iin]], 2*Deadtime*Fsw*IF(VfdSky_Q2>0,VfdSky_Q2,0)*Table1[[#This Row],[Iout]]+2*Deadtime*Fsw*IF(VfdSky_Q3>0,VfdSky_Q3,0)*Table1[[#This Row],[Iin]]) -> 0 | AY10: =CHOOSE(Table1[[#This Row],[Mode Digit]], IF(QrrSky_Q2>0,QrrSky_Q2,Qrr_Q2)*Fsw*(Table1[[#This Row],[Vin]]-Table1[[#This Row],[Iout]]*Rdson1), IF(QrrSky_Q3>0,QrrSky_Q3,Qrr_Q3)*Fsw*Vout, IF(QrrSky_Q2>0,QrrSky_Q2,Qrr_Q2)*Fsw*(Table1[[#This Row],[Vin]]-Table1[[#This Row],[Iout]]*Rdson1)+IF(QrrSky_Q3>0,QrrSky_Q3,Qrr_Q3)*Fsw*Vout) -> 0.2801664 | AZ10: =CHOOSE(Table1[[#This Row],[Mode Digit]], Rs*Table1[[#This Row],[Irms2]]^2, Rs*Table1[[#This Row],[Irms4]]^2, Rs*(Table1[[#This Row],[Irms2]]^2+Table1[[#This Row],[Irms4]]^2)) -> 0.4597656528 | BA10: 0.594 | BB10: =IF(Vout>8, Iq*Vout, Iq*Table1[[#This Row],[Vin]]) -> 0.03072 | BC10: =CHOOSE(Table1[[#This Row],[Mode Digit]], (Qg_Q1+Qg_Q2)*Fsw, (Qg_Q3+Qg_Q4)*Fsw, (Qg_Q1+Qg_Q2+Qg_Q3+Qg_Q4)*Fsw)*IF(Vout>8, Vout, Table1[[#This Row],[Vin]]) -> 0.3579904 | BD10: 0.7053694118 | BE10: =Table1[[#This Row],[IQ Loss]]+Table1[[#This Row],[Switching Current Loss]] -> 0.3887104 | BF10: =SUM(Table1[[#This Row],[Total Inductor Loss]],Table1[[#This Row],[Total Cout Loss]],Table1[[#This Row],[Total Cin Loss]],Table1[[#This Row],[Total Control MOSFET Loss]],Table1[[#This Row],[Total Sync MOSFET Loss]],Table1[[#This Row],[Total Control MOSFET Loss8]],Table1[[#This Row],[Total Sync MOSFET Loss12]], Table1[[#This Row],[Deadtime Loss13]],Table1[[#This Row],[Reverse Recovery Loss]],Table1[[#This Row],[Total IC Loss]],Table1[[#This Row],[Isense Shunt Loss]],Table1[[#This Row],[Iout Shunt Loss]]) -> 10.53921986 | BG10: =Vout*Table1[[#This Row],[Iout]] -> 61.44 | BH10: =Table1[[#This Row],[Pout]]/(Table1[[#This Row],[Pout]]+Table1[[#This Row],[Total Loss]]) -> 0.8535796876 | BI10: =IF(Table1[[#This Row],[Vin]]>Vout,ThetaJA_Q1*(Table1[[#This Row],[Total Control MOSFET Loss]]+Table1[[#This Row],[Reverse Recovery Loss]]),ThetaJA_Q4*(Table1[[#This Row],[Total Control MOSFET Loss8]]+Table1[[#This Row],[Reverse Recovery Loss]])) -> 170.2894265 | BJ10: =IF(Table1[[#This Row],[Vin]]>Vout, Table1[[#This Row],[Total Sync MOSFET Loss]]*ThetaJA_Q2, ThetaJA_Q3*Table1[[#This Row],[Total Sync MOSFET Loss12]]) -> 134.7837492 | BL10: =Table1[[#This Row],[EFF, h]]*100 -> 85.35796876 | BM10: =Table1[[#This Row],[Total Inductor Loss]] -> 1.544650688 | BN10: =Table1[[#This Row],[Total Control MOSFET Loss]]+Table1[[#This Row],[Total Sync MOSFET Loss]]+Table1[[#This Row],[Total Control MOSFET Loss8]]+Table1[[#This Row],[Total Sync MOSFET Loss12]]+Table1[[#This Row],[Reverse Recovery Loss]] -> 7.438250727 | BO10: =Table1[[#This Row],[Total Sync MOSFET Loss]]+Table1[[#This Row],[Reverse Recovery Loss]]*0.33 -> 1.46486354 | BP10: =Table1[[#This Row],[Isense Shunt Loss]] -> 0.4597656528
A11: Vin | B11: =Vin -> 24 | C11: V | D11: Vin | G11: 2 | H11: =VIN_min+(VIN_max-VIN_min)*(Table1[[#This Row],[Step]]/200) -> 4.56 | I11: =IF(Table1[[#This Row],[Vin]]>VIN_BB_to_buck, "BUCK", IF(Table1[[#This Row],[Vin]]<=VIN_boost_to_BB,"BOOST","BUCK-BST")) -> BOOST | J11: =IF(Table1[[#This Row],[Mode]]="BOOST",2, IF(Table1[[#This Row],[Mode]]="BUCK", 1,3)) -> 2 | K11: 6 | L11: =Vout*Table1[[#This Row],[Iout]]/(Table1[[#This Row],[Vin]]*Efficiency) -> 14.18282548 | M11: =Iout/(1-Table1[[#This Row],[Duty Cycle BOOST Leg]]) -> 13.87659228 | N11: =CHOOSE(Table1[[#This Row],[Mode Digit]],(Vout+(Rdson2+Rs+Rdcr)*Table1[[#This Row],[Iout]])/(Table1[[#This Row],[Vin]]+(Rs+Rdson2-Rdson1)*Table1[[#This Row],[Iout]]),1,IF(Table1[[#This Row],[Vin]]<Vout,D_max_buck_BB,Vout/Table1[[#This Row],[Vin]]*(1-D_min_boost_exitBB_to_buck))) -> 1 | O11: =CHOOSE(Table1[[#This Row],[Mode Digit]],0,(Vout+(Rdson3+Rdcr)*Table1[[#This Row],[Iin]]-Table1[[#This Row],[Vin]])/(Vout+(Rdson3-Rdson4-Rs)*Table1[[#This Row],[Iin]]),IF(Table1[[#This Row],[Vin]]>Vout, (Vout-Table1[[#This Row],[Vin]]*D_max_exitBB_to_buck)/Vout, (Vout-Table1[[#This Row],[Vin]]*D_max_buck_BB)/Vout)) -> 0.5676171875 | P11: =CHOOSE(Table1[[#This Row],[Mode Digit]],0,0,1-((Table1[[#This Row],[Vin]]-Vout)+((VIN_BB_to_buck-VIN_BB_to_boost)/2))/((VIN_BB_to_buck-VIN_BB_to_boost))) -> 0 | Q11: =CHOOSE(Table1[[#This Row],[Mode Digit]],0,Table1[[#This Row],[Duty Cycle BOOST Leg]]/Fsw,(1/Fsw-Table1[[#This Row],[T BOD/BUE]])*Table1[[#This Row],[BOE/BUD BUBO ratio]]) -> 1.493729441e-06 | R11: =CHOOSE(Table1[[#This Row],[Mode Digit]],Table1[[#This Row],[Duty Cycle BUCK Leg]]/Fsw,(1-Table1[[#This Row],[Duty Cycle BOOST Leg]])/Fsw,TonBubo) -> 1.137849507e-06 | S11: =CHOOSE(Table1[[#This Row],[Mode Digit]],(1-Table1[[#This Row],[Duty Cycle BUCK Leg]])/Fsw,0,(1/Fsw-Table1[[#This Row],[T BOD/BUE]]-Table1[[#This Row],[T BOE]])) -> 0 | T11: =MAX(0, CHOOSE(Table1[[#This Row],[Mode Digit]], (Table1[[#This Row],[Vin]]-(Rdson1+Rdcr)*Table1[[#This Row],[Iout]]-Vout)*Table1[[#This Row],[Duty Cycle BUCK Leg]]/(Fsw*Lf), (Table1[[#This Row],[Vin]]-(Rdson4+Rdcr+Rs)*Table1[[#This Row],[Iin]])*Table1[[#This Row],[Duty Cycle BOOST Leg]]/(Fsw*Lf), IF(Table1[[#This Row],[Vin]]<Vout, (Table1[[#This Row],[Vin]]-(Rdson1+Rdson3+Rdcr+Rs)*Table1[[#This Row],[Iin]])*Table1[[#This Row],[T BOE]]/(Lf),(Vout-(Rdson2+Rdson4+Rdcr+Rs)*Table1[[#This Row],[Iout]])*Table1[[#This Row],[T BUD]]/(Lf)))) -> 4.396877433 | U11: =CHOOSE(Table1[[#This Row],[Mode Digit]], SQRT(Table1[[#This Row],[Iout]]^2+(Table1[[#This Row],[Ripple Current pk-pk]]^2)/12), SQRT(Table1[[#This Row],[Iin]]^2+(Table1[[#This Row],[Ripple Current pk-pk]]^2)/12), SQRT(Table1[[#This Row],[Avg IL]]^2+(Table1[[#This Row],[Ripple Current pk-pk]]^2)/12)) -> 14.23950782 | V11: =(Table1[[#This Row],[Irms Lf]]^2*Rdcr*(1+Ltc*Ta-Ltc*25))/(1-Table1[[#This Row],[Irms Lf]]^2*Rdcr*Ltc*ThetaCa) -> 0.8211152665 | W11: =ABS(7.759*10^-3*Fsw^0.9458*(0.00787*Table1[[#This Row],[Ripple Current pk-pk]])^2.304) -> 0.6328422486 | X11: =Table1[[#This Row],[DCR Loss]]+Table1[[#This Row],[Core Loss]] -> 1.453957515 | Y11: =IF(Table1[[#This Row],[Vin]]>Vout, Table1[[#This Row],[Ripple Current pk-pk]]/SQRT(12), SQRT(Table1[[#This Row],[Duty Cycle BOOST Leg]]/(1-Table1[[#This Row],[Duty Cycle BOOST Leg]]))*SQRT(Table1[[#This Row],[Iout]]^2+(Table1[[#This Row],[Ripple Current pk-pk]]^2)/12)) -> 7.026697435 | Z11: =RCoutEsr*Table1[[#This Row],[Irms Cout]]^2 -> 0.09874895369 | AA11: =Table1[[#This Row],[Cout ESR Loss]] -> 0.09874895369 | AB11: =IF(Table1[[#This Row],[Vin]]>Vout, SQRT(Table1[[#This Row],[Duty Cycle BUCK Leg]]*(1-Table1[[#This Row],[Duty Cycle BUCK Leg]]))*SQRT(Table1[[#This Row],[Iout]]^2+(Table1[[#This Row],[Ripple Current pk-pk]]^2)/12), Table1[[#This Row],[Ripple Current pk-pk]]/SQRT(12)) -> 1.269269185 | AC11: =RCinEsr*Table1[[#This Row],[Irms Cin]]^2 -> 0.003222088527 | AD11: =Table1[[#This Row],[Cin ESR Loss]] -> 0.003222088527 | AE11: =Table1[[#This Row],[Irms Lf]] -> 14.23950782 | AF11: =Rdson1*Table1[[#This Row],[Irms1]]^2 -> 0.8921597652 | AG11: =CHOOSE(Table1[[#This Row],[Mode Digit]], (Table1[[#This Row],[Vin]]*Table1[[#This Row],[Iout]]/2)*(Fsw)*(Tr_buck+Tf_buck), 0, (Table1[[#This Row],[Vin]]*Table1[[#This Row],[Avg IL]]/2)*(Fsw/1)*(Tr_buck+Tf_buck)) -> 0 | AH11: =IF(Table1[[#This Row],[Vin]]>Vout, IF(Table1[[#This Row],[Iout]]>Table1[[#This Row],[Ripple Current pk-pk]]/2,0,ABS(Table1[[#This Row],[Iout]]-Table1[[#This Row],[Ripple Current pk-pk]]/2)*Vsd_Q1*Deadtime*Fsw),0) -> 0 | AI11: =(Table1[[#This Row],[Dead Time Loss ]]+Table1[[#This Row],[Transition Loss]]+Table1[[#This Row],[RDS(on) Loss]]*(1+RdsonTopTc*Ta-RdsonTopTc*25))/(1-Table1[[#This Row],[RDS(on) Loss]]*RdsonTopTc*ThetaJA_Q1) -> 1.161608188 | AJ11: =Table1[[#This Row],[Irms Lf]] -> 14.23950782 | AK11: =Rdson2*Table1[[#This Row],[Irms2]]^2 -> 0.8921597652 | AL11: =CHOOSE(Table1[[#This Row],[Mode Digit]], IF(Table1[[#This Row],[Iout]]<Table1[[#This Row],[Ripple Current pk-pk]]/2,Deadtime*Fsw*IF(VfdSky_Q2>0,0,Vsd_Q2)*(Table1[[#This Row],[Iout]]+Table1[[#This Row],[Ripple Current pk-pk]]/2),2*Deadtime*Fsw*IF(VfdSky_Q2>0,0,Vsd_Q2)*Table1[[#This Row],[Iout]]),0, IF(Table1[[#This Row],[Iout]]<Table1[[#This Row],[Ripple Current pk-pk]]/2,Deadtime*Fsw*IF(VfdSky_Q2>0,0,Vsd_Q2)*(Table1[[#This Row],[Iout]]+Table1[[#This Row],[Ripple Current pk-pk]]/2),2*Deadtime*Fsw*IF(VfdSky_Q2>0,0,Vsd_Q2)*Table1[[#This Row],[Iout]])) -> 0 | AM11: =(Table1[[#This Row],[Deadtime Loss]]+Table1[[#This Row],[RDS(on) Loss3]]*(1+RdsonBotTc*Ta-RdsonBotTc*25))/(1-Table1[[#This Row],[RDS(on) Loss3]]*RdsonBotTc*ThetaJA_Q2) -> 1.161608188 | AN11: =Table1[[#This Row],[Irms Lf]] -> 14.23950782 | AO11: =Rdson4*Table1[[#This Row],[Irms4]]^2 -> 0.8921597652 | AP11: =CHOOSE(Table1[[#This Row],[Mode Digit]], 0, (Vout*Table1[[#This Row],[Iin]]/2)*(Fsw)*(Tr_boost+Tf_boost), (Vout*Iout/2)*(Fsw/1)*(Tr_boost+Tf_boost)) -> 0.6691122079 | AQ11: =IF(Table1[[#This Row],[Vin]]>Vout, 0, IF(Table1[[#This Row],[Iin]]>Table1[[#This Row],[Ripple Current pk-pk]]/2,0,ABS(Table1[[#This Row],[Iin]]-Table1[[#This Row],[Ripple Current pk-pk]]/2)*Vsd_Q4*Deadtime*Fsw)) -> 0 | AR11: =(Table1[[#This Row],[Dead Time Loss 7]]+Table1[[#This Row],[Transition Loss6]]+Table1[[#This Row],[RDS(on) Loss5]]*(1+RdsonTopTc*Ta-RdsonTopTc*25))/(1-Table1[[#This Row],[RDS(on) Loss5]]*RdsonTopTc*ThetaJA_Q4) -> 2.032804413 | AS11: =Table1[[#This Row],[Irms Lf]] -> 14.23950782 | AT11: =Rdson3*Table1[[#This Row],[Irms9]]^2 -> 0.8921597652 | AU11: =CHOOSE(Table1[[#This Row],[Mode Digit]], 0, IF(Table1[[#This Row],[Iin]]<Table1[[#This Row],[Ripple Current pk-pk]]/2,Deadtime*Fsw*IF(VfdSky_Q3>0,0,Vsd_Q3)*(Table1[[#This Row],[Iin]]+Table1[[#This Row],[Ripple Current pk-pk]]/2), 2*Deadtime*Fsw*IF(VfdSky_Q3>0,0,Vsd_Q3)*Table1[[#This Row],[Iin]]), IF(Table1[[#This Row],[Iin]]<Table1[[#This Row],[Ripple Current pk-pk]]/2,Deadtime*Fsw*IF(VfdSky_Q3>0,0,Vsd_Q3)*(Table1[[#This Row],[Iin]]+Table1[[#This Row],[Ripple Current pk-pk]]/2), 2*Deadtime*Fsw*IF(VfdSky_Q3>0,0,Vsd_Q3)*Table1[[#This Row],[Iin]])) -> 0.4850526316 | AV11: =(Table1[[#This Row],[Deadtime Loss11]]+Table1[[#This Row],[RDS(on) Loss10]]*(1+RdsonBotTc*Ta-RdsonBotTc*25))/(1-Table1[[#This Row],[RDS(on) Loss10]]*RdsonBotTc*ThetaJA_Q3) -> 1.793155508 | AW11: =CHOOSE(Table1[[#This Row],[Mode Digit]], Rdson3*Table1[[#This Row],[Irms Lf]]^2, Rdson1*Table1[[#This Row],[Irms Lf]]^2, 0) -> 0.8921597652 | AX11: =CHOOSE(Table1[[#This Row],[Mode Digit]], 2*Deadtime*Fsw*IF(VfdSky_Q2>0,VfdSky_Q2,0)*Table1[[#This Row],[Iout]], 2*Deadtime*Fsw*IF(VfdSky_Q3>0,VfdSky_Q3,0)*Table1[[#This Row],[Iin]], 2*Deadtime*Fsw*IF(VfdSky_Q2>0,VfdSky_Q2,0)*Table1[[#This Row],[Iout]]+2*Deadtime*Fsw*IF(VfdSky_Q3>0,VfdSky_Q3,0)*Table1[[#This Row],[Iin]]) -> 0 | AY11: =CHOOSE(Table1[[#This Row],[Mode Digit]], IF(QrrSky_Q2>0,QrrSky_Q2,Qrr_Q2)*Fsw*(Table1[[#This Row],[Vin]]-Table1[[#This Row],[Iout]]*Rdson1), IF(QrrSky_Q3>0,QrrSky_Q3,Qrr_Q3)*Fsw*Vout, IF(QrrSky_Q2>0,QrrSky_Q2,Qrr_Q2)*Fsw*(Table1[[#This Row],[Vin]]-Table1[[#This Row],[Iout]]*Rdson1)+IF(QrrSky_Q3>0,QrrSky_Q3,Qrr_Q3)*Fsw*Vout) -> 0.2801664 | AZ11: =CHOOSE(Table1[[#This Row],[Mode Digit]], Rs*Table1[[#This Row],[Irms2]]^2, Rs*Table1[[#This Row],[Irms4]]^2, Rs*(Table1[[#This Row],[Irms2]]^2+Table1[[#This Row],[Irms4]]^2)) -> 0.405527166 | BA11: 0.594 | BB11: =IF(Vout>8, Iq*Vout, Iq*Table1[[#This Row],[Vin]]) -> 0.03072 | BC11: =CHOOSE(Table1[[#This Row],[Mode Digit]], (Qg_Q1+Qg_Q2)*Fsw, (Qg_Q3+Qg_Q4)*Fsw, (Qg_Q1+Qg_Q2+Qg_Q3+Qg_Q4)*Fsw)*IF(Vout>8, Vout, Table1[[#This Row],[Vin]]) -> 0.3579904 | BD11: 0.7053694118 | BE11: =Table1[[#This Row],[IQ Loss]]+Table1[[#This Row],[Switching Current Loss]] -> 0.3887104 | BF11: =SUM(Table1[[#This Row],[Total Inductor Loss]],Table1[[#This Row],[Total Cout Loss]],Table1[[#This Row],[Total Cin Loss]],Table1[[#This Row],[Total Control MOSFET Loss]],Table1[[#This Row],[Total Sync MOSFET Loss]],Table1[[#This Row],[Total Control MOSFET Loss8]],Table1[[#This Row],[Total Sync MOSFET Loss12]], Table1[[#This Row],[Deadtime Loss13]],Table1[[#This Row],[Reverse Recovery Loss]],Table1[[#This Row],[Total IC Loss]],Table1[[#This Row],[Isense Shunt Loss]],Table1[[#This Row],[Iout Shunt Loss]]) -> 9.373508821 | BG11: =Vout*Table1[[#This Row],[Iout]] -> 61.44 | BH11: =Table1[[#This Row],[Pout]]/(Table1[[#This Row],[Pout]]+Table1[[#This Row],[Total Loss]]) -> 0.8676310639 | BI11: =IF(Table1[[#This Row],[Vin]]>Vout,ThetaJA_Q1*(Table1[[#This Row],[Total Control MOSFET Loss]]+Table1[[#This Row],[Reverse Recovery Loss]]),ThetaJA_Q4*(Table1[[#This Row],[Total Control MOSFET Loss8]]+Table1[[#This Row],[Reverse Recovery Loss]])) -> 150.3431029 | BJ11: =IF(Table1[[#This Row],[Vin]]>Vout, Table1[[#This Row],[Total Sync MOSFET Loss]]*ThetaJA_Q2, ThetaJA_Q3*Table1[[#This Row],[Total Sync MOSFET Loss12]]) -> 116.555108 | BL11: =Table1[[#This Row],[EFF, h]]*100 -> 86.76310639 | BM11: =Table1[[#This Row],[Total Inductor Loss]] -> 1.453957515 | BN11: =Table1[[#This Row],[Total Control MOSFET Loss]]+Table1[[#This Row],[Total Sync MOSFET Loss]]+Table1[[#This Row],[Total Control MOSFET Loss8]]+Table1[[#This Row],[Total Sync MOSFET Loss12]]+Table1[[#This Row],[Reverse Recovery Loss]] -> 6.429342697 | BO11: =Table1[[#This Row],[Total Sync MOSFET Loss]]+Table1[[#This Row],[Reverse Recovery Loss]]*0.33 -> 1.2540631 | BP11: =Table1[[#This Row],[Isense Shunt Loss]] -> 0.405527166 | BT11: 250kHz / 12-5V / 30A | BU11: 90 | BV11: 90 | BW11: 90 | BX11: =250000*(12-Vdd)*BW11/1000000000+((250000*BW9/1000000000*Vdd)*2.5/(2*4)) -> 0.142265625 | BY11: 11.38125 | BZ11: 14.2265625 | CA11: 17.071875 | CB11: 19.9171875 | CC11: 22.7625 | CD11: 25.6078125 | CE11: 2.8453125 | CF11: 4.26796875 | CG11: 5.690625 | CH11: 7.11328125
A12: Vout | B12: =Vout -> 10.24 | C12: V | D12: Vout | G12: 3 | H12: =VIN_min+(VIN_max-VIN_min)*(Table1[[#This Row],[Step]]/200) -> 4.84 | I12: =IF(Table1[[#This Row],[Vin]]>VIN_BB_to_buck, "BUCK", IF(Table1[[#This Row],[Vin]]<=VIN_boost_to_BB,"BOOST","BUCK-BST")) -> BOOST | J12: =IF(Table1[[#This Row],[Mode]]="BOOST",2, IF(Table1[[#This Row],[Mode]]="BUCK", 1,3)) -> 2 | K12: 6 | L12: =Vout*Table1[[#This Row],[Iout]]/(Table1[[#This Row],[Vin]]*Efficiency) -> 13.36233145 | M12: =Iout/(1-Table1[[#This Row],[Duty Cycle BOOST Leg]]) -> 13.02795609 | N12: =CHOOSE(Table1[[#This Row],[Mode Digit]],(Vout+(Rdson2+Rs+Rdcr)*Table1[[#This Row],[Iout]])/(Table1[[#This Row],[Vin]]+(Rs+Rdson2-Rdson1)*Table1[[#This Row],[Iout]]),1,IF(Table1[[#This Row],[Vin]]<Vout,D_max_buck_BB,Vout/Table1[[#This Row],[Vin]]*(1-D_min_boost_exitBB_to_buck))) -> 1 | O12: =CHOOSE(Table1[[#This Row],[Mode Digit]],0,(Vout+(Rdson3+Rdcr)*Table1[[#This Row],[Iin]]-Table1[[#This Row],[Vin]])/(Vout+(Rdson3-Rdson4-Rs)*Table1[[#This Row],[Iin]]),IF(Table1[[#This Row],[Vin]]>Vout, (Vout-Table1[[#This Row],[Vin]]*D_max_exitBB_to_buck)/Vout, (Vout-Table1[[#This Row],[Vin]]*D_max_buck_BB)/Vout)) -> 0.5394519325 | P12: =CHOOSE(Table1[[#This Row],[Mode Digit]],0,0,1-((Table1[[#This Row],[Vin]]-Vout)+((VIN_BB_to_buck-VIN_BB_to_boost)/2))/((VIN_BB_to_buck-VIN_BB_to_boost))) -> 0 | Q12: =CHOOSE(Table1[[#This Row],[Mode Digit]],0,Table1[[#This Row],[Duty Cycle BOOST Leg]]/Fsw,(1/Fsw-Table1[[#This Row],[T BOD/BUE]])*Table1[[#This Row],[BOE/BUD BUBO ratio]]) -> 1.419610349e-06 | R12: =CHOOSE(Table1[[#This Row],[Mode Digit]],Table1[[#This Row],[Duty Cycle BUCK Leg]]/Fsw,(1-Table1[[#This Row],[Duty Cycle BOOST Leg]])/Fsw,TonBubo) -> 1.211968599e-06 | S12: =CHOOSE(Table1[[#This Row],[Mode Digit]],(1-Table1[[#This Row],[Duty Cycle BUCK Leg]])/Fsw,0,(1/Fsw-Table1[[#This Row],[T BOD/BUE]]-Table1[[#This Row],[T BOE]])) -> 0 | T12: =MAX(0, CHOOSE(Table1[[#This Row],[Mode Digit]], (Table1[[#This Row],[Vin]]-(Rdson1+Rdcr)*Table1[[#This Row],[Iout]]-Vout)*Table1[[#This Row],[Duty Cycle BUCK Leg]]/(Fsw*Lf), (Table1[[#This Row],[Vin]]-(Rdson4+Rdcr+Rs)*Table1[[#This Row],[Iin]])*Table1[[#This Row],[Duty Cycle BOOST Leg]]/(Fsw*Lf), IF(Table1[[#This Row],[Vin]]<Vout, (Table1[[#This Row],[Vin]]-(Rdson1+Rdson3+Rdcr+Rs)*Table1[[#This Row],[Iin]])*Table1[[#This Row],[T BOE]]/(Lf),(Vout-(Rdson2+Rdson4+Rdcr+Rs)*Table1[[#This Row],[Iout]])*Table1[[#This Row],[T BUD]]/(Lf)))) -> 4.451618125 | U12: =CHOOSE(Table1[[#This Row],[Mode Digit]], SQRT(Table1[[#This Row],[Iout]]^2+(Table1[[#This Row],[Ripple Current pk-pk]]^2)/12), SQRT(Table1[[#This Row],[Iin]]^2+(Table1[[#This Row],[Ripple Current pk-pk]]^2)/12), SQRT(Table1[[#This Row],[Avg IL]]^2+(Table1[[#This Row],[Ripple Current pk-pk]]^2)/12)) -> 13.42398266 | V12: =(Table1[[#This Row],[Irms Lf]]^2*Rdcr*(1+Ltc*Ta-Ltc*25))/(1-Table1[[#This Row],[Irms Lf]]^2*Rdcr*Ltc*ThetaCa) -> 0.7244597958 | W12: =ABS(7.759*10^-3*Fsw^0.9458*(0.00787*Table1[[#This Row],[Ripple Current pk-pk]])^2.304) -> 0.6511425965 | X12: =Table1[[#This Row],[DCR Loss]]+Table1[[#This Row],[Core Loss]] -> 1.375602392 | Y12: =IF(Table1[[#This Row],[Vin]]>Vout, Table1[[#This Row],[Ripple Current pk-pk]]/SQRT(12), SQRT(Table1[[#This Row],[Duty Cycle BOOST Leg]]/(1-Table1[[#This Row],[Duty Cycle BOOST Leg]]))*SQRT(Table1[[#This Row],[Iout]]^2+(Table1[[#This Row],[Ripple Current pk-pk]]^2)/12)) -> 6.640939275 | Z12: =RCoutEsr*Table1[[#This Row],[Irms Cout]]^2 -> 0.08820414892 | AA12: =Table1[[#This Row],[Cout ESR Loss]] -> 0.08820414892 | AB12: =IF(Table1[[#This Row],[Vin]]>Vout, SQRT(Table1[[#This Row],[Duty Cycle BUCK Leg]]*(1-Table1[[#This Row],[Duty Cycle BUCK Leg]]))*SQRT(Table1[[#This Row],[Iout]]^2+(Table1[[#This Row],[Ripple Current pk-pk]]^2)/12), Table1[[#This Row],[Ripple Current pk-pk]]/SQRT(12)) -> 1.285071461 | AC12: =RCinEsr*Table1[[#This Row],[Irms Cin]]^2 -> 0.003302817321 | AD12: =Table1[[#This Row],[Cin ESR Loss]] -> 0.003302817321 | AE12: =Table1[[#This Row],[Irms Lf]] -> 13.42398266 | AF12: =Rdson1*Table1[[#This Row],[Irms1]]^2 -> 0.7928945658 | AG12: =CHOOSE(Table1[[#This Row],[Mode Digit]], (Table1[[#This Row],[Vin]]*Table1[[#This Row],[Iout]]/2)*(Fsw)*(Tr_buck+Tf_buck), 0, (Table1[[#This Row],[Vin]]*Table1[[#This Row],[Avg IL]]/2)*(Fsw/1)*(Tr_buck+Tf_buck)) -> 0 | AH12: =IF(Table1[[#This Row],[Vin]]>Vout, IF(Table1[[#This Row],[Iout]]>Table1[[#This Row],[Ripple Current pk-pk]]/2,0,ABS(Table1[[#This Row],[Iout]]-Table1[[#This Row],[Ripple Current pk-pk]]/2)*Vsd_Q1*Deadtime*Fsw),0) -> 0 | AI12: =(Table1[[#This Row],[Dead Time Loss ]]+Table1[[#This Row],[Transition Loss]]+Table1[[#This Row],[RDS(on) Loss]]*(1+RdsonTopTc*Ta-RdsonTopTc*25))/(1-Table1[[#This Row],[RDS(on) Loss]]*RdsonTopTc*ThetaJA_Q1) -> 0.99879971 | AJ12: =Table1[[#This Row],[Irms Lf]] -> 13.42398266 | AK12: =Rdson2*Table1[[#This Row],[Irms2]]^2 -> 0.7928945658 | AL12: =CHOOSE(Table1[[#This Row],[Mode Digit]], IF(Table1[[#This Row],[Iout]]<Table1[[#This Row],[Ripple Current pk-pk]]/2,Deadtime*Fsw*IF(VfdSky_Q2>0,0,Vsd_Q2)*(Table1[[#This Row],[Iout]]+Table1[[#This Row],[Ripple Current pk-pk]]/2),2*Deadtime*Fsw*IF(VfdSky_Q2>0,0,Vsd_Q2)*Table1[[#This Row],[Iout]]),0, IF(Table1[[#This Row],[Iout]]<Table1[[#This Row],[Ripple Current pk-pk]]/2,Deadtime*Fsw*IF(VfdSky_Q2>0,0,Vsd_Q2)*(Table1[[#This Row],[Iout]]+Table1[[#This Row],[Ripple Current pk-pk]]/2),2*Deadtime*Fsw*IF(VfdSky_Q2>0,0,Vsd_Q2)*Table1[[#This Row],[Iout]])) -> 0 | AM12: =(Table1[[#This Row],[Deadtime Loss]]+Table1[[#This Row],[RDS(on) Loss3]]*(1+RdsonBotTc*Ta-RdsonBotTc*25))/(1-Table1[[#This Row],[RDS(on) Loss3]]*RdsonBotTc*ThetaJA_Q2) -> 0.99879971 | AN12: =Table1[[#This Row],[Irms Lf]] -> 13.42398266 | AO12: =Rdson4*Table1[[#This Row],[Irms4]]^2 -> 0.7928945658 | AP12: =CHOOSE(Table1[[#This Row],[Mode Digit]], 0, (Vout*Table1[[#This Row],[Iin]]/2)*(Fsw)*(Tr_boost+Tf_boost), (Vout*Iout/2)*(Fsw/1)*(Tr_boost+Tf_boost)) -> 0.6304032372 | AQ12: =IF(Table1[[#This Row],[Vin]]>Vout, 0, IF(Table1[[#This Row],[Iin]]>Table1[[#This Row],[Ripple Current pk-pk]]/2,0,ABS(Table1[[#This Row],[Iin]]-Table1[[#This Row],[Ripple Current pk-pk]]/2)*Vsd_Q4*Deadtime*Fsw)) -> 0 | AR12: =(Table1[[#This Row],[Dead Time Loss 7]]+Table1[[#This Row],[Transition Loss6]]+Table1[[#This Row],[RDS(on) Loss5]]*(1+RdsonTopTc*Ta-RdsonTopTc*25))/(1-Table1[[#This Row],[RDS(on) Loss5]]*RdsonTopTc*ThetaJA_Q4) -> 1.792911056 | AS12: =Table1[[#This Row],[Irms Lf]] -> 13.42398266 | AT12: =Rdson3*Table1[[#This Row],[Irms9]]^2 -> 0.7928945658 | AU12: =CHOOSE(Table1[[#This Row],[Mode Digit]], 0, IF(Table1[[#This Row],[Iin]]<Table1[[#This Row],[Ripple Current pk-pk]]/2,Deadtime*Fsw*IF(VfdSky_Q3>0,0,Vsd_Q3)*(Table1[[#This Row],[Iin]]+Table1[[#This Row],[Ripple Current pk-pk]]/2), 2*Deadtime*Fsw*IF(VfdSky_Q3>0,0,Vsd_Q3)*Table1[[#This Row],[Iin]]), IF(Table1[[#This Row],[Iin]]<Table1[[#This Row],[Ripple Current pk-pk]]/2,Deadtime*Fsw*IF(VfdSky_Q3>0,0,Vsd_Q3)*(Table1[[#This Row],[Iin]]+Table1[[#This Row],[Ripple Current pk-pk]]/2), 2*Deadtime*Fsw*IF(VfdSky_Q3>0,0,Vsd_Q3)*Table1[[#This Row],[Iin]])) -> 0.4569917355 | AV12: =(Table1[[#This Row],[Deadtime Loss11]]+Table1[[#This Row],[RDS(on) Loss10]]*(1+RdsonBotTc*Ta-RdsonBotTc*25))/(1-Table1[[#This Row],[RDS(on) Loss10]]*RdsonBotTc*ThetaJA_Q3) -> 1.574466681 | AW12: =CHOOSE(Table1[[#This Row],[Mode Digit]], Rdson3*Table1[[#This Row],[Irms Lf]]^2, Rdson1*Table1[[#This Row],[Irms Lf]]^2, 0) -> 0.7928945658 | AX12: =CHOOSE(Table1[[#This Row],[Mode Digit]], 2*Deadtime*Fsw*IF(VfdSky_Q2>0,VfdSky_Q2,0)*Table1[[#This Row],[Iout]], 2*Deadtime*Fsw*IF(VfdSky_Q3>0,VfdSky_Q3,0)*Table1[[#This Row],[Iin]], 2*Deadtime*Fsw*IF(VfdSky_Q2>0,VfdSky_Q2,0)*Table1[[#This Row],[Iout]]+2*Deadtime*Fsw*IF(VfdSky_Q3>0,VfdSky_Q3,0)*Table1[[#This Row],[Iin]]) -> 0 | AY12: =CHOOSE(Table1[[#This Row],[Mode Digit]], IF(QrrSky_Q2>0,QrrSky_Q2,Qrr_Q2)*Fsw*(Table1[[#This Row],[Vin]]-Table1[[#This Row],[Iout]]*Rdson1), IF(QrrSky_Q3>0,QrrSky_Q3,Qrr_Q3)*Fsw*Vout, IF(QrrSky_Q2>0,QrrSky_Q2,Qrr_Q2)*Fsw*(Table1[[#This Row],[Vin]]-Table1[[#This Row],[Iout]]*Rdson1)+IF(QrrSky_Q3>0,QrrSky_Q3,Qrr_Q3)*Fsw*Vout) -> 0.2801664 | AZ12: =CHOOSE(Table1[[#This Row],[Mode Digit]], Rs*Table1[[#This Row],[Irms2]]^2, Rs*Table1[[#This Row],[Irms4]]^2, Rs*(Table1[[#This Row],[Irms2]]^2+Table1[[#This Row],[Irms4]]^2)) -> 0.3604066208 | BA12: 0.594 | BB12: =IF(Vout>8, Iq*Vout, Iq*Table1[[#This Row],[Vin]]) -> 0.03072 | BC12: =CHOOSE(Table1[[#This Row],[Mode Digit]], (Qg_Q1+Qg_Q2)*Fsw, (Qg_Q3+Qg_Q4)*Fsw, (Qg_Q1+Qg_Q2+Qg_Q3+Qg_Q4)*Fsw)*IF(Vout>8, Vout, Table1[[#This Row],[Vin]]) -> 0.3579904 | BD12: 0.7053694118 | BE12: =Table1[[#This Row],[IQ Loss]]+Table1[[#This Row],[Switching Current Loss]] -> 0.3887104 | BF12: =SUM(Table1[[#This Row],[Total Inductor Loss]],Table1[[#This Row],[Total Cout Loss]],Table1[[#This Row],[Total Cin Loss]],Table1[[#This Row],[Total Control MOSFET Loss]],Table1[[#This Row],[Total Sync MOSFET Loss]],Table1[[#This Row],[Total Control MOSFET Loss8]],Table1[[#This Row],[Total Sync MOSFET Loss12]], Table1[[#This Row],[Deadtime Loss13]],Table1[[#This Row],[Reverse Recovery Loss]],Table1[[#This Row],[Total IC Loss]],Table1[[#This Row],[Isense Shunt Loss]],Table1[[#This Row],[Iout Shunt Loss]]) -> 8.455369936 | BG12: =Vout*Table1[[#This Row],[Iout]] -> 61.44 | BH12: =Table1[[#This Row],[Pout]]/(Table1[[#This Row],[Pout]]+Table1[[#This Row],[Total Loss]]) -> 0.8790281825 | BI12: =IF(Table1[[#This Row],[Vin]]>Vout,ThetaJA_Q1*(Table1[[#This Row],[Total Control MOSFET Loss]]+Table1[[#This Row],[Reverse Recovery Loss]]),ThetaJA_Q4*(Table1[[#This Row],[Total Control MOSFET Loss8]]+Table1[[#This Row],[Reverse Recovery Loss]])) -> 134.7500346 | BJ12: =IF(Table1[[#This Row],[Vin]]>Vout, Table1[[#This Row],[Total Sync MOSFET Loss]]*ThetaJA_Q2, ThetaJA_Q3*Table1[[#This Row],[Total Sync MOSFET Loss12]]) -> 102.3403343 | BL12: =Table1[[#This Row],[EFF, h]]*100 -> 87.90281825 | BM12: =Table1[[#This Row],[Total Inductor Loss]] -> 1.375602392 | BN12: =Table1[[#This Row],[Total Control MOSFET Loss]]+Table1[[#This Row],[Total Sync MOSFET Loss]]+Table1[[#This Row],[Total Control MOSFET Loss8]]+Table1[[#This Row],[Total Sync MOSFET Loss12]]+Table1[[#This Row],[Reverse Recovery Loss]] -> 5.645143556 | BO12: =Table1[[#This Row],[Total Sync MOSFET Loss]]+Table1[[#This Row],[Reverse Recovery Loss]]*0.33 -> 1.091254622 | BP12: =Table1[[#This Row],[Isense Shunt Loss]] -> 0.3604066208 | BT12: 250kHz / 18-1.2V / 20A | BU12: 60 | BV12: 60 | BW12: 60 | BX12: =250000*(18-Vdd)*BW12/1000000000+((250000*BW9/1000000000*Vdd)*2.5/(2*4)) -> 0.198515625 | BY12: 15.88125 | BZ12: 19.8515625 | CA12: 23.821875 | CB12: 27.7921875 | CC12: 31.7625 | CD12: 35.7328125 | CE12: 3.9703125 | CF12: 5.95546875 | CG12: 7.940625 | CH12: 9.92578125
A13: Fsw | B13: =Fsw/1000 -> 380 | C13: kHz | D13: Switching Frequency | G13: 4 | H13: =VIN_min+(VIN_max-VIN_min)*(Table1[[#This Row],[Step]]/200) -> 5.12 | I13: =IF(Table1[[#This Row],[Vin]]>VIN_BB_to_buck, "BUCK", IF(Table1[[#This Row],[Vin]]<=VIN_boost_to_BB,"BOOST","BUCK-BST")) -> BOOST | J13: =IF(Table1[[#This Row],[Mode]]="BOOST",2, IF(Table1[[#This Row],[Mode]]="BUCK", 1,3)) -> 2 | K13: 6 | L13: =Vout*Table1[[#This Row],[Iout]]/(Table1[[#This Row],[Vin]]*Efficiency) -> 12.63157895 | M13: =Iout/(1-Table1[[#This Row],[Duty Cycle BOOST Leg]]) -> 12.27939936 | N13: =CHOOSE(Table1[[#This Row],[Mode Digit]],(Vout+(Rdson2+Rs+Rdcr)*Table1[[#This Row],[Iout]])/(Table1[[#This Row],[Vin]]+(Rs+Rdson2-Rdson1)*Table1[[#This Row],[Iout]]),1,IF(Table1[[#This Row],[Vin]]<Vout,D_max_buck_BB,Vout/Table1[[#This Row],[Vin]]*(1-D_min_boost_exitBB_to_buck))) -> 1 | O13: =CHOOSE(Table1[[#This Row],[Mode Digit]],0,(Vout+(Rdson3+Rdcr)*Table1[[#This Row],[Iin]]-Table1[[#This Row],[Vin]])/(Vout+(Rdson3-Rdson4-Rs)*Table1[[#This Row],[Iin]]),IF(Table1[[#This Row],[Vin]]>Vout, (Vout-Table1[[#This Row],[Vin]]*D_max_exitBB_to_buck)/Vout, (Vout-Table1[[#This Row],[Vin]]*D_max_buck_BB)/Vout)) -> 0.5113767519 | P13: =CHOOSE(Table1[[#This Row],[Mode Digit]],0,0,1-((Table1[[#This Row],[Vin]]-Vout)+((VIN_BB_to_buck-VIN_BB_to_boost)/2))/((VIN_BB_to_buck-VIN_BB_to_boost))) -> 0 | Q13: =CHOOSE(Table1[[#This Row],[Mode Digit]],0,Table1[[#This Row],[Duty Cycle BOOST Leg]]/Fsw,(1/Fsw-Table1[[#This Row],[T BOD/BUE]])*Table1[[#This Row],[BOE/BUD BUBO ratio]]) -> 1.345728294e-06 | R13: =CHOOSE(Table1[[#This Row],[Mode Digit]],Table1[[#This Row],[Duty Cycle BUCK Leg]]/Fsw,(1-Table1[[#This Row],[Duty Cycle BOOST Leg]])/Fsw,TonBubo) -> 1.285850653e-06 | S13: =CHOOSE(Table1[[#This Row],[Mode Digit]],(1-Table1[[#This Row],[Duty Cycle BUCK Leg]])/Fsw,0,(1/Fsw-Table1[[#This Row],[T BOD/BUE]]-Table1[[#This Row],[T BOE]])) -> 0 | T13: =MAX(0, CHOOSE(Table1[[#This Row],[Mode Digit]], (Table1[[#This Row],[Vin]]-(Rdson1+Rdcr)*Table1[[#This Row],[Iout]]-Vout)*Table1[[#This Row],[Duty Cycle BUCK Leg]]/(Fsw*Lf), (Table1[[#This Row],[Vin]]-(Rdson4+Rdcr+Rs)*Table1[[#This Row],[Iin]])*Table1[[#This Row],[Duty Cycle BOOST Leg]]/(Fsw*Lf), IF(Table1[[#This Row],[Vin]]<Vout, (Table1[[#This Row],[Vin]]-(Rdson1+Rdson3+Rdcr+Rs)*Table1[[#This Row],[Iin]])*Table1[[#This Row],[T BOE]]/(Lf),(Vout-(Rdson2+Rdson4+Rdcr+Rs)*Table1[[#This Row],[Iout]])*Table1[[#This Row],[T BUD]]/(Lf)))) -> 4.477828267 | U13: =CHOOSE(Table1[[#This Row],[Mode Digit]], SQRT(Table1[[#This Row],[Iout]]^2+(Table1[[#This Row],[Ripple Current pk-pk]]^2)/12), SQRT(Table1[[#This Row],[Iin]]^2+(Table1[[#This Row],[Ripple Current pk-pk]]^2)/12), SQRT(Table1[[#This Row],[Avg IL]]^2+(Table1[[#This Row],[Ripple Current pk-pk]]^2)/12)) -> 12.69754696 | V13: =(Table1[[#This Row],[Irms Lf]]^2*Rdcr*(1+Ltc*Ta-Ltc*25))/(1-Table1[[#This Row],[Irms Lf]]^2*Rdcr*Ltc*ThetaCa) -> 0.6442416119 | W13: =ABS(7.759*10^-3*Fsw^0.9458*(0.00787*Table1[[#This Row],[Ripple Current pk-pk]])^2.304) -> 0.6600095625 | X13: =Table1[[#This Row],[DCR Loss]]+Table1[[#This Row],[Core Loss]] -> 1.304251174 | Y13: =IF(Table1[[#This Row],[Vin]]>Vout, Table1[[#This Row],[Ripple Current pk-pk]]/SQRT(12), SQRT(Table1[[#This Row],[Duty Cycle BOOST Leg]]/(1-Table1[[#This Row],[Duty Cycle BOOST Leg]]))*SQRT(Table1[[#This Row],[Iout]]^2+(Table1[[#This Row],[Ripple Current pk-pk]]^2)/12)) -> 6.278942343 | Z13: =RCoutEsr*Table1[[#This Row],[Irms Cout]]^2 -> 0.0788502339 | AA13: =Table1[[#This Row],[Cout ESR Loss]] -> 0.0788502339 | AB13: =IF(Table1[[#This Row],[Vin]]>Vout, SQRT(Table1[[#This Row],[Duty Cycle BUCK Leg]]*(1-Table1[[#This Row],[Duty Cycle BUCK Leg]]))*SQRT(Table1[[#This Row],[Iout]]^2+(Table1[[#This Row],[Ripple Current pk-pk]]^2)/12), Table1[[#This Row],[Ripple Current pk-pk]]/SQRT(12)) -> 1.292637678 | AC13: =RCinEsr*Table1[[#This Row],[Irms Cin]]^2 -> 0.003341824331 | AD13: =Table1[[#This Row],[Cin ESR Loss]] -> 0.003341824331 | AE13: =Table1[[#This Row],[Irms Lf]] -> 12.69754696 | AF13: =Rdson1*Table1[[#This Row],[Irms1]]^2 -> 0.709401875 | AG13: =CHOOSE(Table1[[#This Row],[Mode Digit]], (Table1[[#This Row],[Vin]]*Table1[[#This Row],[Iout]]/2)*(Fsw)*(Tr_buck+Tf_buck), 0, (Table1[[#This Row],[Vin]]*Table1[[#This Row],[Avg IL]]/2)*(Fsw/1)*(Tr_buck+Tf_buck)) -> 0 | AH13: =IF(Table1[[#This Row],[Vin]]>Vout, IF(Table1[[#This Row],[Iout]]>Table1[[#This Row],[Ripple Current pk-pk]]/2,0,ABS(Table1[[#This Row],[Iout]]-Table1[[#This Row],[Ripple Current pk-pk]]/2)*Vsd_Q1*Deadtime*Fsw),0) -> 0 | AI13: =(Table1[[#This Row],[Dead Time Loss ]]+Table1[[#This Row],[Transition Loss]]+Table1[[#This Row],[RDS(on) Loss]]*(1+RdsonTopTc*Ta-RdsonTopTc*25))/(1-Table1[[#This Row],[RDS(on) Loss]]*RdsonTopTc*ThetaJA_Q1) -> 0.8698388573 | AJ13: =Table1[[#This Row],[Irms Lf]] -> 12.69754696 | AK13: =Rdson2*Table1[[#This Row],[Irms2]]^2 -> 0.709401875 | AL13: =CHOOSE(Table1[[#This Row],[Mode Digit]], IF(Table1[[#This Row],[Iout]]<Table1[[#This Row],[Ripple Current pk-pk]]/2,Deadtime*Fsw*IF(VfdSky_Q2>0,0,Vsd_Q2)*(Table1[[#This Row],[Iout]]+Table1[[#This Row],[Ripple Current pk-pk]]/2),2*Deadtime*Fsw*IF(VfdSky_Q2>0,0,Vsd_Q2)*Table1[[#This Row],[Iout]]),0, IF(Table1[[#This Row],[Iout]]<Table1[[#This Row],[Ripple Current pk-pk]]/2,Deadtime*Fsw*IF(VfdSky_Q2>0,0,Vsd_Q2)*(Table1[[#This Row],[Iout]]+Table1[[#This Row],[Ripple Current pk-pk]]/2),2*Deadtime*Fsw*IF(VfdSky_Q2>0,0,Vsd_Q2)*Table1[[#This Row],[Iout]])) -> 0 | AM13: =(Table1[[#This Row],[Deadtime Loss]]+Table1[[#This Row],[RDS(on) Loss3]]*(1+RdsonBotTc*Ta-RdsonBotTc*25))/(1-Table1[[#This Row],[RDS(on) Loss3]]*RdsonBotTc*ThetaJA_Q2) -> 0.8698388573 | AN13: =Table1[[#This Row],[Irms Lf]] -> 12.69754696 | AO13: =Rdson4*Table1[[#This Row],[Irms4]]^2 -> 0.709401875 | AP13: =CHOOSE(Table1[[#This Row],[Mode Digit]], 0, (Vout*Table1[[#This Row],[Iin]]/2)*(Fsw)*(Tr_boost+Tf_boost), (Vout*Iout/2)*(Fsw/1)*(Tr_boost+Tf_boost)) -> 0.5959280602 | AQ13: =IF(Table1[[#This Row],[Vin]]>Vout, 0, IF(Table1[[#This Row],[Iin]]>Table1[[#This Row],[Ripple Current pk-pk]]/2,0,ABS(Table1[[#This Row],[Iin]]-Table1[[#This Row],[Ripple Current pk-pk]]/2)*Vsd_Q4*Deadtime*Fsw)) -> 0 | AR13: =(Table1[[#This Row],[Dead Time Loss 7]]+Table1[[#This Row],[Transition Loss6]]+Table1[[#This Row],[RDS(on) Loss5]]*(1+RdsonTopTc*Ta-RdsonTopTc*25))/(1-Table1[[#This Row],[RDS(on) Loss5]]*RdsonTopTc*ThetaJA_Q4) -> 1.600540877 | AS13: =Table1[[#This Row],[Irms Lf]] -> 12.69754696 | AT13: =Rdson3*Table1[[#This Row],[Irms9]]^2 -> 0.709401875 | AU13: =CHOOSE(Table1[[#This Row],[Mode Digit]], 0, IF(Table1[[#This Row],[Iin]]<Table1[[#This Row],[Ripple Current pk-pk]]/2,Deadtime*Fsw*IF(VfdSky_Q3>0,0,Vsd_Q3)*(Table1[[#This Row],[Iin]]+Table1[[#This Row],[Ripple Current pk-pk]]/2), 2*Deadtime*Fsw*IF(VfdSky_Q3>0,0,Vsd_Q3)*Table1[[#This Row],[Iin]]), IF(Table1[[#This Row],[Iin]]<Table1[[#This Row],[Ripple Current pk-pk]]/2,Deadtime*Fsw*IF(VfdSky_Q3>0,0,Vsd_Q3)*(Table1[[#This Row],[Iin]]+Table1[[#This Row],[Ripple Current pk-pk]]/2), 2*Deadtime*Fsw*IF(VfdSky_Q3>0,0,Vsd_Q3)*Table1[[#This Row],[Iin]])) -> 0.432 | AV13: =(Table1[[#This Row],[Deadtime Loss11]]+Table1[[#This Row],[RDS(on) Loss10]]*(1+RdsonBotTc*Ta-RdsonBotTc*25))/(1-Table1[[#This Row],[RDS(on) Loss10]]*RdsonBotTc*ThetaJA_Q3) -> 1.399539158 | AW13: =CHOOSE(Table1[[#This Row],[Mode Digit]], Rdson3*Table1[[#This Row],[Irms Lf]]^2, Rdson1*Table1[[#This Row],[Irms Lf]]^2, 0) -> 0.709401875 | AX13: =CHOOSE(Table1[[#This Row],[Mode Digit]], 2*Deadtime*Fsw*IF(VfdSky_Q2>0,VfdSky_Q2,0)*Table1[[#This Row],[Iout]], 2*Deadtime*Fsw*IF(VfdSky_Q3>0,VfdSky_Q3,0)*Table1[[#This Row],[Iin]], 2*Deadtime*Fsw*IF(VfdSky_Q2>0,VfdSky_Q2,0)*Table1[[#This Row],[Iout]]+2*Deadtime*Fsw*IF(VfdSky_Q3>0,VfdSky_Q3,0)*Table1[[#This Row],[Iin]]) -> 0 | AY13: =CHOOSE(Table1[[#This Row],[Mode Digit]], IF(QrrSky_Q2>0,QrrSky_Q2,Qrr_Q2)*Fsw*(Table1[[#This Row],[Vin]]-Table1[[#This Row],[Iout]]*Rdson1), IF(QrrSky_Q3>0,QrrSky_Q3,Qrr_Q3)*Fsw*Vout, IF(QrrSky_Q2>0,QrrSky_Q2,Qrr_Q2)*Fsw*(Table1[[#This Row],[Vin]]-Table1[[#This Row],[Iout]]*Rdson1)+IF(QrrSky_Q3>0,QrrSky_Q3,Qrr_Q3)*Fsw*Vout) -> 0.2801664 | AZ13: =CHOOSE(Table1[[#This Row],[Mode Digit]], Rs*Table1[[#This Row],[Irms2]]^2, Rs*Table1[[#This Row],[Irms4]]^2, Rs*(Table1[[#This Row],[Irms2]]^2+Table1[[#This Row],[Irms4]]^2)) -> 0.3224553977 | BA13: 0.594 | BB13: =IF(Vout>8, Iq*Vout, Iq*Table1[[#This Row],[Vin]]) -> 0.03072 | BC13: =CHOOSE(Table1[[#This Row],[Mode Digit]], (Qg_Q1+Qg_Q2)*Fsw, (Qg_Q3+Qg_Q4)*Fsw, (Qg_Q1+Qg_Q2+Qg_Q3+Qg_Q4)*Fsw)*IF(Vout>8, Vout, Table1[[#This Row],[Vin]]) -> 0.3579904 | BD13: 0.7053694118 | BE13: =Table1[[#This Row],[IQ Loss]]+Table1[[#This Row],[Switching Current Loss]] -> 0.3887104 | BF13: =SUM(Table1[[#This Row],[Total Inductor Loss]],Table1[[#This Row],[Total Cout Loss]],Table1[[#This Row],[Total Cin Loss]],Table1[[#This Row],[Total Control MOSFET Loss]],Table1[[#This Row],[Total Sync MOSFET Loss]],Table1[[#This Row],[Total Control MOSFET Loss8]],Table1[[#This Row],[Total Sync MOSFET Loss12]], Table1[[#This Row],[Deadtime Loss13]],Table1[[#This Row],[Reverse Recovery Loss]],Table1[[#This Row],[Total IC Loss]],Table1[[#This Row],[Isense Shunt Loss]],Table1[[#This Row],[Iout Shunt Loss]]) -> 7.71153318 | BG13: =Vout*Table1[[#This Row],[Iout]] -> 61.44 | BH13: =Table1[[#This Row],[Pout]]/(Table1[[#This Row],[Pout]]+Table1[[#This Row],[Total Loss]]) -> 0.8884835545 | BI13: =IF(Table1[[#This Row],[Vin]]>Vout,ThetaJA_Q1*(Table1[[#This Row],[Total Control MOSFET Loss]]+Table1[[#This Row],[Reverse Recovery Loss]]),ThetaJA_Q4*(Table1[[#This Row],[Total Control MOSFET Loss8]]+Table1[[#This Row],[Reverse Recovery Loss]])) -> 122.245973 | BJ13: =IF(Table1[[#This Row],[Vin]]>Vout, Table1[[#This Row],[Total Sync MOSFET Loss]]*ThetaJA_Q2, ThetaJA_Q3*Table1[[#This Row],[Total Sync MOSFET Loss12]]) -> 90.97004525 | BL13: =Table1[[#This Row],[EFF, h]]*100 -> 88.84835545 | BM13: =Table1[[#This Row],[Total Inductor Loss]] -> 1.304251174 | BN13: =Table1[[#This Row],[Total Control MOSFET Loss]]+Table1[[#This Row],[Total Sync MOSFET Loss]]+Table1[[#This Row],[Total Control MOSFET Loss8]]+Table1[[#This Row],[Total Sync MOSFET Loss12]]+Table1[[#This Row],[Reverse Recovery Loss]] -> 5.019924149 | BO13: =Table1[[#This Row],[Total Sync MOSFET Loss]]+Table1[[#This Row],[Reverse Recovery Loss]]*0.33 -> 0.9622937693 | BP13: =Table1[[#This Row],[Isense Shunt Loss]] -> 0.3224553977 | BT13: 500kHz / 5-1.2V / 15A | BU13: 30 | BV13: 30 | BW13: 30 | BX13: =500000*(5-Vdd)*BW13/1000000000+((500000*BW9/1000000000*Vdd)*2.5/(2*4)) -> 0.04453125 | BY13: 3.5625 | BZ13: 4.453125 | CA13: 5.34375 | CB13: 6.234375 | CC13: 7.125 | CD13: 8.015625 | CE13: 0.890625 | CF13: 1.3359375 | CG13: 1.78125 | CH13: 2.2265625
A14: Iout | B14: =Iout -> 6 | C14: A | D14: Max Output Current | G14: 5 | H14: =VIN_min+(VIN_max-VIN_min)*(Table1[[#This Row],[Step]]/200) -> 5.4 | I14: =IF(Table1[[#This Row],[Vin]]>VIN_BB_to_buck, "BUCK", IF(Table1[[#This Row],[Vin]]<=VIN_boost_to_BB,"BOOST","BUCK-BST")) -> BOOST | J14: =IF(Table1[[#This Row],[Mode]]="BOOST",2, IF(Table1[[#This Row],[Mode]]="BUCK", 1,3)) -> 2 | K14: 6 | L14: =Vout*Table1[[#This Row],[Iout]]/(Table1[[#This Row],[Vin]]*Efficiency) -> 11.97660819 | M14: =Iout/(1-Table1[[#This Row],[Duty Cycle BOOST Leg]]) -> 11.6138983 | N14: =CHOOSE(Table1[[#This Row],[Mode Digit]],(Vout+(Rdson2+Rs+Rdcr)*Table1[[#This Row],[Iout]])/(Table1[[#This Row],[Vin]]+(Rs+Rdson2-Rdson1)*Table1[[#This Row],[Iout]]),1,IF(Table1[[#This Row],[Vin]]<Vout,D_max_buck_BB,Vout/Table1[[#This Row],[Vin]]*(1-D_min_boost_exitBB_to_buck))) -> 1 | O14: =CHOOSE(Table1[[#This Row],[Mode Digit]],0,(Vout+(Rdson3+Rdcr)*Table1[[#This Row],[Iin]]-Table1[[#This Row],[Vin]])/(Vout+(Rdson3-Rdson4-Rs)*Table1[[#This Row],[Iin]]),IF(Table1[[#This Row],[Vin]]>Vout, (Vout-Table1[[#This Row],[Vin]]*D_max_exitBB_to_buck)/Vout, (Vout-Table1[[#This Row],[Vin]]*D_max_buck_BB)/Vout)) -> 0.4833776011 | P14: =CHOOSE(Table1[[#This Row],[Mode Digit]],0,0,1-((Table1[[#This Row],[Vin]]-Vout)+((VIN_BB_to_buck-VIN_BB_to_boost)/2))/((VIN_BB_to_buck-VIN_BB_to_boost))) -> 0 | Q14: =CHOOSE(Table1[[#This Row],[Mode Digit]],0,Table1[[#This Row],[Duty Cycle BOOST Leg]]/Fsw,(1/Fsw-Table1[[#This Row],[T BOD/BUE]])*Table1[[#This Row],[BOE/BUD BUBO ratio]]) -> 1.272046319e-06 | R14: =CHOOSE(Table1[[#This Row],[Mode Digit]],Table1[[#This Row],[Duty Cycle BUCK Leg]]/Fsw,(1-Table1[[#This Row],[Duty Cycle BOOST Leg]])/Fsw,TonBubo) -> 1.359532629e-06 | S14: =CHOOSE(Table1[[#This Row],[Mode Digit]],(1-Table1[[#This Row],[Duty Cycle BUCK Leg]])/Fsw,0,(1/Fsw-Table1[[#This Row],[T BOD/BUE]]-Table1[[#This Row],[T BOE]])) -> 0 | T14: =MAX(0, CHOOSE(Table1[[#This Row],[Mode Digit]], (Table1[[#This Row],[Vin]]-(Rdson1+Rdcr)*Table1[[#This Row],[Iout]]-Vout)*Table1[[#This Row],[Duty Cycle BUCK Leg]]/(Fsw*Lf), (Table1[[#This Row],[Vin]]-(Rdson4+Rdcr+Rs)*Table1[[#This Row],[Iin]])*Table1[[#This Row],[Duty Cycle BOOST Leg]]/(Fsw*Lf), IF(Table1[[#This Row],[Vin]]<Vout, (Table1[[#This Row],[Vin]]-(Rdson1+Rdson3+Rdcr+Rs)*Table1[[#This Row],[Iin]])*Table1[[#This Row],[T BOE]]/(Lf),(Vout-(Rdson2+Rdson4+Rdcr+Rs)*Table1[[#This Row],[Iout]])*Table1[[#This Row],[T BUD]]/(Lf)))) -> 4.475770105 | U14: =CHOOSE(Table1[[#This Row],[Mode Digit]], SQRT(Table1[[#This Row],[Iout]]^2+(Table1[[#This Row],[Ripple Current pk-pk]]^2)/12), SQRT(Table1[[#This Row],[Iin]]^2+(Table1[[#This Row],[Ripple Current pk-pk]]^2)/12), SQRT(Table1[[#This Row],[Avg IL]]^2+(Table1[[#This Row],[Ripple Current pk-pk]]^2)/12)) -> 12.04609979 | V14: =(Table1[[#This Row],[Irms Lf]]^2*Rdcr*(1+Ltc*Ta-Ltc*25))/(1-Table1[[#This Row],[Irms Lf]]^2*Rdcr*Ltc*ThetaCa) -> 0.5768593683 | W14: =ABS(7.759*10^-3*Fsw^0.9458*(0.00787*Table1[[#This Row],[Ripple Current pk-pk]])^2.304) -> 0.659310824 | X14: =Table1[[#This Row],[DCR Loss]]+Table1[[#This Row],[Core Loss]] -> 1.236170192 | Y14: =IF(Table1[[#This Row],[Vin]]>Vout, Table1[[#This Row],[Ripple Current pk-pk]]/SQRT(12), SQRT(Table1[[#This Row],[Duty Cycle BOOST Leg]]/(1-Table1[[#This Row],[Duty Cycle BOOST Leg]]))*SQRT(Table1[[#This Row],[Iout]]^2+(Table1[[#This Row],[Ripple Current pk-pk]]^2)/12)) -> 5.93677871 | Z14: =RCoutEsr*Table1[[#This Row],[Irms Cout]]^2 -> 0.0704906829 | AA14: =Table1[[#This Row],[Cout ESR Loss]] -> 0.0704906829 | AB14: =IF(Table1[[#This Row],[Vin]]>Vout, SQRT(Table1[[#This Row],[Duty Cycle BUCK Leg]]*(1-Table1[[#This Row],[Duty Cycle BUCK Leg]]))*SQRT(Table1[[#This Row],[Iout]]^2+(Table1[[#This Row],[Ripple Current pk-pk]]^2)/12), Table1[[#This Row],[Ripple Current pk-pk]]/SQRT(12)) -> 1.292043537 | AC14: =RCinEsr*Table1[[#This Row],[Irms Cin]]^2 -> 0.003338753005 | AD14: =Table1[[#This Row],[Cin ESR Loss]] -> 0.003338753005 | AE14: =Table1[[#This Row],[Irms Lf]] -> 12.04609979 | AF14: =Rdson1*Table1[[#This Row],[Irms1]]^2 -> 0.6384774888 | AG14: =CHOOSE(Table1[[#This Row],[Mode Digit]], (Table1[[#This Row],[Vin]]*Table1[[#This Row],[Iout]]/2)*(Fsw)*(Tr_buck+Tf_buck), 0, (Table1[[#This Row],[Vin]]*Table1[[#This Row],[Avg IL]]/2)*(Fsw/1)*(Tr_buck+Tf_buck)) -> 0 | AH14: =IF(Table1[[#This Row],[Vin]]>Vout, IF(Table1[[#This Row],[Iout]]>Table1[[#This Row],[Ripple Current pk-pk]]/2,0,ABS(Table1[[#This Row],[Iout]]-Table1[[#This Row],[Ripple Current pk-pk]]/2)*Vsd_Q1*Deadtime*Fsw),0) -> 0 | AI14: =(Table1[[#This Row],[Dead Time Loss ]]+Table1[[#This Row],[Transition Loss]]+Table1[[#This Row],[RDS(on) Loss]]*(1+RdsonTopTc*Ta-RdsonTopTc*25))/(1-Table1[[#This Row],[RDS(on) Loss]]*RdsonTopTc*ThetaJA_Q1) -> 0.7655643448 | AJ14: =Table1[[#This Row],[Irms Lf]] -> 12.04609979 | AK14: =Rdson2*Table1[[#This Row],[Irms2]]^2 -> 0.6384774888 | AL14: =CHOOSE(Table1[[#This Row],[Mode Digit]], IF(Table1[[#This Row],[Iout]]<Table1[[#This Row],[Ripple Current pk-pk]]/2,Deadtime*Fsw*IF(VfdSky_Q2>0,0,Vsd_Q2)*(Table1[[#This Row],[Iout]]+Table1[[#This Row],[Ripple Current pk-pk]]/2),2*Deadtime*Fsw*IF(VfdSky_Q2>0,0,Vsd_Q2)*Table1[[#This Row],[Iout]]),0, IF(Table1[[#This Row],[Iout]]<Table1[[#This Row],[Ripple Current pk-pk]]/2,Deadtime*Fsw*IF(VfdSky_Q2>0,0,Vsd_Q2)*(Table1[[#This Row],[Iout]]+Table1[[#This Row],[Ripple Current pk-pk]]/2),2*Deadtime*Fsw*IF(VfdSky_Q2>0,0,Vsd_Q2)*Table1[[#This Row],[Iout]])) -> 0 | AM14: =(Table1[[#This Row],[Deadtime Loss]]+Table1[[#This Row],[RDS(on) Loss3]]*(1+RdsonBotTc*Ta-RdsonBotTc*25))/(1-Table1[[#This Row],[RDS(on) Loss3]]*RdsonBotTc*ThetaJA_Q2) -> 0.7655643448 | AN14: =Table1[[#This Row],[Irms Lf]] -> 12.04609979 | AO14: =Rdson4*Table1[[#This Row],[Irms4]]^2 -> 0.6384774888 | AP14: =CHOOSE(Table1[[#This Row],[Mode Digit]], 0, (Vout*Table1[[#This Row],[Iin]]/2)*(Fsw)*(Tr_boost+Tf_boost), (Vout*Iout/2)*(Fsw/1)*(Tr_boost+Tf_boost)) -> 0.5650280867 | AQ14: =IF(Table1[[#This Row],[Vin]]>Vout, 0, IF(Table1[[#This Row],[Iin]]>Table1[[#This Row],[Ripple Current pk-pk]]/2,0,ABS(Table1[[#This Row],[Iin]]-Table1[[#This Row],[Ripple Current pk-pk]]/2)*Vsd_Q4*Deadtime*Fsw)) -> 0 | AR14: =(Table1[[#This Row],[Dead Time Loss 7]]+Table1[[#This Row],[Transition Loss6]]+Table1[[#This Row],[RDS(on) Loss5]]*(1+RdsonTopTc*Ta-RdsonTopTc*25))/(1-Table1[[#This Row],[RDS(on) Loss5]]*RdsonTopTc*ThetaJA_Q4) -> 1.443059424 | AS14: =Table1[[#This Row],[Irms Lf]] -> 12.04609979 | AT14: =Rdson3*Table1[[#This Row],[Irms9]]^2 -> 0.6384774888 | AU14: =CHOOSE(Table1[[#This Row],[Mode Digit]], 0, IF(Table1[[#This Row],[Iin]]<Table1[[#This Row],[Ripple Current pk-pk]]/2,Deadtime*Fsw*IF(VfdSky_Q3>0,0,Vsd_Q3)*(Table1[[#This Row],[Iin]]+Table1[[#This Row],[Ripple Current pk-pk]]/2), 2*Deadtime*Fsw*IF(VfdSky_Q3>0,0,Vsd_Q3)*Table1[[#This Row],[Iin]]), IF(Table1[[#This Row],[Iin]]<Table1[[#This Row],[Ripple Current pk-pk]]/2,Deadtime*Fsw*IF(VfdSky_Q3>0,0,Vsd_Q3)*(Table1[[#This Row],[Iin]]+Table1[[#This Row],[Ripple Current pk-pk]]/2), 2*Deadtime*Fsw*IF(VfdSky_Q3>0,0,Vsd_Q3)*Table1[[#This Row],[Iin]])) -> 0.4096 | AV14: =(Table1[[#This Row],[Deadtime Loss11]]+Table1[[#This Row],[RDS(on) Loss10]]*(1+RdsonBotTc*Ta-RdsonBotTc*25))/(1-Table1[[#This Row],[RDS(on) Loss10]]*RdsonBotTc*ThetaJA_Q3) -> 1.256693885 | AW14: =CHOOSE(Table1[[#This Row],[Mode Digit]], Rdson3*Table1[[#This Row],[Irms Lf]]^2, Rdson1*Table1[[#This Row],[Irms Lf]]^2, 0) -> 0.6384774888 | AX14: =CHOOSE(Table1[[#This Row],[Mode Digit]], 2*Deadtime*Fsw*IF(VfdSky_Q2>0,VfdSky_Q2,0)*Table1[[#This Row],[Iout]], 2*Deadtime*Fsw*IF(VfdSky_Q3>0,VfdSky_Q3,0)*Table1[[#This Row],[Iin]], 2*Deadtime*Fsw*IF(VfdSky_Q2>0,VfdSky_Q2,0)*Table1[[#This Row],[Iout]]+2*Deadtime*Fsw*IF(VfdSky_Q3>0,VfdSky_Q3,0)*Table1[[#This Row],[Iin]]) -> 0 | AY14: =CHOOSE(Table1[[#This Row],[Mode Digit]], IF(QrrSky_Q2>0,QrrSky_Q2,Qrr_Q2)*Fsw*(Table1[[#This Row],[Vin]]-Table1[[#This Row],[Iout]]*Rdson1), IF(QrrSky_Q3>0,QrrSky_Q3,Qrr_Q3)*Fsw*Vout, IF(QrrSky_Q2>0,QrrSky_Q2,Qrr_Q2)*Fsw*(Table1[[#This Row],[Vin]]-Table1[[#This Row],[Iout]]*Rdson1)+IF(QrrSky_Q3>0,QrrSky_Q3,Qrr_Q3)*Fsw*Vout) -> 0.2801664 | AZ14: =CHOOSE(Table1[[#This Row],[Mode Digit]], Rs*Table1[[#This Row],[Irms2]]^2, Rs*Table1[[#This Row],[Irms4]]^2, Rs*(Table1[[#This Row],[Irms2]]^2+Table1[[#This Row],[Irms4]]^2)) -> 0.2902170403 | BA14: 0.594 | BB14: =IF(Vout>8, Iq*Vout, Iq*Table1[[#This Row],[Vin]]) -> 0.03072 | BC14: =CHOOSE(Table1[[#This Row],[Mode Digit]], (Qg_Q1+Qg_Q2)*Fsw, (Qg_Q3+Qg_Q4)*Fsw, (Qg_Q1+Qg_Q2+Qg_Q3+Qg_Q4)*Fsw)*IF(Vout>8, Vout, Table1[[#This Row],[Vin]]) -> 0.3579904 | BD14: 0.7053694118 | BE14: =Table1[[#This Row],[IQ Loss]]+Table1[[#This Row],[Switching Current Loss]] -> 0.3887104 | BF14: =SUM(Table1[[#This Row],[Total Inductor Loss]],Table1[[#This Row],[Total Cout Loss]],Table1[[#This Row],[Total Cin Loss]],Table1[[#This Row],[Total Control MOSFET Loss]],Table1[[#This Row],[Total Sync MOSFET Loss]],Table1[[#This Row],[Total Control MOSFET Loss8]],Table1[[#This Row],[Total Sync MOSFET Loss12]], Table1[[#This Row],[Deadtime Loss13]],Table1[[#This Row],[Reverse Recovery Loss]],Table1[[#This Row],[Total IC Loss]],Table1[[#This Row],[Isense Shunt Loss]],Table1[[#This Row],[Iout Shunt Loss]]) -> 7.093975468 | BG14: =Vout*Table1[[#This Row],[Iout]] -> 61.44 | BH14: =Table1[[#This Row],[Pout]]/(Table1[[#This Row],[Pout]]+Table1[[#This Row],[Total Loss]]) -> 0.8964896547 | BI14: =IF(Table1[[#This Row],[Vin]]>Vout,ThetaJA_Q1*(Table1[[#This Row],[Total Control MOSFET Loss]]+Table1[[#This Row],[Reverse Recovery Loss]]),ThetaJA_Q4*(Table1[[#This Row],[Total Control MOSFET Loss8]]+Table1[[#This Row],[Reverse Recovery Loss]])) -> 112.0096786 | BJ14: =IF(Table1[[#This Row],[Vin]]>Vout, Table1[[#This Row],[Total Sync MOSFET Loss]]*ThetaJA_Q2, ThetaJA_Q3*Table1[[#This Row],[Total Sync MOSFET Loss12]]) -> 81.68510255 | BL14: =Table1[[#This Row],[EFF, h]]*100 -> 89.64896547 | BM14: =Table1[[#This Row],[Total Inductor Loss]] -> 1.236170192 | BN14: =Table1[[#This Row],[Total Control MOSFET Loss]]+Table1[[#This Row],[Total Sync MOSFET Loss]]+Table1[[#This Row],[Total Control MOSFET Loss8]]+Table1[[#This Row],[Total Sync MOSFET Loss12]]+Table1[[#This Row],[Reverse Recovery Loss]] -> 4.511048399 | BO14: =Table1[[#This Row],[Total Sync MOSFET Loss]]+Table1[[#This Row],[Reverse Recovery Loss]]*0.33 -> 0.8580192568 | BP14: =Table1[[#This Row],[Isense Shunt Loss]] -> 0.2902170403 | BT14: 500kHz / 12-5V / 15A | BU14: 45 | BV14: 45 | BW14: 45 | BX14: =500000*(12-Vdd)*BW14/1000000000+((500000*BW9/1000000000*Vdd)*2.5/(2*4)) -> 0.18328125 | BY14: 14.6625 | BZ14: 18.328125 | CA14: 21.99375 | CB14: 25.659375 | CC14: 29.325 | CD14: 32.990625 | CE14: 3.665625 | CF14: 5.4984375 | CG14: 7.33125 | CH14: 9.1640625
A15: Ta | B15: =Ta -> 25 | C15: °C | D15: Ambient Temperature | G15: 6 | H15: =VIN_min+(VIN_max-VIN_min)*(Table1[[#This Row],[Step]]/200) -> 5.68 | I15: =IF(Table1[[#This Row],[Vin]]>VIN_BB_to_buck, "BUCK", IF(Table1[[#This Row],[Vin]]<=VIN_boost_to_BB,"BOOST","BUCK-BST")) -> BOOST | J15: =IF(Table1[[#This Row],[Mode]]="BOOST",2, IF(Table1[[#This Row],[Mode]]="BUCK", 1,3)) -> 2 | K15: 6 | L15: =Vout*Table1[[#This Row],[Iout]]/(Table1[[#This Row],[Vin]]*Efficiency) -> 11.38621201 | M15: =Iout/(1-Table1[[#This Row],[Duty Cycle BOOST Leg]]) -> 11.01813461 | N15: =CHOOSE(Table1[[#This Row],[Mode Digit]],(Vout+(Rdson2+Rs+Rdcr)*Table1[[#This Row],[Iout]])/(Table1[[#This Row],[Vin]]+(Rs+Rdson2-Rdson1)*Table1[[#This Row],[Iout]]),1,IF(Table1[[#This Row],[Vin]]<Vout,D_max_buck_BB,Vout/Table1[[#This Row],[Vin]]*(1-D_min_boost_exitBB_to_buck))) -> 1 | O15: =CHOOSE(Table1[[#This Row],[Mode Digit]],0,(Vout+(Rdson3+Rdcr)*Table1[[#This Row],[Iin]]-Table1[[#This Row],[Vin]])/(Vout+(Rdson3-Rdson4-Rs)*Table1[[#This Row],[Iin]]),IF(Table1[[#This Row],[Vin]]>Vout, (Vout-Table1[[#This Row],[Vin]]*D_max_exitBB_to_buck)/Vout, (Vout-Table1[[#This Row],[Vin]]*D_max_buck_BB)/Vout)) -> 0.4554432114 | P15: =CHOOSE(Table1[[#This Row],[Mode Digit]],0,0,1-((Table1[[#This Row],[Vin]]-Vout)+((VIN_BB_to_buck-VIN_BB_to_boost)/2))/((VIN_BB_to_buck-VIN_BB_to_boost))) -> 0 | Q15: =CHOOSE(Table1[[#This Row],[Mode Digit]],0,Table1[[#This Row],[Duty Cycle BOOST Leg]]/Fsw,(1/Fsw-Table1[[#This Row],[T BOD/BUE]])*Table1[[#This Row],[BOE/BUD BUBO ratio]]) -> 1.198534767e-06 | R15: =CHOOSE(Table1[[#This Row],[Mode Digit]],Table1[[#This Row],[Duty Cycle BUCK Leg]]/Fsw,(1-Table1[[#This Row],[Duty Cycle BOOST Leg]])/Fsw,TonBubo) -> 1.433044181e-06 | S15: =CHOOSE(Table1[[#This Row],[Mode Digit]],(1-Table1[[#This Row],[Duty Cycle BUCK Leg]])/Fsw,0,(1/Fsw-Table1[[#This Row],[T BOD/BUE]]-Table1[[#This Row],[T BOE]])) -> 0 | T15: =MAX(0, CHOOSE(Table1[[#This Row],[Mode Digit]], (Table1[[#This Row],[Vin]]-(Rdson1+Rdcr)*Table1[[#This Row],[Iout]]-Vout)*Table1[[#This Row],[Duty Cycle BUCK Leg]]/(Fsw*Lf), (Table1[[#This Row],[Vin]]-(Rdson4+Rdcr+Rs)*Table1[[#This Row],[Iin]])*Table1[[#This Row],[Duty Cycle BOOST Leg]]/(Fsw*Lf), IF(Table1[[#This Row],[Vin]]<Vout, (Table1[[#This Row],[Vin]]-(Rdson1+Rdson3+Rdcr+Rs)*Table1[[#This Row],[Iin]])*Table1[[#This Row],[T BOE]]/(Lf),(Vout-(Rdson2+Rdson4+Rdcr+Rs)*Table1[[#This Row],[Iout]])*Table1[[#This Row],[T BUD]]/(Lf)))) -> 4.445653608 | U15: =CHOOSE(Table1[[#This Row],[Mode Digit]], SQRT(Table1[[#This Row],[Iout]]^2+(Table1[[#This Row],[Ripple Current pk-pk]]^2)/12), SQRT(Table1[[#This Row],[Iin]]^2+(Table1[[#This Row],[Ripple Current pk-pk]]^2)/12), SQRT(Table1[[#This Row],[Avg IL]]^2+(Table1[[#This Row],[Ripple Current pk-pk]]^2)/12)) -> 11.45830748 | V15: =(Table1[[#This Row],[Irms Lf]]^2*Rdcr*(1+Ltc*Ta-Ltc*25))/(1-Table1[[#This Row],[Irms Lf]]^2*Rdcr*Ltc*ThetaCa) -> 0.5196536214 | W15: =ABS(7.759*10^-3*Fsw^0.9458*(0.00787*Table1[[#This Row],[Ripple Current pk-pk]])^2.304) -> 0.6491342602 | X15: =Table1[[#This Row],[DCR Loss]]+Table1[[#This Row],[Core Loss]] -> 1.168787882 | Y15: =IF(Table1[[#This Row],[Vin]]>Vout, Table1[[#This Row],[Ripple Current pk-pk]]/SQRT(12), SQRT(Table1[[#This Row],[Duty Cycle BOOST Leg]]/(1-Table1[[#This Row],[Duty Cycle BOOST Leg]]))*SQRT(Table1[[#This Row],[Iout]]^2+(Table1[[#This Row],[Ripple Current pk-pk]]^2)/12)) -> 5.611263154 | Z15: =RCoutEsr*Table1[[#This Row],[Irms Cout]]^2 -> 0.06297254836 | AA15: =Table1[[#This Row],[Cout ESR Loss]] -> 0.06297254836 | AB15: =IF(Table1[[#This Row],[Vin]]>Vout, SQRT(Table1[[#This Row],[Duty Cycle BUCK Leg]]*(1-Table1[[#This Row],[Duty Cycle BUCK Leg]]))*SQRT(Table1[[#This Row],[Iout]]^2+(Table1[[#This Row],[Ripple Current pk-pk]]^2)/12), Table1[[#This Row],[Ripple Current pk-pk]]/SQRT(12)) -> 1.283349654 | AC15: =RCinEsr*Table1[[#This Row],[Irms Cin]]^2 -> 0.003293972666 | AD15: =Table1[[#This Row],[Cin ESR Loss]] -> 0.003293972666 | AE15: =Table1[[#This Row],[Irms Lf]] -> 11.45830748 | AF15: =Rdson1*Table1[[#This Row],[Irms1]]^2 -> 0.5776883651 | AG15: =CHOOSE(Table1[[#This Row],[Mode Digit]], (Table1[[#This Row],[Vin]]*Table1[[#This Row],[Iout]]/2)*(Fsw)*(Tr_buck+Tf_buck), 0, (Table1[[#This Row],[Vin]]*Table1[[#This Row],[Avg IL]]/2)*(Fsw/1)*(Tr_buck+Tf_buck)) -> 0 | AH15: =IF(Table1[[#This Row],[Vin]]>Vout, IF(Table1[[#This Row],[Iout]]>Table1[[#This Row],[Ripple Current pk-pk]]/2,0,ABS(Table1[[#This Row],[Iout]]-Table1[[#This Row],[Ripple Current pk-pk]]/2)*Vsd_Q1*Deadtime*Fsw),0) -> 0 | AI15: =(Table1[[#This Row],[Dead Time Loss ]]+Table1[[#This Row],[Transition Loss]]+Table1[[#This Row],[RDS(on) Loss]]*(1+RdsonTopTc*Ta-RdsonTopTc*25))/(1-Table1[[#This Row],[RDS(on) Loss]]*RdsonTopTc*ThetaJA_Q1) -> 0.679792502 | AJ15: =Table1[[#This Row],[Irms Lf]] -> 11.45830748 | AK15: =Rdson2*Table1[[#This Row],[Irms2]]^2 -> 0.5776883651 | AL15: =CHOOSE(Table1[[#This Row],[Mode Digit]], IF(Table1[[#This Row],[Iout]]<Table1[[#This Row],[Ripple Current pk-pk]]/2,Deadtime*Fsw*IF(VfdSky_Q2>0,0,Vsd_Q2)*(Table1[[#This Row],[Iout]]+Table1[[#This Row],[Ripple Current pk-pk]]/2),2*Deadtime*Fsw*IF(VfdSky_Q2>0,0,Vsd_Q2)*Table1[[#This Row],[Iout]]),0, IF(Table1[[#This Row],[Iout]]<Table1[[#This Row],[Ripple Current pk-pk]]/2,Deadtime*Fsw*IF(VfdSky_Q2>0,0,Vsd_Q2)*(Table1[[#This Row],[Iout]]+Table1[[#This Row],[Ripple Current pk-pk]]/2),2*Deadtime*Fsw*IF(VfdSky_Q2>0,0,Vsd_Q2)*Table1[[#This Row],[Iout]])) -> 0 | AM15: =(Table1[[#This Row],[Deadtime Loss]]+Table1[[#This Row],[RDS(on) Loss3]]*(1+RdsonBotTc*Ta-RdsonBotTc*25))/(1-Table1[[#This Row],[RDS(on) Loss3]]*RdsonBotTc*ThetaJA_Q2) -> 0.679792502 | AN15: =Table1[[#This Row],[Irms Lf]] -> 11.45830748 | AO15: =Rdson4*Table1[[#This Row],[Irms4]]^2 -> 0.5776883651 | AP15: =CHOOSE(Table1[[#This Row],[Mode Digit]], 0, (Vout*Table1[[#This Row],[Iin]]/2)*(Fsw)*(Tr_boost+Tf_boost), (Vout*Iout/2)*(Fsw/1)*(Tr_boost+Tf_boost)) -> 0.5371745895 | AQ15: =IF(Table1[[#This Row],[Vin]]>Vout, 0, IF(Table1[[#This Row],[Iin]]>Table1[[#This Row],[Ripple Current pk-pk]]/2,0,ABS(Table1[[#This Row],[Iin]]-Table1[[#This Row],[Ripple Current pk-pk]]/2)*Vsd_Q4*Deadtime*Fsw)) -> 0 | AR15: =(Table1[[#This Row],[Dead Time Loss 7]]+Table1[[#This Row],[Transition Loss6]]+Table1[[#This Row],[RDS(on) Loss5]]*(1+RdsonTopTc*Ta-RdsonTopTc*25))/(1-Table1[[#This Row],[RDS(on) Loss5]]*RdsonTopTc*ThetaJA_Q4) -> 1.311910579 | AS15: =Table1[[#This Row],[Irms Lf]] -> 11.45830748 | AT15: =Rdson3*Table1[[#This Row],[Irms9]]^2 -> 0.5776883651 | AU15: =CHOOSE(Table1[[#This Row],[Mode Digit]], 0, IF(Table1[[#This Row],[Iin]]<Table1[[#This Row],[Ripple Current pk-pk]]/2,Deadtime*Fsw*IF(VfdSky_Q3>0,0,Vsd_Q3)*(Table1[[#This Row],[Iin]]+Table1[[#This Row],[Ripple Current pk-pk]]/2), 2*Deadtime*Fsw*IF(VfdSky_Q3>0,0,Vsd_Q3)*Table1[[#This Row],[Iin]]), IF(Table1[[#This Row],[Iin]]<Table1[[#This Row],[Ripple Current pk-pk]]/2,Deadtime*Fsw*IF(VfdSky_Q3>0,0,Vsd_Q3)*(Table1[[#This Row],[Iin]]+Table1[[#This Row],[Ripple Current pk-pk]]/2), 2*Deadtime*Fsw*IF(VfdSky_Q3>0,0,Vsd_Q3)*Table1[[#This Row],[Iin]])) -> 0.3894084507 | AV15: =(Table1[[#This Row],[Deadtime Loss11]]+Table1[[#This Row],[RDS(on) Loss10]]*(1+RdsonBotTc*Ta-RdsonBotTc*25))/(1-Table1[[#This Row],[RDS(on) Loss10]]*RdsonBotTc*ThetaJA_Q3) -> 1.138027358 | AW15: =CHOOSE(Table1[[#This Row],[Mode Digit]], Rdson3*Table1[[#This Row],[Irms Lf]]^2, Rdson1*Table1[[#This Row],[Irms Lf]]^2, 0) -> 0.5776883651 | AX15: =CHOOSE(Table1[[#This Row],[Mode Digit]], 2*Deadtime*Fsw*IF(VfdSky_Q2>0,VfdSky_Q2,0)*Table1[[#This Row],[Iout]], 2*Deadtime*Fsw*IF(VfdSky_Q3>0,VfdSky_Q3,0)*Table1[[#This Row],[Iin]], 2*Deadtime*Fsw*IF(VfdSky_Q2>0,VfdSky_Q2,0)*Table1[[#This Row],[Iout]]+2*Deadtime*Fsw*IF(VfdSky_Q3>0,VfdSky_Q3,0)*Table1[[#This Row],[Iin]]) -> 0 | AY15: =CHOOSE(Table1[[#This Row],[Mode Digit]], IF(QrrSky_Q2>0,QrrSky_Q2,Qrr_Q2)*Fsw*(Table1[[#This Row],[Vin]]-Table1[[#This Row],[Iout]]*Rdson1), IF(QrrSky_Q3>0,QrrSky_Q3,Qrr_Q3)*Fsw*Vout, IF(QrrSky_Q2>0,QrrSky_Q2,Qrr_Q2)*Fsw*(Table1[[#This Row],[Vin]]-Table1[[#This Row],[Iout]]*Rdson1)+IF(QrrSky_Q3>0,QrrSky_Q3,Qrr_Q3)*Fsw*Vout) -> 0.2801664 | AZ15: =CHOOSE(Table1[[#This Row],[Mode Digit]], Rs*Table1[[#This Row],[Irms2]]^2, Rs*Table1[[#This Row],[Irms4]]^2, Rs*(Table1[[#This Row],[Irms2]]^2+Table1[[#This Row],[Irms4]]^2)) -> 0.2625856205 | BA15: 0.594 | BB15: =IF(Vout>8, Iq*Vout, Iq*Table1[[#This Row],[Vin]]) -> 0.03072 | BC15: =CHOOSE(Table1[[#This Row],[Mode Digit]], (Qg_Q1+Qg_Q2)*Fsw, (Qg_Q3+Qg_Q4)*Fsw, (Qg_Q1+Qg_Q2+Qg_Q3+Qg_Q4)*Fsw)*IF(Vout>8, Vout, Table1[[#This Row],[Vin]]) -> 0.3579904 | BD15: 0.7053694118 | BE15: =Table1[[#This Row],[IQ Loss]]+Table1[[#This Row],[Switching Current Loss]] -> 0.3887104 | BF15: =SUM(Table1[[#This Row],[Total Inductor Loss]],Table1[[#This Row],[Total Cout Loss]],Table1[[#This Row],[Total Cin Loss]],Table1[[#This Row],[Total Control MOSFET Loss]],Table1[[#This Row],[Total Sync MOSFET Loss]],Table1[[#This Row],[Total Control MOSFET Loss8]],Table1[[#This Row],[Total Sync MOSFET Loss12]], Table1[[#This Row],[Deadtime Loss13]],Table1[[#This Row],[Reverse Recovery Loss]],Table1[[#This Row],[Total IC Loss]],Table1[[#This Row],[Isense Shunt Loss]],Table1[[#This Row],[Iout Shunt Loss]]) -> 6.570039764 | BG15: =Vout*Table1[[#This Row],[Iout]] -> 61.44 | BH15: =Table1[[#This Row],[Pout]]/(Table1[[#This Row],[Pout]]+Table1[[#This Row],[Total Loss]]) -> 0.9033960311 | BI15: =IF(Table1[[#This Row],[Vin]]>Vout,ThetaJA_Q1*(Table1[[#This Row],[Total Control MOSFET Loss]]+Table1[[#This Row],[Reverse Recovery Loss]]),ThetaJA_Q4*(Table1[[#This Row],[Total Control MOSFET Loss8]]+Table1[[#This Row],[Reverse Recovery Loss]])) -> 103.4850036 | BJ15: =IF(Table1[[#This Row],[Vin]]>Vout, Table1[[#This Row],[Total Sync MOSFET Loss]]*ThetaJA_Q2, ThetaJA_Q3*Table1[[#This Row],[Total Sync MOSFET Loss12]]) -> 73.9717783 | BL15: =Table1[[#This Row],[EFF, h]]*100 -> 90.33960311 | BM15: =Table1[[#This Row],[Total Inductor Loss]] -> 1.168787882 | BN15: =Table1[[#This Row],[Total Control MOSFET Loss]]+Table1[[#This Row],[Total Sync MOSFET Loss]]+Table1[[#This Row],[Total Control MOSFET Loss8]]+Table1[[#This Row],[Total Sync MOSFET Loss12]]+Table1[[#This Row],[Reverse Recovery Loss]] -> 4.089689341 | BO15: =Table1[[#This Row],[Total Sync MOSFET Loss]]+Table1[[#This Row],[Reverse Recovery Loss]]*0.33 -> 0.772247414 | BP15: =Table1[[#This Row],[Isense Shunt Loss]] -> 0.2625856205 | BT15: 1Mhz / 5-1.2V / 10A | BU15: 20 | BV15: 20 | BW15: 20 | BX15: =1000000*(5-Vdd)*BW15/1000000000+((1000000*BW9/1000000000*Vdd)*2.5/(2*4)) -> 0.1140625 | BY15: 9.125 | BZ15: 11.40625 | CA15: 13.6875 | CB15: 15.96875 | CC15: 18.25 | CD15: 20.53125 | CE15: 2.28125 | CF15: 3.421875 | CG15: 4.5625 | CH15: 5.703125
A16: Vcc | B16: =Vdd -> 7.5 | C16: V | D16: Subregulated VCC Voltage | G16: 7 | H16: =VIN_min+(VIN_max-VIN_min)*(Table1[[#This Row],[Step]]/200) -> 5.96 | I16: =IF(Table1[[#This Row],[Vin]]>VIN_BB_to_buck, "BUCK", IF(Table1[[#This Row],[Vin]]<=VIN_boost_to_BB,"BOOST","BUCK-BST")) -> BOOST | J16: =IF(Table1[[#This Row],[Mode]]="BOOST",2, IF(Table1[[#This Row],[Mode]]="BUCK", 1,3)) -> 2 | K16: 6 | L16: =Vout*Table1[[#This Row],[Iout]]/(Table1[[#This Row],[Vin]]*Efficiency) -> 10.8512893 | M16: =Iout/(1-Table1[[#This Row],[Duty Cycle BOOST Leg]]) -> 10.48152906 | N16: =CHOOSE(Table1[[#This Row],[Mode Digit]],(Vout+(Rdson2+Rs+Rdcr)*Table1[[#This Row],[Iout]])/(Table1[[#This Row],[Vin]]+(Rs+Rdson2-Rdson1)*Table1[[#This Row],[Iout]]),1,IF(Table1[[#This Row],[Vin]]<Vout,D_max_buck_BB,Vout/Table1[[#This Row],[Vin]]*(1-D_min_boost_exitBB_to_buck))) -> 1 | O16: =CHOOSE(Table1[[#This Row],[Mode Digit]],0,(Vout+(Rdson3+Rdcr)*Table1[[#This Row],[Iin]]-Table1[[#This Row],[Vin]])/(Vout+(Rdson3-Rdson4-Rs)*Table1[[#This Row],[Iin]]),IF(Table1[[#This Row],[Vin]]>Vout, (Vout-Table1[[#This Row],[Vin]]*D_max_exitBB_to_buck)/Vout, (Vout-Table1[[#This Row],[Vin]]*D_max_buck_BB)/Vout)) -> 0.4275644358 | P16: =CHOOSE(Table1[[#This Row],[Mode Digit]],0,0,1-((Table1[[#This Row],[Vin]]-Vout)+((VIN_BB_to_buck-VIN_BB_to_boost)/2))/((VIN_BB_to_buck-VIN_BB_to_boost))) -> 0 | Q16: =CHOOSE(Table1[[#This Row],[Mode Digit]],0,Table1[[#This Row],[Duty Cycle BOOST Leg]]/Fsw,(1/Fsw-Table1[[#This Row],[T BOD/BUE]])*Table1[[#This Row],[BOE/BUD BUBO ratio]]) -> 1.125169568e-06 | R16: =CHOOSE(Table1[[#This Row],[Mode Digit]],Table1[[#This Row],[Duty Cycle BUCK Leg]]/Fsw,(1-Table1[[#This Row],[Duty Cycle BOOST Leg]])/Fsw,TonBubo) -> 1.506409379e-06 | S16: =CHOOSE(Table1[[#This Row],[Mode Digit]],(1-Table1[[#This Row],[Duty Cycle BUCK Leg]])/Fsw,0,(1/Fsw-Table1[[#This Row],[T BOD/BUE]]-Table1[[#This Row],[T BOE]])) -> 0 | T16: =MAX(0, CHOOSE(Table1[[#This Row],[Mode Digit]], (Table1[[#This Row],[Vin]]-(Rdson1+Rdcr)*Table1[[#This Row],[Iout]]-Vout)*Table1[[#This Row],[Duty Cycle BUCK Leg]]/(Fsw*Lf), (Table1[[#This Row],[Vin]]-(Rdson4+Rdcr+Rs)*Table1[[#This Row],[Iin]])*Table1[[#This Row],[Duty Cycle BOOST Leg]]/(Fsw*Lf), IF(Table1[[#This Row],[Vin]]<Vout, (Table1[[#This Row],[Vin]]-(Rdson1+Rdson3+Rdcr+Rs)*Table1[[#This Row],[Iin]])*Table1[[#This Row],[T BOE]]/(Lf),(Vout-(Rdson2+Rdson4+Rdcr+Rs)*Table1[[#This Row],[Iout]])*Table1[[#This Row],[T BUD]]/(Lf)))) -> 4.387648875 | U16: =CHOOSE(Table1[[#This Row],[Mode Digit]], SQRT(Table1[[#This Row],[Iout]]^2+(Table1[[#This Row],[Ripple Current pk-pk]]^2)/12), SQRT(Table1[[#This Row],[Iin]]^2+(Table1[[#This Row],[Ripple Current pk-pk]]^2)/12), SQRT(Table1[[#This Row],[Avg IL]]^2+(Table1[[#This Row],[Ripple Current pk-pk]]^2)/12)) -> 10.92496078 | V16: =(Table1[[#This Row],[Irms Lf]]^2*Rdcr*(1+Ltc*Ta-Ltc*25))/(1-Table1[[#This Row],[Irms Lf]]^2*Rdcr*Ltc*ThetaCa) -> 0.470624175 | W16: =ABS(7.759*10^-3*Fsw^0.9458*(0.00787*Table1[[#This Row],[Ripple Current pk-pk]])^2.304) -> 0.6297861116 | X16: =Table1[[#This Row],[DCR Loss]]+Table1[[#This Row],[Core Loss]] -> 1.100410287 | Y16: =IF(Table1[[#This Row],[Vin]]>Vout, Table1[[#This Row],[Ripple Current pk-pk]]/SQRT(12), SQRT(Table1[[#This Row],[Duty Cycle BOOST Leg]]/(1-Table1[[#This Row],[Duty Cycle BOOST Leg]]))*SQRT(Table1[[#This Row],[Iout]]^2+(Table1[[#This Row],[Ripple Current pk-pk]]^2)/12)) -> 5.299759615 | Z16: =RCoutEsr*Table1[[#This Row],[Irms Cout]]^2 -> 0.05617490396 | AA16: =Table1[[#This Row],[Cout ESR Loss]] -> 0.05617490396 | AB16: =IF(Table1[[#This Row],[Vin]]>Vout, SQRT(Table1[[#This Row],[Duty Cycle BUCK Leg]]*(1-Table1[[#This Row],[Duty Cycle BUCK Leg]]))*SQRT(Table1[[#This Row],[Iout]]^2+(Table1[[#This Row],[Ripple Current pk-pk]]^2)/12), Table1[[#This Row],[Ripple Current pk-pk]]/SQRT(12)) -> 1.26660513 | AC16: =RCinEsr*Table1[[#This Row],[Irms Cin]]^2 -> 0.003208577108 | AD16: =Table1[[#This Row],[Cin ESR Loss]] -> 0.003208577108 | AE16: =Table1[[#This Row],[Irms Lf]] -> 10.92496078 | AF16: =Rdson1*Table1[[#This Row],[Irms1]]^2 -> 0.525160979 | AG16: =CHOOSE(Table1[[#This Row],[Mode Digit]], (Table1[[#This Row],[Vin]]*Table1[[#This Row],[Iout]]/2)*(Fsw)*(Tr_buck+Tf_buck), 0, (Table1[[#This Row],[Vin]]*Table1[[#This Row],[Avg IL]]/2)*(Fsw/1)*(Tr_buck+Tf_buck)) -> 0 | AH16: =IF(Table1[[#This Row],[Vin]]>Vout, IF(Table1[[#This Row],[Iout]]>Table1[[#This Row],[Ripple Current pk-pk]]/2,0,ABS(Table1[[#This Row],[Iout]]-Table1[[#This Row],[Ripple Current pk-pk]]/2)*Vsd_Q1*Deadtime*Fsw),0) -> 0 | AI16: =(Table1[[#This Row],[Dead Time Loss ]]+Table1[[#This Row],[Transition Loss]]+Table1[[#This Row],[RDS(on) Loss]]*(1+RdsonTopTc*Ta-RdsonTopTc*25))/(1-Table1[[#This Row],[RDS(on) Loss]]*RdsonTopTc*ThetaJA_Q1) -> 0.6082066419 | AJ16: =Table1[[#This Row],[Irms Lf]] -> 10.92496078 | AK16: =Rdson2*Table1[[#This Row],[Irms2]]^2 -> 0.525160979 | AL16: =CHOOSE(Table1[[#This Row],[Mode Digit]], IF(Table1[[#This Row],[Iout]]<Table1[[#This Row],[Ripple Current pk-pk]]/2,Deadtime*Fsw*IF(VfdSky_Q2>0,0,Vsd_Q2)*(Table1[[#This Row],[Iout]]+Table1[[#This Row],[Ripple Current pk-pk]]/2),2*Deadtime*Fsw*IF(VfdSky_Q2>0,0,Vsd_Q2)*Table1[[#This Row],[Iout]]),0, IF(Table1[[#This Row],[Iout]]<Table1[[#This Row],[Ripple Current pk-pk]]/2,Deadtime*Fsw*IF(VfdSky_Q2>0,0,Vsd_Q2)*(Table1[[#This Row],[Iout]]+Table1[[#This Row],[Ripple Current pk-pk]]/2),2*Deadtime*Fsw*IF(VfdSky_Q2>0,0,Vsd_Q2)*Table1[[#This Row],[Iout]])) -> 0 | AM16: =(Table1[[#This Row],[Deadtime Loss]]+Table1[[#This Row],[RDS(on) Loss3]]*(1+RdsonBotTc*Ta-RdsonBotTc*25))/(1-Table1[[#This Row],[RDS(on) Loss3]]*RdsonBotTc*ThetaJA_Q2) -> 0.6082066419 | AN16: =Table1[[#This Row],[Irms Lf]] -> 10.92496078 | AO16: =Rdson4*Table1[[#This Row],[Irms4]]^2 -> 0.525160979 | AP16: =CHOOSE(Table1[[#This Row],[Mode Digit]], 0, (Vout*Table1[[#This Row],[Iin]]/2)*(Fsw)*(Tr_boost+Tf_boost), (Vout*Iout/2)*(Fsw/1)*(Tr_boost+Tf_boost)) -> 0.5119381994 | AQ16: =IF(Table1[[#This Row],[Vin]]>Vout, 0, IF(Table1[[#This Row],[Iin]]>Table1[[#This Row],[Ripple Current pk-pk]]/2,0,ABS(Table1[[#This Row],[Iin]]-Table1[[#This Row],[Ripple Current pk-pk]]/2)*Vsd_Q4*Deadtime*Fsw)) -> 0 | AR16: =(Table1[[#This Row],[Dead Time Loss 7]]+Table1[[#This Row],[Transition Loss6]]+Table1[[#This Row],[RDS(on) Loss5]]*(1+RdsonTopTc*Ta-RdsonTopTc*25))/(1-Table1[[#This Row],[RDS(on) Loss5]]*RdsonTopTc*ThetaJA_Q4) -> 1.201099537 | AS16: =Table1[[#This Row],[Irms Lf]] -> 10.92496078 | AT16: =Rdson3*Table1[[#This Row],[Irms9]]^2 -> 0.525160979 | AU16: =CHOOSE(Table1[[#This Row],[Mode Digit]], 0, IF(Table1[[#This Row],[Iin]]<Table1[[#This Row],[Ripple Current pk-pk]]/2,Deadtime*Fsw*IF(VfdSky_Q3>0,0,Vsd_Q3)*(Table1[[#This Row],[Iin]]+Table1[[#This Row],[Ripple Current pk-pk]]/2), 2*Deadtime*Fsw*IF(VfdSky_Q3>0,0,Vsd_Q3)*Table1[[#This Row],[Iin]]), IF(Table1[[#This Row],[Iin]]<Table1[[#This Row],[Ripple Current pk-pk]]/2,Deadtime*Fsw*IF(VfdSky_Q3>0,0,Vsd_Q3)*(Table1[[#This Row],[Iin]]+Table1[[#This Row],[Ripple Current pk-pk]]/2), 2*Deadtime*Fsw*IF(VfdSky_Q3>0,0,Vsd_Q3)*Table1[[#This Row],[Iin]])) -> 0.371114094 | AV16: =(Table1[[#This Row],[Deadtime Loss11]]+Table1[[#This Row],[RDS(on) Loss10]]*(1+RdsonBotTc*Ta-RdsonBotTc*25))/(1-Table1[[#This Row],[RDS(on) Loss10]]*RdsonBotTc*ThetaJA_Q3) -> 1.038006391 | AW16: =CHOOSE(Table1[[#This Row],[Mode Digit]], Rdson3*Table1[[#This Row],[Irms Lf]]^2, Rdson1*Table1[[#This Row],[Irms Lf]]^2, 0) -> 0.525160979 | AX16: =CHOOSE(Table1[[#This Row],[Mode Digit]], 2*Deadtime*Fsw*IF(VfdSky_Q2>0,VfdSky_Q2,0)*Table1[[#This Row],[Iout]], 2*Deadtime*Fsw*IF(VfdSky_Q3>0,VfdSky_Q3,0)*Table1[[#This Row],[Iin]], 2*Deadtime*Fsw*IF(VfdSky_Q2>0,VfdSky_Q2,0)*Table1[[#This Row],[Iout]]+2*Deadtime*Fsw*IF(VfdSky_Q3>0,VfdSky_Q3,0)*Table1[[#This Row],[Iin]]) -> 0 | AY16: =CHOOSE(Table1[[#This Row],[Mode Digit]], IF(QrrSky_Q2>0,QrrSky_Q2,Qrr_Q2)*Fsw*(Table1[[#This Row],[Vin]]-Table1[[#This Row],[Iout]]*Rdson1), IF(QrrSky_Q3>0,QrrSky_Q3,Qrr_Q3)*Fsw*Vout, IF(QrrSky_Q2>0,QrrSky_Q2,Qrr_Q2)*Fsw*(Table1[[#This Row],[Vin]]-Table1[[#This Row],[Iout]]*Rdson1)+IF(QrrSky_Q3>0,QrrSky_Q3,Qrr_Q3)*Fsw*Vout) -> 0.2801664 | AZ16: =CHOOSE(Table1[[#This Row],[Mode Digit]], Rs*Table1[[#This Row],[Irms2]]^2, Rs*Table1[[#This Row],[Irms4]]^2, Rs*(Table1[[#This Row],[Irms2]]^2+Table1[[#This Row],[Irms4]]^2)) -> 0.2387095359 | BA16: 0.594 | BB16: =IF(Vout>8, Iq*Vout, Iq*Table1[[#This Row],[Vin]]) -> 0.03072 | BC16: =CHOOSE(Table1[[#This Row],[Mode Digit]], (Qg_Q1+Qg_Q2)*Fsw, (Qg_Q3+Qg_Q4)*Fsw, (Qg_Q1+Qg_Q2+Qg_Q3+Qg_Q4)*Fsw)*IF(Vout>8, Vout, Table1[[#This Row],[Vin]]) -> 0.3579904 | BD16: 0.7053694118 | BE16: =Table1[[#This Row],[IQ Loss]]+Table1[[#This Row],[Switching Current Loss]] -> 0.3887104 | BF16: =SUM(Table1[[#This Row],[Total Inductor Loss]],Table1[[#This Row],[Total Cout Loss]],Table1[[#This Row],[Total Cin Loss]],Table1[[#This Row],[Total Control MOSFET Loss]],Table1[[#This Row],[Total Sync MOSFET Loss]],Table1[[#This Row],[Total Control MOSFET Loss8]],Table1[[#This Row],[Total Sync MOSFET Loss12]], Table1[[#This Row],[Deadtime Loss13]],Table1[[#This Row],[Reverse Recovery Loss]],Table1[[#This Row],[Total IC Loss]],Table1[[#This Row],[Isense Shunt Loss]],Table1[[#This Row],[Iout Shunt Loss]]) -> 6.116899314 | BG16: =Vout*Table1[[#This Row],[Iout]] -> 61.44 | BH16: =Table1[[#This Row],[Pout]]/(Table1[[#This Row],[Pout]]+Table1[[#This Row],[Total Loss]]) -> 0.9094555941 | BI16: =IF(Table1[[#This Row],[Vin]]>Vout,ThetaJA_Q1*(Table1[[#This Row],[Total Control MOSFET Loss]]+Table1[[#This Row],[Reverse Recovery Loss]]),ThetaJA_Q4*(Table1[[#This Row],[Total Control MOSFET Loss8]]+Table1[[#This Row],[Reverse Recovery Loss]])) -> 96.28228588 | BJ16: =IF(Table1[[#This Row],[Vin]]>Vout, Table1[[#This Row],[Total Sync MOSFET Loss]]*ThetaJA_Q2, ThetaJA_Q3*Table1[[#This Row],[Total Sync MOSFET Loss12]]) -> 67.47041539 | BL16: =Table1[[#This Row],[EFF, h]]*100 -> 90.94555941 | BM16: =Table1[[#This Row],[Total Inductor Loss]] -> 1.100410287 | BN16: =Table1[[#This Row],[Total Control MOSFET Loss]]+Table1[[#This Row],[Total Sync MOSFET Loss]]+Table1[[#This Row],[Total Control MOSFET Loss8]]+Table1[[#This Row],[Total Sync MOSFET Loss12]]+Table1[[#This Row],[Reverse Recovery Loss]] -> 3.735685611 | BO16: =Table1[[#This Row],[Total Sync MOSFET Loss]]+Table1[[#This Row],[Reverse Recovery Loss]]*0.33 -> 0.7006615539 | BP16: =Table1[[#This Row],[Isense Shunt Loss]] -> 0.2387095359 | BT16: 1Mhz / 12-1.2V/ 10A | BU16: 25 | BV16: 25 | BW16: 25 | BX16: =1000000*(12-Vdd)*BW16/1000000000+((1000000*BW9/1000000000*Vdd)*2.5/(2*4)) -> 0.2765625 | BY16: 22.125 | BZ16: 27.65625 | CA16: 33.1875 | CB16: 38.71875 | CC16: 44.25 | CD16: 49.78125 | CE16: 5.53125 | CF16: 8.296875 | CG16: 11.0625 | CH16: 13.828125
A17: Components | B17: Input Value | C17: Units | D17: Description | G17: 8 | H17: =VIN_min+(VIN_max-VIN_min)*(Table1[[#This Row],[Step]]/200) -> 6.24 | I17: =IF(Table1[[#This Row],[Vin]]>VIN_BB_to_buck, "BUCK", IF(Table1[[#This Row],[Vin]]<=VIN_boost_to_BB,"BOOST","BUCK-BST")) -> BOOST | J17: =IF(Table1[[#This Row],[Mode]]="BOOST",2, IF(Table1[[#This Row],[Mode]]="BUCK", 1,3)) -> 2 | K17: 6 | L17: =Vout*Table1[[#This Row],[Iout]]/(Table1[[#This Row],[Vin]]*Efficiency) -> 10.36437247 | M17: =Iout/(1-Table1[[#This Row],[Duty Cycle BOOST Leg]]) -> 9.995564848 | N17: =CHOOSE(Table1[[#This Row],[Mode Digit]],(Vout+(Rdson2+Rs+Rdcr)*Table1[[#This Row],[Iout]])/(Table1[[#This Row],[Vin]]+(Rs+Rdson2-Rdson1)*Table1[[#This Row],[Iout]]),1,IF(Table1[[#This Row],[Vin]]<Vout,D_max_buck_BB,Vout/Table1[[#This Row],[Vin]]*(1-D_min_boost_exitBB_to_buck))) -> 1 | O17: =CHOOSE(Table1[[#This Row],[Mode Digit]],0,(Vout+(Rdson3+Rdcr)*Table1[[#This Row],[Iin]]-Table1[[#This Row],[Vin]])/(Vout+(Rdson3-Rdson4-Rs)*Table1[[#This Row],[Iin]]),IF(Table1[[#This Row],[Vin]]>Vout, (Vout-Table1[[#This Row],[Vin]]*D_max_exitBB_to_buck)/Vout, (Vout-Table1[[#This Row],[Vin]]*D_max_buck_BB)/Vout)) -> 0.3997337728 | P17: =CHOOSE(Table1[[#This Row],[Mode Digit]],0,0,1-((Table1[[#This Row],[Vin]]-Vout)+((VIN_BB_to_buck-VIN_BB_to_boost)/2))/((VIN_BB_to_buck-VIN_BB_to_boost))) -> 0 | Q17: =CHOOSE(Table1[[#This Row],[Mode Digit]],0,Table1[[#This Row],[Duty Cycle BOOST Leg]]/Fsw,(1/Fsw-Table1[[#This Row],[T BOD/BUE]])*Table1[[#This Row],[BOE/BUD BUBO ratio]]) -> 1.051930981e-06 | R17: =CHOOSE(Table1[[#This Row],[Mode Digit]],Table1[[#This Row],[Duty Cycle BUCK Leg]]/Fsw,(1-Table1[[#This Row],[Duty Cycle BOOST Leg]])/Fsw,TonBubo) -> 1.579647966e-06 | S17: =CHOOSE(Table1[[#This Row],[Mode Digit]],(1-Table1[[#This Row],[Duty Cycle BUCK Leg]])/Fsw,0,(1/Fsw-Table1[[#This Row],[T BOD/BUE]]-Table1[[#This Row],[T BOE]])) -> 0 | T17: =MAX(0, CHOOSE(Table1[[#This Row],[Mode Digit]], (Table1[[#This Row],[Vin]]-(Rdson1+Rdcr)*Table1[[#This Row],[Iout]]-Vout)*Table1[[#This Row],[Duty Cycle BUCK Leg]]/(Fsw*Lf), (Table1[[#This Row],[Vin]]-(Rdson4+Rdcr+Rs)*Table1[[#This Row],[Iin]])*Table1[[#This Row],[Duty Cycle BOOST Leg]]/(Fsw*Lf), IF(Table1[[#This Row],[Vin]]<Vout, (Table1[[#This Row],[Vin]]-(Rdson1+Rdson3+Rdcr+Rs)*Table1[[#This Row],[Iin]])*Table1[[#This Row],[T BOE]]/(Lf),(Vout-(Rdson2+Rdson4+Rdcr+Rs)*Table1[[#This Row],[Iout]])*Table1[[#This Row],[T BUD]]/(Lf)))) -> 4.301895171 | U17: =CHOOSE(Table1[[#This Row],[Mode Digit]], SQRT(Table1[[#This Row],[Iout]]^2+(Table1[[#This Row],[Ripple Current pk-pk]]^2)/12), SQRT(Table1[[#This Row],[Iin]]^2+(Table1[[#This Row],[Ripple Current pk-pk]]^2)/12), SQRT(Table1[[#This Row],[Avg IL]]^2+(Table1[[#This Row],[Ripple Current pk-pk]]^2)/12)) -> 10.43850605 | V17: =(Table1[[#This Row],[Irms Lf]]^2*Rdcr*(1+Ltc*Ta-Ltc*25))/(1-Table1[[#This Row],[Irms Lf]]^2*Rdcr*Ltc*ThetaCa) -> 0.4282425021 | W17: =ABS(7.759*10^-3*Fsw^0.9458*(0.00787*Table1[[#This Row],[Ripple Current pk-pk]])^2.304) -> 0.6017874045 | X17: =Table1[[#This Row],[DCR Loss]]+Table1[[#This Row],[Core Loss]] -> 1.030029907 | Y17: =IF(Table1[[#This Row],[Vin]]>Vout, Table1[[#This Row],[Ripple Current pk-pk]]/SQRT(12), SQRT(Table1[[#This Row],[Duty Cycle BOOST Leg]]/(1-Table1[[#This Row],[Duty Cycle BOOST Leg]]))*SQRT(Table1[[#This Row],[Iout]]^2+(Table1[[#This Row],[Ripple Current pk-pk]]^2)/12)) -> 5.0000377 | Z17: =RCoutEsr*Table1[[#This Row],[Irms Cout]]^2 -> 0.05000075401 | AA17: =Table1[[#This Row],[Cout ESR Loss]] -> 0.05000075401 | AB17: =IF(Table1[[#This Row],[Vin]]>Vout, SQRT(Table1[[#This Row],[Duty Cycle BUCK Leg]]*(1-Table1[[#This Row],[Duty Cycle BUCK Leg]]))*SQRT(Table1[[#This Row],[Iout]]^2+(Table1[[#This Row],[Ripple Current pk-pk]]^2)/12), Table1[[#This Row],[Ripple Current pk-pk]]/SQRT(12)) -> 1.241850167 | AC17: =RCinEsr*Table1[[#This Row],[Irms Cin]]^2 -> 0.003084383677 | AD17: =Table1[[#This Row],[Cin ESR Loss]] -> 0.003084383677 | AE17: =Table1[[#This Row],[Irms Lf]] -> 10.43850605 | AF17: =Rdson1*Table1[[#This Row],[Irms1]]^2 -> 0.4794345975 | AG17: =CHOOSE(Table1[[#This Row],[Mode Digit]], (Table1[[#This Row],[Vin]]*Table1[[#This Row],[Iout]]/2)*(Fsw)*(Tr_buck+Tf_buck), 0, (Table1[[#This Row],[Vin]]*Table1[[#This Row],[Avg IL]]/2)*(Fsw/1)*(Tr_buck+Tf_buck)) -> 0 | AH17: =IF(Table1[[#This Row],[Vin]]>Vout, IF(Table1[[#This Row],[Iout]]>Table1[[#This Row],[Ripple Current pk-pk]]/2,0,ABS(Table1[[#This Row],[Iout]]-Table1[[#This Row],[Ripple Current pk-pk]]/2)*Vsd_Q1*Deadtime*Fsw),0) -> 0 | AI17: =(Table1[[#This Row],[Dead Time Loss ]]+Table1[[#This Row],[Transition Loss]]+Table1[[#This Row],[RDS(on) Loss]]*(1+RdsonTopTc*Ta-RdsonTopTc*25))/(1-Table1[[#This Row],[RDS(on) Loss]]*RdsonTopTc*ThetaJA_Q1) -> 0.547708046 | AJ17: =Table1[[#This Row],[Irms Lf]] -> 10.43850605 | AK17: =Rdson2*Table1[[#This Row],[Irms2]]^2 -> 0.4794345975 | AL17: =CHOOSE(Table1[[#This Row],[Mode Digit]], IF(Table1[[#This Row],[Iout]]<Table1[[#This Row],[Ripple Current pk-pk]]/2,Deadtime*Fsw*IF(VfdSky_Q2>0,0,Vsd_Q2)*(Table1[[#This Row],[Iout]]+Table1[[#This Row],[Ripple Current pk-pk]]/2),2*Deadtime*Fsw*IF(VfdSky_Q2>0,0,Vsd_Q2)*Table1[[#This Row],[Iout]]),0, IF(Table1[[#This Row],[Iout]]<Table1[[#This Row],[Ripple Current pk-pk]]/2,Deadtime*Fsw*IF(VfdSky_Q2>0,0,Vsd_Q2)*(Table1[[#This Row],[Iout]]+Table1[[#This Row],[Ripple Current pk-pk]]/2),2*Deadtime*Fsw*IF(VfdSky_Q2>0,0,Vsd_Q2)*Table1[[#This Row],[Iout]])) -> 0 | AM17: =(Table1[[#This Row],[Deadtime Loss]]+Table1[[#This Row],[RDS(on) Loss3]]*(1+RdsonBotTc*Ta-RdsonBotTc*25))/(1-Table1[[#This Row],[RDS(on) Loss3]]*RdsonBotTc*ThetaJA_Q2) -> 0.547708046 | AN17: =Table1[[#This Row],[Irms Lf]] -> 10.43850605 | AO17: =Rdson4*Table1[[#This Row],[Irms4]]^2 -> 0.4794345975 | AP17: =CHOOSE(Table1[[#This Row],[Mode Digit]], 0, (Vout*Table1[[#This Row],[Iin]]/2)*(Fsw)*(Tr_boost+Tf_boost), (Vout*Iout/2)*(Fsw/1)*(Tr_boost+Tf_boost)) -> 0.4889666135 | AQ17: =IF(Table1[[#This Row],[Vin]]>Vout, 0, IF(Table1[[#This Row],[Iin]]>Table1[[#This Row],[Ripple Current pk-pk]]/2,0,ABS(Table1[[#This Row],[Iin]]-Table1[[#This Row],[Ripple Current pk-pk]]/2)*Vsd_Q4*Deadtime*Fsw)) -> 0 | AR17: =(Table1[[#This Row],[Dead Time Loss 7]]+Table1[[#This Row],[Transition Loss6]]+Table1[[#This Row],[RDS(on) Loss5]]*(1+RdsonTopTc*Ta-RdsonTopTc*25))/(1-Table1[[#This Row],[RDS(on) Loss5]]*RdsonTopTc*ThetaJA_Q4) -> 1.106305506 | AS17: =Table1[[#This Row],[Irms Lf]] -> 10.43850605 | AT17: =Rdson3*Table1[[#This Row],[Irms9]]^2 -> 0.4794345975 | AU17: =CHOOSE(Table1[[#This Row],[Mode Digit]], 0, IF(Table1[[#This Row],[Iin]]<Table1[[#This Row],[Ripple Current pk-pk]]/2,Deadtime*Fsw*IF(VfdSky_Q3>0,0,Vsd_Q3)*(Table1[[#This Row],[Iin]]+Table1[[#This Row],[Ripple Current pk-pk]]/2), 2*Deadtime*Fsw*IF(VfdSky_Q3>0,0,Vsd_Q3)*Table1[[#This Row],[Iin]]), IF(Table1[[#This Row],[Iin]]<Table1[[#This Row],[Ripple Current pk-pk]]/2,Deadtime*Fsw*IF(VfdSky_Q3>0,0,Vsd_Q3)*(Table1[[#This Row],[Iin]]+Table1[[#This Row],[Ripple Current pk-pk]]/2), 2*Deadtime*Fsw*IF(VfdSky_Q3>0,0,Vsd_Q3)*Table1[[#This Row],[Iin]])) -> 0.3544615385 | AV17: =(Table1[[#This Row],[Deadtime Loss11]]+Table1[[#This Row],[RDS(on) Loss10]]*(1+RdsonBotTc*Ta-RdsonBotTc*25))/(1-Table1[[#This Row],[RDS(on) Loss10]]*RdsonBotTc*ThetaJA_Q3) -> 0.952646358 | AW17: =CHOOSE(Table1[[#This Row],[Mode Digit]], Rdson3*Table1[[#This Row],[Irms Lf]]^2, Rdson1*Table1[[#This Row],[Irms Lf]]^2, 0) -> 0.4794345975 | AX17: =CHOOSE(Table1[[#This Row],[Mode Digit]], 2*Deadtime*Fsw*IF(VfdSky_Q2>0,VfdSky_Q2,0)*Table1[[#This Row],[Iout]], 2*Deadtime*Fsw*IF(VfdSky_Q3>0,VfdSky_Q3,0)*Table1[[#This Row],[Iin]], 2*Deadtime*Fsw*IF(VfdSky_Q2>0,VfdSky_Q2,0)*Table1[[#This Row],[Iout]]+2*Deadtime*Fsw*IF(VfdSky_Q3>0,VfdSky_Q3,0)*Table1[[#This Row],[Iin]]) -> 0 | AY17: =CHOOSE(Table1[[#This Row],[Mode Digit]], IF(QrrSky_Q2>0,QrrSky_Q2,Qrr_Q2)*Fsw*(Table1[[#This Row],[Vin]]-Table1[[#This Row],[Iout]]*Rdson1), IF(QrrSky_Q3>0,QrrSky_Q3,Qrr_Q3)*Fsw*Vout, IF(QrrSky_Q2>0,QrrSky_Q2,Qrr_Q2)*Fsw*(Table1[[#This Row],[Vin]]-Table1[[#This Row],[Iout]]*Rdson1)+IF(QrrSky_Q3>0,QrrSky_Q3,Qrr_Q3)*Fsw*Vout) -> 0.2801664 | AZ17: =CHOOSE(Table1[[#This Row],[Mode Digit]], Rs*Table1[[#This Row],[Irms2]]^2, Rs*Table1[[#This Row],[Irms4]]^2, Rs*(Table1[[#This Row],[Irms2]]^2+Table1[[#This Row],[Irms4]]^2)) -> 0.2179248171 | BA17: 0.594 | BB17: =IF(Vout>8, Iq*Vout, Iq*Table1[[#This Row],[Vin]]) -> 0.03072 | BC17: =CHOOSE(Table1[[#This Row],[Mode Digit]], (Qg_Q1+Qg_Q2)*Fsw, (Qg_Q3+Qg_Q4)*Fsw, (Qg_Q1+Qg_Q2+Qg_Q3+Qg_Q4)*Fsw)*IF(Vout>8, Vout, Table1[[#This Row],[Vin]]) -> 0.3579904 | BD17: 0.7053694118 | BE17: =Table1[[#This Row],[IQ Loss]]+Table1[[#This Row],[Switching Current Loss]] -> 0.3887104 | BF17: =SUM(Table1[[#This Row],[Total Inductor Loss]],Table1[[#This Row],[Total Cout Loss]],Table1[[#This Row],[Total Cin Loss]],Table1[[#This Row],[Total Control MOSFET Loss]],Table1[[#This Row],[Total Sync MOSFET Loss]],Table1[[#This Row],[Total Control MOSFET Loss8]],Table1[[#This Row],[Total Sync MOSFET Loss12]], Table1[[#This Row],[Deadtime Loss13]],Table1[[#This Row],[Reverse Recovery Loss]],Table1[[#This Row],[Total IC Loss]],Table1[[#This Row],[Isense Shunt Loss]],Table1[[#This Row],[Iout Shunt Loss]]) -> 5.718284618 | BG17: =Vout*Table1[[#This Row],[Iout]] -> 61.44 | BH17: =Table1[[#This Row],[Pout]]/(Table1[[#This Row],[Pout]]+Table1[[#This Row],[Total Loss]]) -> 0.914853623 | BI17: =IF(Table1[[#This Row],[Vin]]>Vout,ThetaJA_Q1*(Table1[[#This Row],[Total Control MOSFET Loss]]+Table1[[#This Row],[Reverse Recovery Loss]]),ThetaJA_Q4*(Table1[[#This Row],[Total Control MOSFET Loss8]]+Table1[[#This Row],[Reverse Recovery Loss]])) -> 90.1206739 | BJ17: =IF(Table1[[#This Row],[Vin]]>Vout, Table1[[#This Row],[Total Sync MOSFET Loss]]*ThetaJA_Q2, ThetaJA_Q3*Table1[[#This Row],[Total Sync MOSFET Loss12]]) -> 61.92201327 | BL17: =Table1[[#This Row],[EFF, h]]*100 -> 91.4853623 | BM17: =Table1[[#This Row],[Total Inductor Loss]] -> 1.030029907 | BN17: =Table1[[#This Row],[Total Control MOSFET Loss]]+Table1[[#This Row],[Total Sync MOSFET Loss]]+Table1[[#This Row],[Total Control MOSFET Loss8]]+Table1[[#This Row],[Total Sync MOSFET Loss12]]+Table1[[#This Row],[Reverse Recovery Loss]] -> 3.434534356 | BO17: =Table1[[#This Row],[Total Sync MOSFET Loss]]+Table1[[#This Row],[Reverse Recovery Loss]]*0.33 -> 0.640162958 | BP17: =Table1[[#This Row],[Isense Shunt Loss]] -> 0.2179248171 | BT17: 500kHz / 18-1.2V / 20A | BU17: 50 | BV17: 50 | BW17: 50 | BX17: =500000*(18-Vdd)*BW17/1000000000+((500000*BW15/1000000000*Vdd)*2.5/(2*4)) -> 0.2859375 | BY17: 22.875 | BZ17: 28.59375 | CA17: 34.3125 | CB17: 40.03125 | CC17: 45.75 | CD17: 51.46875 | CE17: 5.71875 | CF17: 8.578125 | CG17: 11.4375 | CH17: 14.296875
